Workbook

Sheet Payment Report
A1: LBB High Needs Payments for FY 2024-25
C3: Select School → | D3: Please choose a school | L3: =IFERROR(VLOOKUP(D3,Schools!B:T,19,FALSE),"No School Selected") -> 0
H5: 4 | I5: 5 | J5: 6 | K5: 7 | L5: 8 | M5: 9 | N5: 10 | O5: 11 | P5: 12 | Q5: 1 | R5: 2 | S5: 3
A6: Paid 2024-25 | B6: Type | H6: 2022-04-01 | I6: 2022-05-01 | J6: 2022-06-01 | K6: 2022-07-01 | L6: 2022-08-01 | M6: 2022-09-01 | N6: 2022-10-01 | O6: 2022-11-01 | P6: 2022-12-01 | Q6: 2023-01-01 | R6: 2023-02-01 | S6: 2023-03-01 | T6: Total
A7: Top-Up Nursery | B7: EHCPN | H7: =SUMIFS(HNTopUp!W:W,HNTopUp!$B:$B,'Payment Report'!$L$3,HNTopUp!$I:$I,'Payment Report'!$B7) -> 0 | I7: =SUMIFS(HNTopUp!Z:Z,HNTopUp!$B:$B,'Payment Report'!$L$3,HNTopUp!$I:$I,'Payment Report'!$B7) -> 0 | J7: =SUMIFS(HNTopUp!AC:AC,HNTopUp!$B:$B,'Payment Report'!$L$3,HNTopUp!$I:$I,'Payment Report'!$B7) -> 0 | K7: =SUMIFS(HNTopUp!AF:AF,HNTopUp!$B:$B,'Payment Report'!$L$3,HNTopUp!$I:$I,'Payment Report'!$B7) -> 0 | L7: =SUMIFS(HNTopUp!AI:AI,HNTopUp!$B:$B,'Payment Report'!$L$3,HNTopUp!$I:$I,'Payment Report'!$B7) -> 0 | M7: =SUMIFS(HNTopUp!AL:AL,HNTopUp!$B:$B,'Payment Report'!$L$3,HNTopUp!$I:$I,'Payment Report'!$B7) -> 0 | N7: =SUMIFS(HNTopUp!AO:AO,HNTopUp!$B:$B,'Payment Report'!$L$3,HNTopUp!$I:$I,'Payment Report'!$B7) -> 0 | O7: =SUMIFS(HNTopUp!AR:AR,HNTopUp!$B:$B,'Payment Report'!$L$3,HNTopUp!$I:$I,'Payment Report'!$B7) -> 0 | P7: =SUMIFS(HNTopUp!AU:AU,HNTopUp!$B:$B,'Payment Report'!$L$3,HNTopUp!$I:$I,'Payment Report'!$B7) -> 0 | Q7: =SUMIFS(HNTopUp!AX:AX,HNTopUp!$B:$B,'Payment Report'!$L$3,HNTopUp!$I:$I,'Payment Report'!$B7) -> 0 | R7: =SUMIFS(HNTopUp!BA:BA,HNTopUp!$B:$B,'Payment Report'!$L$3,HNTopUp!$I:$I,'Payment Report'!$B7) -> 0 | S7: =SUMIFS(HNTopUp!BD:BD,HNTopUp!$B:$B,'Payment Report'!$L$3,HNTopUp!$I:$I,'Payment Report'!$B7) -> 0 | T7: =SUM(H7:S7) -> 0
A8: Top-Up Primary | B8: EHCP | H8: =SUMIFS(HNTopUp!W:W,HNTopUp!$B:$B,'Payment Report'!$L$3,HNTopUp!$I:$I,'Payment Report'!$B8) -> 0 | I8: =SUMIFS(HNTopUp!Z:Z,HNTopUp!$B:$B,'Payment Report'!$L$3,HNTopUp!$I:$I,'Payment Report'!$B8) -> 0 | J8: =SUMIFS(HNTopUp!AC:AC,HNTopUp!$B:$B,'Payment Report'!$L$3,HNTopUp!$I:$I,'Payment Report'!$B8) -> 0 | K8: =SUMIFS(HNTopUp!AF:AF,HNTopUp!$B:$B,'Payment Report'!$L$3,HNTopUp!$I:$I,'Payment Report'!$B8) -> 0 | L8: =SUMIFS(HNTopUp!AI:AI,HNTopUp!$B:$B,'Payment Report'!$L$3,HNTopUp!$I:$I,'Payment Report'!$B8) -> 0 | M8: =SUMIFS(HNTopUp!AL:AL,HNTopUp!$B:$B,'Payment Report'!$L$3,HNTopUp!$I:$I,'Payment Report'!$B8) -> 0 | N8: =SUMIFS(HNTopUp!AO:AO,HNTopUp!$B:$B,'Payment Report'!$L$3,HNTopUp!$I:$I,'Payment Report'!$B8) -> 0 | O8: =SUMIFS(HNTopUp!AR:AR,HNTopUp!$B:$B,'Payment Report'!$L$3,HNTopUp!$I:$I,'Payment Report'!$B8) -> 0 | P8: =SUMIFS(HNTopUp!AU:AU,HNTopUp!$B:$B,'Payment Report'!$L$3,HNTopUp!$I:$I,'Payment Report'!$B8) -> 0 | Q8: =SUMIFS(HNTopUp!AX:AX,HNTopUp!$B:$B,'Payment Report'!$L$3,HNTopUp!$I:$I,'Payment Report'!$B8) -> 0 | R8: =SUMIFS(HNTopUp!BA:BA,HNTopUp!$B:$B,'Payment Report'!$L$3,HNTopUp!$I:$I,'Payment Report'!$B8) -> 0 | S8: =SUMIFS(HNTopUp!BD:BD,HNTopUp!$B:$B,'Payment Report'!$L$3,HNTopUp!$I:$I,'Payment Report'!$B8) -> 0 | T8: =SUM(H8:S8) -> 0
A9: Top-Up Secondary | B9: EHCPS | H9: =SUMIFS(HNTopUp!W:W,HNTopUp!$B:$B,'Payment Report'!$L$3,HNTopUp!$I:$I,'Payment Report'!$B9) -> 0 | I9: =SUMIFS(HNTopUp!Z:Z,HNTopUp!$B:$B,'Payment Report'!$L$3,HNTopUp!$I:$I,'Payment Report'!$B9) -> 0 | J9: =SUMIFS(HNTopUp!AC:AC,HNTopUp!$B:$B,'Payment Report'!$L$3,HNTopUp!$I:$I,'Payment Report'!$B9) -> 0 | K9: =SUMIFS(HNTopUp!AF:AF,HNTopUp!$B:$B,'Payment Report'!$L$3,HNTopUp!$I:$I,'Payment Report'!$B9) -> 0 | L9: =SUMIFS(HNTopUp!AI:AI,HNTopUp!$B:$B,'Payment Report'!$L$3,HNTopUp!$I:$I,'Payment Report'!$B9) -> 0 | M9: =SUMIFS(HNTopUp!AL:AL,HNTopUp!$B:$B,'Payment Report'!$L$3,HNTopUp!$I:$I,'Payment Report'!$B9) -> 0 | N9: =SUMIFS(HNTopUp!AO:AO,HNTopUp!$B:$B,'Payment Report'!$L$3,HNTopUp!$I:$I,'Payment Report'!$B9) -> 0 | O9: =SUMIFS(HNTopUp!AR:AR,HNTopUp!$B:$B,'Payment Report'!$L$3,HNTopUp!$I:$I,'Payment Report'!$B9) -> 0 | P9: =SUMIFS(HNTopUp!AU:AU,HNTopUp!$B:$B,'Payment Report'!$L$3,HNTopUp!$I:$I,'Payment Report'!$B9) -> 0 | Q9: =SUMIFS(HNTopUp!AX:AX,HNTopUp!$B:$B,'Payment Report'!$L$3,HNTopUp!$I:$I,'Payment Report'!$B9) -> 0 | R9: =SUMIFS(HNTopUp!BA:BA,HNTopUp!$B:$B,'Payment Report'!$L$3,HNTopUp!$I:$I,'Payment Report'!$B9) -> 0 | S9: =SUMIFS(HNTopUp!BD:BD,HNTopUp!$B:$B,'Payment Report'!$L$3,HNTopUp!$I:$I,'Payment Report'!$B9) -> 0 | T9: =SUM(H9:S9) -> 0
A10: Top-Up ARPs | B10: ARPs | H10: =SUMIFS(HNTopUp!W:W,HNTopUp!$B:$B,'Payment Report'!$L$3,HNTopUp!$I:$I,'Payment Report'!$B10) -> 0 | I10: =SUMIFS(HNTopUp!Z:Z,HNTopUp!$B:$B,'Payment Report'!$L$3,HNTopUp!$I:$I,'Payment Report'!$B10) -> 0 | J10: =SUMIFS(HNTopUp!AC:AC,HNTopUp!$B:$B,'Payment Report'!$L$3,HNTopUp!$I:$I,'Payment Report'!$B10) -> 0 | K10: =SUMIFS(HNTopUp!AF:AF,HNTopUp!$B:$B,'Payment Report'!$L$3,HNTopUp!$I:$I,'Payment Report'!$B10) -> 0 | L10: =SUMIFS(HNTopUp!AI:AI,HNTopUp!$B:$B,'Payment Report'!$L$3,HNTopUp!$I:$I,'Payment Report'!$B10) -> 0 | M10: =SUMIFS(HNTopUp!AL:AL,HNTopUp!$B:$B,'Payment Report'!$L$3,HNTopUp!$I:$I,'Payment Report'!$B10) -> 0 | N10: =SUMIFS(HNTopUp!AO:AO,HNTopUp!$B:$B,'Payment Report'!$L$3,HNTopUp!$I:$I,'Payment Report'!$B10) -> 0 | O10: =SUMIFS(HNTopUp!AR:AR,HNTopUp!$B:$B,'Payment Report'!$L$3,HNTopUp!$I:$I,'Payment Report'!$B10) -> 0 | P10: =SUMIFS(HNTopUp!AU:AU,HNTopUp!$B:$B,'Payment Report'!$L$3,HNTopUp!$I:$I,'Payment Report'!$B10) -> 0 | Q10: =SUMIFS(HNTopUp!AX:AX,HNTopUp!$B:$B,'Payment Report'!$L$3,HNTopUp!$I:$I,'Payment Report'!$B10) -> 0 | R10: =SUMIFS(HNTopUp!BA:BA,HNTopUp!$B:$B,'Payment Report'!$L$3,HNTopUp!$I:$I,'Payment Report'!$B10) -> 0 | S10: =SUMIFS(HNTopUp!BD:BD,HNTopUp!$B:$B,'Payment Report'!$L$3,HNTopUp!$I:$I,'Payment Report'!$B10) -> 0 | T10: =SUM(H10:S10) -> 0
A11: Top-Up PRUs | B11: PRUs | H11: =SUMIFS(HNTopUp!W:W,HNTopUp!$B:$B,'Payment Report'!$L$3,HNTopUp!$I:$I,'Payment Report'!$B11) -> 0 | I11: =SUMIFS(HNTopUp!Z:Z,HNTopUp!$B:$B,'Payment Report'!$L$3,HNTopUp!$I:$I,'Payment Report'!$B11) -> 0 | J11: =SUMIFS(HNTopUp!AC:AC,HNTopUp!$B:$B,'Payment Report'!$L$3,HNTopUp!$I:$I,'Payment Report'!$B11) -> 0 | K11: =SUMIFS(HNTopUp!AF:AF,HNTopUp!$B:$B,'Payment Report'!$L$3,HNTopUp!$I:$I,'Payment Report'!$B11) -> 0 | L11: =SUMIFS(HNTopUp!AI:AI,HNTopUp!$B:$B,'Payment Report'!$L$3,HNTopUp!$I:$I,'Payment Report'!$B11) -> 0 | M11: =SUMIFS(HNTopUp!AL:AL,HNTopUp!$B:$B,'Payment Report'!$L$3,HNTopUp!$I:$I,'Payment Report'!$B11) -> 0 | N11: =SUMIFS(HNTopUp!AO:AO,HNTopUp!$B:$B,'Payment Report'!$L$3,HNTopUp!$I:$I,'Payment Report'!$B11) -> 0 | O11: =SUMIFS(HNTopUp!AR:AR,HNTopUp!$B:$B,'Payment Report'!$L$3,HNTopUp!$I:$I,'Payment Report'!$B11) -> 0 | P11: =SUMIFS(HNTopUp!AU:AU,HNTopUp!$B:$B,'Payment Report'!$L$3,HNTopUp!$I:$I,'Payment Report'!$B11) -> 0 | Q11: =SUMIFS(HNTopUp!AX:AX,HNTopUp!$B:$B,'Payment Report'!$L$3,HNTopUp!$I:$I,'Payment Report'!$B11) -> 0 | R11: =SUMIFS(HNTopUp!BA:BA,HNTopUp!$B:$B,'Payment Report'!$L$3,HNTopUp!$I:$I,'Payment Report'!$B11) -> 0 | S11: =SUMIFS(HNTopUp!BD:BD,HNTopUp!$B:$B,'Payment Report'!$L$3,HNTopUp!$I:$I,'Payment Report'!$B11) -> 0 | T11: 0
A12: Top-Up Special | B12: SPEC | H12: =SUMIFS(HNTopUp!W:W,HNTopUp!$B:$B,'Payment Report'!$L$3,HNTopUp!$I:$I,'Payment Report'!$B12) -> 0 | I12: =SUMIFS(HNTopUp!Z:Z,HNTopUp!$B:$B,'Payment Report'!$L$3,HNTopUp!$I:$I,'Payment Report'!$B12) -> 0 | J12: =SUMIFS(HNTopUp!AC:AC,HNTopUp!$B:$B,'Payment Report'!$L$3,HNTopUp!$I:$I,'Payment Report'!$B12) -> 0 | K12: =SUMIFS(HNTopUp!AF:AF,HNTopUp!$B:$B,'Payment Report'!$L$3,HNTopUp!$I:$I,'Payment Report'!$B12) -> 0 | L12: =SUMIFS(HNTopUp!AI:AI,HNTopUp!$B:$B,'Payment Report'!$L$3,HNTopUp!$I:$I,'Payment Report'!$B12) -> 0 | M12: =SUMIFS(HNTopUp!AL:AL,HNTopUp!$B:$B,'Payment Report'!$L$3,HNTopUp!$I:$I,'Payment Report'!$B12) -> 0 | N12: =SUMIFS(HNTopUp!AO:AO,HNTopUp!$B:$B,'Payment Report'!$L$3,HNTopUp!$I:$I,'Payment Report'!$B12) -> 0 | O12: =SUMIFS(HNTopUp!AR:AR,HNTopUp!$B:$B,'Payment Report'!$L$3,HNTopUp!$I:$I,'Payment Report'!$B12) -> 0 | P12: =SUMIFS(HNTopUp!AU:AU,HNTopUp!$B:$B,'Payment Report'!$L$3,HNTopUp!$I:$I,'Payment Report'!$B12) -> 0 | Q12: =SUMIFS(HNTopUp!AX:AX,HNTopUp!$B:$B,'Payment Report'!$L$3,HNTopUp!$I:$I,'Payment Report'!$B12) -> 0 | R12: =SUMIFS(HNTopUp!BA:BA,HNTopUp!$B:$B,'Payment Report'!$L$3,HNTopUp!$I:$I,'Payment Report'!$B12) -> 0 | S12: =SUMIFS(HNTopUp!BD:BD,HNTopUp!$B:$B,'Payment Report'!$L$3,HNTopUp!$I:$I,'Payment Report'!$B12) -> 0 | T12: 0
A13: SEN Inclusion | B13: SEN | H13: =SUMIFS(HNTopUp!W:W,HNTopUp!$B:$B,'Payment Report'!$L$3,HNTopUp!$I:$I,'Payment Report'!$B13) -> 0 | I13: =SUMIFS(HNTopUp!Z:Z,HNTopUp!$B:$B,'Payment Report'!$L$3,HNTopUp!$I:$I,'Payment Report'!$B13) -> 0 | J13: =SUMIFS(HNTopUp!AC:AC,HNTopUp!$B:$B,'Payment Report'!$L$3,HNTopUp!$I:$I,'Payment Report'!$B13) -> 0 | K13: =SUMIFS(HNTopUp!AF:AF,HNTopUp!$B:$B,'Payment Report'!$L$3,HNTopUp!$I:$I,'Payment Report'!$B13) -> 0 | L13: =SUMIFS(HNTopUp!AI:AI,HNTopUp!$B:$B,'Payment Report'!$L$3,HNTopUp!$I:$I,'Payment Report'!$B13) -> 0 | M13: =SUMIFS(HNTopUp!AL:AL,HNTopUp!$B:$B,'Payment Report'!$L$3,HNTopUp!$I:$I,'Payment Report'!$B13) -> 0 | N13: =SUMIFS(HNTopUp!AO:AO,HNTopUp!$B:$B,'Payment Report'!$L$3,HNTopUp!$I:$I,'Payment Report'!$B13) -> 0 | O13: =SUMIFS(HNTopUp!AR:AR,HNTopUp!$B:$B,'Payment Report'!$L$3,HNTopUp!$I:$I,'Payment Report'!$B13) -> 0 | P13: =SUMIFS(HNTopUp!AU:AU,HNTopUp!$B:$B,'Payment Report'!$L$3,HNTopUp!$I:$I,'Payment Report'!$B13) -> 0 | Q13: =SUMIFS(HNTopUp!AX:AX,HNTopUp!$B:$B,'Payment Report'!$L$3,HNTopUp!$I:$I,'Payment Report'!$B13) -> 0 | R13: =SUMIFS(HNTopUp!BA:BA,HNTopUp!$B:$B,'Payment Report'!$L$3,HNTopUp!$I:$I,'Payment Report'!$B13) -> 0 | S13: =SUMIFS(HNTopUp!BD:BD,HNTopUp!$B:$B,'Payment Report'!$L$3,HNTopUp!$I:$I,'Payment Report'!$B13) -> 0 | T13: 0
A14: Total | H14: =SUM(H7:H13) -> 0 | I14: 0 | J14: 0 | K14: 0 | L14: 0 | M14: 0 | N14: 0 | O14: 0 | P14: 0 | Q14: 0 | R14: 0 | S14: 0 | T14: 0
A16: Variance | H16: =H14-H18 -> 0 | I16: =I14-I18 -> 0 | J16: 0 | K16: 0 | L16: 0 | M16: 0 | N16: 0 | O16: 0 | P16: 0 | Q16: 0 | R16: 0 | S16: 0 | T16: =SUM(H16:S16) -> 0
A17: C | B17: J | C17: M | D17: U | E17: L | F17: D | G17: E | T17: Y
A18: 2024-25 | C18: =SUM(C20:C1537) -> 0 | D18: =SUM(D20:D1537) -> 0 | E18: =SUM(E20:E1537) -> 0 | H18: =SUM(H20:H1537) -> 0 | I18: =SUM(I20:I1537) -> 0 | J18: 0 | K18: 0 | L18: 0 | M18: 0 | N18: 0 | O18: 0 | P18: 0 | Q18: 0 | R18: 0 | S18: 0 | T18: =SUM(T20:T1537) -> 0
A19: LA Ref | B19: Band | C19: Current Year Alloc | D19: Prior Year Alloc | E19: Additional Alloc | F19: Start | G19: End | H19: 2024-04-04 | I19: 2024-05-04 | J19: 2024-06-04 | K19: 2024-07-04 | L19: 2024-08-04 | M19: 2024-09-04 | N19: 2024-10-04 | O19: 2024-11-04 | P19: 2024-12-04 | Q19: 2025-01-04 | R19: 2025-02-04 | S19: 2025-03-04 | T19: Total | V19: PriorYear | W19: Summer | X19: Autumn | Y19: Spring | Z19: Total
H20: =IF(AND(H$19>=$F20, H$19<=$G20), $T20/$Z20, 0)+IF(AND(V20<>0,Z20=0),E20,0)+IF(AND(V20<>0,Z20=0),D20,0) -> 0 | I20: =IF(AND(I$19>=$F20, I$19<=$G20), $T20/$Z20, "") ->  | U20: =SUM(H20:S20)-T20 -> 0 | V20: =ROUND(IF(G20<F20,DAYS360(F20-G20,0)/30,IF(F20<FYstart,DAYS360(F20,FYstart)/30,0)),0)*IF(A20=0,0,1) -> 0 | W20: =ROUND(IF(F20>Endsummer,0,IF(G20<Endsummer,DAYS360(F20,G20)/30-V20,DAYS360(F20,Endsummer)/30-V20)),0)*IF(A20=0,0,1) -> 0 | X20: =ROUND(IF(G20<Endautumn,DAYS360(F20,G20)/30-V20-W20,DAYS360(F20,Endautumn)/30-V20-W20),0)*IF(A20=0,0,1) -> 0 | Y20: =ROUND(DAYS360(F20,G20,0)/30-X20-W20-V20,0)*IF(A20=0,0,1) -> 0 | Z20: =SUM(W20:Y20) -> 0
H21: 0 | U21: =SUM(H21:S21)-T21 -> 0 | V21: 0 | W21: 0 | X21: 0 | Y21: =ROUND(DAYS360(F21,G21,0)/30-X21-W21-V21,0)*IF(A21=0,0,1) -> 0 | Z21: =SUM(W21:Y21) -> 0
H22: 0 | U22: 0 | V22: 0 | W22: 0 | X22: 0 | Y22: 0 | Z22: 0
H23: 0 | U23: 0 | V23: 0 | W23: 0 | X23: 0 | Y23: 0 | Z23: 0
H24: 0 | U24: 0 | V24: 0 | W24: 0 | X24: 0 | Y24: 0 | Z24: 0
H25: 0 | U25: 0 | V25: 0 | W25: 0 | X25: 0 | Y25: 0 | Z25: 0
H26: 0 | U26: 0 | V26: 0 | W26: 0 | X26: 0 | Y26: 0 | Z26: 0
H27: 0 | U27: 0 | V27: 0 | W27: 0 | X27: 0 | Y27: 0 | Z27: 0
H28: =IF(AND(H$19>=$F28, H$19<=$G28), $T28/$Z28, 0)+IF(AND(V28<>0,Z28=0),E28,0)+IF(AND(V28<>0,Z28=0),D28,0) -> 0 | U28: 0 | V28: 0 | W28: 0 | X28: 0 | Y28: 0 | Z28: 0
H29: =IF(AND(H$19>=$F29, H$19<=$G29), $T29/$Z29, 0)+IF(AND(V29<>0,Z29=0),E29,0)+IF(AND(V29<>0,Z29=0),D29,0) -> 0 | U29: 0 | V29: 0 | W29: 0 | X29: 0 | Y29: 0 | Z29: 0
H30: 0 | U30: 0 | V30: 0 | W30: 0 | X30: 0 | Y30: 0 | Z30: 0
H31: 0 | M31: =IF(AND(M$19>=$F31, M$19<=$G31), $T31/$Z31, "") ->  | U31: 0 | V31: 0 | W31: 0 | X31: 0 | Y31: 0 | Z31: 0
H32: 0 | U32: 0 | V32: 0 | W32: 0 | X32: 0 | Y32: 0 | Z32: 0
H33: 0 | U33: 0 | V33: 0 | W33: 0 | X33: 0 | Y33: 0 | Z33: 0
H34: 0 | U34: 0 | V34: 0 | W34: 0 | X34: 0 | Y34: 0 | Z34: 0
H35: 0 | U35: 0 | V35: 0 | W35: 0 | X35: 0 | Y35: 0 | Z35: 0
H36: 0 | I36: =IF(AND(I$19>=$F36, I$19<=$G36), $T36/$Z36, "") ->  | U36: 0 | V36: 0 | W36: 0 | X36: 0 | Y36: 0 | Z36: 0
H37: 0 | U37: 0 | V37: 0 | W37: 0 | X37: 0 | Y37: 0 | Z37: 0
H38: 0 | U38: 0 | V38: 0 | W38: 0 | X38: 0 | Y38: 0 | Z38: 0
H39: 0 | I39: =IF(AND(I$19>=$F39, I$19<=$G39), $T39/$Z39, "") ->  | U39: 0 | V39: 0 | W39: 0 | X39: 0 | Y39: 0 | Z39: 0
H40: 0 | U40: 0 | V40: 0 | W40: 0 | X40: 0 | Y40: 0 | Z40: 0
H41: 0 | U41: 0 | V41: 0 | W41: 0 | X41: 0 | Y41: 0 | Z41: 0
H42: 0 | U42: 0 | V42: 0 | W42: 0 | X42: 0 | Y42: 0 | Z42: 0
H43: 0 | U43: 0 | V43: 0 | W43: 0 | X43: 0 | Y43: 0 | Z43: 0
H44: 0 | U44: 0 | V44: 0 | W44: 0 | X44: 0 | Y44: 0 | Z44: 0
H45: 0 | U45: 0 | V45: 0 | W45: 0 | X45: 0 | Y45: 0 | Z45: 0
H46: 0 | U46: 0 | V46: 0 | W46: 0 | X46: 0 | Y46: 0 | Z46: 0
H47: 0 | U47: 0 | V47: 0 | W47: 0 | X47: 0 | Y47: 0 | Z47: 0
H48: 0 | U48: 0 | V48: 0 | W48: 0 | X48: 0 | Y48: 0 | Z48: 0
H49: 0 | U49: 0 | V49: 0 | W49: 0 | X49: 0 | Y49: 0 | Z49: 0
H50: 0 | U50: 0 | V50: 0 | W50: 0 | X50: 0 | Y50: 0 | Z50: 0
H51: 0 | U51: 0 | V51: 0 | W51: 0 | X51: 0 | Y51: 0 | Z51: 0
H52: 0 | U52: 0 | V52: 0 | W52: 0 | X52: 0 | Y52: 0 | Z52: 0
H53: 0 | U53: 0 | V53: 0 | W53: 0 | X53: 0 | Y53: 0 | Z53: 0
H54: 0 | U54: 0 | V54: 0 | W54: 0 | X54: 0 | Y54: 0 | Z54: 0
H55: 0 | U55: 0 | V55: 0 | W55: 0 | X55: 0 | Y55: 0 | Z55: 0
H56: 0 | U56: 0 | V56: 0 | W56: 0 | X56: 0 | Y56: 0 | Z56: 0
H57: 0 | U57: 0 | V57: 0 | W57: 0 | X57: 0 | Y57: 0 | Z57: 0
H58: 0 | U58: 0 | V58: 0 | W58: 0 | X58: 0 | Y58: 0 | Z58: 0
H59: 0 | U59: 0 | V59: 0 | W59: 0 | X59: 0 | Y59: 0 | Z59: 0
H60: 0 | K60: =IF(AND(K$19>=$F60, K$19<=$G60), $T60/$Z60, "") ->  | U60: 0 | V60: 0 | W60: 0 | X60: 0 | Y60: 0 | Z60: 0
H61: 0 | U61: 0 | V61: 0 | W61: 0 | X61: 0 | Y61: 0 | Z61: 0
H62: 0 | U62: 0 | V62: 0 | W62: 0 | X62: 0 | Y62: 0 | Z62: 0
H63: 0 | U63: 0 | V63: 0 | W63: 0 | X63: 0 | Y63: 0 | Z63: 0
H64: 0 | U64: 0 | V64: 0 | W64: 0 | X64: 0 | Y64: 0 | Z64: 0
H65: 0 | U65: 0 | V65: 0 | W65: 0 | X65: 0 | Y65: 0 | Z65: 0
H66: 0 | U66: 0 | V66: 0 | W66: 0 | X66: 0 | Y66: 0 | Z66: 0
H67: 0 | U67: 0 | V67: 0 | W67: 0 | X67: 0 | Y67: 0 | Z67: 0
H68: 0 | U68: 0 | V68: 0 | W68: 0 | X68: 0 | Y68: 0 | Z68: 0
H69: 0 | U69: 0 | V69: 0 | W69: 0 | X69: 0 | Y69: 0 | Z69: 0
H70: 0 | U70: 0 | V70: 0 | W70: 0 | X70: 0 | Y70: 0 | Z70: 0
H71: 0 | U71: 0 | V71: 0 | W71: 0 | X71: 0 | Y71: 0 | Z71: 0
H72: 0 | U72: 0 | V72: 0 | W72: 0 | X72: 0 | Y72: 0 | Z72: 0
H73: 0 | U73: 0 | V73: 0 | W73: 0 | X73: 0 | Y73: 0 | Z73: 0
H74: 0 | U74: 0 | V74: 0 | W74: 0 | X74: 0 | Y74: 0 | Z74: 0
H75: 0 | U75: 0 | V75: 0 | W75: 0 | X75: 0 | Y75: 0 | Z75: 0
H76: 0 | U76: 0 | V76: 0 | W76: 0 | X76: 0 | Y76: 0 | Z76: 0
H77: 0 | U77: 0 | V77: 0 | W77: 0 | X77: 0 | Y77: 0 | Z77: 0
H78: 0 | U78: 0 | V78: 0 | W78: 0 | X78: 0 | Y78: 0 | Z78: 0
H79: 0 | U79: 0 | V79: 0 | W79: 0 | X79: 0 | Y79: 0 | Z79: 0
H80: 0 | U80: 0 | V80: 0 | W80: 0 | X80: 0 | Y80: 0 | Z80: 0
H81: 0 | N81: =IF(AND(N$19>=$F81, N$19<=$G81), $T81/$Z81, "") ->  | U81: 0 | V81: 0 | W81: 0 | X81: 0 | Y81: 0 | Z81: 0
H82: 0 | U82: 0 | V82: 0 | W82: 0 | X82: 0 | Y82: 0 | Z82: 0
H83: 0 | U83: 0 | V83: 0 | W83: 0 | X83: 0 | Y83: 0 | Z83: 0
H84: 0 | U84: 0 | V84: =ROUND(IF(G84<F84,DAYS360(F84-G84,0)/30,IF(F84<FYstart,DAYS360(F84,FYstart)/30,0)),0)*IF(A84=0,0,1) -> 0 | W84: =ROUND(IF(F84>Endsummer,0,IF(G84<Endsummer,DAYS360(F84,G84)/30-V84,DAYS360(F84,Endsummer)/30-V84)),0)*IF(A84=0,0,1) -> 0 | X84: =ROUND(IF(G84<Endautumn,DAYS360(F84,G84)/30-V84-W84,DAYS360(F84,Endautumn)/30-V84-W84),0)*IF(A84=0,0,1) -> 0 | Y84: 0 | Z84: 0
H85: 0 | U85: =SUM(H85:S85)-T85 -> 0 | V85: 0 | W85: 0 | X85: 0 | Y85: =ROUND(DAYS360(F85,G85,0)/30-X85-W85-V85,0)*IF(A85=0,0,1) -> 0 | Z85: =SUM(W85:Y85) -> 0
H86: 0 | U86: 0 | V86: 0 | W86: 0 | X86: 0 | Y86: 0 | Z86: 0
H87: 0 | U87: 0 | V87: 0 | W87: 0 | X87: 0 | Y87: 0 | Z87: 0
H88: 0 | U88: 0 | V88: 0 | W88: 0 | X88: 0 | Y88: 0 | Z88: 0
H89: 0 | U89: 0 | V89: 0 | W89: 0 | X89: 0 | Y89: 0 | Z89: 0
H90: 0 | U90: 0 | V90: 0 | W90: 0 | X90: 0 | Y90: 0 | Z90: 0
H91: 0 | U91: 0 | V91: 0 | W91: 0 | X91: 0 | Y91: 0 | Z91: 0
H92: 0 | U92: 0 | V92: 0 | W92: 0 | X92: 0 | Y92: 0 | Z92: 0
H93: =IF(AND(H$19>=$F93, H$19<=$G93), $T93/$Z93, 0)+IF(AND(V93<>0,Z93=0),E93,0)+IF(AND(V93<>0,Z93=0),D93,0) -> 0 | U93: 0 | V93: 0 | W93: 0 | X93: 0 | Y93: 0 | Z93: 0
H94: 0 | U94: 0 | V94: 0 | W94: 0 | X94: 0 | Y94: 0 | Z94: 0
H95: 0 | U95: 0 | V95: 0 | W95: 0 | X95: 0 | Y95: 0 | Z95: 0
H96: 0 | U96: 0 | V96: 0 | W96: 0 | X96: 0 | Y96: 0 | Z96: 0
H97: 0 | U97: 0 | V97: 0 | W97: 0 | X97: 0 | Y97: 0 | Z97: 0
H98: 0 | U98: 0 | V98: 0 | W98: 0 | X98: 0 | Y98: 0 | Z98: 0
H99: 0 | U99: 0 | V99: 0 | W99: 0 | X99: 0 | Y99: 0 | Z99: 0
H100: 0 | U100: 0 | V100: 0 | W100: 0 | X100: 0 | Y100: 0 | Z100: 0
H101: 0 | U101: 0 | V101: 0 | W101: 0 | X101: 0 | Y101: 0 | Z101: 0
H102: 0 | Q102: =IF(AND(Q$19>=$F102, Q$19<=$G102), $T102/$Z102, "") ->  | U102: 0 | V102: 0 | W102: 0 | X102: 0 | Y102: 0 | Z102: 0
H103: 0 | U103: 0 | V103: 0 | W103: 0 | X103: 0 | Y103: 0 | Z103: 0
H104: 0 | U104: 0 | V104: 0 | W104: 0 | X104: 0 | Y104: 0 | Z104: 0
H105: 0 | U105: 0 | V105: 0 | W105: 0 | X105: 0 | Y105: 0 | Z105: 0
H106: 0 | U106: 0 | V106: 0 | W106: 0 | X106: 0 | Y106: 0 | Z106: 0
H107: 0 | U107: 0 | V107: 0 | W107: 0 | X107: 0 | Y107: 0 | Z107: 0
H108: 0 | U108: 0 | V108: 0 | W108: 0 | X108: 0 | Y108: 0 | Z108: 0
H109: 0 | U109: 0 | V109: 0 | W109: 0 | X109: 0 | Y109: 0 | Z109: 0
H110: 0 | U110: 0 | V110: 0 | W110: 0 | X110: 0 | Y110: 0 | Z110: 0
H111: 0 | U111: 0 | V111: 0 | W111: 0 | X111: 0 | Y111: 0 | Z111: 0
H112: 0 | U112: 0 | V112: 0 | W112: 0 | X112: 0 | Y112: 0 | Z112: 0
H113: 0 | U113: 0 | V113: 0 | W113: 0 | X113: 0 | Y113: 0 | Z113: 0
H114: 0 | U114: 0 | V114: 0 | W114: 0 | X114: 0 | Y114: 0 | Z114: 0
H115: 0 | U115: 0 | V115: 0 | W115: 0 | X115: 0 | Y115: 0 | Z115: 0
H116: 0 | U116: 0 | V116: 0 | W116: 0 | X116: 0 | Y116: 0 | Z116: 0
H117: 0 | U117: 0 | V117: 0 | W117: 0 | X117: 0 | Y117: 0 | Z117: 0
H118: 0 | U118: 0 | V118: 0 | W118: 0 | X118: 0 | Y118: 0 | Z118: 0
H119: 0 | U119: 0 | V119: 0 | W119: 0 | X119: 0 | Y119: 0 | Z119: 0
H120: 0 | U120: 0 | V120: 0 | W120: 0 | X120: 0 | Y120: 0 | Z120: 0
H121: 0 | U121: 0 | V121: 0 | W121: 0 | X121: 0 | Y121: 0 | Z121: 0
H122: 0 | U122: 0 | V122: 0 | W122: 0 | X122: 0 | Y122: 0 | Z122: 0
H123: 0 | U123: 0 | V123: 0 | W123: 0 | X123: 0 | Y123: 0 | Z123: 0
H124: 0 | I124: =IF(AND(I$19>=$F124, I$19<=$G124), $T124/$Z124, "") ->  | U124: 0 | V124: 0 | W124: 0 | X124: 0 | Y124: 0 | Z124: 0
H125: 0 | U125: 0 | V125: 0 | W125: 0 | X125: 0 | Y125: 0 | Z125: 0
H126: 0 | U126: 0 | V126: 0 | W126: 0 | X126: 0 | Y126: 0 | Z126: 0
H127: 0 | U127: 0 | V127: 0 | W127: 0 | X127: 0 | Y127: 0 | Z127: 0
H128: 0 | U128: 0 | V128: 0 | W128: 0 | X128: 0 | Y128: 0 | Z128: 0
H129: 0 | U129: 0 | V129: 0 | W129: 0 | X129: 0 | Y129: 0 | Z129: 0
H130: 0 | U130: 0 | V130: 0 | W130: 0 | X130: 0 | Y130: 0 | Z130: 0
H131: 0 | U131: 0 | V131: 0 | W131: 0 | X131: 0 | Y131: 0 | Z131: 0
H132: 0 | U132: 0 | V132: 0 | W132: 0 | X132: 0 | Y132: 0 | Z132: 0
H133: 0 | U133: 0 | V133: 0 | W133: 0 | X133: 0 | Y133: 0 | Z133: 0
H134: 0 | U134: 0 | V134: 0 | W134: 0 | X134: 0 | Y134: 0 | Z134: 0
H135: 0 | U135: 0 | V135: 0 | W135: 0 | X135: 0 | Y135: 0 | Z135: 0
H136: 0 | U136: 0 | V136: 0 | W136: 0 | X136: 0 | Y136: 0 | Z136: 0
H137: 0 | U137: 0 | V137: 0 | W137: 0 | X137: 0 | Y137: 0 | Z137: 0
H138: 0 | U138: 0 | V138: 0 | W138: 0 | X138: 0 | Y138: 0 | Z138: 0
H139: 0 | U139: 0 | V139: 0 | W139: 0 | X139: 0 | Y139: 0 | Z139: 0
H140: 0 | U140: 0 | V140: 0 | W140: 0 | X140: 0 | Y140: 0 | Z140: 0
H141: 0 | U141: 0 | V141: 0 | W141: 0 | X141: 0 | Y141: 0 | Z141: 0
H142: 0 | U142: 0 | V142: 0 | W142: 0 | X142: 0 | Y142: 0 | Z142: 0
H143: 0 | U143: 0 | V143: 0 | W143: 0 | X143: 0 | Y143: 0 | Z143: 0
H144: 0 | U144: 0 | V144: 0 | W144: 0 | X144: 0 | Y144: 0 | Z144: 0
H145: 0 | K145: =IF(AND(K$19>=$F145, K$19<=$G145), $T145/$Z145, "") ->  | U145: 0 | V145: 0 | W145: 0 | X145: 0 | Y145: 0 | Z145: 0
H146: 0 | U146: 0 | V146: 0 | W146: 0 | X146: 0 | Y146: 0 | Z146: 0
H147: 0 | U147: 0 | V147: 0 | W147: 0 | X147: 0 | Y147: 0 | Z147: 0
H148: 0 | U148: 0 | V148: =ROUND(IF(G148<F148,DAYS360(F148-G148,0)/30,IF(F148<FYstart,DAYS360(F148,FYstart)/30,0)),0)*IF(A148=0,0,1) -> 0 | W148: =ROUND(IF(F148>Endsummer,0,IF(G148<Endsummer,DAYS360(F148,G148)/30-V148,DAYS360(F148,Endsummer)/30-V148)),0)*IF(A148=0,0,1) -> 0 | X148: =ROUND(IF(G148<Endautumn,DAYS360(F148,G148)/30-V148-W148,DAYS360(F148,Endautumn)/30-V148-W148),0)*IF(A148=0,0,1) -> 0 | Y148: 0 | Z148: 0
H149: 0 | U149: =SUM(H149:S149)-T149 -> 0 | V149: 0 | W149: 0 | X149: 0 | Y149: =ROUND(DAYS360(F149,G149,0)/30-X149-W149-V149,0)*IF(A149=0,0,1) -> 0 | Z149: =SUM(W149:Y149) -> 0
H150: 0 | U150: 0 | V150: 0 | W150: 0 | X150: 0 | Y150: 0 | Z150: 0
H151: 0 | U151: 0 | V151: 0 | W151: 0 | X151: 0 | Y151: 0 | Z151: 0
H152: 0 | U152: 0 | V152: 0 | W152: 0 | X152: 0 | Y152: 0 | Z152: 0
H153: 0 | U153: 0 | V153: 0 | W153: 0 | X153: 0 | Y153: 0 | Z153: 0
H154: 0 | U154: 0 | V154: 0 | W154: 0 | X154: 0 | Y154: 0 | Z154: 0
H155: 0 | U155: 0 | V155: 0 | W155: 0 | X155: 0 | Y155: 0 | Z155: 0
H156: 0 | U156: 0 | V156: 0 | W156: 0 | X156: 0 | Y156: 0 | Z156: 0
H157: =IF(AND(H$19>=$F157, H$19<=$G157), $T157/$Z157, 0)+IF(AND(V157<>0,Z157=0),E157,0)+IF(AND(V157<>0,Z157=0),D157,0) -> 0 | U157: 0 | V157: 0 | W157: 0 | X157: 0 | Y157: 0 | Z157: 0
H158: 0 | U158: 0 | V158: 0 | W158: 0 | X158: 0 | Y158: 0 | Z158: 0
H159: 0 | U159: 0 | V159: 0 | W159: 0 | X159: 0 | Y159: 0 | Z159: 0
H160: 0 | U160: 0 | V160: 0 | W160: 0 | X160: 0 | Y160: 0 | Z160: 0
H161: 0 | U161: 0 | V161: 0 | W161: 0 | X161: 0 | Y161: 0 | Z161: 0
H162: 0 | U162: 0 | V162: 0 | W162: 0 | X162: 0 | Y162: 0 | Z162: 0
H163: 0 | U163: 0 | V163: 0 | W163: 0 | X163: 0 | Y163: 0 | Z163: 0
H164: 0 | U164: 0 | V164: 0 | W164: 0 | X164: 0 | Y164: 0 | Z164: 0
H165: 0 | U165: 0 | V165: 0 | W165: 0 | X165: 0 | Y165: 0 | Z165: 0
H166: 0 | N166: =IF(AND(N$19>=$F166, N$19<=$G166), $T166/$Z166, "") ->  | U166: 0 | V166: 0 | W166: 0 | X166: 0 | Y166: 0 | Z166: 0
H167: 0 | U167: 0 | V167: 0 | W167: 0 | X167: 0 | Y167: 0 | Z167: 0
H168: 0 | U168: 0 | V168: 0 | W168: 0 | X168: 0 | Y168: 0 | Z168: 0
H169: 0 | U169: 0 | V169: 0 | W169: 0 | X169: 0 | Y169: 0 | Z169: 0
H170: 0 | U170: 0 | V170: 0 | W170: 0 | X170: 0 | Y170: 0 | Z170: 0
H171: 0 | U171: 0 | V171: 0 | W171: 0 | X171: 0 | Y171: 0 | Z171: 0
H172: 0 | U172: 0 | V172: 0 | W172: 0 | X172: 0 | Y172: 0 | Z172: 0
H173: 0 | U173: 0 | V173: 0 | W173: 0 | X173: 0 | Y173: 0 | Z173: 0
H174: 0 | U174: 0 | V174: 0 | W174: 0 | X174: 0 | Y174: 0 | Z174: 0
H175: 0 | U175: 0 | V175: 0 | W175: 0 | X175: 0 | Y175: 0 | Z175: 0
H176: 0 | U176: 0 | V176: 0 | W176: 0 | X176: 0 | Y176: 0 | Z176: 0
H177: 0 | U177: 0 | V177: 0 | W177: 0 | X177: 0 | Y177: 0 | Z177: 0
H178: 0 | U178: 0 | V178: 0 | W178: 0 | X178: 0 | Y178: 0 | Z178: 0
H179: 0 | U179: 0 | V179: 0 | W179: 0 | X179: 0 | Y179: 0 | Z179: 0
H180: 0 | U180: 0 | V180: 0 | W180: 0 | X180: 0 | Y180: 0 | Z180: 0
H181: 0 | U181: 0 | V181: 0 | W181: 0 | X181: 0 | Y181: 0 | Z181: 0
H182: 0 | U182: 0 | V182: 0 | W182: 0 | X182: 0 | Y182: 0 | Z182: 0
H183: 0 | U183: 0 | V183: 0 | W183: 0 | X183: 0 | Y183: 0 | Z183: 0
H184: 0 | U184: 0 | V184: 0 | W184: 0 | X184: 0 | Y184: 0 | Z184: 0
H185: 0 | U185: 0 | V185: 0 | W185: 0 | X185: 0 | Y185: 0 | Z185: 0
H186: 0 | U186: 0 | V186: 0 | W186: 0 | X186: 0 | Y186: 0 | Z186: 0
H187: 0 | Q187: =IF(AND(Q$19>=$F187, Q$19<=$G187), $T187/$Z187, "") ->  | U187: 0 | V187: 0 | W187: 0 | X187: 0 | Y187: 0 | Z187: 0
H188: 0 | U188: 0 | V188: 0 | W188: 0 | X188: 0 | Y188: 0 | Z188: 0
H189: 0 | U189: 0 | V189: 0 | W189: 0 | X189: 0 | Y189: 0 | Z189: 0
H190: 0 | U190: 0 | V190: 0 | W190: 0 | X190: 0 | Y190: 0 | Z190: 0
H191: 0 | U191: 0 | V191: 0 | W191: 0 | X191: 0 | Y191: 0 | Z191: 0
H192: 0 | U192: 0 | V192: 0 | W192: 0 | X192: 0 | Y192: 0 | Z192: 0
H193: 0 | U193: 0 | V193: 0 | W193: 0 | X193: 0 | Y193: 0 | Z193: 0
H194: 0 | U194: 0 | V194: 0 | W194: 0 | X194: 0 | Y194: 0 | Z194: 0
H195: 0 | U195: 0 | V195: 0 | W195: 0 | X195: 0 | Y195: 0 | Z195: 0
H196: 0 | U196: 0 | V196: 0 | W196: 0 | X196: 0 | Y196: 0 | Z196: 0
H197: 0 | U197: 0 | V197: 0 | W197: 0 | X197: 0 | Y197: 0 | Z197: 0
H198: 0 | U198: 0 | V198: 0 | W198: 0 | X198: 0 | Y198: 0 | Z198: 0
H199: 0 | U199: 0 | V199: 0 | W199: 0 | X199: 0 | Y199: 0 | Z199: 0
H200: 0 | U200: 0 | V200: 0 | W200: 0 | X200: 0 | Y200: 0 | Z200: 0
H201: 0 | U201: 0 | V201: 0 | W201: 0 | X201: 0 | Y201: 0 | Z201: 0
H202: 0 | U202: 0 | V202: 0 | W202: 0 | X202: 0 | Y202: 0 | Z202: 0
H203: 0 | U203: 0 | V203: 0 | W203: 0 | X203: 0 | Y203: 0 | Z203: 0
... 1334 more rows

Sheet Sheet2 (hidden)
A3: Code LA Df E Care use mainstream School Code for ARPS not Synergy number | B3: School | C3: Groups for Payment Template | D3: Sum of £ Total
A4: 3021000 | B4: Brookhill Nursery | C4: EHCPN | D4: 28996.63 | E4: =SUMIFS(HNTopUp!BE:BE,HNTopUp!B:B,Sheet2!A4,HNTopUp!I:I,Sheet2!C4) -> 28996.63148 | F4: =D4-E4 -> -0.001481481486
A5: 3021000 | B5: Brookhill Nursery | C5: SEN | D5: 12549 | E5: =SUMIFS(HNTopUp!BE:BE,HNTopUp!B:B,Sheet2!A5,HNTopUp!I:I,Sheet2!C5) -> 12549 | F5: =D5-E5 -> 0
A6: 3021001 | B6: Hampden Way Nursery | C6: EHCPN | D6: 16688.19 | E6: =SUMIFS(HNTopUp!BE:BE,HNTopUp!B:B,Sheet2!A6,HNTopUp!I:I,Sheet2!C6) -> 16688.1937 | F6: -0.0037037037
A7: 3021001 | B7: Hampden Way Nursery | C7: SEN | D7: 11055 | E7: =SUMIFS(HNTopUp!BE:BE,HNTopUp!B:B,Sheet2!A7,HNTopUp!I:I,Sheet2!C7) -> 11055 | F7: 0
A8: 3021002 | B8: Moss Hall Nursery | C8: EHCPN | D8: 8514.38 | E8: =SUMIFS(HNTopUp!BE:BE,HNTopUp!B:B,Sheet2!A8,HNTopUp!I:I,Sheet2!C8) -> 8514.379259 | F8: 0.0007407407393
A9: 3021003 | B9: St Margaret's Nursery | C9: EHCPN | D9: 9848.29875 | E9: =SUMIFS(HNTopUp!BE:BE,HNTopUp!B:B,Sheet2!A9,HNTopUp!I:I,Sheet2!C9) -> 9848.296574 | F9: 0.002175925927
A10: 3021003 | B10: St Margaret's Nursery | C10: SEN | D10: 21332 | E10: =SUMIFS(HNTopUp!BE:BE,HNTopUp!B:B,Sheet2!A10,HNTopUp!I:I,Sheet2!C10) -> 21332 | F10: 0
A11: 3021100 | B11: Pavilion | C11: PRUs | D11: 1092440.913 | E11: =SUMIFS(HNTopUp!BE:BE,HNTopUp!B:B,Sheet2!A11,HNTopUp!I:I,Sheet2!C11) -> 1092440.913 | F11: 0
A12: 3021102 | B12: Northgate | C12: PRUs | D12: 24867.66667 | E12: =SUMIFS(HNTopUp!BE:BE,HNTopUp!B:B,Sheet2!A12,HNTopUp!I:I,Sheet2!C12) -> 24867.66667 | F12: 0
A13: 3021102 | B13: Northgate | C13: (blank) | D13: 0 | E13: =SUMIFS(HNTopUp!BE:BE,HNTopUp!B:B,Sheet2!A13,HNTopUp!I:I,Sheet2!C13) -> 0 | F13: 0
A14: 3022001 | B14: Etz Chaim Jewish Primary School | C14: EHCP | D14: 22072 | E14: =SUMIFS(HNTopUp!BE:BE,HNTopUp!B:B,Sheet2!A14,HNTopUp!I:I,Sheet2!C14) -> 22072 | F14: 0
A15: 3022002 | B15: Barnfield School | C15: EHCP | D15: 195920.33 | E15: =SUMIFS(HNTopUp!BE:BE,HNTopUp!B:B,Sheet2!A15,HNTopUp!I:I,Sheet2!C15) -> 195920.33 | F15: 0
A16: 3022002 | B16: Barnfield School | C16: SEN | D16: 1673 | E16: =SUMIFS(HNTopUp!BE:BE,HNTopUp!B:B,Sheet2!A16,HNTopUp!I:I,Sheet2!C16) -> 1673 | F16: 0
A17: 3022002 | B17: Barnfield School | C17: (blank) | D17: 0 | E17: =SUMIFS(HNTopUp!BE:BE,HNTopUp!B:B,Sheet2!A17,HNTopUp!I:I,Sheet2!C17) -> 0 | F17: 0
A18: 3022003 | B18: Bell Lane Primary School | C18: EHCP | D18: 220761.67 | E18: =SUMIFS(HNTopUp!BE:BE,HNTopUp!B:B,Sheet2!A18,HNTopUp!I:I,Sheet2!C18) -> 220761.67 | F18: 0
A19: 3022003 | B19: Bell Lane Primary School | C19: SEN | D19: 2271 | E19: =SUMIFS(HNTopUp!BE:BE,HNTopUp!B:B,Sheet2!A19,HNTopUp!I:I,Sheet2!C19) -> 2271 | F19: 0
A20: 3022003 | B20: Bell Lane Primary School | C20: (blank) | D20: 0 | E20: =SUMIFS(HNTopUp!BE:BE,HNTopUp!B:B,Sheet2!A20,HNTopUp!I:I,Sheet2!C20) -> 0 | F20: 0
A21: 3022004 | B21: Rimon Jewish Primary School | C21: EHCP | D21: 58525.33 | E21: =SUMIFS(HNTopUp!BE:BE,HNTopUp!B:B,Sheet2!A21,HNTopUp!I:I,Sheet2!C21) -> 58525.33 | F21: 0
A22: 3022007 | B22: Brookland Junior School | C22: EHCP | D22: 155789.08 | E22: =SUMIFS(HNTopUp!BE:BE,HNTopUp!B:B,Sheet2!A22,HNTopUp!I:I,Sheet2!C22) -> 155789.08 | F22: 0
A23: 3022008 | B23: Brookland Infant & Nursery School | C23: EHCP | D23: 114245.83 | E23: =SUMIFS(HNTopUp!BE:BE,HNTopUp!B:B,Sheet2!A23,HNTopUp!I:I,Sheet2!C23) -> 114245.83 | F23: 0
A24: 3022008 | B24: Brookland Infant & Nursery School | C24: SEN | D24: -478 | E24: =SUMIFS(HNTopUp!BE:BE,HNTopUp!B:B,Sheet2!A24,HNTopUp!I:I,Sheet2!C24) -> -478 | F24: 0
A25: 3022009 | B25: Brunswick Park Primary & Nursery School | C25: EHCP | D25: 243653.08 | E25: =SUMIFS(HNTopUp!BE:BE,HNTopUp!B:B,Sheet2!A25,HNTopUp!I:I,Sheet2!C25) -> 243653.08 | F25: 0
A26: 3022009 | B26: Brunswick Park Primary & Nursery School | C26: SEN | D26: 3227 | E26: =SUMIFS(HNTopUp!BE:BE,HNTopUp!B:B,Sheet2!A26,HNTopUp!I:I,Sheet2!C26) -> 3227 | F26: 0
A27: 3022009 | B27: Brunswick Park Primary & Nursery School | C27: (blank) | D27: 0 | E27: =SUMIFS(HNTopUp!BE:BE,HNTopUp!B:B,Sheet2!A27,HNTopUp!I:I,Sheet2!C27) -> 0 | F27: 0
A28: 3022010 | B28: Child's Hill Academy | C28: ARPs | D28: 241969.5 | E28: =SUMIFS(HNTopUp!BE:BE,HNTopUp!B:B,Sheet2!A28,HNTopUp!I:I,Sheet2!C28) -> 241969.5 | F28: 0
A29: 3022010 | B29: Child's Hill Academy | C29: EHCP | D29: 227307.76 | E29: =SUMIFS(HNTopUp!BE:BE,HNTopUp!B:B,Sheet2!A29,HNTopUp!I:I,Sheet2!C29) -> 227307.76 | F29: 0
A30: 3022010 | B30: Child's Hill Academy | C30: SEN | D30: 3227 | E30: =SUMIFS(HNTopUp!BE:BE,HNTopUp!B:B,Sheet2!A30,HNTopUp!I:I,Sheet2!C30) -> 3227 | F30: 0
A31: 3022010 | B31: Child's Hill Academy | C31: (blank) | D31: 0 | E31: =SUMIFS(HNTopUp!BE:BE,HNTopUp!B:B,Sheet2!A31,HNTopUp!I:I,Sheet2!C31) -> 0 | F31: 0
A32: 3022011 | B32: Church Hill Primary School | C32: EHCP | D32: 98053.76 | E32: =SUMIFS(HNTopUp!BE:BE,HNTopUp!B:B,Sheet2!A32,HNTopUp!I:I,Sheet2!C32) -> 98053.76 | F32: 0
A33: 3022014 | B33: Colindale School | C33: ARPs | D33: 100555.67 | E33: =SUMIFS(HNTopUp!BE:BE,HNTopUp!B:B,Sheet2!A33,HNTopUp!I:I,Sheet2!C33) -> 100555.67 | F33: 0
A34: 3022014 | B34: Colindale School | C34: EHCP | D34: 206220.08 | E34: =SUMIFS(HNTopUp!BE:BE,HNTopUp!B:B,Sheet2!A34,HNTopUp!I:I,Sheet2!C34) -> 206220.08 | F34: 0
A35: 3022014 | B35: Colindale School | C35: SEN | D35: 3406 | E35: =SUMIFS(HNTopUp!BE:BE,HNTopUp!B:B,Sheet2!A35,HNTopUp!I:I,Sheet2!C35) -> 3406 | F35: 0
A36: 3022014 | B36: Colindale School | C36: (blank) | D36: 0 | E36: =SUMIFS(HNTopUp!BE:BE,HNTopUp!B:B,Sheet2!A36,HNTopUp!I:I,Sheet2!C36) -> 0 | F36: 0
A37: 3022015 | B37: Coppetts Wood | C37: ARPs | D37: 246579.16 | E37: =SUMIFS(HNTopUp!BE:BE,HNTopUp!B:B,Sheet2!A37,HNTopUp!I:I,Sheet2!C37) -> 246579.16 | F37: 0
A38: 3022015 | B38: Coppetts Wood | C38: EHCP | D38: 94937.25 | E38: =SUMIFS(HNTopUp!BE:BE,HNTopUp!B:B,Sheet2!A38,HNTopUp!I:I,Sheet2!C38) -> 94937.25 | F38: 0
A39: 3022015 | B39: Coppetts Wood | C39: SEN | D39: 4840 | E39: =SUMIFS(HNTopUp!BE:BE,HNTopUp!B:B,Sheet2!A39,HNTopUp!I:I,Sheet2!C39) -> 4840 | F39: 0
A40: 3022015 | B40: Coppetts Wood | C40: (blank) | D40: 0 | E40: =SUMIFS(HNTopUp!BE:BE,HNTopUp!B:B,Sheet2!A40,HNTopUp!I:I,Sheet2!C40) -> 0 | F40: 0
A41: 3022016 | B41: Courtland School | C41: EHCP | D41: 70830.84 | E41: =SUMIFS(HNTopUp!BE:BE,HNTopUp!B:B,Sheet2!A41,HNTopUp!I:I,Sheet2!C41) -> 70830.84 | F41: 0
A42: 3022017 | B42: Cromer Road Primary School | C42: EHCP | D42: 172016.3467 | E42: =SUMIFS(HNTopUp!BE:BE,HNTopUp!B:B,Sheet2!A42,HNTopUp!I:I,Sheet2!C42) -> 172016.3467 | F42: 0
A43: 3022017 | B43: Cromer Road Primary School | C43: (blank) | D43: 0 | E43: =SUMIFS(HNTopUp!BE:BE,HNTopUp!B:B,Sheet2!A43,HNTopUp!I:I,Sheet2!C43) -> 0 | F43: 0
A44: 3022018 | B44: Deansbrook Junior School | C44: EHCP | D44: 135262.5 | E44: =SUMIFS(HNTopUp!BE:BE,HNTopUp!B:B,Sheet2!A44,HNTopUp!I:I,Sheet2!C44) -> 135262.5 | F44: 0
A45: 3022018 | B45: Deansbrook Junior School | C45: (blank) | D45: 0 | E45: =SUMIFS(HNTopUp!BE:BE,HNTopUp!B:B,Sheet2!A45,HNTopUp!I:I,Sheet2!C45) -> 0 | F45: 0
A46: 3022019 | B46: Deansbrook Infant School | C46: EHCP | D46: 59440.00667 | E46: =SUMIFS(HNTopUp!BE:BE,HNTopUp!B:B,Sheet2!A46,HNTopUp!I:I,Sheet2!C46) -> 59440.00667 | F46: 0
A47: 3022019 | B47: Deansbrook Infant School | C47: EHCPN | D47: 7379.14 | E47: =SUMIFS(HNTopUp!BE:BE,HNTopUp!B:B,Sheet2!A47,HNTopUp!I:I,Sheet2!C47) -> 7379.14 | F47: 0
A48: 3022019 | B48: Deansbrook Infant School | C48: SEN | D48: 9896 | E48: =SUMIFS(HNTopUp!BE:BE,HNTopUp!B:B,Sheet2!A48,HNTopUp!I:I,Sheet2!C48) -> 9896 | F48: 0
A49: 3022020 | B49: Alma Primary | C49: EHCP | D49: 76817.25 | E49: =SUMIFS(HNTopUp!BE:BE,HNTopUp!B:B,Sheet2!A49,HNTopUp!I:I,Sheet2!C49) -> 76817.25 | F49: 0
A50: 3022020 | B50: Alma Primary | C50: (blank) | D50: 0 | E50: =SUMIFS(HNTopUp!BE:BE,HNTopUp!B:B,Sheet2!A50,HNTopUp!I:I,Sheet2!C50) -> 0 | F50: 0
A51: 3022021 | B51: Dollis Primary School | C51: EHCP | D51: 185740.0833 | E51: =SUMIFS(HNTopUp!BE:BE,HNTopUp!B:B,Sheet2!A51,HNTopUp!I:I,Sheet2!C51) -> 185740.0833 | F51: 0
A52: 3022021 | B52: Dollis Primary School | C52: EHCPN | D52: 11352.51 | E52: =SUMIFS(HNTopUp!BE:BE,HNTopUp!B:B,Sheet2!A52,HNTopUp!I:I,Sheet2!C52) -> 11352.51 | F52: 0
A53: 3022021 | B53: Dollis Primary School | C53: SEN | D53: 6454 | E53: =SUMIFS(HNTopUp!BE:BE,HNTopUp!B:B,Sheet2!A53,HNTopUp!I:I,Sheet2!C53) -> 6454 | F53: 0
A54: 3022023 | B54: Edgware Primary School | C54: EHCP | D54: 154420.02 | E54: =SUMIFS(HNTopUp!BE:BE,HNTopUp!B:B,Sheet2!A54,HNTopUp!I:I,Sheet2!C54) -> 154420.02 | F54: 0
A55: 3022023 | B55: Edgware Primary School | C55: EHCPN | D55: 2838.13 | E55: =SUMIFS(HNTopUp!BE:BE,HNTopUp!B:B,Sheet2!A55,HNTopUp!I:I,Sheet2!C55) -> 2838.13 | F55: 0
A56: 3022023 | B56: Edgware Primary School | C56: (blank) | D56: 0 | E56: =SUMIFS(HNTopUp!BE:BE,HNTopUp!B:B,Sheet2!A56,HNTopUp!I:I,Sheet2!C56) -> 0 | F56: 0
A57: 3022024 | B57: Fairway Primary School | C57: EHCP | D57: 91031.75667 | E57: =SUMIFS(HNTopUp!BE:BE,HNTopUp!B:B,Sheet2!A57,HNTopUp!I:I,Sheet2!C57) -> 91031.75667 | F57: 0
A58: 3022024 | B58: Fairway Primary School | C58: EHCPN | D58: 3405.76 | E58: =SUMIFS(HNTopUp!BE:BE,HNTopUp!B:B,Sheet2!A58,HNTopUp!I:I,Sheet2!C58) -> 3405.76 | F58: 0
A59: 3022024 | B59: Fairway Primary School | C59: SEN | D59: 23137 | E59: =SUMIFS(HNTopUp!BE:BE,HNTopUp!B:B,Sheet2!A59,HNTopUp!I:I,Sheet2!C59) -> 23137 | F59: 0
A60: 3022025 | B60: Foulds | C60: EHCP | D60: 86367.42 | E60: =SUMIFS(HNTopUp!BE:BE,HNTopUp!B:B,Sheet2!A60,HNTopUp!I:I,Sheet2!C60) -> 86367.42 | F60: 0
A61: 3022026 | B61: Frith Manor School | C61: EHCP | D61: 119275.5 | E61: =SUMIFS(HNTopUp!BE:BE,HNTopUp!B:B,Sheet2!A61,HNTopUp!I:I,Sheet2!C61) -> 119275.5 | F61: 0
A62: 3022026 | B62: Frith Manor School | C62: SEN | D62: 2271 | E62: =SUMIFS(HNTopUp!BE:BE,HNTopUp!B:B,Sheet2!A62,HNTopUp!I:I,Sheet2!C62) -> 2271 | F62: 0
A63: 3022027 | B63: Garden Suburb Junior | C63: EHCP | D63: 152814 | E63: =SUMIFS(HNTopUp!BE:BE,HNTopUp!B:B,Sheet2!A63,HNTopUp!I:I,Sheet2!C63) -> 152814 | F63: 0
A64: 3022027 | B64: Garden Suburb Junior | C64: (blank) | D64: 0 | E64: =SUMIFS(HNTopUp!BE:BE,HNTopUp!B:B,Sheet2!A64,HNTopUp!I:I,Sheet2!C64) -> 0 | F64: 0
A65: 3022028 | B65: Garden Suburb Infant School | C65: EHCP | D65: 130471 | E65: =SUMIFS(HNTopUp!BE:BE,HNTopUp!B:B,Sheet2!A65,HNTopUp!I:I,Sheet2!C65) -> 130471 | F65: 0
A66: 3022028 | B66: Garden Suburb Infant School | C66: (blank) | D66: 0 | E66: =SUMIFS(HNTopUp!BE:BE,HNTopUp!B:B,Sheet2!A66,HNTopUp!I:I,Sheet2!C66) -> 0 | F66: 0
A67: 3022029 | B67: Goldbeaters Primary School | C67: EHCP | D67: 190447.76 | E67: =SUMIFS(HNTopUp!BE:BE,HNTopUp!B:B,Sheet2!A67,HNTopUp!I:I,Sheet2!C67) -> 190447.76 | F67: 0
A68: 3022029 | B68: Goldbeaters Primary School | C68: EHCPN | D68: 5676.25 | E68: =SUMIFS(HNTopUp!BE:BE,HNTopUp!B:B,Sheet2!A68,HNTopUp!I:I,Sheet2!C68) -> 5676.25 | F68: 0
A69: 3022029 | B69: Goldbeaters Primary School | C69: SEN | D69: 4278 | E69: =SUMIFS(HNTopUp!BE:BE,HNTopUp!B:B,Sheet2!A69,HNTopUp!I:I,Sheet2!C69) -> 4278 | F69: =D69-E69 -> 0
A70: 3022031 | B70: Hollickwood JMI School | C70: EHCP | D70: 65774.57333 | E70: =SUMIFS(HNTopUp!BE:BE,HNTopUp!B:B,Sheet2!A70,HNTopUp!I:I,Sheet2!C70) -> 65774.57333 | F70: 0
A71: 3022031 | B71: Hollickwood JMI School | C71: EHCPN | D71: 2270.5 | E71: =SUMIFS(HNTopUp!BE:BE,HNTopUp!B:B,Sheet2!A71,HNTopUp!I:I,Sheet2!C71) -> 2270.497037 | F71: 0.002962962963
A72: 3022031 | B72: Hollickwood JMI School | C72: (blank) | D72: 0 | E72: =SUMIFS(HNTopUp!BE:BE,HNTopUp!B:B,Sheet2!A72,HNTopUp!I:I,Sheet2!C72) -> 0 | F72: 0
A73: 3022032 | B73: Holly Park School | C73: EHCP | D73: 175192.76 | E73: =SUMIFS(HNTopUp!BE:BE,HNTopUp!B:B,Sheet2!A73,HNTopUp!I:I,Sheet2!C73) -> 175192.76 | F73: 0
A74: 3022032 | B74: Holly Park School | C74: EHCPN | D74: 10784.88 | E74: =SUMIFS(HNTopUp!BE:BE,HNTopUp!B:B,Sheet2!A74,HNTopUp!I:I,Sheet2!C74) -> 10784.88 | F74: 0
A75: 3022032 | B75: Holly Park School | C75: SEN | D75: 5140.3 | E75: =SUMIFS(HNTopUp!BE:BE,HNTopUp!B:B,Sheet2!A75,HNTopUp!I:I,Sheet2!C75) -> 5140.3 | F75: 0
A76: 3022032 | B76: Holly Park School | C76: (blank) | D76: 0 | E76: =SUMIFS(HNTopUp!BE:BE,HNTopUp!B:B,Sheet2!A76,HNTopUp!I:I,Sheet2!C76) -> 0 | F76: 0
A77: 3022036 | B77: Livingstone School | C77: ARPs | D77: 306595.0833 | E77: =SUMIFS(HNTopUp!BE:BE,HNTopUp!B:B,Sheet2!A77,HNTopUp!I:I,Sheet2!C77) -> 306595.0833 | F77: 0
A78: 3022036 | B78: Livingstone School | C78: EHCP | D78: 126044.34 | E78: =SUMIFS(HNTopUp!BE:BE,HNTopUp!B:B,Sheet2!A78,HNTopUp!I:I,Sheet2!C78) -> 126044.34 | F78: 0
A79: 3022036 | B79: Livingstone School | C79: (blank) | D79: 0 | E79: =SUMIFS(HNTopUp!BE:BE,HNTopUp!B:B,Sheet2!A79,HNTopUp!I:I,Sheet2!C79) -> 0 | F79: 0
A80: 3022037 | B80: Manorside Primary School | C80: EHCP | D80: 105792.33 | E80: =SUMIFS(HNTopUp!BE:BE,HNTopUp!B:B,Sheet2!A80,HNTopUp!I:I,Sheet2!C80) -> 105792.33 | F80: 0
A81: 3022037 | B81: Manorside Primary School | C81: SEN | D81: 13923 | E81: =SUMIFS(HNTopUp!BE:BE,HNTopUp!B:B,Sheet2!A81,HNTopUp!I:I,Sheet2!C81) -> 13923 | F81: 0
A82: 3022038 | B82: Parkfield Primary School | C82: EHCP | D82: 196056.5767 | E82: =SUMIFS(HNTopUp!BE:BE,HNTopUp!B:B,Sheet2!A82,HNTopUp!I:I,Sheet2!C82) -> 196056.5767 | F82: 0
A83: 3022038 | B83: Parkfield Primary School | C83: SEN | D83: 12417 | E83: =SUMIFS(HNTopUp!BE:BE,HNTopUp!B:B,Sheet2!A83,HNTopUp!I:I,Sheet2!C83) -> 12417 | F83: 0
A84: 3022041 | B84: Sacks Morasha Academy | C84: EHCP | D84: 43322.33 | E84: =SUMIFS(HNTopUp!BE:BE,HNTopUp!B:B,Sheet2!A84,HNTopUp!I:I,Sheet2!C84) -> 43322.33 | F84: 0
A85: 3022042 | B85: Monkfrith School | C85: EHCP | D85: 90804.34 | E85: =SUMIFS(HNTopUp!BE:BE,HNTopUp!B:B,Sheet2!A85,HNTopUp!I:I,Sheet2!C85) -> 90804.34 | F85: 0
A86: 3022042 | B86: Monkfrith School | C86: (blank) | D86: 0 | E86: =SUMIFS(HNTopUp!BE:BE,HNTopUp!B:B,Sheet2!A86,HNTopUp!I:I,Sheet2!C86) -> 0 | F86: 0
A87: 3022043 | B87: Moss Hall Junior School | C87: EHCP | D87: 137944.01 | E87: =SUMIFS(HNTopUp!BE:BE,HNTopUp!B:B,Sheet2!A87,HNTopUp!I:I,Sheet2!C87) -> 137944.01 | F87: 0
A88: 3022044 | B88: Moss Hall Infant School | C88: EHCP | D88: 127845.43 | E88: =SUMIFS(HNTopUp!BE:BE,HNTopUp!B:B,Sheet2!A88,HNTopUp!I:I,Sheet2!C88) -> 127845.43 | F88: 0
A89: 3022045 | B89: Northside School | C89: EHCP | D89: 102006.26 | E89: =SUMIFS(HNTopUp!BE:BE,HNTopUp!B:B,Sheet2!A89,HNTopUp!I:I,Sheet2!C89) -> 102006.26 | F89: 0
A90: 3022045 | B90: Northside School | C90: SEN | D90: 1434 | E90: =SUMIFS(HNTopUp!BE:BE,HNTopUp!B:B,Sheet2!A90,HNTopUp!I:I,Sheet2!C90) -> 1434 | F90: 0
A91: 3022047 | B91: Hyde School | C91: EHCP | D91: 186223.92 | E91: =SUMIFS(HNTopUp!BE:BE,HNTopUp!B:B,Sheet2!A91,HNTopUp!I:I,Sheet2!C91) -> 186223.92 | F91: 0
A92: 3022047 | B92: Hyde School | C92: SEN | D92: 4015 | E92: =SUMIFS(HNTopUp!BE:BE,HNTopUp!B:B,Sheet2!A92,HNTopUp!I:I,Sheet2!C92) -> 4015 | F92: 0
A93: 3022047 | B93: Hyde School | C93: (blank) | D93: 0 | E93: =SUMIFS(HNTopUp!BE:BE,HNTopUp!B:B,Sheet2!A93,HNTopUp!I:I,Sheet2!C93) -> 0 | F93: 0
A94: 3022048 | B94: Millbrook Park CE Primary School | C94: EHCP | D94: 141318.93 | E94: =SUMIFS(HNTopUp!BE:BE,HNTopUp!B:B,Sheet2!A94,HNTopUp!I:I,Sheet2!C94) -> 141318.93 | F94: 0
A95: 3022048 | B95: Millbrook Park CE Primary School | C95: EHCPN | D95: 1702.88 | E95: =SUMIFS(HNTopUp!BE:BE,HNTopUp!B:B,Sheet2!A95,HNTopUp!I:I,Sheet2!C95) -> 1702.88 | F95: 0
A96: 3022048 | B96: Millbrook Park CE Primary School | C96: SEN | D96: 4996 | E96: =SUMIFS(HNTopUp!BE:BE,HNTopUp!B:B,Sheet2!A96,HNTopUp!I:I,Sheet2!C96) -> 4996 | F96: 0
A97: 3022049 | B97: Watling Park Free School | C97: EHCP | D97: 136936.17 | E97: =SUMIFS(HNTopUp!BE:BE,HNTopUp!B:B,Sheet2!A97,HNTopUp!I:I,Sheet2!C97) -> 136936.17 | F97: 0
A98: 3022049 | B98: Watling Park Free School | C98: (blank) | D98: 0 | E98: =SUMIFS(HNTopUp!BE:BE,HNTopUp!B:B,Sheet2!A98,HNTopUp!I:I,Sheet2!C98) -> 0 | F98: 0
A99: 3022050 | B99: Ashmole Primary School | C99: EHCP | D99: 142341.08 | E99: =SUMIFS(HNTopUp!BE:BE,HNTopUp!B:B,Sheet2!A99,HNTopUp!I:I,Sheet2!C99) -> 142341.08 | F99: 0
A100: 3022050 | B100: Ashmole Primary School | C100: (blank) | D100: 0 | E100: =SUMIFS(HNTopUp!BE:BE,HNTopUp!B:B,Sheet2!A100,HNTopUp!I:I,Sheet2!C100) -> 0 | F100: 0
A101: 3022051 | B101: Summerside Primary Academy | C101: ARPs | D101: 188486.6567 | E101: =SUMIFS(HNTopUp!BE:BE,HNTopUp!B:B,Sheet2!A101,HNTopUp!I:I,Sheet2!C101) -> 188486.6567 | F101: 0
A102: 3022051 | B102: Summerside Primary Academy | C102: EHCP | D102: 128096.83 | E102: =SUMIFS(HNTopUp!BE:BE,HNTopUp!B:B,Sheet2!A102,HNTopUp!I:I,Sheet2!C102) -> 128096.83 | F102: 0
A103: 3022051 | B103: Summerside Primary Academy | C103: EHCPN | D103: 2270.5 | E103: =SUMIFS(HNTopUp!BE:BE,HNTopUp!B:B,Sheet2!A103,HNTopUp!I:I,Sheet2!C103) -> 2270.497037 | F103: 0.002962962963
A104: 3022051 | B104: Summerside Primary Academy | C104: SEN | D104: 12919 | E104: =SUMIFS(HNTopUp!BE:BE,HNTopUp!B:B,Sheet2!A104,HNTopUp!I:I,Sheet2!C104) -> 12919 | F104: 0
A105: 3022051 | B105: Summerside Primary Academy | C105: (blank) | D105: 0 | E105: =SUMIFS(HNTopUp!BE:BE,HNTopUp!B:B,Sheet2!A105,HNTopUp!I:I,Sheet2!C105) -> 0 | F105: 0
A106: 3022053 | B106: Noam Primary School | C106: EHCP | D106: 68472.92 | E106: =SUMIFS(HNTopUp!BE:BE,HNTopUp!B:B,Sheet2!A106,HNTopUp!I:I,Sheet2!C106) -> 68472.92 | F106: 0
A107: 3022053 | B107: Noam Primary School | C107: EHCPN | D107: 7946.75 | E107: =SUMIFS(HNTopUp!BE:BE,HNTopUp!B:B,Sheet2!A107,HNTopUp!I:I,Sheet2!C107) -> 7946.75 | F107: 0
A108: 3022053 | B108: Noam Primary School | C108: SEN | D108: 3227 | E108: =SUMIFS(HNTopUp!BE:BE,HNTopUp!B:B,Sheet2!A108,HNTopUp!I:I,Sheet2!C108) -> 3227 | F108: 0
A109: 3022053 | B109: Noam Primary School | C109: (blank) | D109: 0 | E109: =SUMIFS(HNTopUp!BE:BE,HNTopUp!B:B,Sheet2!A109,HNTopUp!I:I,Sheet2!C109) -> 0 | F109: 0
A110: 3022054 | B110: Woodridge Primary School | C110: EHCP | D110: 71766.67 | E110: =SUMIFS(HNTopUp!BE:BE,HNTopUp!B:B,Sheet2!A110,HNTopUp!I:I,Sheet2!C110) -> 71766.67 | F110: 0
A111: 3022055 | B111: Tudor School | C111: EHCP | D111: 89989.66667 | E111: =SUMIFS(HNTopUp!BE:BE,HNTopUp!B:B,Sheet2!A111,HNTopUp!I:I,Sheet2!C111) -> 89989.66667 | F111: 0
A112: 3022055 | B112: Tudor School | C112: SEN | D112: 2271 | E112: =SUMIFS(HNTopUp!BE:BE,HNTopUp!B:B,Sheet2!A112,HNTopUp!I:I,Sheet2!C112) -> 2271 | F112: 0
A113: 3022057 | B113: Underhill School | C113: EHCP | D113: 184620.67 | E113: =SUMIFS(HNTopUp!BE:BE,HNTopUp!B:B,Sheet2!A113,HNTopUp!I:I,Sheet2!C113) -> 184620.67 | F113: 0
A114: 3022057 | B114: Underhill School | C114: EHCPN | D114: 9365.63 | E114: =SUMIFS(HNTopUp!BE:BE,HNTopUp!B:B,Sheet2!A114,HNTopUp!I:I,Sheet2!C114) -> 9365.63 | F114: 0
A115: 3022057 | B115: Underhill School | C115: SEN | D115: 4876 | E115: =SUMIFS(HNTopUp!BE:BE,HNTopUp!B:B,Sheet2!A115,HNTopUp!I:I,Sheet2!C115) -> 4876 | F115: 0
A116: 3022057 | B116: Underhill School | C116: (blank) | D116: 0 | E116: =SUMIFS(HNTopUp!BE:BE,HNTopUp!B:B,Sheet2!A116,HNTopUp!I:I,Sheet2!C116) -> 0 | F116: 0
A117: 3022060 | B117: Whitings Hill Primary School | C117: EHCP | D117: 249964.0133 | E117: =SUMIFS(HNTopUp!BE:BE,HNTopUp!B:B,Sheet2!A117,HNTopUp!I:I,Sheet2!C117) -> 249964.0133 | F117: 0
A118: 3022060 | B118: Whitings Hill Primary School | C118: SEN | D118: 3155 | E118: =SUMIFS(HNTopUp!BE:BE,HNTopUp!B:B,Sheet2!A118,HNTopUp!I:I,Sheet2!C118) -> 3155 | F118: 0
A119: 3022060 | B119: Whitings Hill Primary School | C119: (blank) | D119: 0 | E119: =SUMIFS(HNTopUp!BE:BE,HNTopUp!B:B,Sheet2!A119,HNTopUp!I:I,Sheet2!C119) -> 0 | F119: 0
A120: 3022067 | B120: Chalgrove Primary School | C120: ARPs | D120: 252779.58 | E120: =SUMIFS(HNTopUp!BE:BE,HNTopUp!B:B,Sheet2!A120,HNTopUp!I:I,Sheet2!C120) -> 252779.58 | F120: 0
A121: 3022067 | B121: Chalgrove Primary School | C121: EHCP | D121: 100143.27 | E121: =SUMIFS(HNTopUp!BE:BE,HNTopUp!B:B,Sheet2!A121,HNTopUp!I:I,Sheet2!C121) -> 100143.27 | F121: 0
A122: 3022067 | B122: Chalgrove Primary School | C122: (blank) | D122: 0 | E122: =SUMIFS(HNTopUp!BE:BE,HNTopUp!B:B,Sheet2!A122,HNTopUp!I:I,Sheet2!C122) -> 0 | F122: 0
A123: 3022070 | B123: Sunnyfields Primary School | C123: EHCP | D123: 116829.68 | E123: =SUMIFS(HNTopUp!BE:BE,HNTopUp!B:B,Sheet2!A123,HNTopUp!I:I,Sheet2!C123) -> 116829.68 | F123: 0
A124: 3022070 | B124: Sunnyfields Primary School | C124: SEN | D124: 3944 | E124: =SUMIFS(HNTopUp!BE:BE,HNTopUp!B:B,Sheet2!A124,HNTopUp!I:I,Sheet2!C124) -> 3944 | F124: 0
A125: 3022072 | B125: Queenswell Junior School | C125: ARPs | D125: 495250.6633 | E125: =SUMIFS(HNTopUp!BE:BE,HNTopUp!B:B,Sheet2!A125,HNTopUp!I:I,Sheet2!C125) -> 495250.6633 | F125: 0
A126: 3022072 | B126: Queenswell Junior School | C126: EHCP | D126: 286613.18 | E126: =SUMIFS(HNTopUp!BE:BE,HNTopUp!B:B,Sheet2!A126,HNTopUp!I:I,Sheet2!C126) -> 286613.18 | F126: 0
A127: 3022072 | B127: Queenswell Junior School | C127: SEN | D127: 14915 | E127: =SUMIFS(HNTopUp!BE:BE,HNTopUp!B:B,Sheet2!A127,HNTopUp!I:I,Sheet2!C127) -> 14915 | F127: 0
A128: 3022072 | B128: Queenswell Junior School | C128: (blank) | D128: 0 | E128: =SUMIFS(HNTopUp!BE:BE,HNTopUp!B:B,Sheet2!A128,HNTopUp!I:I,Sheet2!C128) -> 0 | F128: 0
A129: 3022073 | B129: Danegrove JMI School | C129: EHCP | D129: 346990.3467 | E129: =SUMIFS(HNTopUp!BE:BE,HNTopUp!B:B,Sheet2!A129,HNTopUp!I:I,Sheet2!C129) -> 346990.3467 | F129: 0
A130: 3022073 | B130: Danegrove JMI School | C130: (blank) | D130: 0 | E130: =SUMIFS(HNTopUp!BE:BE,HNTopUp!B:B,Sheet2!A130,HNTopUp!I:I,Sheet2!C130) -> 0 | F130: 0
A131: 3022076 | B131: Wessex Gardens Primary School | C131: EHCP | D131: 179387.0767 | E131: =SUMIFS(HNTopUp!BE:BE,HNTopUp!B:B,Sheet2!A131,HNTopUp!I:I,Sheet2!C131) -> 179387.0767 | F131: 0
A132: 3022076 | B132: Wessex Gardens Primary School | C132: SEN | D132: 2271 | E132: =SUMIFS(HNTopUp!BE:BE,HNTopUp!B:B,Sheet2!A132,HNTopUp!I:I,Sheet2!C132) -> 2271 | F132: 0
A133: 3022076 | B133: Wessex Gardens Primary School | C133: (blank) | D133: 0 | E133: =SUMIFS(HNTopUp!BE:BE,HNTopUp!B:B,Sheet2!A133,HNTopUp!I:I,Sheet2!C133) -> 0 | F133: =D133-E133 -> 0
A134: 3022077 | B134: Orion Primary School | C134: ARPs | D134: 357353.34 | E134: =SUMIFS(HNTopUp!BE:BE,HNTopUp!B:B,Sheet2!A134,HNTopUp!I:I,Sheet2!C134) -> 357353.34 | F134: 0
A135: 3022077 | B135: Orion Primary School | C135: EHCP | D135: 416258.42 | E135: =SUMIFS(HNTopUp!BE:BE,HNTopUp!B:B,Sheet2!A135,HNTopUp!I:I,Sheet2!C135) -> 416258.42 | F135: 0
A136: 3022077 | B136: Orion Primary School | C136: EHCPN | D136: 13623 | E136: =SUMIFS(HNTopUp!BE:BE,HNTopUp!B:B,Sheet2!A136,HNTopUp!I:I,Sheet2!C136) -> 13623 | F136: 0
A137: 3022077 | B137: Orion Primary School | C137: SEN | D137: 16014 | E137: =SUMIFS(HNTopUp!BE:BE,HNTopUp!B:B,Sheet2!A137,HNTopUp!I:I,Sheet2!C137) -> 16014 | F137: 0
A138: 3022077 | B138: Orion Primary School | C138: (blank) | D138: 0 | E138: =SUMIFS(HNTopUp!BE:BE,HNTopUp!B:B,Sheet2!A138,HNTopUp!I:I,Sheet2!C138) -> 0 | F138: 0
A139: 3022078 | B139: Pardes House School | C139: EHCP | D139: 61953.91 | E139: =SUMIFS(HNTopUp!BE:BE,HNTopUp!B:B,Sheet2!A139,HNTopUp!I:I,Sheet2!C139) -> 61953.91 | F139: 0
A140: 3022079 | B140: Beis Yaakov | C140: EHCP | D140: 37532.66 | E140: =SUMIFS(HNTopUp!BE:BE,HNTopUp!B:B,Sheet2!A140,HNTopUp!I:I,Sheet2!C140) -> 37532.66 | F140: 0
A141: 3023300 | B141: All Saints' CE Primary School NW2 | C141: EHCP | D141: 96483.09 | E141: =SUMIFS(HNTopUp!BE:BE,HNTopUp!B:B,Sheet2!A141,HNTopUp!I:I,Sheet2!C141) -> 96483.09 | F141: 0
A142: 3023300 | B142: All Saints' CE Primary School NW2 | C142: (blank) | D142: 0 | E142: =SUMIFS(HNTopUp!BE:BE,HNTopUp!B:B,Sheet2!A142,HNTopUp!I:I,Sheet2!C142) -> 0 | F142: 0
A143: 3023302 | B143: Christ Church CE Primary School | C143: EHCP | D143: 85079.67 | E143: =SUMIFS(HNTopUp!BE:BE,HNTopUp!B:B,Sheet2!A143,HNTopUp!I:I,Sheet2!C143) -> 85079.67 | F143: 0
A144: 3023304 | B144: Holy Trinity School | C144: EHCP | D144: 126510.08 | E144: =SUMIFS(HNTopUp!BE:BE,HNTopUp!B:B,Sheet2!A144,HNTopUp!I:I,Sheet2!C144) -> 126510.08 | F144: 0
A145: 3023304 | B145: Holy Trinity School | C145: SEN | D145: 4780 | E145: =SUMIFS(HNTopUp!BE:BE,HNTopUp!B:B,Sheet2!A145,HNTopUp!I:I,Sheet2!C145) -> 4780 | F145: 0
A146: 3023305 | B146: Monken Hadley C E Primary School | C146: EHCP | D146: 32364.67 | E146: =SUMIFS(HNTopUp!BE:BE,HNTopUp!B:B,Sheet2!A146,HNTopUp!I:I,Sheet2!C146) -> 32364.67 | F146: 0
A147: 3023307 | B147: St John's CE School N11 | C147: EHCP | D147: 59765.67 | E147: =SUMIFS(HNTopUp!BE:BE,HNTopUp!B:B,Sheet2!A147,HNTopUp!I:I,Sheet2!C147) -> 59765.67 | F147: 0
A148: 3023307 | B148: St John's CE School N11 | C148: EHCPN | D148: 7378.963333 | E148: =SUMIFS(HNTopUp!BE:BE,HNTopUp!B:B,Sheet2!A148,HNTopUp!I:I,Sheet2!C148) -> 7378.958889 | F148: 0.004444444445
A149: 3023307 | B149: St John's CE School N11 | C149: (blank) | D149: 0 | E149: =SUMIFS(HNTopUp!BE:BE,HNTopUp!B:B,Sheet2!A149,HNTopUp!I:I,Sheet2!C149) -> 0 | F149: 0
A150: 3023309 | B150: St Johns CE N20 | C150: EHCP | D150: 87603 | E150: =SUMIFS(HNTopUp!BE:BE,HNTopUp!B:B,Sheet2!A150,HNTopUp!I:I,Sheet2!C150) -> 87603 | F150: 0
A151: 3023309 | B151: St Johns CE N20 | C151: SEN | D151: 7601 | E151: =SUMIFS(HNTopUp!BE:BE,HNTopUp!B:B,Sheet2!A151,HNTopUp!I:I,Sheet2!C151) -> 7601 | F151: 0
A152: 3023311 | B152: St Mary's C E Primary School N3 | C152: EHCP | D152: 64773.67 | E152: =SUMIFS(HNTopUp!BE:BE,HNTopUp!B:B,Sheet2!A152,HNTopUp!I:I,Sheet2!C152) -> 64773.67 | F152: 0
A153: 3023311 | B153: St Mary's C E Primary School N3 | C153: SEN | D153: 7458 | E153: =SUMIFS(HNTopUp!BE:BE,HNTopUp!B:B,Sheet2!A153,HNTopUp!I:I,Sheet2!C153) -> 7458 | F153: 0
A154: 3023312 | B154: St Mary's School EN4 | C154: EHCP | D154: 77275.34 | E154: =SUMIFS(HNTopUp!BE:BE,HNTopUp!B:B,Sheet2!A154,HNTopUp!I:I,Sheet2!C154) -> 77275.34 | F154: 0
A155: 3023313 | B155: St Paul's School, N11 | C155: EHCP | D155: 93087.09 | E155: =SUMIFS(HNTopUp!BE:BE,HNTopUp!B:B,Sheet2!A155,HNTopUp!I:I,Sheet2!C155) -> 93087.09 | F155: 0
A156: 3023313 | B156: St Paul's School, N11 | C156: EHCPN | D156: 5108.63 | E156: =SUMIFS(HNTopUp!BE:BE,HNTopUp!B:B,Sheet2!A156,HNTopUp!I:I,Sheet2!C156) -> 5108.633704 | F156: -0.003703703702
A157: 3023313 | B157: St Paul's School, N11 | C157: SEN | D157: 2008 | E157: =SUMIFS(HNTopUp!BE:BE,HNTopUp!B:B,Sheet2!A157,HNTopUp!I:I,Sheet2!C157) -> 2008 | F157: 0
A158: 3023313 | B158: St Paul's School, N11 | C158: (blank) | D158: 0 | E158: =SUMIFS(HNTopUp!BE:BE,HNTopUp!B:B,Sheet2!A158,HNTopUp!I:I,Sheet2!C158) -> 0 | F158: 0
A159: 3023314 | B159: St Pauls CE Primary, NW7 | C159: EHCP | D159: 113506.1667 | E159: =SUMIFS(HNTopUp!BE:BE,HNTopUp!B:B,Sheet2!A159,HNTopUp!I:I,Sheet2!C159) -> 113506.1667 | F159: 0
A160: 3023315 | B160: St Andrew's C E | C160: EHCP | D160: 27454.08 | E160: =SUMIFS(HNTopUp!BE:BE,HNTopUp!B:B,Sheet2!A160,HNTopUp!I:I,Sheet2!C160) -> 27454.08 | F160: 0
A161: 3023316 | B161: Trent C of E Primary School | C161: EHCP | D161: 66402.75 | E161: =SUMIFS(HNTopUp!BE:BE,HNTopUp!B:B,Sheet2!A161,HNTopUp!I:I,Sheet2!C161) -> 66402.75 | F161: 0
A162: 3023316 | B162: Trent C of E Primary School | C162: (blank) | D162: 0 | E162: =SUMIFS(HNTopUp!BE:BE,HNTopUp!B:B,Sheet2!A162,HNTopUp!I:I,Sheet2!C162) -> 0 | F162: 0
A163: 3023317 | B163: All Saints' CE Primary School, N20 | C163: EHCP | D163: 152027.1667 | E163: =SUMIFS(HNTopUp!BE:BE,HNTopUp!B:B,Sheet2!A163,HNTopUp!I:I,Sheet2!C163) -> 152027.1667 | F163: 0
A164: 3023317 | B164: All Saints' CE Primary School, N20 | C164: EHCPN | D164: 2838.13 | E164: =SUMIFS(HNTopUp!BE:BE,HNTopUp!B:B,Sheet2!A164,HNTopUp!I:I,Sheet2!C164) -> 2838.13037 | F164: -0.0003703703705
A165: 3023317 | B165: All Saints' CE Primary School, N20 | C165: (blank) | D165: 0 | E165: =SUMIFS(HNTopUp!BE:BE,HNTopUp!B:B,Sheet2!A165,HNTopUp!I:I,Sheet2!C165) -> 0 | F165: 0
A166: 3023500 | B166: Annunciation Catholic Infant School | C166: EHCP | D166: 66446.75 | E166: =SUMIFS(HNTopUp!BE:BE,HNTopUp!B:B,Sheet2!A166,HNTopUp!I:I,Sheet2!C166) -> 66446.75 | F166: 0
A167: 3023500 | B167: Annunciation Catholic Infant School | C167: SEN | D167: 6669 | E167: =SUMIFS(HNTopUp!BE:BE,HNTopUp!B:B,Sheet2!A167,HNTopUp!I:I,Sheet2!C167) -> 6669 | F167: 0
A168: 3023500 | B168: Annunciation Catholic Infant School | C168: (blank) | D168: 0 | E168: =SUMIFS(HNTopUp!BE:BE,HNTopUp!B:B,Sheet2!A168,HNTopUp!I:I,Sheet2!C168) -> 0 | F168: 0
A169: 3023501 | B169: Our Lady of Lourdes School | C169: EHCP | D169: 79044.50333 | E169: =SUMIFS(HNTopUp!BE:BE,HNTopUp!B:B,Sheet2!A169,HNTopUp!I:I,Sheet2!C169) -> 79044.50333 | F169: 0
A170: 3023501 | B170: Our Lady of Lourdes School | C170: EHCPN | D170: 3973.38 | E170: =SUMIFS(HNTopUp!BE:BE,HNTopUp!B:B,Sheet2!A170,HNTopUp!I:I,Sheet2!C170) -> 3973.38 | F170: 0
A171: 3023501 | B171: Our Lady of Lourdes School | C171: SEN | D171: 5642.5 | E171: =SUMIFS(HNTopUp!BE:BE,HNTopUp!B:B,Sheet2!A171,HNTopUp!I:I,Sheet2!C171) -> 5642.5 | F171: 0
A172: 3023502 | B172: St Agnes RC Primary School | C172: EHCP | D172: 125719.33 | E172: =SUMIFS(HNTopUp!BE:BE,HNTopUp!B:B,Sheet2!A172,HNTopUp!I:I,Sheet2!C172) -> 125719.33 | F172: 0
A173: 3023502 | B173: St Agnes RC Primary School | C173: EHCPN | D173: 1135.25 | E173: =SUMIFS(HNTopUp!BE:BE,HNTopUp!B:B,Sheet2!A173,HNTopUp!I:I,Sheet2!C173) -> 1135.25 | F173: 0
A174: 3023502 | B174: St Agnes RC Primary School | C174: (blank) | D174: 0 | E174: =SUMIFS(HNTopUp!BE:BE,HNTopUp!B:B,Sheet2!A174,HNTopUp!I:I,Sheet2!C174) -> 0 | F174: 0
A175: 3023504 | B175: St Catherines R C Primary | C175: EHCP | D175: 57416.83 | E175: =SUMIFS(HNTopUp!BE:BE,HNTopUp!B:B,Sheet2!A175,HNTopUp!I:I,Sheet2!C175) -> 57416.83 | F175: 0
A176: 3023504 | B176: St Catherines R C Primary | C176: SEN | D176: 7756 | E176: =SUMIFS(HNTopUp!BE:BE,HNTopUp!B:B,Sheet2!A176,HNTopUp!I:I,Sheet2!C176) -> 7756 | F176: 0
A177: 3023506 | B177: St Vincent's Catholic Primary School | C177: EHCP | D177: 157398.59 | E177: =SUMIFS(HNTopUp!BE:BE,HNTopUp!B:B,Sheet2!A177,HNTopUp!I:I,Sheet2!C177) -> 157398.59 | F177: 0
A178: 3023506 | B178: St Vincent's Catholic Primary School | C178: SEN | D178: 1793 | E178: =SUMIFS(HNTopUp!BE:BE,HNTopUp!B:B,Sheet2!A178,HNTopUp!I:I,Sheet2!C178) -> 1793 | F178: 0
A179: 3023506 | B179: St Vincent's Catholic Primary School | C179: (blank) | D179: 0 | E179: =SUMIFS(HNTopUp!BE:BE,HNTopUp!B:B,Sheet2!A179,HNTopUp!I:I,Sheet2!C179) -> 0 | F179: 0
A180: 3023507 | B180: St Theresa's R.C. Primary School | C180: EHCP | D180: 107745.93 | E180: =SUMIFS(HNTopUp!BE:BE,HNTopUp!B:B,Sheet2!A180,HNTopUp!I:I,Sheet2!C180) -> 107745.93 | F180: 0
A181: 3023509 | B181: St Joseph's Primary School | C181: EHCP | D181: 212715.16 | E181: =SUMIFS(HNTopUp!BE:BE,HNTopUp!B:B,Sheet2!A181,HNTopUp!I:I,Sheet2!C181) -> 212715.16 | F181: 0
A182: 3023509 | B182: St Joseph's Primary School | C182: SEN | D182: 8725 | E182: =SUMIFS(HNTopUp!BE:BE,HNTopUp!B:B,Sheet2!A182,HNTopUp!I:I,Sheet2!C182) -> 8725 | F182: 0
A183: 3023509 | B183: St Joseph's Primary School | C183: (blank) | D183: 0 | E183: =SUMIFS(HNTopUp!BE:BE,HNTopUp!B:B,Sheet2!A183,HNTopUp!I:I,Sheet2!C183) -> 0 | F183: 0
A184: 3023510 | B184: Sacred Heart School | C184: EHCP | D184: 38858 | E184: =SUMIFS(HNTopUp!BE:BE,HNTopUp!B:B,Sheet2!A184,HNTopUp!I:I,Sheet2!C184) -> 38858 | F184: 0
A185: 3023511 | B185: Blessed Dominic School | C185: EHCP | D185: 134530.5 | E185: =SUMIFS(HNTopUp!BE:BE,HNTopUp!B:B,Sheet2!A185,HNTopUp!I:I,Sheet2!C185) -> 134530.5 | F185: 0
A186: 3023511 | B186: Blessed Dominic School | C186: SEN | D186: 7947 | E186: =SUMIFS(HNTopUp!BE:BE,HNTopUp!B:B,Sheet2!A186,HNTopUp!I:I,Sheet2!C186) -> 7947 | F186: 0
A187: 3023511 | B187: Blessed Dominic School | C187: (blank) | D187: 0 | E187: =SUMIFS(HNTopUp!BE:BE,HNTopUp!B:B,Sheet2!A187,HNTopUp!I:I,Sheet2!C187) -> 0 | F187: 0
A188: 3023512 | B188: Rosh Pinah | C188: EHCP | D188: 41796.16 | E188: =SUMIFS(HNTopUp!BE:BE,HNTopUp!B:B,Sheet2!A188,HNTopUp!I:I,Sheet2!C188) -> 41796.16 | F188: 0
A189: 3023512 | B189: Rosh Pinah | C189: SEN | D189: 1434.5 | E189: =SUMIFS(HNTopUp!BE:BE,HNTopUp!B:B,Sheet2!A189,HNTopUp!I:I,Sheet2!C189) -> 1434.5 | F189: 0
A190: 3023512 | B190: Rosh Pinah | C190: (blank) | D190: 0 | E190: =SUMIFS(HNTopUp!BE:BE,HNTopUp!B:B,Sheet2!A190,HNTopUp!I:I,Sheet2!C190) -> 0 | F190: 0
A191: 3023513 | B191: Menorah Primary School | C191: EHCP | D191: 83898.67333 | E191: =SUMIFS(HNTopUp!BE:BE,HNTopUp!B:B,Sheet2!A191,HNTopUp!I:I,Sheet2!C191) -> 83898.67333 | F191: 0
A192: 3023514 | B192: Annunciation Catholic Junior School | C192: EHCP | D192: 46039.67 | E192: =SUMIFS(HNTopUp!BE:BE,HNTopUp!B:B,Sheet2!A192,HNTopUp!I:I,Sheet2!C192) -> 46039.67 | F192: 0
A193: 3023514 | B193: Annunciation Catholic Junior School | C193: (blank) | D193: 0 | E193: =SUMIFS(HNTopUp!BE:BE,HNTopUp!B:B,Sheet2!A193,HNTopUp!I:I,Sheet2!C193) -> 0 | F193: 0
A194: 3023515 | B194: Independent Jewish Day School | C194: EHCP | D194: 39967.5 | E194: =SUMIFS(HNTopUp!BE:BE,HNTopUp!B:B,Sheet2!A194,HNTopUp!I:I,Sheet2!C194) -> 39967.5 | F194: 0
A195: 3023515 | B195: Independent Jewish Day School | C195: EHCPN | D195: 5676.25 | E195: =SUMIFS(HNTopUp!BE:BE,HNTopUp!B:B,Sheet2!A195,HNTopUp!I:I,Sheet2!C195) -> 5676.25 | F195: 0
A196: 3023516 | B196: Hasmonean Primary School | C196: EHCP | D196: 153591.5867 | E196: =SUMIFS(HNTopUp!BE:BE,HNTopUp!B:B,Sheet2!A196,HNTopUp!I:I,Sheet2!C196) -> 153591.5867 | F196: 0
A197: 3023516 | B197: Hasmonean Primary School | C197: (blank) | D197: 0 | E197: =SUMIFS(HNTopUp!BE:BE,HNTopUp!B:B,Sheet2!A197,HNTopUp!I:I,Sheet2!C197) -> 0 | F197: =D197-E197 -> 0
A198: 3023518 | B198: Woodcroft Primary School | C198: EHCP | D198: 89495.59 | E198: =SUMIFS(HNTopUp!BE:BE,HNTopUp!B:B,Sheet2!A198,HNTopUp!I:I,Sheet2!C198) -> 89495.59 | F198: 0
A199: 3023518 | B199: Woodcroft Primary School | C199: SEN | D199: 1793 | E199: =SUMIFS(HNTopUp!BE:BE,HNTopUp!B:B,Sheet2!A199,HNTopUp!I:I,Sheet2!C199) -> 1793 | F199: 0
A200: 3023519 | B200: Broadfields Primary School | C200: ARPs | D200: 879528.16 | E200: =SUMIFS(HNTopUp!BE:BE,HNTopUp!B:B,Sheet2!A200,HNTopUp!I:I,Sheet2!C200) -> 879528.16 | F200: 0
A201: 3023519 | B201: Broadfields Primary School | C201: EHCP | D201: 343892.34 | E201: =SUMIFS(HNTopUp!BE:BE,HNTopUp!B:B,Sheet2!A201,HNTopUp!I:I,Sheet2!C201) -> 343892.34 | F201: 0
A202: 3023519 | B202: Broadfields Primary School | C202: SEN | D202: 9919 | E202: =SUMIFS(HNTopUp!BE:BE,HNTopUp!B:B,Sheet2!A202,HNTopUp!I:I,Sheet2!C202) -> 9919 | F202: 0
... 88 more rows

Sheet Sheet3 (hidden)
A2: Code LA Df E Care use mainstream School Code for ARPS not Synergy number | B2: School | C2: Groups for Payment Template | D2: Sum of £ Total
A3: 3021000 | B3: Brookhill Nursery | C3: EHCPN | D3: 28996.63 | E3: 28996.63148 | F3: -0.001481481486
A4: 3021000 | B4: Brookhill Nursery | C4: SEN | D4: 12549 | E4: 12549 | F4: 0
A5: 3021001 | B5: Hampden Way Nursery | C5: EHCPN | D5: 16688.19 | E5: 16688.1937 | F5: -0.0037037037
A6: 3021001 | B6: Hampden Way Nursery | C6: SEN | D6: 11055 | E6: 11055 | F6: 0
A7: 3021002 | B7: Moss Hall Nursery | C7: EHCPN | D7: 8514.38 | E7: 8514.379259 | F7: 0.0007407407393
A8: 3021003 | B8: St Margaret's Nursery | C8: EHCPN | D8: 9848.29875 | E8: 9848.296574 | F8: 0.002175925927
A9: 3021003 | B9: St Margaret's Nursery | C9: SEN | D9: 21332 | E9: 21332 | F9: 0
A10: 3021100 | B10: Pavilion | C10: PRUs | D10: 1092440.913 | E10: 1092440.913 | F10: 0
A11: 3021102 | B11: Northgate | C11: PRUs | D11: 24867.66667 | E11: 24867.66667 | F11: 0
A12: 3021102 | B12: Northgate | C12: (blank) | D12: 0 | E12: 0 | F12: 0
A13: 3022001 | B13: Etz Chaim Jewish Primary School | C13: EHCP | D13: 22072 | E13: 22072 | F13: 0
A14: 3022002 | B14: Barnfield School | C14: EHCP | D14: 195920.33 | E14: 195920.33 | F14: 0
A15: 3022002 | B15: Barnfield School | C15: SEN | D15: 1673 | E15: 1673 | F15: 0
A16: 3022002 | B16: Barnfield School | C16: (blank) | D16: 0 | E16: 0 | F16: 0
A17: 3022003 | B17: Bell Lane Primary School | C17: EHCP | D17: 220761.67 | E17: 220761.67 | F17: 0
A18: 3022003 | B18: Bell Lane Primary School | C18: SEN | D18: 2271 | E18: 2271 | F18: 0
A19: 3022003 | B19: Bell Lane Primary School | C19: (blank) | D19: 0 | E19: 0 | F19: 0
A20: 3022004 | B20: Rimon Jewish Primary School | C20: EHCP | D20: 58525.33 | E20: 58525.33 | F20: 0
A21: 3022007 | B21: Brookland Junior School | C21: EHCP | D21: 155789.08 | E21: 155789.08 | F21: 0
A22: 3022008 | B22: Brookland Infant & Nursery School | C22: EHCP | D22: 114245.83 | E22: 114245.83 | F22: 0
A23: 3022008 | B23: Brookland Infant & Nursery School | C23: SEN | D23: -478 | E23: -478 | F23: 0
A24: 3022009 | B24: Brunswick Park Primary & Nursery School | C24: EHCP | D24: 243653.08 | E24: 243653.08 | F24: 0
A25: 3022009 | B25: Brunswick Park Primary & Nursery School | C25: SEN | D25: 3227 | E25: 3227 | F25: 0
A26: 3022009 | B26: Brunswick Park Primary & Nursery School | C26: (blank) | D26: 0 | E26: 0 | F26: 0
A27: 3022010 | B27: Child's Hill Academy | C27: ARPs | D27: 241969.5 | E27: 241969.5 | F27: 0
A28: 3022010 | B28: Child's Hill Academy | C28: EHCP | D28: 227307.76 | E28: 227307.76 | F28: 0
A29: 3022010 | B29: Child's Hill Academy | C29: SEN | D29: 3227 | E29: 3227 | F29: 0
A30: 3022010 | B30: Child's Hill Academy | C30: (blank) | D30: 0 | E30: 0 | F30: 0
A31: 3022011 | B31: Church Hill Primary School | C31: EHCP | D31: 98053.76 | E31: 98053.76 | F31: 0
A32: 3022014 | B32: Colindale School | C32: ARPs | D32: 100555.67 | E32: 100555.67 | F32: 0
A33: 3022014 | B33: Colindale School | C33: EHCP | D33: 206220.08 | E33: 206220.08 | F33: 0
A34: 3022014 | B34: Colindale School | C34: SEN | D34: 3406 | E34: 3406 | F34: 0
A35: 3022014 | B35: Colindale School | C35: (blank) | D35: 0 | E35: 0 | F35: 0
A36: 3022015 | B36: Coppetts Wood | C36: ARPs | D36: 246579.16 | E36: 246579.16 | F36: 0
A37: 3022015 | B37: Coppetts Wood | C37: EHCP | D37: 94937.25 | E37: 94937.25 | F37: 0
A38: 3022015 | B38: Coppetts Wood | C38: SEN | D38: 4840 | E38: 4840 | F38: 0
A39: 3022015 | B39: Coppetts Wood | C39: (blank) | D39: 0 | E39: 0 | F39: 0
A40: 3022016 | B40: Courtland School | C40: EHCP | D40: 70830.84 | E40: 70830.84 | F40: 0
A41: 3022017 | B41: Cromer Road Primary School | C41: EHCP | D41: 172016.3467 | E41: 172016.3467 | F41: 0
A42: 3022017 | B42: Cromer Road Primary School | C42: (blank) | D42: 0 | E42: 0 | F42: 0
A43: 3022018 | B43: Deansbrook Junior School | C43: EHCP | D43: 135262.5 | E43: 135262.5 | F43: 0
A44: 3022018 | B44: Deansbrook Junior School | C44: (blank) | D44: 0 | E44: 0 | F44: 0
A45: 3022019 | B45: Deansbrook Infant School | C45: EHCP | D45: 59440.00667 | E45: 59440.00667 | F45: 0
A46: 3022019 | B46: Deansbrook Infant School | C46: EHCPN | D46: 7379.14 | E46: 7379.14 | F46: 0
A47: 3022019 | B47: Deansbrook Infant School | C47: SEN | D47: 9896 | E47: 9896 | F47: 0
A48: 3022020 | B48: Alma Primary | C48: EHCP | D48: 76817.25 | E48: 76817.25 | F48: 0
A49: 3022020 | B49: Alma Primary | C49: (blank) | D49: 0 | E49: 0 | F49: 0
A50: 3022021 | B50: Dollis Primary School | C50: EHCP | D50: 185740.0833 | E50: 185740.0833 | F50: 0
A51: 3022021 | B51: Dollis Primary School | C51: EHCPN | D51: 11352.51 | E51: 11352.51 | F51: 0
A52: 3022021 | B52: Dollis Primary School | C52: SEN | D52: 6454 | E52: 6454 | F52: 0
A53: 3022023 | B53: Edgware Primary School | C53: EHCP | D53: 154420.02 | E53: 154420.02 | F53: 0
A54: 3022023 | B54: Edgware Primary School | C54: EHCPN | D54: 2838.13 | E54: 2838.13 | F54: 0
A55: 3022023 | B55: Edgware Primary School | C55: (blank) | D55: 0 | E55: 0 | F55: 0
A56: 3022024 | B56: Fairway Primary School | C56: EHCP | D56: 91031.75667 | E56: 91031.75667 | F56: 0
A57: 3022024 | B57: Fairway Primary School | C57: EHCPN | D57: 3405.76 | E57: 3405.76 | F57: 0
A58: 3022024 | B58: Fairway Primary School | C58: SEN | D58: 23137 | E58: 23137 | F58: 0
A59: 3022025 | B59: Foulds | C59: EHCP | D59: 86367.42 | E59: 86367.42 | F59: 0
A60: 3022026 | B60: Frith Manor School | C60: EHCP | D60: 119275.5 | E60: 119275.5 | F60: 0
A61: 3022026 | B61: Frith Manor School | C61: SEN | D61: 2271 | E61: 2271 | F61: 0
A62: 3022027 | B62: Garden Suburb Junior | C62: EHCP | D62: 152814 | E62: 152814 | F62: 0
A63: 3022027 | B63: Garden Suburb Junior | C63: (blank) | D63: 0 | E63: 0 | F63: 0
A64: 3022028 | B64: Garden Suburb Infant School | C64: EHCP | D64: 130471 | E64: 130471 | F64: 0
A65: 3022028 | B65: Garden Suburb Infant School | C65: (blank) | D65: 0 | E65: 0 | F65: 0
A66: 3022029 | B66: Goldbeaters Primary School | C66: EHCP | D66: 190447.76 | E66: 190447.76 | F66: 0
A67: 3022029 | B67: Goldbeaters Primary School | C67: EHCPN | D67: 5676.25 | E67: 5676.25 | F67: 0
A68: 3022029 | B68: Goldbeaters Primary School | C68: SEN | D68: 4278 | E68: 4278 | F68: 0
A69: 3022031 | B69: Hollickwood JMI School | C69: EHCP | D69: 65774.57333 | E69: 65774.57333 | F69: 0
A70: 3022031 | B70: Hollickwood JMI School | C70: EHCPN | D70: 2270.5 | E70: 2270.497037 | F70: 0.002962962963
A71: 3022031 | B71: Hollickwood JMI School | C71: (blank) | D71: 0 | E71: 0 | F71: 0
A72: 3022032 | B72: Holly Park School | C72: EHCP | D72: 175192.76 | E72: 175192.76 | F72: 0
A73: 3022032 | B73: Holly Park School | C73: EHCPN | D73: 10784.88 | E73: 10784.88 | F73: 0
A74: 3022032 | B74: Holly Park School | C74: SEN | D74: 5140.3 | E74: 5140.3 | F74: 0
A75: 3022032 | B75: Holly Park School | C75: (blank) | D75: 0 | E75: 0 | F75: 0
A76: 3022036 | B76: Livingstone School | C76: ARPs | D76: 306595.0833 | E76: 306595.0833 | F76: 0
A77: 3022036 | B77: Livingstone School | C77: EHCP | D77: 126044.34 | E77: 126044.34 | F77: 0
A78: 3022036 | B78: Livingstone School | C78: (blank) | D78: 0 | E78: 0 | F78: 0
A79: 3022037 | B79: Manorside Primary School | C79: EHCP | D79: 105792.33 | E79: 105792.33 | F79: 0
A80: 3022037 | B80: Manorside Primary School | C80: SEN | D80: 13923 | E80: 13923 | F80: 0
A81: 3022038 | B81: Parkfield Primary School | C81: EHCP | D81: 196056.5767 | E81: 196056.5767 | F81: 0
A82: 3022038 | B82: Parkfield Primary School | C82: SEN | D82: 12417 | E82: 12417 | F82: 0
A83: 3022041 | B83: Sacks Morasha Academy | C83: EHCP | D83: 43322.33 | E83: 43322.33 | F83: 0
A84: 3022042 | B84: Monkfrith School | C84: EHCP | D84: 90804.34 | E84: 90804.34 | F84: 0
A85: 3022042 | B85: Monkfrith School | C85: (blank) | D85: 0 | E85: 0 | F85: 0
A86: 3022043 | B86: Moss Hall Junior School | C86: EHCP | D86: 137944.01 | E86: 137944.01 | F86: 0
A87: 3022044 | B87: Moss Hall Infant School | C87: EHCP | D87: 127845.43 | E87: 127845.43 | F87: 0
A88: 3022045 | B88: Northside School | C88: EHCP | D88: 102006.26 | E88: 102006.26 | F88: 0
A89: 3022045 | B89: Northside School | C89: SEN | D89: 1434 | E89: 1434 | F89: 0
A90: 3022047 | B90: Hyde School | C90: EHCP | D90: 186223.92 | E90: 186223.92 | F90: 0
A91: 3022047 | B91: Hyde School | C91: SEN | D91: 4015 | E91: 4015 | F91: 0
A92: 3022047 | B92: Hyde School | C92: (blank) | D92: 0 | E92: 0 | F92: 0
A93: 3022048 | B93: Millbrook Park CE Primary School | C93: EHCP | D93: 141318.93 | E93: 141318.93 | F93: 0
A94: 3022048 | B94: Millbrook Park CE Primary School | C94: EHCPN | D94: 1702.88 | E94: 1702.88 | F94: 0
A95: 3022048 | B95: Millbrook Park CE Primary School | C95: SEN | D95: 4996 | E95: 4996 | F95: 0
A96: 3022049 | B96: Watling Park Free School | C96: EHCP | D96: 136936.17 | E96: 136936.17 | F96: 0
A97: 3022049 | B97: Watling Park Free School | C97: (blank) | D97: 0 | E97: 0 | F97: 0
A98: 3022050 | B98: Ashmole Primary School | C98: EHCP | D98: 142341.08 | E98: 142341.08 | F98: 0
A99: 3022050 | B99: Ashmole Primary School | C99: (blank) | D99: 0 | E99: 0 | F99: 0
A100: 3022051 | B100: Summerside Primary Academy | C100: ARPs | D100: 188486.6567 | E100: 188486.6567 | F100: 0
A101: 3022051 | B101: Summerside Primary Academy | C101: EHCP | D101: 128096.83 | E101: 128096.83 | F101: 0
A102: 3022051 | B102: Summerside Primary Academy | C102: EHCPN | D102: 2270.5 | E102: 2270.497037 | F102: 0.002962962963
A103: 3022051 | B103: Summerside Primary Academy | C103: SEN | D103: 12919 | E103: 12919 | F103: 0
A104: 3022051 | B104: Summerside Primary Academy | C104: (blank) | D104: 0 | E104: 0 | F104: 0
A105: 3022053 | B105: Noam Primary School | C105: EHCP | D105: 68472.92 | E105: 68472.92 | F105: 0
A106: 3022053 | B106: Noam Primary School | C106: EHCPN | D106: 7946.75 | E106: 7946.75 | F106: 0
A107: 3022053 | B107: Noam Primary School | C107: SEN | D107: 3227 | E107: 0 | F107: 3227
A108: 3022053 | B108: Noam Primary School | C108: (blank) | D108: 0 | E108: 0 | F108: 0
A109: 3022054 | B109: Woodridge Primary School | C109: EHCP | D109: 71766.67 | E109: 71766.67 | F109: 0
A110: 3022055 | B110: Tudor School | C110: EHCP | D110: 89989.66667 | E110: 89989.66667 | F110: 0
A111: 3022055 | B111: Tudor School | C111: SEN | D111: 2271 | E111: 2271 | F111: 0
A112: 3022057 | B112: Underhill School | C112: EHCP | D112: 184620.67 | E112: 184620.67 | F112: 0
A113: 3022057 | B113: Underhill School | C113: EHCPN | D113: 9365.63 | E113: 9365.63 | F113: 0
A114: 3022057 | B114: Underhill School | C114: SEN | D114: 4876 | E114: 4876 | F114: 0
A115: 3022057 | B115: Underhill School | C115: (blank) | D115: 0 | E115: 0 | F115: 0
A116: 3022060 | B116: Whitings Hill Primary School | C116: EHCP | D116: 249964.0133 | E116: 249964.0133 | F116: 0
A117: 3022060 | B117: Whitings Hill Primary School | C117: SEN | D117: 3155 | E117: 3155 | F117: 0
A118: 3022060 | B118: Whitings Hill Primary School | C118: (blank) | D118: 0 | E118: 0 | F118: 0
A119: 3022067 | B119: Chalgrove Primary School | C119: ARPs | D119: 252779.58 | E119: 252779.58 | F119: 0
A120: 3022067 | B120: Chalgrove Primary School | C120: EHCP | D120: 100143.27 | E120: 100143.27 | F120: 0
A121: 3022067 | B121: Chalgrove Primary School | C121: (blank) | D121: 0 | E121: 0 | F121: 0
A122: 3022070 | B122: Sunnyfields Primary School | C122: EHCP | D122: 116829.68 | E122: 116829.68 | F122: 0
A123: 3022070 | B123: Sunnyfields Primary School | C123: SEN | D123: 3944 | E123: 3944 | F123: 0
A124: 3022072 | B124: Queenswell Junior School | C124: ARPs | D124: 495250.6633 | E124: 495250.6633 | F124: 0
A125: 3022072 | B125: Queenswell Junior School | C125: EHCP | D125: 286613.18 | E125: 286613.18 | F125: 0
A126: 3022072 | B126: Queenswell Junior School | C126: SEN | D126: 14915 | E126: 14915 | F126: 0
A127: 3022072 | B127: Queenswell Junior School | C127: (blank) | D127: 0 | E127: 0 | F127: 0
A128: 3022073 | B128: Danegrove JMI School | C128: EHCP | D128: 346990.3467 | E128: 346990.3467 | F128: 0
A129: 3022073 | B129: Danegrove JMI School | C129: (blank) | D129: 0 | E129: 0 | F129: 0
A130: 3022076 | B130: Wessex Gardens Primary School | C130: EHCP | D130: 179387.0767 | E130: 179387.0767 | F130: 0
A131: 3022076 | B131: Wessex Gardens Primary School | C131: SEN | D131: 2271 | E131: 2271 | F131: 0
A132: 3022076 | B132: Wessex Gardens Primary School | C132: (blank) | D132: 0 | E132: 0 | F132: 0
A133: 3022077 | B133: Orion Primary School | C133: ARPs | D133: 357353.34 | E133: 357353.34 | F133: 0
A134: 3022077 | B134: Orion Primary School | C134: EHCP | D134: 416258.42 | E134: 416258.42 | F134: 0
A135: 3022077 | B135: Orion Primary School | C135: EHCPN | D135: 13623 | E135: 13623 | F135: 0
A136: 3022077 | B136: Orion Primary School | C136: SEN | D136: 16014 | E136: 16014 | F136: 0
A137: 3022077 | B137: Orion Primary School | C137: (blank) | D137: 0 | E137: 0 | F137: 0
A138: 3022078 | B138: Pardes House School | C138: EHCP | D138: 61953.91 | E138: 61953.91 | F138: 0
A139: 3022079 | B139: Beis Yaakov | C139: EHCP | D139: 37532.66 | E139: 37532.66 | F139: 0
A140: 3023300 | B140: All Saints' CE Primary School NW2 | C140: EHCP | D140: 96483.09 | E140: 96483.09 | F140: 0
A141: 3023300 | B141: All Saints' CE Primary School NW2 | C141: (blank) | D141: 0 | E141: 0 | F141: 0
A142: 3023302 | B142: Christ Church CE Primary School | C142: EHCP | D142: 85079.67 | E142: 85079.67 | F142: 0
A143: 3023304 | B143: Holy Trinity School | C143: EHCP | D143: 126510.08 | E143: 126510.08 | F143: 0
A144: 3023304 | B144: Holy Trinity School | C144: SEN | D144: 4780 | E144: 4780 | F144: 0
A145: 3023305 | B145: Monken Hadley C E Primary School | C145: EHCP | D145: 32364.67 | E145: 32364.67 | F145: 0
A146: 3023307 | B146: St John's CE School N11 | C146: EHCP | D146: 59765.67 | E146: 59765.67 | F146: 0
A147: 3023307 | B147: St John's CE School N11 | C147: EHCPN | D147: 7378.963333 | E147: 7378.958889 | F147: 0.004444444445
A148: 3023307 | B148: St John's CE School N11 | C148: (blank) | D148: 0 | E148: 0 | F148: 0
A149: 3023309 | B149: St Johns CE N20 | C149: EHCP | D149: 87603 | E149: 87603 | F149: 0
A150: 3023309 | B150: St Johns CE N20 | C150: SEN | D150: 7601 | E150: 7601 | F150: 0
A151: 3023311 | B151: St Mary's C E Primary School N3 | C151: EHCP | D151: 64773.67 | E151: 64773.67 | F151: 0
A152: 3023311 | B152: St Mary's C E Primary School N3 | C152: SEN | D152: 7458 | E152: 7458 | F152: 0
A153: 3023312 | B153: St Mary's School EN4 | C153: EHCP | D153: 77275.34 | E153: 77275.34 | F153: 0
A154: 3023313 | B154: St Paul's School, N11 | C154: EHCP | D154: 93087.09 | E154: 93087.09 | F154: 0
A155: 3023313 | B155: St Paul's School, N11 | C155: EHCPN | D155: 5108.63 | E155: 5108.633704 | F155: -0.003703703702
A156: 3023313 | B156: St Paul's School, N11 | C156: SEN | D156: 2008 | E156: 2008 | F156: 0
A157: 3023313 | B157: St Paul's School, N11 | C157: (blank) | D157: 0 | E157: 0 | F157: 0
A158: 3023314 | B158: St Pauls CE Primary, NW7 | C158: EHCP | D158: 113506.1667 | E158: 113506.1667 | F158: 0
A159: 3023315 | B159: St Andrew's C E | C159: EHCP | D159: 27454.08 | E159: 27454.08 | F159: 0
A160: 3023316 | B160: Trent C of E Primary School | C160: EHCP | D160: 66402.75 | E160: 66402.75 | F160: 0
A161: 3023316 | B161: Trent C of E Primary School | C161: (blank) | D161: 0 | E161: 0 | F161: 0
A162: 3023317 | B162: All Saints' CE Primary School, N20 | C162: EHCP | D162: 152027.1667 | E162: 152027.1667 | F162: 0
A163: 3023317 | B163: All Saints' CE Primary School, N20 | C163: EHCPN | D163: 2838.13 | E163: 2838.13037 | F163: -0.0003703703705
A164: 3023317 | B164: All Saints' CE Primary School, N20 | C164: (blank) | D164: 0 | E164: 0 | F164: 0
A165: 3023500 | B165: Annunciation Catholic Infant School | C165: EHCP | D165: 66446.75 | E165: 66446.75 | F165: 0
A166: 3023500 | B166: Annunciation Catholic Infant School | C166: SEN | D166: 6669 | E166: 6669 | F166: 0
A167: 3023500 | B167: Annunciation Catholic Infant School | C167: (blank) | D167: 0 | E167: 0 | F167: 0
A168: 3023501 | B168: Our Lady of Lourdes School | C168: EHCP | D168: 79044.50333 | E168: 79044.50333 | F168: 0
A169: 3023501 | B169: Our Lady of Lourdes School | C169: EHCPN | D169: 3973.38 | E169: 3973.38 | F169: 0
A170: 3023501 | B170: Our Lady of Lourdes School | C170: SEN | D170: 5642.5 | E170: 5642.5 | F170: 0
A171: 3023502 | B171: St Agnes RC Primary School | C171: EHCP | D171: 125719.33 | E171: 125719.33 | F171: 0
A172: 3023502 | B172: St Agnes RC Primary School | C172: EHCPN | D172: 1135.25 | E172: 0 | F172: 1135.25
A173: 3023502 | B173: St Agnes RC Primary School | C173: (blank) | D173: 0 | E173: 0 | F173: 0
A174: 3023504 | B174: St Catherines R C Primary | C174: EHCP | D174: 57416.83 | E174: 57416.83 | F174: 0
A175: 3023504 | B175: St Catherines R C Primary | C175: SEN | D175: 7756 | E175: 7756 | F175: 0
A176: 3023506 | B176: St Vincent's Catholic Primary School | C176: EHCP | D176: 157398.59 | E176: 157398.59 | F176: 0
A177: 3023506 | B177: St Vincent's Catholic Primary School | C177: SEN | D177: 1793 | E177: 0 | F177: 1793
A178: 3023506 | B178: St Vincent's Catholic Primary School | C178: (blank) | D178: 0 | E178: 0 | F178: 0
A179: 3023507 | B179: St Theresa's R.C. Primary School | C179: EHCP | D179: 107745.93 | E179: 107745.93 | F179: 0
A180: 3023509 | B180: St Joseph's Primary School | C180: EHCP | D180: 212715.16 | E180: 212715.16 | F180: 0
A181: 3023509 | B181: St Joseph's Primary School | C181: SEN | D181: 8725 | E181: 8725 | F181: 0
A182: 3023509 | B182: St Joseph's Primary School | C182: (blank) | D182: 0 | E182: 0 | F182: 0
A183: 3023510 | B183: Sacred Heart School | C183: EHCP | D183: 38858 | E183: 38858 | F183: 0
A184: 3023511 | B184: Blessed Dominic School | C184: EHCP | D184: 134530.5 | E184: 134530.5 | F184: 0
A185: 3023511 | B185: Blessed Dominic School | C185: SEN | D185: 7947 | E185: 7947 | F185: 0
A186: 3023511 | B186: Blessed Dominic School | C186: (blank) | D186: 0 | E186: 0 | F186: 0
A187: 3023512 | B187: Rosh Pinah | C187: EHCP | D187: 41796.16 | E187: 41796.16 | F187: 0
A188: 3023512 | B188: Rosh Pinah | C188: SEN | D188: 1434.5 | E188: 0 | F188: 1434.5
A189: 3023512 | B189: Rosh Pinah | C189: (blank) | D189: 0 | E189: 0 | F189: 0
A190: 3023513 | B190: Menorah Primary School | C190: EHCP | D190: 83898.67333 | E190: 83898.67333 | F190: 0
A191: 3023514 | B191: Annunciation Catholic Junior School | C191: EHCP | D191: 46039.67 | E191: 46039.67 | F191: 0
A192: 3023514 | B192: Annunciation Catholic Junior School | C192: (blank) | D192: 0 | E192: 0 | F192: 0
A193: 3023515 | B193: Independent Jewish Day School | C193: EHCP | D193: 39967.5 | E193: 39967.5 | F193: 0
A194: 3023515 | B194: Independent Jewish Day School | C194: EHCPN | D194: 5676.25 | E194: 5676.25 | F194: 0
A195: 3023516 | B195: Hasmonean Primary School | C195: EHCP | D195: 153591.5867 | E195: 153591.5867 | F195: 0
A196: 3023516 | B196: Hasmonean Primary School | C196: (blank) | D196: 0 | E196: 0 | F196: 0
A197: 3023518 | B197: Woodcroft Primary School | C197: EHCP | D197: 89495.59 | E197: 89495.59 | F197: 0
A198: 3023518 | B198: Woodcroft Primary School | C198: SEN | D198: 1793 | E198: 1793 | F198: 0
A199: 3023519 | B199: Broadfields Primary School | C199: ARPs | D199: 879528.16 | E199: 879528.16 | F199: 0
A200: 3023519 | B200: Broadfields Primary School | C200: EHCP | D200: 343892.34 | E200: 343892.34 | F200: 0
A201: 3023519 | B201: Broadfields Primary School | C201: SEN | D201: 9919 | E201: 9919 | F201: 0
... 88 more rows

Sheet Funding (hidden)
A1: Code LA Df E Care use mainstream School Code for ARPS not Synergy number | B1: School | C1: LA Ref | D1: Start | E1: End | F1: 2023/24 NC Year | G1: 2024/25 NC Year | H1: Phase | I1: Funding LA | J1: Band | K1: Band Percentage | L1: Additional | M1: PY Rate | N1: Summer Rate | O1: Autumn Rate | P1: Spring Rate | Q1: PriorYear | R1: Summer | S1: Autumn | T1: Spring | U1: £ PriorYear | V1: £ Summer | W1: £ Autumn | X1: £ Spring | Y1: £ Total | Z1: Schooltype | AA1: PY x % | AB1: Summer x % | AC1: Autumn x % | AD1: Spring x % | AE1: GL | AF1: Spare7 | AG1: Spare8 | AH1: Group | AI1: CCDesc | AJ1: Costcentre | AK1: Fundingtype | AL1: Description | AM1: Totalmonths x % | AN1: Total Months | AO1: Spare9 | AP1: Old Ftype | AQ1: Nursery Summer | AR1: Nursery Autumn | AS1: Nursery Spring | AT1: Nursery Total | AU1: Groups for Payment Template
A2: 3023520 | B2: Akiva School | C2: 1142347 | D2: 2024-04-01 | E2: 2025-03-31 | F2: NC Year 5 | G2: NC Year 6 | H2: Primary | I2: Barnet | J2: C | K2: 1 | L2: 0 | M2: 8544 | N2: 8544 | O2: 8544 | P2: 8544 | Q2: 0 | R2: 5 | S2: 4 | T2: 3 | U2: 0 | V2: 3560 | W2: 2848 | X2: 2136 | Y2: 8544 | Z2: Primary | AA2: 0 | AB2: 5 | AC2: 4 | AD2: 3 | AE2: 543965 | AH2: EHCP | AI2: EHCP topups: Barnet maintained primary | AJ2: 11431 | AK2: EHCPpri.C | AL2: EHCP topup - Primary Band C | AM2: 12 | AN2: 12 | AP2: stmttopuppri | AT2: =SUM(AQ2:AS2) -> 0 | AU2: EHCP | AY2: SEN .I03 | AZ2: Inclusion
A3: 3023520 | B3: Akiva School | C3: 1168337 | D3: 2024-04-01 | E3: 2025-03-31 | F3: Reception | G3: NC Year 1 | H3: Primary | I3: Barnet | J3: C | K3: 1 | L3: 0 | M3: 8544 | N3: 8544 | O3: 8544 | P3: 8544 | Q3: 0 | R3: 5 | S3: 4 | T3: 3 | U3: 0 | V3: 3560 | W3: 2848 | X3: 2136 | Y3: 8544 | Z3: Primary | AA3: 0 | AB3: 5 | AC3: 4 | AD3: 3 | AE3: 543965 | AH3: EHCP | AI3: EHCP topups: Barnet maintained primary | AJ3: 11431 | AK3: EHCPpri.C | AL3: EHCP topup - Primary Band C | AM3: 12 | AN3: 12 | AP3: stmttopuppri | AT3: =SUM(AQ3:AS3) -> 0 | AU3: EHCP | AY3: EHCPN.I03 | AZ3: Nursery
A4: 3023520 | B4: Akiva School | C4: 1168933 | D4: 2024-04-01 | E4: 2025-03-31 | F4: Reception | G4: NC Year 1 | H4: Primary | I4: Barnet | J4: C | K4: 1 | L4: 0 | M4: 8544 | N4: 8544 | O4: 8544 | P4: 8544 | Q4: 0 | R4: 5 | S4: 4 | T4: 3 | U4: 0 | V4: 3560 | W4: 2848 | X4: 2136 | Y4: 8544 | Z4: Primary | AA4: 0 | AB4: 5 | AC4: 4 | AD4: 3 | AE4: 543965 | AH4: EHCP | AI4: EHCP topups: Barnet maintained primary | AJ4: 11431 | AK4: EHCPpri.C | AL4: EHCP topup - Primary Band C | AM4: 12 | AN4: 12 | AP4: stmttopuppri | AT4: 0 | AU4: EHCP | AY4: PRUs.I03
A5: 3023520 | B5: Akiva School | C5: 1075084 | D5: 2024-04-01 | E5: 2025-03-31 | F5: NC Year 5 | G5: NC Year 6 | H5: Primary | I5: Barnet | J5: B | K5: 1 | L5: 0 | M5: 5549 | N5: 5549 | O5: 5549 | P5: 5549 | Q5: 0 | R5: 5 | S5: 4 | T5: 3 | U5: 0 | V5: 2312.08 | W5: 1849.67 | X5: 1387.25 | Y5: 5549 | Z5: Primary | AA5: 0 | AB5: 5 | AC5: 4 | AD5: 3 | AE5: 543965 | AH5: EHCP | AI5: EHCP topups: Barnet maintained primary | AJ5: 11431 | AK5: EHCPpri.B | AL5: EHCP topup - Primary Band B | AM5: 12 | AN5: 12 | AP5: stmttopuppri | AT5: 0 | AU5: EHCP | AY5: EHCP.I03 | AZ5: Primary
A6: 3023520 | B6: Akiva School | C6: 1121806 | D6: 2024-04-01 | E6: 2025-03-31 | F6: NC Year 3 | G6: NC Year 4 | H6: Primary | I6: Barnet | J6: C | K6: 1 | L6: 0 | M6: 8544 | N6: 8544 | O6: 8544 | P6: 8544 | Q6: 0 | R6: 5 | S6: 4 | T6: 3 | U6: 0 | V6: 3560 | W6: 2848 | X6: 2136 | Y6: 8544 | Z6: Primary | AA6: 0 | AB6: 5 | AC6: 4 | AD6: 3 | AE6: 543965 | AH6: EHCP | AI6: EHCP topups: Barnet maintained primary | AJ6: 11431 | AK6: EHCPpri.C | AL6: EHCP topup - Primary Band C | AM6: 12 | AN6: 12 | AP6: stmttopuppri | AT6: 0 | AU6: EHCP | AY6: ARPs.I03
A7: 3023520 | B7: Akiva School | C7: 1075319 | D7: 2024-04-01 | E7: 2024-08-31 | F7: NC Year 6 | G7: 0 | H7: Primary | I7: Barnet | J7: C | K7: 1 | L7: 0 | M7: 8544 | N7: 8544 | O7: 8544 | P7: 8544 | Q7: 0 | R7: 5 | S7: 0 | T7: 0 | U7: 0 | V7: 3560 | W7: 0 | X7: 0 | Y7: 3560 | Z7: Primary | AA7: 0 | AB7: 5 | AC7: 0 | AD7: 0 | AE7: 543965 | AH7: EHCP | AI7: EHCP topups: Barnet maintained primary | AJ7: 11431 | AK7: EHCPpri.C | AL7: EHCP topup - Primary Band C | AM7: 5 | AN7: 5 | AP7: stmttopuppri | AT7: 0 | AU7: EHCP | AY7: EHCPS.I03 | AZ7: Secondary
A8: 3023520 | B8: Akiva School | C8: 1094596 | D8: 2024-04-01 | E8: 2025-03-31 | F8: NC Year 5 | G8: NC Year 6 | H8: Primary | I8: Barnet | J8: C | K8: 1 | L8: 0 | M8: 8544 | N8: 8544 | O8: 8544 | P8: 8544 | Q8: 0 | R8: 5 | S8: 4 | T8: 3 | U8: 0 | V8: 3560 | W8: 2848 | X8: 2136 | Y8: 8544 | Z8: Primary | AA8: 0 | AB8: 5 | AC8: 4 | AD8: 3 | AE8: 543965 | AH8: EHCP | AI8: EHCP topups: Barnet maintained primary | AJ8: 11431 | AK8: EHCPpri.C | AL8: EHCP topup - Primary Band C | AM8: 12 | AN8: 12 | AP8: stmttopuppri | AT8: 0 | AU8: EHCP | AY8: Spec.I03 | AZ8: Special Schools
A9: 3023520 | B9: Akiva School | C9: 1165518 | D9: 2024-04-01 | E9: 2025-03-31 | F9: Reception | G9: NC Year 1 | H9: Primary | I9: Barnet | J9: C | K9: 1 | L9: 0 | M9: 8544 | N9: 8544 | O9: 8544 | P9: 8544 | Q9: 0 | R9: 5 | S9: 4 | T9: 3 | U9: 0 | V9: 3560 | W9: 2848 | X9: 2136 | Y9: 8544 | Z9: Primary | AA9: 0 | AB9: 5 | AC9: 4 | AD9: 3 | AE9: 543965 | AH9: EHCP | AI9: EHCP topups: Barnet maintained primary | AJ9: 11431 | AK9: EHCPpri.C | AL9: EHCP topup - Primary Band C | AM9: 12 | AN9: 12 | AP9: stmttopuppri | AT9: 0 | AU9: EHCP
A10: 3023520 | B10: Akiva School | C10: 1075024 | D10: 2024-04-01 | E10: 2025-03-31 | F10: NC Year 5 | G10: NC Year 6 | H10: Primary | I10: Barnet | J10: C | K10: 1 | L10: 0 | M10: 8544 | N10: 8544 | O10: 8544 | P10: 8544 | Q10: 0 | R10: 5 | S10: 4 | T10: 3 | U10: 0 | V10: 3560 | W10: 2848 | X10: 2136 | Y10: 8544 | Z10: Primary | AA10: 0 | AB10: 5 | AC10: 4 | AD10: 3 | AE10: 543965 | AH10: EHCP | AI10: EHCP topups: Barnet maintained primary | AJ10: 11431 | AK10: EHCPpri.C | AL10: EHCP topup - Primary Band C | AM10: 12 | AN10: 12 | AP10: stmttopuppri | AT10: 0 | AU10: EHCP
A11: 3023520 | B11: Akiva School | C11: 1095422 | D11: 2024-04-01 | E11: 2025-03-31 | F11: NC Year 5 | G11: NC Year 6 | H11: Primary | I11: Barnet | J11: E | K11: 1 | L11: 0 | M11: 14535 | N11: 14535 | O11: 14535 | P11: 14535 | Q11: 0 | R11: 5 | S11: 4 | T11: 3 | U11: 0 | V11: 6056.25 | W11: 4845 | X11: 3633.75 | Y11: 14535 | Z11: Primary | AA11: 0 | AB11: 5 | AC11: 4 | AD11: 3 | AE11: 543965 | AH11: EHCP | AI11: EHCP topups: Barnet maintained primary | AJ11: 11431 | AK11: EHCPpri.E | AL11: EHCP topup - Primary Band E | AM11: 12 | AN11: 12 | AP11: stmttopuppri | AT11: 0 | AU11: EHCP
A12: 3023520 | B12: Akiva School | C12: 1095422 | D12: 2024-04-01 | E12: 2025-03-31 | F12: NC Year 5 | G12: NC Year 6 | H12: Primary | I12: Barnet | J12: EHCPAD | K12: 1 | L12: 13720 | M12: 1 | N12: 1 | O12: 1 | P12: 1 | Q12: 0 | R12: 5 | S12: 4 | T12: 3 | U12: 0 | V12: 0 | W12: 0 | X12: 0 | Y12: 13720 | Z12: Primary | AA12: 0 | AB12: 5 | AC12: 4 | AD12: 3 | AE12: 543965 | AH12: EHCP | AI12: EHCP topups: Barnet maintained primary | AJ12: 11431 | AK12: EHCP.EHCPAD | AL12: EHCP - Additional | AM12: 12 | AN12: 12 | AP12: stmttopuppri | AT12: 0 | AU12: EHCP
A13: 3023520 | B13: Akiva School | C13: 1037249 | D13: 2023-10-01 | E13: 2025-03-31 | F13: NC Year 5 | G13: NC Year 6 | H13: Primary | I13: Barnet | J13: E | K13: 1 | L13: 0 | M13: 14535 | N13: 14535 | O13: 14535 | P13: 14535 | Q13: 6 | R13: 5 | S13: 4 | T13: 3 | U13: 7267.5 | V13: 6056.25 | W13: 4845 | X13: 3633.75 | Y13: 21802.5 | Z13: Primary | AA13: 6 | AB13: 5 | AC13: 4 | AD13: 3 | AE13: 543965 | AH13: EHCP | AI13: EHCP topups: Barnet maintained primary | AJ13: 11431 | AK13: EHCPpri.E | AL13: EHCP topup - Primary Band E | AM13: 18 | AN13: 18 | AP13: stmttopuppri | AT13: 0 | AU13: EHCP
A14: 3023520 | B14: Akiva School | C14: 1037249 | D14: 2024-04-01 | E14: 2025-03-31 | F14: NC Year 5 | G14: NC Year 6 | H14: Primary | I14: Barnet | J14: EHCPAD | K14: 1 | L14: 13123.5 | M14: 1 | N14: 1 | O14: 1 | P14: 1 | Q14: 0 | R14: 5 | S14: 4 | T14: 3 | U14: 0 | V14: 0 | W14: 0 | X14: 0 | Y14: 13123.5 | Z14: Primary | AA14: 0 | AB14: 5 | AC14: 4 | AD14: 3 | AE14: 543965 | AH14: EHCP | AI14: EHCP topups: Barnet maintained primary | AJ14: 11431 | AK14: EHCP.EHCPAD | AL14: EHCP - Additional | AM14: 12 | AN14: 12 | AP14: stmttopuppri | AT14: 0 | AU14: EHCP
A15: 3023520 | B15: Akiva School | C15: 1169913 | D15: 2024-04-01 | E15: 2025-03-31 | F15: Reception | G15: NC Year 1 | H15: Primary | I15: Barnet | J15: D | K15: 1 | L15: 0 | M15: 11540 | N15: 11540 | O15: 11540 | P15: 11540 | Q15: 0 | R15: 5 | S15: 4 | T15: 3 | U15: 0 | V15: 4808.33 | W15: 3846.67 | X15: 2885 | Y15: 11540 | Z15: Primary | AA15: 0 | AB15: 5 | AC15: 4 | AD15: 3 | AE15: 543965 | AH15: EHCP | AI15: EHCP topups: Barnet maintained primary | AJ15: 11431 | AK15: EHCPpri.D | AL15: EHCP topup - Primary Band D | AM15: 12 | AN15: 12 | AP15: stmttopuppri | AT15: 0 | AU15: EHCP
A16: 3023317 | B16: All Saints' CE Primary School, N20 | C16: 1171615 | D16: 2024-04-01 | E16: 2025-03-31 | F16: Reception | G16: NC Year 1 | H16: Primary | I16: Barnet | J16: D | K16: 1 | L16: 0 | M16: 11540 | N16: 11540 | O16: 11540 | P16: 11540 | Q16: 0 | R16: 5 | S16: 4 | T16: 3 | U16: 0 | V16: 4808.33 | W16: 3846.67 | X16: 2885 | Y16: 11540 | Z16: Primary | AA16: 0 | AB16: 5 | AC16: 4 | AD16: 3 | AE16: 543965 | AH16: EHCP | AI16: EHCP topups: Barnet maintained primary | AJ16: 11431 | AK16: EHCPpri.D | AL16: EHCP topup - Primary Band D | AM16: 12 | AN16: 12 | AP16: stmttopuppri | AT16: 0 | AU16: EHCP
A17: 3023317 | B17: All Saints' CE Primary School, N20 | C17: 1121725 | D17: 2024-04-01 | E17: 2025-03-31 | F17: NC Year 3 | G17: NC Year 4 | H17: Primary | I17: Barnet | J17: D | K17: 1 | L17: 0 | M17: 11540 | N17: 11540 | O17: 11540 | P17: 11540 | Q17: 0 | R17: 5 | S17: 4 | T17: 3 | U17: 0 | V17: 4808.33 | W17: 3846.67 | X17: 2885 | Y17: 11540 | Z17: Primary | AA17: 0 | AB17: 5 | AC17: 4 | AD17: 3 | AE17: 543965 | AH17: EHCP | AI17: EHCP topups: Barnet maintained primary | AJ17: 11431 | AK17: EHCPpri.D | AL17: EHCP topup - Primary Band D | AM17: 12 | AN17: 12 | AP17: stmttopuppri | AT17: 0 | AU17: EHCP
A18: 3023317 | B18: All Saints' CE Primary School, N20 | C18: 1125340 | D18: 2024-04-01 | E18: 2025-03-31 | F18: NC Year 2 | G18: NC Year 3 | H18: Primary | I18: Barnet | J18: C | K18: 1 | L18: 0 | M18: 8544 | N18: 8544 | O18: 8544 | P18: 8544 | Q18: 0 | R18: 5 | S18: 4 | T18: 3 | U18: 0 | V18: 3560 | W18: 2848 | X18: 2136 | Y18: 8544 | Z18: Primary | AA18: 0 | AB18: 5 | AC18: 4 | AD18: 3 | AE18: 543965 | AH18: EHCP | AI18: EHCP topups: Barnet maintained primary | AJ18: 11431 | AK18: EHCPpri.C | AL18: EHCP topup - Primary Band C | AM18: 12 | AN18: 12 | AP18: stmttopuppri | AT18: 0 | AU18: EHCP
A19: 3023317 | B19: All Saints' CE Primary School, N20 | C19: 1140445 | D19: 2024-04-01 | E19: 2025-03-31 | F19: NC Year 2 | G19: NC Year 3 | H19: Primary | I19: Barnet | J19: D | K19: 1 | L19: 0 | M19: 11540 | N19: 11540 | O19: 11540 | P19: 11540 | Q19: 0 | R19: 5 | S19: 4 | T19: 3 | U19: 0 | V19: 4808.33 | W19: 3846.67 | X19: 2885 | Y19: 11540 | Z19: Primary | AA19: 0 | AB19: 5 | AC19: 4 | AD19: 3 | AE19: 543965 | AH19: EHCP | AI19: EHCP topups: Barnet maintained primary | AJ19: 11431 | AK19: EHCPpri.D | AL19: EHCP topup - Primary Band D | AM19: 12 | AN19: 12 | AP19: stmttopuppri | AT19: 0 | AU19: EHCP
A20: 3023317 | B20: All Saints' CE Primary School, N20 | C20: 1010085 | D20: 2024-04-01 | E20: 2024-08-31 | F20: NC Year 6 | G20: 0 | H20: Primary | I20: Barnet | J20: D | K20: 1 | L20: 0 | M20: 11540 | N20: 11540 | O20: 11540 | P20: 11540 | Q20: 0 | R20: 5 | S20: 0 | T20: 0 | U20: 0 | V20: 4808.33 | W20: 0 | X20: 0 | Y20: 4808.33 | Z20: Primary | AA20: 0 | AB20: 5 | AC20: 0 | AD20: 0 | AE20: 543965 | AH20: EHCP | AI20: EHCP topups: Barnet maintained primary | AJ20: 11431 | AK20: EHCPpri.D | AL20: EHCP topup - Primary Band D | AM20: 5 | AN20: 5 | AP20: stmttopuppri | AT20: 0 | AU20: EHCP
A21: 3023317 | B21: All Saints' CE Primary School, N20 | C21: 1140966 | D21: 2024-04-01 | E21: 2025-03-31 | F21: NC Year 5 | G21: NC Year 6 | H21: Primary | I21: Barnet | J21: C | K21: 1 | L21: 0 | M21: 8544 | N21: 8544 | O21: 8544 | P21: 8544 | Q21: 0 | R21: 5 | S21: 4 | T21: 3 | U21: 0 | V21: 3560 | W21: 2848 | X21: 2136 | Y21: 8544 | Z21: Primary | AA21: 0 | AB21: 5 | AC21: 4 | AD21: 3 | AE21: 543965 | AH21: EHCP | AI21: EHCP topups: Barnet maintained primary | AJ21: 11431 | AK21: EHCPpri.C | AL21: EHCP topup - Primary Band C | AM21: 12 | AN21: 12 | AP21: stmttopuppri | AT21: 0 | AU21: EHCP
A22: 3023317 | B22: All Saints' CE Primary School, N20 | C22: 1145192 | D22: 2024-04-01 | E22: 2025-03-31 | F22: NC Year 2 | G22: NC Year 3 | H22: Primary | I22: Barnet | J22: D | K22: 1 | L22: 0 | M22: 11540 | N22: 11540 | O22: 11540 | P22: 11540 | Q22: 0 | R22: 5 | S22: 4 | T22: 3 | U22: 0 | V22: 4808.33 | W22: 3846.67 | X22: 2885 | Y22: 11540 | Z22: Primary | AA22: 0 | AB22: 5 | AC22: 4 | AD22: 3 | AE22: 543965 | AH22: EHCP | AI22: EHCP topups: Barnet maintained primary | AJ22: 11431 | AK22: EHCPpri.D | AL22: EHCP topup - Primary Band D | AM22: 12 | AN22: 12 | AP22: stmttopuppri | AT22: 0 | AU22: EHCP
A23: 3023317 | B23: All Saints' CE Primary School, N20 | C23: 1164031 | D23: 2024-04-01 | E23: 2025-03-31 | F23: Reception | G23: NC Year 1 | H23: Primary | I23: Barnet | J23: D | K23: 1 | L23: 0 | M23: 11540 | N23: 11540 | O23: 11540 | P23: 11540 | Q23: 0 | R23: 5 | S23: 4 | T23: 3 | U23: 0 | V23: 4808.33 | W23: 3846.67 | X23: 2885 | Y23: 11540 | Z23: Primary | AA23: 0 | AB23: 5 | AC23: 4 | AD23: 3 | AE23: 543965 | AH23: EHCP | AI23: EHCP topups: Barnet maintained primary | AJ23: 11431 | AK23: EHCPpri.D | AL23: EHCP topup - Primary Band D | AM23: 12 | AN23: 12 | AP23: stmttopuppri | AT23: 0 | AU23: EHCP
A24: 3023317 | B24: All Saints' CE Primary School, N20 | C24: 1172322 | D24: 2024-05-01 | E24: 2025-03-31 | F24: Reception | G24: NC Year 1 | H24: Primary | I24: Barnet | J24: C | K24: 1 | L24: 0 | M24: 8544 | N24: 8544 | O24: 8544 | P24: 8544 | Q24: 0 | R24: 4 | S24: 4 | T24: 3 | U24: 0 | V24: 2848 | W24: 2848 | X24: 2136 | Y24: 7832 | Z24: Primary | AA24: 0 | AB24: 4 | AC24: 4 | AD24: 3 | AE24: 543965 | AH24: EHCP | AI24: EHCP topups: Barnet maintained primary | AJ24: 11431 | AK24: EHCPpri.C | AL24: EHCP topup - Primary Band C | AM24: 11 | AN24: 11 | AP24: stmttopuppri | AT24: 0 | AU24: EHCP
A25: 3023317 | B25: All Saints' CE Primary School, N20 | C25: 1125905 | D25: 2024-04-01 | E25: 2025-03-31 | F25: NC Year 2 | G25: NC Year 3 | H25: Primary | I25: Barnet | J25: D | K25: 1 | L25: 0 | M25: 11540 | N25: 11540 | O25: 11540 | P25: 11540 | Q25: 0 | R25: 5 | S25: 4 | T25: 3 | U25: 0 | V25: 4808.33 | W25: 3846.67 | X25: 2885 | Y25: 11540 | Z25: Primary | AA25: 0 | AB25: 5 | AC25: 4 | AD25: 3 | AE25: 543965 | AH25: EHCP | AI25: EHCP topups: Barnet maintained primary | AJ25: 11431 | AK25: EHCPpri.D | AL25: EHCP topup - Primary Band D | AM25: 12 | AN25: 12 | AP25: stmttopuppri | AT25: 0 | AU25: EHCP
A26: 3023317 | B26: All Saints' CE Primary School, N20 | C26: 1121329 | D26: 2024-04-01 | E26: 2025-03-31 | F26: NC Year 4 | G26: NC Year 5 | H26: Primary | I26: Barnet | J26: C | K26: 1 | L26: 0 | M26: 8544 | N26: 8544 | O26: 8544 | P26: 8544 | Q26: 0 | R26: 5 | S26: 4 | T26: 3 | U26: 0 | V26: 3560 | W26: 2848 | X26: 2136 | Y26: 8544 | Z26: Primary | AA26: 0 | AB26: 5 | AC26: 4 | AD26: 3 | AE26: 543965 | AH26: EHCP | AI26: EHCP topups: Barnet maintained primary | AJ26: 11431 | AK26: EHCPpri.C | AL26: EHCP topup - Primary Band C | AM26: 12 | AN26: 12 | AP26: stmttopuppri | AT26: 0 | AU26: EHCP
A27: 3023317 | B27: All Saints' CE Primary School, N20 | C27: 1129284 | D27: 2024-04-01 | E27: 2025-03-31 | F27: NC Year 2 | G27: NC Year 3 | H27: Primary | I27: Barnet | J27: D | K27: 1 | L27: 0 | M27: 11540 | N27: 11540 | O27: 11540 | P27: 11540 | Q27: 0 | R27: 5 | S27: 4 | T27: 3 | U27: 0 | V27: 4808.33 | W27: 3846.67 | X27: 2885 | Y27: 11540 | Z27: Primary | AA27: 0 | AB27: 5 | AC27: 4 | AD27: 3 | AE27: 543965 | AH27: EHCP | AI27: EHCP topups: Barnet maintained primary | AJ27: 11431 | AK27: EHCPpri.D | AL27: EHCP topup - Primary Band D | AM27: 12 | AN27: 12 | AP27: stmttopuppri | AT27: 0 | AU27: EHCP
A28: 3023317 | B28: All Saints' CE Primary School, N20 | C28: 1177994 | D28: 2024-04-01 | E28: 2024-04-30 | F28: Reception | G28: NC Year 1 | H28: Primary | I28: Barnet | J28: D | K28: 1 | L28: 0 | M28: 11540 | N28: 11540 | O28: 11540 | P28: 11540 | Q28: 0 | R28: 1 | S28: 0 | T28: 0 | U28: 0 | V28: 961.67 | W28: 0 | X28: 0 | Y28: 961.67 | Z28: Primary | AA28: 0 | AB28: 1 | AC28: 0 | AD28: 0 | AE28: 543965 | AH28: EHCP | AI28: EHCP topups: Barnet maintained primary | AJ28: 11431 | AK28: EHCPpri.D | AL28: EHCP topup - Primary Band D | AM28: 1 | AN28: 1 | AP28: stmttopuppri | AT28: 0 | AU28: EHCP
A29: 3023317 | B29: All Saints' CE Primary School, N20 | C29: 1177994 | D29: 2024-05-01 | E29: 2025-03-31 | F29: Reception | G29: NC Year 1 | H29: Primary | I29: Barnet | J29: E | K29: 1 | L29: 0 | M29: 14535 | N29: 14535 | O29: 14535 | P29: 14535 | Q29: 0 | R29: 4 | S29: 4 | T29: 3 | U29: 0 | V29: 4845 | W29: 4845 | X29: 3633.75 | Y29: 13323.75 | Z29: Primary | AA29: 0 | AB29: 4 | AC29: 4 | AD29: 3 | AE29: 543965 | AH29: EHCP | AI29: EHCP topups: Barnet maintained primary | AJ29: 11431 | AK29: EHCPpri.E | AL29: EHCP topup - Primary Band E | AM29: 11 | AN29: 11 | AP29: stmttopuppri | AT29: 0 | AU29: EHCP
A30: 3023317 | B30: All Saints' CE Primary School, N20 | C30: 1114068 | D30: 2024-04-01 | E30: 2025-03-31 | F30: NC Year 3 | G30: NC Year 4 | H30: Primary | I30: Barnet | J30: C | K30: 1 | L30: 0 | M30: 8544 | N30: 8544 | O30: 8544 | P30: 8544 | Q30: 0 | R30: 5 | S30: 4 | T30: 3 | U30: 0 | V30: 3560 | W30: 2848 | X30: 2136 | Y30: 8544 | Z30: Primary | AA30: 0 | AB30: 5 | AC30: 4 | AD30: 3 | AE30: 543965 | AH30: EHCP | AI30: EHCP topups: Barnet maintained primary | AJ30: 11431 | AK30: EHCPpri.C | AL30: EHCP topup - Primary Band C | AM30: 12 | AN30: 12 | AP30: stmttopuppri | AT30: 0 | AU30: EHCP
A31: 3023317 | B31: All Saints' CE Primary School, N20 | C31: 1171399 | D31: 2024-04-01 | E31: 2024-08-31 | F31: Nursery 2 | G31: 0 | H31: Nursery | I31: Barnet | J31: N | K31: 1 | L31: 0 | M31: 6811.5 | N31: 6811.5 | O31: 6811.5 | P31: 6811.5 | Q31: 0 | R31: 5 | S31: 0 | T31: 0 | U31: 0 | V31: 2838.13 | W31: 0 | X31: 0 | Y31: 2838.13 | Z31: Primary | AA31: 0 | AB31: 5 | AC31: 0 | AD31: 0 | AE31: 543965 | AH31: EHCP | AI31: EHCP - Barnet maintained nursery classes | AJ31: 11436 | AK31: EHCPpri.N | AL31: EHCP topup - Nursery | AM31: 5 | AN31: 5 | AP31: Nurserytopup | AQ31: =U31+V31 -> 2838.13 | AR31: =W31 -> 0 | AS31: =X31 -> 0 | AT31: 2838.13 | AU31: EHCPN
A32: 3023317 | B32: All Saints' CE Primary School, N20 | C32: 1171399 | D32: 2024-09-01 | E32: 2025-03-31 | F32: 0 | G32: Reception | H32: Primary | I32: Barnet | J32: E | K32: 1 | L32: 0 | M32: 14535 | N32: 14535 | O32: 14535 | P32: 14535 | Q32: 0 | R32: 0 | S32: 4 | T32: 3 | U32: 0 | V32: 0 | W32: 4845 | X32: 3633.75 | Y32: 8478.75 | Z32: Primary | AA32: 0 | AB32: 0 | AC32: 4 | AD32: 3 | AE32: 543965 | AH32: EHCP | AI32: EHCP topups: Barnet maintained primary | AJ32: 11431 | AK32: EHCPpri.E | AL32: EHCP topup - Primary Band E | AM32: 7 | AN32: 7 | AP32: stmttopuppri | AT32: 0 | AU32: EHCP
A33: 3023317 | B33: All Saints' CE Primary School, N20 | C33: 1171399 | D33: 2024-09-01 | E33: 2024-12-31 | F33: 0 | G33: Reception | H33: Primary | I33: Barnet | J33: EHCPAD | K33: 1 | L33: 1666.666667 | M33: 1 | N33: 1 | O33: 1 | P33: 1 | Q33: 0 | R33: 0 | S33: 4 | T33: 0 | U33: 0 | V33: 0 | W33: 0 | X33: 0 | Y33: 1666.666667 | Z33: Primary | AA33: 0 | AB33: 0 | AC33: 4 | AD33: 0 | AE33: 543965 | AH33: EHCP | AI33: EHCP topups: Barnet maintained primary | AJ33: 11431 | AK33: EHCP.EHCPAD | AL33: EHCP - Additional | AM33: 4 | AN33: 4 | AP33: stmttopuppri | AT33: 0 | AU33: EHCP
A34: 3023300 | B34: All Saints' CE Primary School NW2 | C34: 1084757 | D34: 2024-04-01 | E34: 2025-03-31 | F34: NC Year 4 | G34: NC Year 5 | H34: Primary | I34: Barnet | J34: D | K34: 1 | L34: 0 | M34: 11540 | N34: 11540 | O34: 11540 | P34: 11540 | Q34: 0 | R34: 5 | S34: 4 | T34: 3 | U34: 0 | V34: 4808.33 | W34: 3846.67 | X34: 2885 | Y34: 11540 | Z34: Primary | AA34: 0 | AB34: 5 | AC34: 4 | AD34: 3 | AE34: 543965 | AH34: EHCP | AI34: EHCP topups: Barnet maintained primary | AJ34: 11431 | AK34: EHCPpri.D | AL34: EHCP topup - Primary Band D | AM34: 12 | AN34: 12 | AP34: stmttopuppri | AT34: 0 | AU34: EHCP
A35: 3023300 | B35: All Saints' CE Primary School NW2 | C35: 1184879 | D35: 2024-07-01 | E35: 2025-03-31 | F35: Reception | G35: NC Year 1 | H35: Primary | I35: Barnet | J35: D | K35: 1 | L35: 0 | M35: 11540 | N35: 11540 | O35: 11540 | P35: 11540 | Q35: 0 | R35: 2 | S35: 4 | T35: 3 | U35: 0 | V35: 1923.33 | W35: 3846.67 | X35: 2885 | Y35: 8655 | Z35: Primary | AA35: 0 | AB35: 2 | AC35: 4 | AD35: 3 | AE35: 543965 | AH35: EHCP | AI35: EHCP topups: Barnet maintained primary | AJ35: 11431 | AK35: EHCPpri.D | AL35: EHCP topup - Primary Band D | AM35: 9 | AN35: 9 | AP35: stmttopuppri | AT35: 0 | AU35: EHCP
A36: 3023300 | B36: All Saints' CE Primary School NW2 | C36: 1054765 | D36: 2024-04-01 | E36: 2025-03-31 | F36: NC Year 5 | G36: NC Year 6 | H36: Primary | I36: Barnet | J36: B | K36: 1 | L36: 0 | M36: 5549 | N36: 5549 | O36: 5549 | P36: 5549 | Q36: 0 | R36: 5 | S36: 4 | T36: 3 | U36: 0 | V36: 2312.08 | W36: 1849.67 | X36: 1387.25 | Y36: 5549 | Z36: Primary | AA36: 0 | AB36: 5 | AC36: 4 | AD36: 3 | AE36: 543965 | AH36: EHCP | AI36: EHCP topups: Barnet maintained primary | AJ36: 11431 | AK36: EHCPpri.B | AL36: EHCP topup - Primary Band B | AM36: 12 | AN36: 12 | AP36: stmttopuppri | AT36: 0 | AU36: EHCP
A37: 3023300 | B37: All Saints' CE Primary School NW2 | C37: 1124662 | D37: 2024-04-01 | E37: 2025-03-31 | F37: NC Year 4 | G37: NC Year 5 | H37: Primary | I37: OOB | J37: D | K37: 1 | L37: 0 | M37: 0 | N37: 0 | O37: 0 | P37: 0 | Q37: 0 | R37: 5 | S37: 4 | T37: 3 | U37: 0 | V37: 0 | W37: 0 | X37: 0 | Y37: 0 | Z37: Primary | AA37: 0 | AB37: 5 | AC37: 4 | AD37: 3 | AE37: 543965 | AH37: 0 | AI37: None | AJ37: 0 | AK37: EHCPpri.D | AL37: EHCP topup - Primary Band D | AM37: 12 | AN37: 12 | AP37: stmttopuppri | AT37: 0
A38: 3023300 | B38: All Saints' CE Primary School NW2 | C38: 1065622 | D38: 2024-04-01 | E38: 2024-08-31 | F38: NC Year 6 | G38: 0 | H38: Primary | I38: Barnet | J38: D | K38: 1 | L38: 0 | M38: 11540 | N38: 11540 | O38: 11540 | P38: 11540 | Q38: 0 | R38: 5 | S38: 0 | T38: 0 | U38: 0 | V38: 4808.33 | W38: 0 | X38: 0 | Y38: 4808.33 | Z38: Primary | AA38: 0 | AB38: 5 | AC38: 0 | AD38: 0 | AE38: 543965 | AH38: EHCP | AI38: EHCP topups: Barnet maintained primary | AJ38: 11431 | AK38: EHCPpri.D | AL38: EHCP topup - Primary Band D | AM38: 5 | AN38: 5 | AP38: stmttopuppri | AT38: 0 | AU38: EHCP
A39: 3023300 | B39: All Saints' CE Primary School NW2 | C39: 1155450 | D39: 2024-01-01 | E39: 2024-03-31 | F39: Reception | G39: NC Year 1 | H39: Primary | I39: Barnet | J39: B | K39: 1 | L39: 0 | M39: 5549 | N39: 5549 | O39: 5549 | P39: 5549 | Q39: 3 | R39: 0 | S39: 0 | T39: 0 | U39: 1387.25 | V39: 0 | W39: 0 | X39: 0 | Y39: 1387.25 | Z39: Primary | AA39: 3 | AB39: 0 | AC39: 0 | AD39: 0 | AE39: 543965 | AH39: EHCP | AI39: EHCP topups: Barnet maintained primary | AJ39: 11431 | AK39: EHCPpri.B | AL39: EHCP topup - Primary Band B | AM39: 3 | AN39: 3 | AP39: stmttopuppri | AT39: 0 | AU39: EHCP
A40: 3023300 | B40: All Saints' CE Primary School NW2 | C40: 1155450 | D40: 2024-04-01 | E40: 2024-06-30 | F40: Reception | G40: NC Year 1 | H40: Primary | I40: Barnet | J40: D | K40: 1 | L40: 0 | M40: 11540 | N40: 11540 | O40: 11540 | P40: 11540 | Q40: 0 | R40: 3 | S40: 0 | T40: 0 | U40: 0 | V40: 2885 | W40: 0 | X40: 0 | Y40: 2885 | Z40: Primary | AA40: 0 | AB40: 3 | AC40: 0 | AD40: 0 | AE40: 543965 | AH40: EHCP | AI40: EHCP topups: Barnet maintained primary | AJ40: 11431 | AK40: EHCPpri.D | AL40: EHCP topup - Primary Band D | AM40: 3 | AN40: 3 | AP40: stmttopuppri | AT40: 0 | AU40: EHCP
A41: 3023300 | B41: All Saints' CE Primary School NW2 | C41: 1155450 | D41: 2024-07-01 | E41: 2025-03-31 | F41: Reception | G41: NC Year 1 | H41: Primary | I41: Barnet | J41: E | K41: 1 | L41: 0 | M41: 14535 | N41: 14535 | O41: 14535 | P41: 14535 | Q41: 0 | R41: 2 | S41: 4 | T41: 3 | U41: 0 | V41: 2422.5 | W41: 4845 | X41: 3633.75 | Y41: 10901.25 | Z41: Primary | AA41: 0 | AB41: 2 | AC41: 4 | AD41: 3 | AE41: 543965 | AH41: EHCP | AI41: EHCP topups: Barnet maintained primary | AJ41: 11431 | AK41: EHCPpri.E | AL41: EHCP topup - Primary Band E | AM41: 9 | AN41: 9 | AP41: stmttopuppri | AT41: 0 | AU41: EHCP
A42: 3023300 | B42: All Saints' CE Primary School NW2 | C42: 1124337 | D42: 2024-04-01 | E42: 2025-03-31 | F42: NC Year 2 | G42: NC Year 3 | H42: Primary | I42: Barnet | J42: C | K42: 1 | L42: 0 | M42: 8544 | N42: 8544 | O42: 8544 | P42: 8544 | Q42: 0 | R42: 5 | S42: 4 | T42: 3 | U42: 0 | V42: 3560 | W42: 2848 | X42: 2136 | Y42: 8544 | Z42: Primary | AA42: 0 | AB42: 5 | AC42: 4 | AD42: 3 | AE42: 543965 | AH42: EHCP | AI42: EHCP topups: Barnet maintained primary | AJ42: 11431 | AK42: EHCPpri.C | AL42: EHCP topup - Primary Band C | AM42: 12 | AN42: 12 | AP42: stmttopuppri | AT42: 0 | AU42: EHCP
A43: 3023300 | B43: All Saints' CE Primary School NW2 | C43: 1166923 | D43: 2024-04-01 | E43: 2024-08-31 | F43: NC Year 6 | G43: 0 | H43: Primary | I43: OOB | J43: U | K43: 1 | L43: 0 | M43: 0 | N43: 0 | O43: 0 | P43: 0 | Q43: 0 | R43: 5 | S43: 0 | T43: 0 | U43: 0 | V43: 0 | W43: 0 | X43: 0 | Y43: 0 | Z43: Primary | AA43: 0 | AB43: 5 | AC43: 0 | AD43: 0 | AE43: 543965 | AH43: 0 | AI43: None | AJ43: 0 | AK43: OOB.U | AL43: Non Barnet Band | AM43: 5 | AN43: 5 | AP43: othertopup | AT43: 0
A44: 3023300 | B44: All Saints' CE Primary School NW2 | C44: 1149754 | D44: 2024-04-01 | E44: 2025-03-31 | F44: Reception | G44: NC Year 1 | H44: Primary | I44: Barnet | J44: E | K44: 1 | L44: 0 | M44: 14535 | N44: 14535 | O44: 14535 | P44: 14535 | Q44: 0 | R44: 5 | S44: 4 | T44: 3 | U44: 0 | V44: 6056.25 | W44: 4845 | X44: 3633.75 | Y44: 14535 | Z44: Primary | AA44: 0 | AB44: 5 | AC44: 4 | AD44: 3 | AE44: 543965 | AH44: EHCP | AI44: EHCP topups: Barnet maintained primary | AJ44: 11431 | AK44: EHCPpri.E | AL44: EHCP topup - Primary Band E | AM44: 12 | AN44: 12 | AP44: stmttopuppri | AT44: 0 | AU44: EHCP
A45: 3023300 | B45: All Saints' CE Primary School NW2 | C45: 1149754 | D45: 2024-04-01 | E45: 2025-03-31 | F45: Reception | G45: NC Year 1 | H45: Primary | I45: Barnet | J45: EHCPAD | K45: 1 | L45: 2250 | M45: 1 | N45: 1 | O45: 1 | P45: 1 | Q45: 0 | R45: 5 | S45: 4 | T45: 3 | U45: 0 | V45: 0 | W45: 0 | X45: 0 | Y45: 2250 | Z45: Primary | AA45: 0 | AB45: 5 | AC45: 4 | AD45: 3 | AE45: 543965 | AH45: EHCP | AI45: EHCP topups: Barnet maintained primary | AJ45: 11431 | AK45: EHCP.EHCPAD | AL45: EHCP - Additional | AM45: 12 | AN45: 12 | AP45: stmttopuppri | AT45: 0 | AU45: EHCP
A46: 3023300 | B46: All Saints' CE Primary School NW2 | C46: 1060922 | D46: 2024-04-01 | E46: 2024-07-31 | F46: NC Year 5 | G46: NC Year 6 | H46: Primary | I46: Barnet | J46: C | K46: 1 | L46: 0 | M46: 8544 | N46: 8544 | O46: 8544 | P46: 8544 | Q46: 0 | R46: 4 | S46: 0 | T46: 0 | U46: 0 | V46: 2848 | W46: 0 | X46: 0 | Y46: 2848 | Z46: Primary | AA46: 0 | AB46: 4 | AC46: 0 | AD46: 0 | AE46: 543965 | AH46: EHCP | AI46: EHCP topups: Barnet maintained primary | AJ46: 11431 | AK46: EHCPpri.C | AL46: EHCP topup - Primary Band C | AM46: 4 | AN46: 4 | AP46: stmttopuppri | AT46: 0 | AU46: EHCP
A47: 3023300 | B47: All Saints' CE Primary School NW2 | C47: 1060922 | D47: 2024-08-01 | E47: 2025-03-31 | F47: NC Year 5 | G47: NC Year 6 | H47: Primary | I47: Barnet | J47: D | K47: 1 | L47: 0 | M47: 11540 | N47: 11540 | O47: 11540 | P47: 11540 | Q47: 0 | R47: 1 | S47: 4 | T47: 3 | U47: 0 | V47: 961.67 | W47: 3846.67 | X47: 2885 | Y47: 7693.34 | Z47: Primary | AA47: 0 | AB47: 1 | AC47: 4 | AD47: 3 | AE47: 543965 | AH47: EHCP | AI47: EHCP topups: Barnet maintained primary | AJ47: 11431 | AK47: EHCPpri.D | AL47: EHCP topup - Primary Band D | AM47: 8 | AN47: 8 | AP47: stmttopuppri | AT47: 0 | AU47: EHCP
A48: 3023300 | B48: All Saints' CE Primary School NW2 | C48: 1073775 | D48: 2024-04-01 | E48: 2024-06-30 | F48: NC Year 5 | G48: NC Year 6 | H48: Primary | I48: Barnet | J48: C | K48: 1 | L48: 0 | M48: 8544 | N48: 8544 | O48: 8544 | P48: 8544 | Q48: 0 | R48: 3 | S48: 0 | T48: 0 | U48: 0 | V48: 2136 | W48: 0 | X48: 0 | Y48: 2136 | Z48: Primary | AA48: 0 | AB48: 3 | AC48: 0 | AD48: 0 | AE48: 543965 | AH48: EHCP | AI48: EHCP topups: Barnet maintained primary | AJ48: 11431 | AK48: EHCPpri.C | AL48: EHCP topup - Primary Band C | AM48: 3 | AN48: 3 | AP48: stmttopuppri | AT48: 0 | AU48: EHCP
A49: 3023300 | B49: All Saints' CE Primary School NW2 | C49: 1073775 | D49: 2024-07-01 | E49: 2025-03-31 | F49: NC Year 5 | G49: NC Year 6 | H49: Primary | I49: Barnet | J49: E | K49: 1 | L49: 0 | M49: 14535 | N49: 14535 | O49: 14535 | P49: 14535 | Q49: 0 | R49: 2 | S49: 4 | T49: 3 | U49: 0 | V49: 2422.5 | W49: 4845 | X49: 3633.75 | Y49: 10901.25 | Z49: Primary | AA49: 0 | AB49: 2 | AC49: 4 | AD49: 3 | AE49: 543965 | AH49: EHCP | AI49: EHCP topups: Barnet maintained primary | AJ49: 11431 | AK49: EHCPpri.E | AL49: EHCP topup - Primary Band E | AM49: 9 | AN49: 9 | AP49: stmttopuppri | AT49: 0 | AU49: EHCP
A50: 3022020 | B50: Alma Primary | C50: 308100420 | D50: 2024-04-01 | E50: 2024-08-31 | F50: NC Year 6 | G50: 0 | H50: Primary | I50: OOB | J50: C | K50: 1 | L50: 0 | M50: 0 | N50: 0 | O50: 0 | P50: 0 | Q50: 0 | R50: 5 | S50: 0 | T50: 0 | U50: 0 | V50: 0 | W50: 0 | X50: 0 | Y50: 0 | Z50: Primary | AA50: 0 | AB50: 5 | AC50: 0 | AD50: 0 | AE50: 516500 | AH50: 0 | AI50: None | AJ50: 0 | AK50: EHCPpri.C | AL50: EHCP topup - Primary Band C | AM50: 5 | AN50: 5 | AP50: stmttopuppri | AT50: 0
A51: 3022020 | B51: Alma Primary | C51: 1103541 | D51: 2024-04-01 | E51: 2025-03-31 | F51: NC Year 5 | G51: NC Year 6 | H51: Primary | I51: Barnet | J51: C | K51: 1 | L51: 0 | M51: 8544 | N51: 8544 | O51: 8544 | P51: 8544 | Q51: 0 | R51: 5 | S51: 4 | T51: 3 | U51: 0 | V51: 3560 | W51: 2848 | X51: 2136 | Y51: 8544 | Z51: Primary | AA51: 0 | AB51: 5 | AC51: 4 | AD51: 3 | AE51: 516500 | AH51: EHCP | AI51: EHCP topups: Barnet academies - primary | AJ51: 11443 | AK51: EHCPpri.C | AL51: EHCP topup - Primary Band C | AM51: 12 | AN51: 12 | AP51: stmttopuppri | AT51: 0 | AU51: EHCP
A52: 3022020 | B52: Alma Primary | C52: 1165910 | D52: 2023-12-04 | E52: 2025-03-31 | F52: NC Year 1 | G52: NC Year 2 | H52: Primary | I52: Barnet | J52: C | K52: 1 | L52: 0 | M52: 8544 | N52: 8544 | O52: 8544 | P52: 8544 | Q52: 4 | R52: 5 | S52: 4 | T52: 3 | U52: 2848 | V52: 3560 | W52: 2848 | X52: 2136 | Y52: 11392 | Z52: Primary | AA52: 4 | AB52: 5 | AC52: 4 | AD52: 3 | AE52: 516500 | AH52: EHCP | AI52: EHCP topups: Barnet academies - primary | AJ52: 11443 | AK52: EHCPpri.C | AL52: EHCP topup - Primary Band C | AM52: 16 | AN52: 16 | AP52: stmttopuppri | AT52: 0 | AU52: EHCP
A53: 3022020 | B53: Alma Primary | C53: 1135974 | D53: 2024-04-01 | E53: 2024-08-31 | F53: NC Year 2 | G53: 0 | H53: Primary | I53: Barnet | J53: D | K53: 1 | L53: 0 | M53: 11540 | N53: 11540 | O53: 11540 | P53: 11540 | Q53: 0 | R53: 5 | S53: 0 | T53: 0 | U53: 0 | V53: 4808.33 | W53: 0 | X53: 0 | Y53: 4808.33 | Z53: Primary | AA53: 0 | AB53: 5 | AC53: 0 | AD53: 0 | AE53: 516500 | AH53: EHCP | AI53: EHCP topups: Barnet academies - primary | AJ53: 11443 | AK53: EHCPpri.D | AL53: EHCP topup - Primary Band D | AM53: 5 | AN53: 5 | AP53: stmttopuppri | AT53: 0 | AU53: EHCP
A54: 3022020 | B54: Alma Primary | C54: 1122773 | D54: 2024-04-01 | E54: 2025-03-31 | F54: NC Year 3 | G54: NC Year 4 | H54: Primary | I54: Barnet | J54: B | K54: 1 | L54: 0 | M54: 5549 | N54: 5549 | O54: 5549 | P54: 5549 | Q54: 0 | R54: 5 | S54: 4 | T54: 3 | U54: 0 | V54: 2312.08 | W54: 1849.67 | X54: 1387.25 | Y54: 5549 | Z54: Primary | AA54: 0 | AB54: 5 | AC54: 4 | AD54: 3 | AE54: 516500 | AH54: EHCP | AI54: EHCP topups: Barnet academies - primary | AJ54: 11443 | AK54: EHCPpri.B | AL54: EHCP topup - Primary Band B | AM54: 12 | AN54: 12 | AP54: stmttopuppri | AT54: 0 | AU54: EHCP
A55: 3022020 | B55: Alma Primary | C55: 1129962 | D55: 2024-04-01 | E55: 2025-03-31 | F55: NC Year 2 | G55: NC Year 3 | H55: Primary | I55: Barnet | J55: D | K55: 1 | L55: 0 | M55: 11540 | N55: 11540 | O55: 11540 | P55: 11540 | Q55: 0 | R55: 5 | S55: 4 | T55: 3 | U55: 0 | V55: 4808.33 | W55: 3846.67 | X55: 2885 | Y55: 11540 | Z55: Primary | AA55: 0 | AB55: 5 | AC55: 4 | AD55: 3 | AE55: 516500 | AH55: EHCP | AI55: EHCP topups: Barnet academies - primary | AJ55: 11443 | AK55: EHCPpri.D | AL55: EHCP topup - Primary Band D | AM55: 12 | AN55: 12 | AP55: stmttopuppri | AT55: 0 | AU55: EHCP
A56: 3022020 | B56: Alma Primary | C56: 1084737 | D56: 2024-04-01 | E56: 2025-03-31 | F56: NC Year 5 | G56: NC Year 6 | H56: Primary | I56: Barnet | J56: B | K56: 1 | L56: 0 | M56: 5549 | N56: 5549 | O56: 5549 | P56: 5549 | Q56: 0 | R56: 5 | S56: 4 | T56: 3 | U56: 0 | V56: 2312.08 | W56: 1849.67 | X56: 1387.25 | Y56: 5549 | Z56: Primary | AA56: 0 | AB56: 5 | AC56: 4 | AD56: 3 | AE56: 516500 | AH56: EHCP | AI56: EHCP topups: Barnet academies - primary | AJ56: 11443 | AK56: EHCPpri.B | AL56: EHCP topup - Primary Band B | AM56: 12 | AN56: 12 | AP56: stmttopuppri | AT56: 0 | AU56: EHCP
A57: 3022020 | B57: Alma Primary | C57: 1016180 | D57: 2024-04-01 | E57: 2025-03-31 | F57: NC Year 5 | G57: NC Year 6 | H57: Primary | I57: Barnet | J57: D | K57: 1 | L57: 0 | M57: 11540 | N57: 11540 | O57: 11540 | P57: 11540 | Q57: 0 | R57: 5 | S57: 4 | T57: 3 | U57: 0 | V57: 4808.33 | W57: 3846.67 | X57: 2885 | Y57: 11540 | Z57: Primary | AA57: 0 | AB57: 5 | AC57: 4 | AD57: 3 | AE57: 516500 | AH57: EHCP | AI57: EHCP topups: Barnet academies - primary | AJ57: 11443 | AK57: EHCPpri.D | AL57: EHCP topup - Primary Band D | AM57: 12 | AN57: 12 | AP57: stmttopuppri | AT57: 0 | AU57: EHCP
A58: 3022020 | B58: Alma Primary | C58: 1142992 | D58: 2024-09-01 | E58: 2025-03-31 | F58: NC Year 2 | G58: NC Year 3 | H58: Primary | I58: Barnet | J58: B | K58: 1 | L58: 0 | M58: 5549 | N58: 5549 | O58: 5549 | P58: 5549 | Q58: 0 | R58: 0 | S58: 4 | T58: 3 | U58: 0 | V58: 0 | W58: 1849.67 | X58: 1387.25 | Y58: 3236.92 | Z58: Primary | AA58: 0 | AB58: 0 | AC58: 4 | AD58: 3 | AE58: 516500 | AH58: EHCP | AI58: EHCP topups: Barnet academies - primary | AJ58: 11443 | AK58: EHCPpri.B | AL58: EHCP topup - Primary Band B | AM58: 7 | AN58: 7 | AP58: stmttopuppri | AT58: 0 | AU58: EHCP
A59: 3022020 | B59: Alma Primary | C59: 1055052 | D59: 2024-04-01 | E59: 2024-08-31 | F59: NC Year 6 | G59: 0 | H59: Primary | I59: Barnet | J59: C | K59: 1 | L59: 0 | M59: 8544 | N59: 8544 | O59: 8544 | P59: 8544 | Q59: 0 | R59: 5 | S59: 0 | T59: 0 | U59: 0 | V59: 3560 | W59: 0 | X59: 0 | Y59: 3560 | Z59: Primary | AA59: 0 | AB59: 5 | AC59: 0 | AD59: 0 | AE59: 516500 | AH59: EHCP | AI59: EHCP topups: Barnet academies - primary | AJ59: 11443 | AK59: EHCPpri.C | AL59: EHCP topup - Primary Band C | AM59: 5 | AN59: 5 | AP59: stmttopuppri | AT59: 0 | AU59: EHCP
A60: 3022020 | B60: Alma Primary | C60: 1083936 | D60: 2024-04-01 | E60: 2025-03-31 | F60: NC Year 5 | G60: NC Year 6 | H60: Primary | I60: Barnet | J60: B | K60: 1 | L60: 0 | M60: 5549 | N60: 5549 | O60: 5549 | P60: 5549 | Q60: 0 | R60: 5 | S60: 4 | T60: 3 | U60: 0 | V60: 2312.08 | W60: 1849.67 | X60: 1387.25 | Y60: 5549 | Z60: Primary | AA60: 0 | AB60: 5 | AC60: 4 | AD60: 3 | AE60: 516500 | AH60: EHCP | AI60: EHCP topups: Barnet academies - primary | AJ60: 11443 | AK60: EHCPpri.B | AL60: EHCP topup - Primary Band B | AM60: 12 | AN60: 12 | AP60: stmttopuppri | AT60: 0 | AU60: EHCP
A61: 3022020 | B61: Alma Primary | C61: 1090194 | D61: 2024-04-01 | E61: 2025-03-31 | F61: NC Year 5 | G61: NC Year 6 | H61: Primary | I61: Barnet | J61: B | K61: 1 | L61: 0 | M61: 5549 | N61: 5549 | O61: 5549 | P61: 5549 | Q61: 0 | R61: 5 | S61: 4 | T61: 3 | U61: 0 | V61: 2312.08 | W61: 1849.67 | X61: 1387.25 | Y61: 5549 | Z61: Primary | AA61: 0 | AB61: 5 | AC61: 4 | AD61: 3 | AE61: 516500 | AH61: EHCP | AI61: EHCP topups: Barnet academies - primary | AJ61: 11443 | AK61: EHCPpri.B | AL61: EHCP topup - Primary Band B | AM61: 12 | AN61: 12 | AP61: stmttopuppri | AT61: 0 | AU61: EHCP
A62: 3023500 | B62: Annunciation Catholic Infant School | C62: 1178646 | D62: 2024-04-01 | E62: 2024-08-31 | F62: NC Year 2 | G62: NC Year 3 | H62: Primary | I62: Barnet | J62: D | K62: 1 | L62: 0 | M62: 11540 | N62: 11540 | O62: 11540 | P62: 11540 | Q62: 0 | R62: 5 | S62: 0 | T62: 0 | U62: 0 | V62: 4808.33 | W62: 0 | X62: 0 | Y62: 4808.33 | Z62: Primary | AA62: 0 | AB62: 5 | AC62: 0 | AD62: 0 | AE62: 543965 | AH62: EHCP | AI62: EHCP topups: Barnet maintained primary | AJ62: 11431 | AK62: EHCPpri.D | AL62: EHCP topup - Primary Band D | AM62: 5 | AN62: 5 | AP62: stmttopuppri | AT62: 0 | AU62: EHCP
A63: 3023500 | B63: Annunciation Catholic Infant School | C63: 1171058 | D63: 2024-09-01 | E63: 2025-03-31 | F63: 0 | G63: Reception | H63: Primary | I63: Barnet | J63: D | K63: 1 | L63: 0 | M63: 11540 | N63: 11540 | O63: 11540 | P63: 11540 | Q63: 0 | R63: 0 | S63: 4 | T63: 3 | U63: 0 | V63: 0 | W63: 3846.67 | X63: 2885 | Y63: 6731.67 | Z63: Primary | AA63: 0 | AB63: 0 | AC63: 4 | AD63: 3 | AE63: 543965 | AH63: EHCP | AI63: EHCP topups: Barnet maintained primary | AJ63: 11431 | AK63: EHCPpri.D | AL63: EHCP topup - Primary Band D | AM63: 7 | AN63: 7 | AP63: stmttopuppri | AT63: 0 | AU63: EHCP
A64: 3023500 | B64: Annunciation Catholic Infant School | C64: 1158555 | D64: 2024-04-01 | E64: 2025-03-31 | F64: NC Year 1 | G64: NC Year 2 | H64: Primary | I64: Barnet | J64: C | K64: 1 | L64: 0 | M64: 8544 | N64: 8544 | O64: 8544 | P64: 8544 | Q64: 0 | R64: 5 | S64: 4 | T64: 3 | U64: 0 | V64: 3560 | W64: 2848 | X64: 2136 | Y64: 8544 | Z64: Primary | AA64: 0 | AB64: 5 | AC64: 4 | AD64: 3 | AE64: 543965 | AH64: EHCP | AI64: EHCP topups: Barnet maintained primary | AJ64: 11431 | AK64: EHCPpri.C | AL64: EHCP topup - Primary Band C | AM64: 12 | AN64: 12 | AP64: stmttopuppri | AT64: 0 | AU64: EHCP
A65: 3023500 | B65: Annunciation Catholic Infant School | C65: 1191094 | D65: 2024-09-01 | E65: 2025-03-31 | F65: 0 | G65: Reception | H65: Primary | I65: Barnet | J65: E | K65: 1 | L65: 0 | M65: 14535 | N65: 14535 | O65: 14535 | P65: 14535 | Q65: 0 | R65: 0 | S65: 4 | T65: 3 | U65: 0 | V65: 0 | W65: 4845 | X65: 3633.75 | Y65: 8478.75 | Z65: Primary | AA65: 0 | AB65: 0 | AC65: 4 | AD65: 3 | AE65: 543965 | AH65: EHCP | AI65: EHCP topups: Barnet maintained primary | AJ65: 11431 | AK65: EHCPpri.E | AL65: EHCP topup - Primary Band E | AM65: 7 | AN65: 7 | AP65: stmttopuppri | AT65: 0 | AU65: EHCP
A66: 3023500 | B66: Annunciation Catholic Infant School | C66: 1158333 | D66: 2024-09-01 | E66: 2025-03-31 | F66: 0 | G66: Reception | H66: Primary | I66: Barnet | J66: C | K66: 1 | L66: 0 | M66: 8544 | N66: 8544 | O66: 8544 | P66: 8544 | Q66: 0 | R66: 0 | S66: 4 | T66: 3 | U66: 0 | V66: 0 | W66: 2848 | X66: 2136 | Y66: 4984 | Z66: Primary | AA66: 0 | AB66: 0 | AC66: 4 | AD66: 3 | AE66: 543965 | AH66: EHCP | AI66: EHCP topups: Barnet maintained primary | AJ66: 11431 | AK66: EHCPpri.C | AL66: EHCP topup - Primary Band C | AM66: 7 | AN66: 7 | AP66: stmttopuppri | AT66: 0 | AU66: EHCP
A67: 3023500 | B67: Annunciation Catholic Infant School | C67: 1166332 | D67: 2024-04-01 | E67: 2025-03-31 | F67: NC Year 1 | G67: NC Year 2 | H67: Primary | I67: Barnet | J67: C | K67: 1 | L67: 0 | M67: 8544 | N67: 8544 | O67: 8544 | P67: 8544 | Q67: 0 | R67: 5 | S67: 4 | T67: 3 | U67: 0 | V67: 3560 | W67: 2848 | X67: 2136 | Y67: 8544 | Z67: Primary | AA67: 0 | AB67: 5 | AC67: 4 | AD67: 3 | AE67: 543965 | AH67: EHCP | AI67: EHCP topups: Barnet maintained primary | AJ67: 11431 | AK67: EHCPpri.C | AL67: EHCP topup - Primary Band C | AM67: 12 | AN67: 12 | AP67: stmttopuppri | AT67: =SUM(AQ67:AS67) -> 0 | AU67: EHCP
A68: 3023500 | B68: Annunciation Catholic Infant School | C68: 1177601 | D68: 2024-04-01 | E68: 2024-07-31 | F68: Nursery 2 | G68: 0 | H68: Nursery | I68: Barnet | J68: EXY | K68: 1 | L68: 2008 | M68: 1 | N68: 1 | O68: 1 | P68: 1 | Q68: 0 | R68: 4 | S68: 0 | T68: 0 | U68: 0 | V68: 0 | W68: 0 | X68: 0 | Y68: 2008 | Z68: Primary | AA68: 0 | AB68: 4 | AC68: 0 | AD68: 0 | AE68: 543965 | AH68: SEN Inclusion | AI68: SEN Inclusion - Under 5s | AJ68: 10265 | AK68: EHCP.EXY | AL68: EHCP topup - Band EXY | AM68: 4 | AN68: 4 | AP68: nurseryex | AQ68: =U68+V68 -> 0 | AR68: =W68 -> 0 | AS68: =X68 -> 0 | AT68: 0 | AU68: SEN
A69: 3023500 | B69: Annunciation Catholic Infant School | C69: 1177601 | D69: 2024-09-01 | E69: 2025-03-31 | F69: 0 | G69: Reception | H69: Primary | I69: Barnet | J69: D | K69: 1 | L69: 0 | M69: 11540 | N69: 11540 | O69: 11540 | P69: 11540 | Q69: 0 | R69: 0 | S69: 4 | T69: 3 | U69: 0 | V69: 0 | W69: 3846.67 | X69: 2885 | Y69: 6731.67 | Z69: Primary | AA69: 0 | AB69: 0 | AC69: 4 | AD69: 3 | AE69: 543965 | AH69: EHCP | AI69: EHCP topups: Barnet maintained primary | AJ69: 11431 | AK69: EHCPpri.D | AL69: EHCP topup - Primary Band D | AM69: 7 | AN69: 7 | AP69: stmttopuppri | AT69: 0 | AU69: EHCP
A70: 3023500 | B70: Annunciation Catholic Infant School | C70: 1148735 | D70: 2024-04-01 | E70: 2024-08-31 | F70: NC Year 2 | G70: NC Year 3 | H70: Primary | I70: Barnet | J70: D | K70: 1 | L70: 0 | M70: 11540 | N70: 11540 | O70: 11540 | P70: 11540 | Q70: 0 | R70: 5 | S70: 0 | T70: 0 | U70: 0 | V70: 4808.33 | W70: 0 | X70: 0 | Y70: 4808.33 | Z70: Primary | AA70: 0 | AB70: 5 | AC70: 0 | AD70: 0 | AE70: 543965 | AH70: EHCP | AI70: EHCP topups: Barnet maintained primary | AJ70: 11431 | AK70: EHCPpri.D | AL70: EHCP topup - Primary Band D | AM70: 5 | AN70: 5 | AP70: stmttopuppri | AT70: 0 | AU70: EHCP
A71: 3023500 | B71: Annunciation Catholic Infant School | C71: 1194632 | D71: 2024-05-01 | E71: 2024-07-31 | F71: Nursery 2 | G71: 0 | H71: Nursery | I71: Barnet | J71: EXY | K71: 1 | L71: 1434 | M71: 1 | N71: 1 | O71: 1 | P71: 1 | Q71: 0 | R71: 3 | S71: 0 | T71: 0 | U71: 0 | V71: 0 | W71: 0 | X71: 0 | Y71: 1434 | Z71: Primary | AA71: 0 | AB71: 3 | AC71: 0 | AD71: 0 | AE71: 543965 | AH71: SEN Inclusion | AI71: SEN Inclusion - Under 5s | AJ71: 10265 | AK71: EHCP.EXY | AL71: EHCP topup - Band EXY | AM71: 3 | AN71: 3 | AP71: nurseryex | AQ71: =U71+V71 -> 0 | AR71: =W71 -> 0 | AS71: =X71 -> 0 | AT71: 0 | AU71: SEN
A72: 3023500 | B72: Annunciation Catholic Infant School | C72: 1173377 | D72: 2024-04-01 | E72: 2025-03-31 | F72: Reception | G72: NC Year 1 | H72: Primary | I72: Barnet | J72: C | K72: 1 | L72: 0 | M72: 8544 | N72: 8544 | O72: 8544 | P72: 8544 | Q72: 0 | R72: 5 | S72: 4 | T72: 3 | U72: 0 | V72: 3560 | W72: 2848 | X72: 2136 | Y72: 8544 | Z72: Primary | AA72: 0 | AB72: 5 | AC72: 4 | AD72: 3 | AE72: 543965 | AH72: EHCP | AI72: EHCP topups: Barnet maintained primary | AJ72: 11431 | AK72: EHCPpri.C | AL72: EHCP topup - Primary Band C | AM72: 12 | AN72: 12 | AP72: stmttopuppri | AT72: 0 | AU72: EHCP
A73: 3023514 | B73: Annunciation Catholic Junior School | C73: 1126238 | D73: 2024-04-01 | E73: 2025-03-31 | F73: NC Year 4 | G73: NC Year 5 | H73: Primary | I73: Barnet | J73: C | K73: 1 | L73: 0 | M73: 8544 | N73: 8544 | O73: 8544 | P73: 8544 | Q73: 0 | R73: 5 | S73: 4 | T73: 3 | U73: 0 | V73: 3560 | W73: 2848 | X73: 2136 | Y73: 8544 | Z73: Primary | AA73: 0 | AB73: 5 | AC73: 4 | AD73: 3 | AE73: 543965 | AH73: EHCP | AI73: EHCP topups: Barnet maintained primary | AJ73: 11431 | AK73: EHCPpri.C | AL73: EHCP topup - Primary Band C | AM73: 12 | AN73: 12 | AP73: stmttopuppri | AT73: 0 | AU73: EHCP
A74: 3023514 | B74: Annunciation Catholic Junior School | C74: 1178636 | D74: 2024-04-01 | E74: 2025-03-31 | F74: NC Year 4 | G74: NC Year 5 | H74: Primary | I74: Barnet | J74: D | K74: 1 | L74: 0 | M74: 11540 | N74: 11540 | O74: 11540 | P74: 11540 | Q74: 0 | R74: 5 | S74: 4 | T74: 3 | U74: 0 | V74: 4808.33 | W74: 3846.67 | X74: 2885 | Y74: 11540 | Z74: Primary | AA74: 0 | AB74: 5 | AC74: 4 | AD74: 3 | AE74: 543965 | AH74: EHCP | AI74: EHCP topups: Barnet maintained primary | AJ74: 11431 | AK74: EHCPpri.D | AL74: EHCP topup - Primary Band D | AM74: 12 | AN74: 12 | AP74: stmttopuppri | AT74: 0 | AU74: EHCP
A75: 3023514 | B75: Annunciation Catholic Junior School | C75: 1123390 | D75: 2024-04-01 | E75: 2025-03-31 | F75: NC Year 3 | G75: NC Year 4 | H75: Primary | I75: Barnet | J75: C | K75: 1 | L75: 0 | M75: 8544 | N75: 8544 | O75: 8544 | P75: 8544 | Q75: 0 | R75: 5 | S75: 4 | T75: 3 | U75: 0 | V75: 3560 | W75: 2848 | X75: 2136 | Y75: 8544 | Z75: Primary | AA75: 0 | AB75: 5 | AC75: 4 | AD75: 3 | AE75: 543965 | AH75: EHCP | AI75: EHCP topups: Barnet maintained primary | AJ75: 11431 | AK75: EHCPpri.C | AL75: EHCP topup - Primary Band C | AM75: 12 | AN75: 12 | AP75: stmttopuppri | AT75: 0 | AU75: EHCP
A76: 3023514 | B76: Annunciation Catholic Junior School | C76: 1089755 | D76: 2024-04-01 | E76: 2024-08-31 | F76: NC Year 6 | G76: 0 | H76: Primary | I76: OOB | J76: D | K76: 1 | L76: 0 | M76: 0 | N76: 0 | O76: 0 | P76: 0 | Q76: 0 | R76: 5 | S76: 0 | T76: 0 | U76: 0 | V76: 0 | W76: 0 | X76: 0 | Y76: 0 | Z76: Primary | AA76: 0 | AB76: 5 | AC76: 0 | AD76: 0 | AE76: 543965 | AH76: 0 | AI76: None | AJ76: 0 | AK76: EHCPpri.D | AL76: EHCP topup - Primary Band D | AM76: 5 | AN76: 5 | AP76: stmttopuppri | AT76: 0
A77: 3023514 | B77: Annunciation Catholic Junior School | C77: 1148735 | D77: 2024-09-01 | E77: 2025-03-31 | F77: 0 | G77: NC Year 3 | H77: Primary | I77: Barnet | J77: D | K77: 1 | L77: 0 | M77: 11540 | N77: 11540 | O77: 11540 | P77: 11540 | Q77: 0 | R77: 0 | S77: 4 | T77: 3 | U77: 0 | V77: 0 | W77: 3846.67 | X77: 2885 | Y77: 6731.67 | Z77: Primary | AA77: 0 | AB77: 0 | AC77: 4 | AD77: 3 | AE77: 543965 | AH77: EHCP | AI77: EHCP topups: Barnet maintained primary | AJ77: 11431 | AK77: EHCPpri.D | AL77: EHCP topup - Primary Band D | AM77: 7 | AN77: 7 | AP77: stmttopuppri | AT77: 0 | AU77: EHCP
A78: 3023514 | B78: Annunciation Catholic Junior School | C78: 1075372 | D78: 2024-06-01 | E78: 2024-08-31 | F78: NC Year 6 | G78: 0 | H78: Primary | I78: Barnet | J78: C | K78: 1 | L78: 0 | M78: 8544 | N78: 8544 | O78: 8544 | P78: 8544 | Q78: 0 | R78: 3 | S78: 0 | T78: 0 | U78: 0 | V78: 2136 | W78: 0 | X78: 0 | Y78: 2136 | Z78: Primary | AA78: 0 | AB78: 3 | AC78: 0 | AD78: 0 | AE78: 543965 | AH78: EHCP | AI78: EHCP topups: Barnet maintained primary | AJ78: 11431 | AK78: EHCPpri.C | AL78: EHCP topup - Primary Band C | AM78: 3 | AN78: 3 | AP78: stmttopuppri | AT78: 0 | AU78: EHCP
A79: 3023514 | B79: Annunciation Catholic Junior School | C79: 1110535 | D79: 2024-04-01 | E79: 2025-03-31 | F79: NC Year 4 | G79: NC Year 5 | H79: Primary | I79: Barnet | J79: C | K79: 1 | L79: 0 | M79: 8544 | N79: 8544 | O79: 8544 | P79: 8544 | Q79: 0 | R79: 5 | S79: 4 | T79: 3 | U79: 0 | V79: 3560 | W79: 2848 | X79: 2136 | Y79: 8544 | Z79: Primary | AA79: 0 | AB79: 5 | AC79: 4 | AD79: 3 | AE79: 543965 | AH79: EHCP | AI79: EHCP topups: Barnet maintained primary | AJ79: 11431 | AK79: EHCPpri.C | AL79: EHCP topup - Primary Band C | AM79: 12 | AN79: 12 | AP79: stmttopuppri | AT79: 0 | AU79: EHCP
A80: 3024013 | B80: ARK Pioneer Academy | C80: 1064867 | D80: 2024-09-01 | E80: 2025-03-31 | F80: 0 | G80: NC Year 7 | H80: Secondary | I80: Barnet | J80: D | K80: 1 | L80: 0 | M80: 11540 | N80: 11540 | O80: 11540 | P80: 11540 | Q80: 0 | R80: 0 | S80: 4 | T80: 3 | U80: 0 | V80: 0 | W80: 3846.67 | X80: 2885 | Y80: 6731.67 | Z80: Secondary | AA80: 0 | AB80: 0 | AC80: 4 | AD80: 3 | AE80: 516500 | AH80: EHCP | AI80: EHCP topups: Barnet academies - secondary | AJ80: 11442 | AK80: EHCPsec.D | AL80: EHCP topup - Secondary Band D | AM80: 7 | AN80: 7 | AP80: stmttopupsec | AT80: 0 | AU80: EHCPS
A81: 3024013 | B81: ARK Pioneer Academy | C81: 312265 | D81: 2024-04-01 | E81: 2025-03-31 | F81: NC Year 9 | G81: NC Year 10 | H81: Secondary | I81: Barnet | J81: B | K81: 1 | L81: 0 | M81: 5549 | N81: 5549 | O81: 5549 | P81: 5549 | Q81: 0 | R81: 5 | S81: 4 | T81: 3 | U81: 0 | V81: 2312.08 | W81: 1849.67 | X81: 1387.25 | Y81: 5549 | Z81: Secondary | AA81: 0 | AB81: 5 | AC81: 4 | AD81: 3 | AE81: 516500 | AH81: EHCP | AI81: EHCP topups: Barnet academies - secondary | AJ81: 11442 | AK81: EHCPsec.B | AL81: EHCP topup - Secondary Band B | AM81: 12 | AN81: 12 | AP81: stmttopupsec | AT81: 0 | AU81: EHCPS
A82: 3024013 | B82: ARK Pioneer Academy | C82: 313514 | D82: 2024-04-01 | E82: 2025-03-31 | F82: NC Year 9 | G82: NC Year 10 | H82: Secondary | I82: Barnet | J82: C | K82: 1 | L82: 0 | M82: 8544 | N82: 8544 | O82: 8544 | P82: 8544 | Q82: 0 | R82: 5 | S82: 4 | T82: 3 | U82: 0 | V82: 3560 | W82: 2848 | X82: 2136 | Y82: 8544 | Z82: Secondary | AA82: 0 | AB82: 5 | AC82: 4 | AD82: 3 | AE82: 516500 | AH82: EHCP | AI82: EHCP topups: Barnet academies - secondary | AJ82: 11442 | AK82: EHCPsec.C | AL82: EHCP topup - Secondary Band C | AM82: 12 | AN82: 12 | AP82: stmttopupsec | AT82: 0 | AU82: EHCPS
A83: 3024013 | B83: ARK Pioneer Academy | C83: 239153 | D83: 2024-04-01 | E83: 2024-08-31 | F83: NC Year 11 | G83: 0 | H83: Secondary | I83: Barnet | J83: D | K83: 1 | L83: 0 | M83: 11540 | N83: 11540 | O83: 11540 | P83: 11540 | Q83: 0 | R83: 5 | S83: 0 | T83: 0 | U83: 0 | V83: 4808.33 | W83: 0 | X83: 0 | Y83: 4808.33 | Z83: Secondary | AA83: 0 | AB83: 5 | AC83: 0 | AD83: 0 | AE83: 516500 | AH83: EHCP | AI83: EHCP topups: Barnet academies - secondary | AJ83: 11442 | AK83: EHCPsec.D | AL83: EHCP topup - Secondary Band D | AM83: 5 | AN83: 5 | AP83: stmttopupsec | AT83: 0 | AU83: EHCPS
A84: 3024013 | B84: ARK Pioneer Academy | C84: 1061609 | D84: 2024-04-01 | E84: 2025-03-31 | F84: NC Year 8 | G84: NC Year 9 | H84: Secondary | I84: Barnet | J84: E | K84: 1 | L84: 0 | M84: 14535 | N84: 14535 | O84: 14535 | P84: 14535 | Q84: 0 | R84: 5 | S84: 4 | T84: 3 | U84: 0 | V84: 6056.25 | W84: 4845 | X84: 3633.75 | Y84: 14535 | Z84: Secondary | AA84: 0 | AB84: 5 | AC84: 4 | AD84: 3 | AE84: 516500 | AH84: EHCP | AI84: EHCP topups: Barnet academies - secondary | AJ84: 11442 | AK84: EHCPsec.E | AL84: EHCP topup - Secondary Band E | AM84: 12 | AN84: 12 | AP84: stmttopupsec | AT84: 0 | AU84: EHCPS
A85: 3024013 | B85: ARK Pioneer Academy | C85: 1004603 | D85: 2024-04-01 | E85: 2025-03-31 | F85: NC Year 8 | G85: NC Year 9 | H85: Secondary | I85: Barnet | J85: D | K85: 1 | L85: 0 | M85: 11540 | N85: 11540 | O85: 11540 | P85: 11540 | Q85: 0 | R85: 5 | S85: 4 | T85: 3 | U85: 0 | V85: 4808.33 | W85: 3846.67 | X85: 2885 | Y85: 11540 | Z85: Secondary | AA85: 0 | AB85: 5 | AC85: 4 | AD85: 3 | AE85: 516500 | AH85: EHCP | AI85: EHCP topups: Barnet academies - secondary | AJ85: 11442 | AK85: EHCPsec.D | AL85: EHCP topup - Secondary Band D | AM85: 12 | AN85: 12 | AP85: stmttopupsec | AT85: 0 | AU85: EHCPS
A86: 3024013 | B86: ARK Pioneer Academy | C86: 1106251 | D86: 2024-04-01 | E86: 2025-03-31 | F86: NC Year 7 | G86: NC Year 8 | H86: Secondary | I86: Barnet | J86: C | K86: 1 | L86: 0 | M86: 8544 | N86: 8544 | O86: 8544 | P86: 8544 | Q86: 0 | R86: 5 | S86: 4 | T86: 3 | U86: 0 | V86: 3560 | W86: 2848 | X86: 2136 | Y86: 8544 | Z86: Secondary | AA86: 0 | AB86: 5 | AC86: 4 | AD86: 3 | AE86: 516500 | AH86: EHCP | AI86: EHCP topups: Barnet academies - secondary | AJ86: 11442 | AK86: EHCPsec.C | AL86: EHCP topup - Secondary Band C | AM86: 12 | AN86: 12 | AP86: stmttopupsec | AT86: 0 | AU86: EHCPS
A87: 3024013 | B87: ARK Pioneer Academy | C87: 1112288 | D87: 2024-04-01 | E87: 2025-03-31 | F87: NC Year 8 | G87: NC Year 9 | H87: Secondary | I87: Barnet | J87: D | K87: 1 | L87: 0 | M87: 11540 | N87: 11540 | O87: 11540 | P87: 11540 | Q87: 0 | R87: 5 | S87: 4 | T87: 3 | U87: 0 | V87: 4808.33 | W87: 3846.67 | X87: 2885 | Y87: 11540 | Z87: Secondary | AA87: 0 | AB87: 5 | AC87: 4 | AD87: 3 | AE87: 516500 | AH87: EHCP | AI87: EHCP topups: Barnet academies - secondary | AJ87: 11442 | AK87: EHCPsec.D | AL87: EHCP topup - Secondary Band D | AM87: 12 | AN87: 12 | AP87: stmttopupsec | AT87: 0 | AU87: EHCPS
A88: 3024013 | B88: ARK Pioneer Academy | C88: 1040360 | D88: 2024-04-01 | E88: 2025-03-31 | F88: NC Year 7 | G88: NC Year 8 | H88: Secondary | I88: Barnet | J88: C | K88: 1 | L88: 0 | M88: 8544 | N88: 8544 | O88: 8544 | P88: 8544 | Q88: 0 | R88: 5 | S88: 4 | T88: 3 | U88: 0 | V88: 3560 | W88: 2848 | X88: 2136 | Y88: 8544 | Z88: Secondary | AA88: 0 | AB88: 5 | AC88: 4 | AD88: 3 | AE88: 516500 | AH88: EHCP | AI88: EHCP topups: Barnet academies - secondary | AJ88: 11442 | AK88: EHCPsec.C | AL88: EHCP topup - Secondary Band C | AM88: 12 | AN88: 12 | AP88: stmttopupsec | AT88: 0 | AU88: EHCPS
A89: 3024013 | B89: ARK Pioneer Academy | C89: 1049789 | D89: 2024-09-01 | E89: 2025-03-31 | F89: 0 | G89: NC Year 7 | H89: Secondary | I89: Barnet | J89: C | K89: 1 | L89: 0 | M89: 8544 | N89: 8544 | O89: 8544 | P89: 8544 | Q89: 0 | R89: 0 | S89: 4 | T89: 3 | U89: 0 | V89: 0 | W89: 2848 | X89: 2136 | Y89: 4984 | Z89: Secondary | AA89: 0 | AB89: 0 | AC89: 4 | AD89: 3 | AE89: 516500 | AH89: EHCP | AI89: EHCP topups: Barnet academies - secondary | AJ89: 11442 | AK89: EHCPsec.C | AL89: EHCP topup - Secondary Band C | AM89: 7 | AN89: 7 | AP89: stmttopupsec | AT89: 0 | AU89: EHCPS
A90: 3024013 | B90: ARK Pioneer Academy | C90: 1051333 | D90: 2024-09-01 | E90: 2025-03-31 | F90: 0 | G90: NC Year 7 | H90: Secondary | I90: Barnet | J90: B | K90: 1 | L90: 0 | M90: 5549 | N90: 5549 | O90: 5549 | P90: 5549 | Q90: 0 | R90: 0 | S90: 4 | T90: 3 | U90: 0 | V90: 0 | W90: 1849.67 | X90: 1387.25 | Y90: 3236.92 | Z90: Secondary | AA90: 0 | AB90: 0 | AC90: 4 | AD90: 3 | AE90: 516500 | AH90: EHCP | AI90: EHCP topups: Barnet academies - secondary | AJ90: 11442 | AK90: EHCPsec.B | AL90: EHCP topup - Secondary Band B | AM90: 7 | AN90: 7 | AP90: stmttopupsec | AT90: 0 | AU90: EHCPS
A91: 3024013 | B91: ARK Pioneer Academy | C91: 341836 | D91: 2024-04-01 | E91: 2025-03-31 | F91: NC Year 10 | G91: NC Year 11 | H91: Secondary | I91: Barnet | J91: E | K91: 1 | L91: 0 | M91: 14535 | N91: 14535 | O91: 14535 | P91: 14535 | Q91: 0 | R91: 5 | S91: 4 | T91: 3 | U91: 0 | V91: 6056.25 | W91: 4845 | X91: 3633.75 | Y91: 14535 | Z91: Secondary | AA91: 0 | AB91: 5 | AC91: 4 | AD91: 3 | AE91: 516500 | AH91: EHCP | AI91: EHCP topups: Barnet academies - secondary | AJ91: 11442 | AK91: EHCPsec.E | AL91: EHCP topup - Secondary Band E | AM91: 12 | AN91: 12 | AP91: stmttopupsec | AT91: 0 | AU91: EHCPS
A92: 3024013 | B92: ARK Pioneer Academy | C92: 1040496 | D92: 2024-04-01 | E92: 2025-03-31 | F92: NC Year 7 | G92: NC Year 8 | H92: Secondary | I92: Barnet | J92: D | K92: 1 | L92: 0 | M92: 11540 | N92: 11540 | O92: 11540 | P92: 11540 | Q92: 0 | R92: 5 | S92: 4 | T92: 3 | U92: 0 | V92: 4808.33 | W92: 3846.67 | X92: 2885 | Y92: 11540 | Z92: Secondary | AA92: 0 | AB92: 5 | AC92: 4 | AD92: 3 | AE92: 516500 | AH92: EHCP | AI92: EHCP topups: Barnet academies - secondary | AJ92: 11442 | AK92: EHCPsec.D | AL92: EHCP topup - Secondary Band D | AM92: 12 | AN92: 12 | AP92: stmttopupsec | AT92: 0 | AU92: EHCPS
A93: 3024013 | B93: ARK Pioneer Academy | C93: 1015720 | D93: 2024-04-01 | E93: 2025-03-31 | F93: NC Year 8 | G93: NC Year 9 | H93: Secondary | I93: Barnet | J93: C | K93: 1 | L93: 0 | M93: 8544 | N93: 8544 | O93: 8544 | P93: 8544 | Q93: 0 | R93: 5 | S93: 4 | T93: 3 | U93: 0 | V93: 3560 | W93: 2848 | X93: 2136 | Y93: 8544 | Z93: Secondary | AA93: 0 | AB93: 5 | AC93: 4 | AD93: 3 | AE93: 516500 | AH93: EHCP | AI93: EHCP topups: Barnet academies - secondary | AJ93: 11442 | AK93: EHCPsec.C | AL93: EHCP topup - Secondary Band C | AM93: 12 | AN93: 12 | AP93: stmttopupsec | AT93: 0 | AU93: EHCPS
A94: 3024013 | B94: ARK Pioneer Academy | C94: 1113057 | D94: 2024-09-01 | E94: 2025-03-31 | F94: 0 | G94: NC Year 7 | H94: Secondary | I94: Barnet | J94: C | K94: 1 | L94: 0 | M94: 8544 | N94: 8544 | O94: 8544 | P94: 8544 | Q94: 0 | R94: 0 | S94: 4 | T94: 3 | U94: 0 | V94: 0 | W94: 2848 | X94: 2136 | Y94: 4984 | Z94: Secondary | AA94: 0 | AB94: 0 | AC94: 4 | AD94: 3 | AE94: 516500 | AH94: EHCP | AI94: EHCP topups: Barnet academies - secondary | AJ94: 11442 | AK94: EHCPsec.C | AL94: EHCP topup - Secondary Band C | AM94: 7 | AN94: 7 | AP94: stmttopupsec | AT94: 0 | AU94: EHCPS
A95: 3024013 | B95: ARK Pioneer Academy | C95: 1156638 | D95: 2024-04-01 | E95: 2025-03-31 | F95: NC Year 8 | G95: NC Year 9 | H95: Secondary | I95: Barnet | J95: C | K95: 1 | L95: 0 | M95: 8544 | N95: 8544 | O95: 8544 | P95: 8544 | Q95: 0 | R95: 5 | S95: 4 | T95: 3 | U95: 0 | V95: 3560 | W95: 2848 | X95: 2136 | Y95: 8544 | Z95: Secondary | AA95: 0 | AB95: 5 | AC95: 4 | AD95: 3 | AE95: 516500 | AH95: EHCP | AI95: EHCP topups: Barnet academies - secondary | AJ95: 11442 | AK95: EHCPsec.C | AL95: EHCP topup - Secondary Band C | AM95: 12 | AN95: 12 | AP95: stmttopupsec | AT95: 0 | AU95: EHCPS
A96: 3024013 | B96: ARK Pioneer Academy | C96: 1041393 | D96: 2024-04-01 | E96: 2025-03-31 | F96: NC Year 7 | G96: NC Year 8 | H96: Secondary | I96: Barnet | J96: D | K96: 1 | L96: 0 | M96: 11540 | N96: 11540 | O96: 11540 | P96: 11540 | Q96: 0 | R96: 5 | S96: 4 | T96: 3 | U96: 0 | V96: 4808.33 | W96: 3846.67 | X96: 2885 | Y96: 11540 | Z96: Secondary | AA96: 0 | AB96: 5 | AC96: 4 | AD96: 3 | AE96: 516500 | AH96: EHCP | AI96: EHCP topups: Barnet academies - secondary | AJ96: 11442 | AK96: EHCPsec.D | AL96: EHCP topup - Secondary Band D | AM96: 12 | AN96: 12 | AP96: stmttopupsec | AT96: 0 | AU96: EHCPS
A97: 3024013 | B97: ARK Pioneer Academy | C97: 1000342 | D97: 2024-04-01 | E97: 2025-03-31 | F97: NC Year 7 | G97: NC Year 8 | H97: Secondary | I97: Barnet | J97: C | K97: 1 | L97: 0 | M97: 8544 | N97: 8544 | O97: 8544 | P97: 8544 | Q97: 0 | R97: 5 | S97: 4 | T97: 3 | U97: 0 | V97: 3560 | W97: 2848 | X97: 2136 | Y97: 8544 | Z97: Secondary | AA97: 0 | AB97: 5 | AC97: 4 | AD97: 3 | AE97: 516500 | AH97: EHCP | AI97: EHCP topups: Barnet academies - secondary | AJ97: 11442 | AK97: EHCPsec.C | AL97: EHCP topup - Secondary Band C | AM97: 12 | AN97: 12 | AP97: stmttopupsec | AT97: 0 | AU97: EHCPS
A98: 3024013 | B98: ARK Pioneer Academy | C98: 1081134 | D98: 2024-09-01 | E98: 2025-03-31 | F98: 0 | G98: NC Year 7 | H98: Secondary | I98: Barnet | J98: B | K98: 1 | L98: 0 | M98: 5549 | N98: 5549 | O98: 5549 | P98: 5549 | Q98: 0 | R98: 0 | S98: 4 | T98: 3 | U98: 0 | V98: 0 | W98: 1849.67 | X98: 1387.25 | Y98: 3236.92 | Z98: Secondary | AA98: 0 | AB98: 0 | AC98: 4 | AD98: 3 | AE98: 516500 | AH98: EHCP | AI98: EHCP topups: Barnet academies - secondary | AJ98: 11442 | AK98: EHCPsec.B | AL98: EHCP topup - Secondary Band B | AM98: 7 | AN98: 7 | AP98: stmttopupsec | AT98: 0 | AU98: EHCPS
A99: 3024013 | B99: ARK Pioneer Academy | C99: 238275 | D99: 2024-04-01 | E99: 2024-08-31 | F99: NC Year 11 | G99: 0 | H99: Secondary | I99: Barnet | J99: B | K99: 1 | L99: 0 | M99: 5549 | N99: 5549 | O99: 5549 | P99: 5549 | Q99: 0 | R99: 5 | S99: 0 | T99: 0 | U99: 0 | V99: 2312.08 | W99: 0 | X99: 0 | Y99: 2312.08 | Z99: Secondary | AA99: 0 | AB99: 5 | AC99: 0 | AD99: 0 | AE99: 516500 | AH99: EHCP | AI99: EHCP topups: Barnet academies - secondary | AJ99: 11442 | AK99: EHCPsec.B | AL99: EHCP topup - Secondary Band B | AM99: 5 | AN99: 5 | AP99: stmttopupsec | AT99: 0 | AU99: EHCPS
A100: 3024013 | B100: ARK Pioneer Academy | C100: 1077034 | D100: 2024-09-01 | E100: 2025-03-31 | F100: 0 | G100: NC Year 7 | H100: Secondary | I100: Barnet | J100: D | K100: 1 | L100: 0 | M100: 11540 | N100: 11540 | O100: 11540 | P100: 11540 | Q100: 0 | R100: 0 | S100: 4 | T100: 3 | U100: 0 | V100: 0 | W100: 3846.67 | X100: 2885 | Y100: 6731.67 | Z100: Secondary | AA100: 0 | AB100: 0 | AC100: 4 | AD100: 3 | AE100: 516500 | AH100: EHCP | AI100: EHCP topups: Barnet academies - secondary | AJ100: 11442 | AK100: EHCPsec.D | AL100: EHCP topup - Secondary Band D | AM100: 7 | AN100: 7 | AP100: stmttopupsec | AT100: 0 | AU100: EHCPS
A101: 3024013 | B101: ARK Pioneer Academy | C101: 1000255 | D101: 2024-04-01 | E101: 2025-03-31 | F101: NC Year 7 | G101: NC Year 8 | H101: Secondary | I101: Barnet | J101: C | K101: 1 | L101: 0 | M101: 8544 | N101: 8544 | O101: 8544 | P101: 8544 | Q101: 0 | R101: 5 | S101: 4 | T101: 3 | U101: 0 | V101: 3560 | W101: 2848 | X101: 2136 | Y101: 8544 | Z101: Secondary | AA101: 0 | AB101: 5 | AC101: 4 | AD101: 3 | AE101: 516500 | AH101: EHCP | AI101: EHCP topups: Barnet academies - secondary | AJ101: 11442 | AK101: EHCPsec.C | AL101: EHCP topup - Secondary Band C | AM101: 12 | AN101: 12 | AP101: stmttopupsec | AT101: 0 | AU101: EHCPS
A102: 3024013 | B102: ARK Pioneer Academy | C102: 314910 | D102: 2024-04-01 | E102: 2024-10-31 | F102: NC Year 9 | G102: NC Year 10 | H102: Secondary | I102: Barnet | J102: C | K102: 1 | L102: 0 | M102: 8544 | N102: 8544 | O102: 8544 | P102: 8544 | Q102: 0 | R102: 5 | S102: 2 | T102: 0 | U102: 0 | V102: 3560 | W102: 1424 | X102: 0 | Y102: 4984 | Z102: Secondary | AA102: 0 | AB102: 5 | AC102: 2 | AD102: 0 | AE102: 516500 | AH102: EHCP | AI102: EHCP topups: Barnet academies - secondary | AJ102: 11442 | AK102: EHCPsec.C | AL102: EHCP topup - Secondary Band C | AM102: 7 | AN102: 7 | AP102: stmttopupsec | AT102: 0 | AU102: EHCPS
A103: 3024013 | B103: ARK Pioneer Academy | C103: 238382 | D103: 2024-04-01 | E103: 2024-08-31 | F103: NC Year 11 | G103: 0 | H103: Secondary | I103: Barnet | J103: B | K103: 1 | L103: 0 | M103: 5549 | N103: 5549 | O103: 5549 | P103: 5549 | Q103: 0 | R103: 5 | S103: 0 | T103: 0 | U103: 0 | V103: 2312.08 | W103: 0 | X103: 0 | Y103: 2312.08 | Z103: Secondary | AA103: 0 | AB103: 5 | AC103: 0 | AD103: 0 | AE103: 516500 | AH103: EHCP | AI103: EHCP topups: Barnet academies - secondary | AJ103: 11442 | AK103: EHCPsec.B | AL103: EHCP topup - Secondary Band B | AM103: 5 | AN103: 5 | AP103: stmttopupsec | AT103: 0 | AU103: EHCPS
A104: 3024013 | B104: ARK Pioneer Academy | C104: 237605 | D104: 2024-04-01 | E104: 2024-08-31 | F104: NC Year 11 | G104: 0 | H104: Secondary | I104: Barnet | J104: D | K104: 1 | L104: 0 | M104: 11540 | N104: 11540 | O104: 11540 | P104: 11540 | Q104: 0 | R104: 5 | S104: 0 | T104: 0 | U104: 0 | V104: 4808.33 | W104: 0 | X104: 0 | Y104: 4808.33 | Z104: Secondary | AA104: 0 | AB104: 5 | AC104: 0 | AD104: 0 | AE104: 516500 | AH104: EHCP | AI104: EHCP topups: Barnet academies - secondary | AJ104: 11442 | AK104: EHCPsec.D | AL104: EHCP topup - Secondary Band D | AM104: 5 | AN104: 5 | AP104: stmttopupsec | AT104: 0 | AU104: EHCPS
A105: 3024013 | B105: ARK Pioneer Academy | C105: 1035153 | D105: 2024-04-01 | E105: 2025-03-31 | F105: NC Year 7 | G105: NC Year 8 | H105: Secondary | I105: Barnet | J105: E | K105: 1 | L105: 0 | M105: 14535 | N105: 14535 | O105: 14535 | P105: 14535 | Q105: 0 | R105: 5 | S105: 4 | T105: 3 | U105: 0 | V105: 6056.25 | W105: 4845 | X105: 3633.75 | Y105: 14535 | Z105: Secondary | AA105: 0 | AB105: 5 | AC105: 4 | AD105: 3 | AE105: 516500 | AH105: EHCP | AI105: EHCP topups: Barnet academies - secondary | AJ105: 11442 | AK105: EHCPsec.E | AL105: EHCP topup - Secondary Band E | AM105: 12 | AN105: 12 | AP105: stmttopupsec | AT105: 0 | AU105: EHCPS
A106: 3024013 | B106: ARK Pioneer Academy | C106: 1041304 | D106: 2024-09-01 | E106: 2025-03-31 | F106: 0 | G106: NC Year 7 | H106: Secondary | I106: Barnet | J106: D | K106: 1 | L106: 0 | M106: 11540 | N106: 11540 | O106: 11540 | P106: 11540 | Q106: 0 | R106: 0 | S106: 4 | T106: 3 | U106: 0 | V106: 0 | W106: 3846.67 | X106: 2885 | Y106: 6731.67 | Z106: Secondary | AA106: 0 | AB106: 0 | AC106: 4 | AD106: 3 | AE106: 516500 | AH106: EHCP | AI106: EHCP topups: Barnet academies - secondary | AJ106: 11442 | AK106: EHCPsec.D | AL106: EHCP topup - Secondary Band D | AM106: 7 | AN106: 7 | AP106: stmttopupsec | AT106: 0 | AU106: EHCPS
A107: 3024013 | B107: ARK Pioneer Academy | C107: 1026424 | D107: 2024-09-01 | E107: 2025-03-31 | F107: 0 | G107: NC Year 7 | H107: Secondary | I107: Barnet | J107: C | K107: 1 | L107: 0 | M107: 8544 | N107: 8544 | O107: 8544 | P107: 8544 | Q107: 0 | R107: 0 | S107: 4 | T107: 3 | U107: 0 | V107: 0 | W107: 2848 | X107: 2136 | Y107: 4984 | Z107: Secondary | AA107: 0 | AB107: 0 | AC107: 4 | AD107: 3 | AE107: 516500 | AH107: EHCP | AI107: EHCP topups: Barnet academies - secondary | AJ107: 11442 | AK107: EHCPsec.C | AL107: EHCP topup - Secondary Band C | AM107: 7 | AN107: 7 | AP107: stmttopupsec | AT107: 0 | AU107: EHCPS
A108: 3024013 | B108: ARK Pioneer Academy | C108: 311360 | D108: 2024-04-01 | E108: 2025-03-31 | F108: NC Year 9 | G108: NC Year 10 | H108: Secondary | I108: Barnet | J108: C | K108: 1 | L108: 0 | M108: 8544 | N108: 8544 | O108: 8544 | P108: 8544 | Q108: 0 | R108: 5 | S108: 4 | T108: 3 | U108: 0 | V108: 3560 | W108: 2848 | X108: 2136 | Y108: 8544 | Z108: Secondary | AA108: 0 | AB108: 5 | AC108: 4 | AD108: 3 | AE108: 516500 | AH108: EHCP | AI108: EHCP topups: Barnet academies - secondary | AJ108: 11442 | AK108: EHCPsec.C | AL108: EHCP topup - Secondary Band C | AM108: 12 | AN108: 12 | AP108: stmttopupsec | AT108: 0 | AU108: EHCPS
A109: 3024013 | B109: ARK Pioneer Academy | C109: 251595 | D109: 2024-04-01 | E109: 2024-08-31 | F109: NC Year 10 | G109: 0 | H109: Secondary | I109: Barnet | J109: E | K109: 1 | L109: 0 | M109: 14535 | N109: 14535 | O109: 14535 | P109: 14535 | Q109: 0 | R109: 5 | S109: 0 | T109: 0 | U109: 0 | V109: 6056.25 | W109: 0 | X109: 0 | Y109: 6056.25 | Z109: Secondary | AA109: 0 | AB109: 5 | AC109: 0 | AD109: 0 | AE109: 516500 | AH109: EHCP | AI109: EHCP topups: Barnet academies - secondary | AJ109: 11442 | AK109: EHCPsec.E | AL109: EHCP topup - Secondary Band E | AM109: 5 | AN109: 5 | AP109: stmttopupsec | AT109: 0 | AU109: EHCPS
A110: 3024013 | B110: ARK Pioneer Academy | C110: 1036448 | D110: 2024-04-01 | E110: 2025-03-31 | F110: NC Year 7 | G110: NC Year 8 | H110: Secondary | I110: Barnet | J110: C | K110: 1 | L110: 0 | M110: 8544 | N110: 8544 | O110: 8544 | P110: 8544 | Q110: 0 | R110: 5 | S110: 4 | T110: 3 | U110: 0 | V110: 3560 | W110: 2848 | X110: 2136 | Y110: 8544 | Z110: Secondary | AA110: 0 | AB110: 5 | AC110: 4 | AD110: 3 | AE110: 516500 | AH110: EHCP | AI110: EHCP topups: Barnet academies - secondary | AJ110: 11442 | AK110: EHCPsec.C | AL110: EHCP topup - Secondary Band C | AM110: 12 | AN110: 12 | AP110: stmttopupsec | AT110: 0 | AU110: EHCPS
A111: 3024013 | B111: ARK Pioneer Academy | C111: 1036627 | D111: 2024-04-01 | E111: 2025-03-31 | F111: NC Year 7 | G111: NC Year 8 | H111: Secondary | I111: Barnet | J111: C | K111: 1 | L111: 0 | M111: 8544 | N111: 8544 | O111: 8544 | P111: 8544 | Q111: 0 | R111: 5 | S111: 4 | T111: 3 | U111: 0 | V111: 3560 | W111: 2848 | X111: 2136 | Y111: 8544 | Z111: Secondary | AA111: 0 | AB111: 5 | AC111: 4 | AD111: 3 | AE111: 516500 | AH111: EHCP | AI111: EHCP topups: Barnet academies - secondary | AJ111: 11442 | AK111: EHCPsec.C | AL111: EHCP topup - Secondary Band C | AM111: 12 | AN111: 12 | AP111: stmttopupsec | AT111: 0 | AU111: EHCPS
A112: 3024013 | B112: ARK Pioneer Academy | C112: 1054375 | D112: 2024-04-01 | E112: 2025-03-31 | F112: NC Year 7 | G112: NC Year 8 | H112: Secondary | I112: Barnet | J112: C | K112: 1 | L112: 0 | M112: 8544 | N112: 8544 | O112: 8544 | P112: 8544 | Q112: 0 | R112: 5 | S112: 4 | T112: 3 | U112: 0 | V112: 3560 | W112: 2848 | X112: 2136 | Y112: 8544 | Z112: Secondary | AA112: 0 | AB112: 5 | AC112: 4 | AD112: 3 | AE112: 516500 | AH112: EHCP | AI112: EHCP topups: Barnet academies - secondary | AJ112: 11442 | AK112: EHCPsec.C | AL112: EHCP topup - Secondary Band C | AM112: 12 | AN112: 12 | AP112: stmttopupsec | AT112: 0 | AU112: EHCPS
A113: 3024013 | B113: ARK Pioneer Academy | C113: 245621 | D113: 2024-04-01 | E113: 2024-08-31 | F113: NC Year 11 | G113: 0 | H113: Secondary | I113: Barnet | J113: B | K113: 1 | L113: 0 | M113: 5549 | N113: 5549 | O113: 5549 | P113: 5549 | Q113: 0 | R113: 5 | S113: 0 | T113: 0 | U113: 0 | V113: 2312.08 | W113: 0 | X113: 0 | Y113: 2312.08 | Z113: Secondary | AA113: 0 | AB113: 5 | AC113: 0 | AD113: 0 | AE113: 516500 | AH113: EHCP | AI113: EHCP topups: Barnet academies - secondary | AJ113: 11442 | AK113: EHCPsec.B | AL113: EHCP topup - Secondary Band B | AM113: 5 | AN113: 5 | AP113: stmttopupsec | AT113: 0 | AU113: EHCPS
A114: 3024013 | B114: ARK Pioneer Academy | C114: 1038138 | D114: 2024-04-01 | E114: 2025-03-31 | F114: NC Year 7 | G114: NC Year 8 | H114: Secondary | I114: Barnet | J114: D | K114: 1 | L114: 0 | M114: 11540 | N114: 11540 | O114: 11540 | P114: 11540 | Q114: 0 | R114: 5 | S114: 4 | T114: 3 | U114: 0 | V114: 4808.33 | W114: 3846.67 | X114: 2885 | Y114: 11540 | Z114: Secondary | AA114: 0 | AB114: 5 | AC114: 4 | AD114: 3 | AE114: 516500 | AH114: EHCP | AI114: EHCP topups: Barnet academies - secondary | AJ114: 11442 | AK114: EHCPsec.D | AL114: EHCP topup - Secondary Band D | AM114: 12 | AN114: 12 | AP114: stmttopupsec | AT114: 0 | AU114: EHCPS
A115: 3024013 | B115: ARK Pioneer Academy | C115: 314997 | D115: 2024-04-01 | E115: 2025-03-31 | F115: NC Year 9 | G115: NC Year 10 | H115: Secondary | I115: Barnet | J115: B | K115: 1 | L115: 0 | M115: 5549 | N115: 5549 | O115: 5549 | P115: 5549 | Q115: 0 | R115: 5 | S115: 4 | T115: 3 | U115: 0 | V115: 2312.08 | W115: 1849.67 | X115: 1387.25 | Y115: 5549 | Z115: Secondary | AA115: 0 | AB115: 5 | AC115: 4 | AD115: 3 | AE115: 516500 | AH115: EHCP | AI115: EHCP topups: Barnet academies - secondary | AJ115: 11442 | AK115: EHCPsec.B | AL115: EHCP topup - Secondary Band B | AM115: 12 | AN115: 12 | AP115: stmttopupsec | AT115: 0 | AU115: EHCPS
A116: 3025406 | B116: Ashmole Academy | C116: 308010406 | D116: 2024-04-01 | E116: 2024-08-31 | F116: NC Year 11 | G116: 0 | H116: Secondary | I116: OOB | J116: U | K116: 1 | L116: 0 | M116: 0 | N116: 0 | O116: 0 | P116: 0 | Q116: 0 | R116: 5 | S116: 0 | T116: 0 | U116: 0 | V116: 0 | W116: 0 | X116: 0 | Y116: 0 | Z116: Secondary | AA116: 0 | AB116: 5 | AC116: 0 | AD116: 0 | AE116: 516500 | AH116: 0 | AI116: None | AJ116: 0 | AK116: OOB.U | AL116: Non Barnet Band | AM116: 5 | AN116: 5 | AP116: othertopup | AT116: 0
A117: 3025406 | B117: Ashmole Academy | C117: 301756 | D117: 2024-04-01 | E117: 2025-03-31 | F117: NC Year 10 | G117: NC Year 11 | H117: Secondary | I117: Barnet | J117: D | K117: 1 | L117: 0 | M117: 11540 | N117: 11540 | O117: 11540 | P117: 11540 | Q117: 0 | R117: 5 | S117: 4 | T117: 3 | U117: 0 | V117: 4808.33 | W117: 3846.67 | X117: 2885 | Y117: 11540 | Z117: Secondary | AA117: 0 | AB117: 5 | AC117: 4 | AD117: 3 | AE117: 516500 | AH117: EHCP | AI117: EHCP topups: Barnet academies - secondary | AJ117: 11442 | AK117: EHCPsec.D | AL117: EHCP topup - Secondary Band D | AM117: 12 | AN117: 12 | AP117: stmttopupsec | AT117: 0 | AU117: EHCPS
A118: 3025406 | B118: Ashmole Academy | C118: 1014214 | D118: 2024-09-01 | E118: 2025-03-31 | F118: 0 | G118: NC Year 7 | H118: Secondary | I118: Barnet | J118: D | K118: 1 | L118: 0 | M118: 11540 | N118: 11540 | O118: 11540 | P118: 11540 | Q118: 0 | R118: 0 | S118: 4 | T118: 3 | U118: 0 | V118: 0 | W118: 3846.67 | X118: 2885 | Y118: 6731.67 | Z118: Secondary | AA118: 0 | AB118: 0 | AC118: 4 | AD118: 3 | AE118: 516500 | AH118: EHCP | AI118: EHCP topups: Barnet academies - secondary | AJ118: 11442 | AK118: EHCPsec.D | AL118: EHCP topup - Secondary Band D | AM118: 7 | AN118: 7 | AP118: stmttopupsec | AT118: 0 | AU118: EHCPS
A119: 3025406 | B119: Ashmole Academy | C119: 162839 | D119: 2024-04-01 | E119: 2024-08-31 | F119: NC Year 13 | G119: 0 | H119: Post16 | I119: Barnet | J119: E | K119: 1 | L119: 0 | M119: 14535 | N119: 14535 | O119: 14535 | P119: 14535 | Q119: 0 | R119: 5 | S119: 0 | T119: 0 | U119: 0 | V119: 6056.25 | W119: 0 | X119: 0 | Y119: 6056.25 | Z119: Secondary | AA119: 0 | AB119: 5 | AC119: 0 | AD119: 0 | AE119: 516500 | AH119: EHCP | AI119: EHCP topups: Barnet academies - secondary | AJ119: 11442 | AK119: EHCPpost.E | AL119: EHCP topup - Post 16 Band E | AM119: 5 | AN119: 5 | AP119: post16topup | AT119: 0 | AU119: EHCPS
A120: 3025406 | B120: Ashmole Academy | C120: 236596 | D120: 2024-04-01 | E120: 2024-08-31 | F120: NC Year 11 | G120: 0 | H120: Secondary | I120: Barnet | J120: B | K120: 1 | L120: 0 | M120: 5549 | N120: 5549 | O120: 5549 | P120: 5549 | Q120: 0 | R120: 5 | S120: 0 | T120: 0 | U120: 0 | V120: 2312.08 | W120: 0 | X120: 0 | Y120: 2312.08 | Z120: Secondary | AA120: 0 | AB120: 5 | AC120: 0 | AD120: 0 | AE120: 516500 | AH120: EHCP | AI120: EHCP topups: Barnet academies - secondary | AJ120: 11442 | AK120: EHCPsec.B | AL120: EHCP topup - Secondary Band B | AM120: 5 | AN120: 5 | AP120: stmttopupsec | AT120: 0 | AU120: EHCPS
A121: 3025406 | B121: Ashmole Academy | C121: 308270506 | D121: 2024-04-01 | E121: 2025-03-31 | F121: NC Year 10 | G121: NC Year 11 | H121: Secondary | I121: OOB | J121: U | K121: 1 | L121: 0 | M121: 0 | N121: 0 | O121: 0 | P121: 0 | Q121: 0 | R121: 5 | S121: 4 | T121: 3 | U121: 0 | V121: 0 | W121: 0 | X121: 0 | Y121: 0 | Z121: Secondary | AA121: 0 | AB121: 5 | AC121: 4 | AD121: 3 | AE121: 516500 | AH121: 0 | AI121: None | AJ121: 0 | AK121: OOB.U | AL121: Non Barnet Band | AM121: 12 | AN121: 12 | AP121: othertopup | AT121: 0
A122: 3025406 | B122: Ashmole Academy | C122: 315658 | D122: 2024-04-01 | E122: 2025-03-31 | F122: NC Year 9 | G122: NC Year 10 | H122: Secondary | I122: Barnet | J122: C | K122: 1 | L122: 0 | M122: 8544 | N122: 8544 | O122: 8544 | P122: 8544 | Q122: 0 | R122: 5 | S122: 4 | T122: 3 | U122: 0 | V122: 3560 | W122: 2848 | X122: 2136 | Y122: 8544 | Z122: Secondary | AA122: 0 | AB122: 5 | AC122: 4 | AD122: 3 | AE122: 516500 | AH122: EHCP | AI122: EHCP topups: Barnet academies - secondary | AJ122: 11442 | AK122: EHCPsec.C | AL122: EHCP topup - Secondary Band C | AM122: 12 | AN122: 12 | AP122: stmttopupsec | AT122: 0 | AU122: EHCPS
A123: 3025406 | B123: Ashmole Academy | C123: 312633 | D123: 2024-04-01 | E123: 2025-03-31 | F123: NC Year 9 | G123: NC Year 10 | H123: Secondary | I123: Barnet | J123: C | K123: 1 | L123: 0 | M123: 8544 | N123: 8544 | O123: 8544 | P123: 8544 | Q123: 0 | R123: 5 | S123: 4 | T123: 3 | U123: 0 | V123: 3560 | W123: 2848 | X123: 2136 | Y123: 8544 | Z123: Secondary | AA123: 0 | AB123: 5 | AC123: 4 | AD123: 3 | AE123: 516500 | AH123: EHCP | AI123: EHCP topups: Barnet academies - secondary | AJ123: 11442 | AK123: EHCPsec.C | AL123: EHCP topup - Secondary Band C | AM123: 12 | AN123: 12 | AP123: stmttopupsec | AT123: 0 | AU123: EHCPS
A124: 3025406 | B124: Ashmole Academy | C124: 30808011206 | D124: 2024-04-01 | E124: 2025-03-31 | F124: NC Year 7 | G124: NC Year 8 | H124: Secondary | I124: OOB | J124: U | K124: 1 | L124: 0 | M124: 0 | N124: 0 | O124: 0 | P124: 0 | Q124: 0 | R124: 5 | S124: 4 | T124: 3 | U124: 0 | V124: 0 | W124: 0 | X124: 0 | Y124: 0 | Z124: Secondary | AA124: 0 | AB124: 5 | AC124: 4 | AD124: 3 | AE124: 516500 | AH124: 0 | AI124: None | AJ124: 0 | AK124: OOB.U | AL124: Non Barnet Band | AM124: 12 | AN124: 12 | AP124: othertopup | AT124: 0
A125: 3025406 | B125: Ashmole Academy | C125: 231607 | D125: 2024-04-01 | E125: 2024-08-31 | F125: NC Year 11 | G125: 0 | H125: Secondary | I125: Barnet | J125: C | K125: 1 | L125: 0 | M125: 8544 | N125: 8544 | O125: 8544 | P125: 8544 | Q125: 0 | R125: 5 | S125: 0 | T125: 0 | U125: 0 | V125: 3560 | W125: 0 | X125: 0 | Y125: 3560 | Z125: Secondary | AA125: 0 | AB125: 5 | AC125: 0 | AD125: 0 | AE125: 516500 | AH125: EHCP | AI125: EHCP topups: Barnet academies - secondary | AJ125: 11442 | AK125: EHCPsec.C | AL125: EHCP topup - Secondary Band C | AM125: 5 | AN125: 5 | AP125: stmttopupsec | AT125: 0 | AU125: EHCPS
A126: 3025406 | B126: Ashmole Academy | C126: 308230606 | D126: 2024-04-01 | E126: 2024-08-31 | F126: NC Year 8 | G126: 0 | H126: Secondary | I126: OOB | J126: U | K126: 1 | L126: 0 | M126: 0 | N126: 0 | O126: 0 | P126: 0 | Q126: 0 | R126: 5 | S126: 0 | T126: 0 | U126: 0 | V126: 0 | W126: 0 | X126: 0 | Y126: 0 | Z126: Secondary | AA126: 0 | AB126: 5 | AC126: 0 | AD126: 0 | AE126: 516500 | AH126: 0 | AI126: None | AJ126: 0 | AK126: OOB.U | AL126: Non Barnet Band | AM126: 5 | AN126: 5 | AP126: othertopup | AT126: 0
A127: 3025406 | B127: Ashmole Academy | C127: 308080106 | D127: 2024-04-01 | E127: 2025-03-31 | F127: NC Year 9 | G127: NC Year 10 | H127: Secondary | I127: OOB | J127: U | K127: 1 | L127: 0 | M127: 0 | N127: 0 | O127: 0 | P127: 0 | Q127: 0 | R127: 5 | S127: 4 | T127: 3 | U127: 0 | V127: 0 | W127: 0 | X127: 0 | Y127: 0 | Z127: Secondary | AA127: 0 | AB127: 5 | AC127: 4 | AD127: 3 | AE127: 516500 | AH127: 0 | AI127: None | AJ127: 0 | AK127: OOB.U | AL127: Non Barnet Band | AM127: 12 | AN127: 12 | AP127: othertopup | AT127: 0
A128: 3025406 | B128: Ashmole Academy | C128: 276405 | D128: 2024-04-01 | E128: 2025-03-31 | F128: NC Year 10 | G128: NC Year 11 | H128: Secondary | I128: OOB | J128: U | K128: 1 | L128: 0 | M128: 0 | N128: 0 | O128: 0 | P128: 0 | Q128: 0 | R128: 5 | S128: 4 | T128: 3 | U128: 0 | V128: 0 | W128: 0 | X128: 0 | Y128: 0 | Z128: Secondary | AA128: 0 | AB128: 5 | AC128: 4 | AD128: 3 | AE128: 516500 | AH128: 0 | AI128: None | AJ128: 0 | AK128: OOB.U | AL128: Non Barnet Band | AM128: 12 | AN128: 12 | AP128: othertopup | AT128: 0
A129: 3025406 | B129: Ashmole Academy | C129: 1006000 | D129: 2024-04-01 | E129: 2025-03-31 | F129: NC Year 8 | G129: NC Year 9 | H129: Secondary | I129: Barnet | J129: C | K129: 1 | L129: 0 | M129: 8544 | N129: 8544 | O129: 8544 | P129: 8544 | Q129: 0 | R129: 5 | S129: 4 | T129: 3 | U129: 0 | V129: 3560 | W129: 2848 | X129: 2136 | Y129: 8544 | Z129: Secondary | AA129: 0 | AB129: 5 | AC129: 4 | AD129: 3 | AE129: 516500 | AH129: EHCP | AI129: EHCP topups: Barnet academies - secondary | AJ129: 11442 | AK129: EHCPsec.C | AL129: EHCP topup - Secondary Band C | AM129: 12 | AN129: 12 | AP129: stmttopupsec | AT129: 0 | AU129: EHCPS
A130: 3025406 | B130: Ashmole Academy | C130: 1006392 | D130: 2024-04-01 | E130: 2025-03-31 | F130: NC Year 8 | G130: NC Year 9 | H130: Secondary | I130: Barnet | J130: C | K130: 1 | L130: 0 | M130: 8544 | N130: 8544 | O130: 8544 | P130: 8544 | Q130: 0 | R130: 5 | S130: 4 | T130: 3 | U130: 0 | V130: 3560 | W130: 2848 | X130: 2136 | Y130: 8544 | Z130: Secondary | AA130: 0 | AB130: 5 | AC130: 4 | AD130: 3 | AE130: 516500 | AH130: EHCP | AI130: EHCP topups: Barnet academies - secondary | AJ130: 11442 | AK130: EHCPsec.C | AL130: EHCP topup - Secondary Band C | AM130: 12 | AN130: 12 | AP130: stmttopupsec | AT130: 0 | AU130: EHCPS
A131: 3025406 | B131: Ashmole Academy | C131: 1005862 | D131: 2024-04-01 | E131: 2025-03-31 | F131: NC Year 9 | G131: NC Year 10 | H131: Secondary | I131: OOB | J131: U | K131: 1 | L131: 0 | M131: 0 | N131: 0 | O131: 0 | P131: 0 | Q131: 0 | R131: 5 | S131: 4 | T131: 3 | U131: 0 | V131: 0 | W131: 0 | X131: 0 | Y131: 0 | Z131: Secondary | AA131: 0 | AB131: 5 | AC131: 4 | AD131: 3 | AE131: 516500 | AH131: 0 | AI131: None | AJ131: 0 | AK131: OOB.U | AL131: Non Barnet Band | AM131: 12 | AN131: 12 | AP131: othertopup | AT131: =SUM(AQ131:AS131) -> 0
A132: 3025406 | B132: Ashmole Academy | C132: 315185 | D132: 2024-04-01 | E132: 2024-08-31 | F132: NC Year 9 | G132: 0 | H132: Secondary | I132: OOB | J132: U | K132: 1 | L132: 0 | M132: 0 | N132: 0 | O132: 0 | P132: 0 | Q132: 0 | R132: 5 | S132: 0 | T132: 0 | U132: 0 | V132: 0 | W132: 0 | X132: 0 | Y132: 0 | Z132: Secondary | AA132: 0 | AB132: 5 | AC132: 0 | AD132: 0 | AE132: 516500 | AH132: 0 | AI132: None | AJ132: 0 | AK132: OOB.U | AL132: Non Barnet Band | AM132: 5 | AN132: 5 | AP132: othertopup | AT132: 0
A133: 3025406 | B133: Ashmole Academy | C133: 30825081206 | D133: 2024-04-01 | E133: 2025-03-31 | F133: NC Year 7 | G133: NC Year 8 | H133: Secondary | I133: OOB | J133: U | K133: 1 | L133: 0 | M133: 0 | N133: 0 | O133: 0 | P133: 0 | Q133: 0 | R133: 5 | S133: 4 | T133: 3 | U133: 0 | V133: 0 | W133: 0 | X133: 0 | Y133: 0 | Z133: Secondary | AA133: 0 | AB133: 5 | AC133: 4 | AD133: 3 | AE133: 516500 | AH133: 0 | AI133: None | AJ133: 0 | AK133: OOB.U | AL133: Non Barnet Band | AM133: 12 | AN133: 12 | AP133: othertopup | AT133: 0
A134: 3025406 | B134: Ashmole Academy | C134: 1014236 | D134: 2024-09-01 | E134: 2025-03-31 | F134: 0 | G134: NC Year 7 | H134: Secondary | I134: Barnet | J134: D | K134: 1 | L134: 0 | M134: 11540 | N134: 11540 | O134: 11540 | P134: 11540 | Q134: 0 | R134: 0 | S134: 4 | T134: 3 | U134: 0 | V134: 0 | W134: 3846.67 | X134: 2885 | Y134: 6731.67 | Z134: Secondary | AA134: 0 | AB134: 0 | AC134: 4 | AD134: 3 | AE134: 516500 | AH134: EHCP | AI134: EHCP topups: Barnet academies - secondary | AJ134: 11442 | AK134: EHCPsec.D | AL134: EHCP topup - Secondary Band D | AM134: 7 | AN134: 7 | AP134: stmttopupsec | AT134: 0 | AU134: EHCPS
A135: 3025406 | B135: Ashmole Academy | C135: 308261106 | D135: 2024-04-01 | E135: 2025-03-31 | F135: NC Year 8 | G135: NC Year 9 | H135: Secondary | I135: OOB | J135: U | K135: 1 | L135: 0 | M135: 0 | N135: 0 | O135: 0 | P135: 0 | Q135: 0 | R135: 5 | S135: 4 | T135: 3 | U135: 0 | V135: 0 | W135: 0 | X135: 0 | Y135: 0 | Z135: Secondary | AA135: 0 | AB135: 5 | AC135: 4 | AD135: 3 | AE135: 516500 | AH135: 0 | AI135: None | AJ135: 0 | AK135: OOB.U | AL135: Non Barnet Band | AM135: 12 | AN135: 12 | AP135: othertopup | AT135: 0
A136: 3025406 | B136: Ashmole Academy | C136: 1041134 | D136: 2024-04-01 | E136: 2025-03-31 | F136: NC Year 7 | G136: NC Year 8 | H136: Secondary | I136: Barnet | J136: C | K136: 1 | L136: 0 | M136: 8544 | N136: 8544 | O136: 8544 | P136: 8544 | Q136: 0 | R136: 5 | S136: 4 | T136: 3 | U136: 0 | V136: 3560 | W136: 2848 | X136: 2136 | Y136: 8544 | Z136: Secondary | AA136: 0 | AB136: 5 | AC136: 4 | AD136: 3 | AE136: 516500 | AH136: EHCP | AI136: EHCP topups: Barnet academies - secondary | AJ136: 11442 | AK136: EHCPsec.C | AL136: EHCP topup - Secondary Band C | AM136: 12 | AN136: 12 | AP136: stmttopupsec | AT136: 0 | AU136: EHCPS
A137: 3025406 | B137: Ashmole Academy | C137: 1070713 | D137: 2024-04-01 | E137: 2024-08-31 | F137: NC Year 13 | G137: 0 | H137: Post16 | I137: OOB | J137: U | K137: 1 | L137: 0 | M137: 0 | N137: 0 | O137: 0 | P137: 0 | Q137: 0 | R137: 5 | S137: 0 | T137: 0 | U137: 0 | V137: 0 | W137: 0 | X137: 0 | Y137: 0 | Z137: Secondary | AA137: 0 | AB137: 5 | AC137: 0 | AD137: 0 | AE137: 516500 | AH137: 0 | AI137: None | AJ137: 0 | AK137: OOB.U | AL137: Non Barnet Band | AM137: 5 | AN137: 5 | AP137: othertopup | AT137: 0
A138: 3025406 | B138: Ashmole Academy | C138: 308220206 | D138: 2024-04-01 | E138: 2025-03-31 | F138: NC Year 10 | G138: NC Year 11 | H138: Secondary | I138: OOB | J138: U | K138: 1 | L138: 0 | M138: 0 | N138: 0 | O138: 0 | P138: 0 | Q138: 0 | R138: 5 | S138: 4 | T138: 3 | U138: 0 | V138: 0 | W138: 0 | X138: 0 | Y138: 0 | Z138: Secondary | AA138: 0 | AB138: 5 | AC138: 4 | AD138: 3 | AE138: 516500 | AH138: 0 | AI138: None | AJ138: 0 | AK138: OOB.U | AL138: Non Barnet Band | AM138: 12 | AN138: 12 | AP138: othertopup | AT138: 0
A139: 3025406 | B139: Ashmole Academy | C139: 195795 | D139: 2024-04-01 | E139: 2025-03-31 | F139: NC Year 12 | G139: NC Year 13 | H139: Post16 | I139: Barnet | J139: C | K139: 1 | L139: 0 | M139: 8544 | N139: 8544 | O139: 8544 | P139: 8544 | Q139: 0 | R139: 5 | S139: 4 | T139: 3 | U139: 0 | V139: 3560 | W139: 2848 | X139: 2136 | Y139: 8544 | Z139: Secondary | AA139: 0 | AB139: 5 | AC139: 4 | AD139: 3 | AE139: 516500 | AH139: EHCP | AI139: EHCP topups: Barnet academies - secondary | AJ139: 11442 | AK139: EHCPpost.C | AL139: EHCP topup - Post 16 Band C | AM139: 12 | AN139: 12 | AP139: post16topup | AT139: 0 | AU139: EHCPS
A140: 3025406 | B140: Ashmole Academy | C140: 1006046 | D140: 2024-04-01 | E140: 2025-03-31 | F140: NC Year 8 | G140: NC Year 9 | H140: Secondary | I140: OOB | J140: U | K140: 1 | L140: 0 | M140: 0 | N140: 0 | O140: 0 | P140: 0 | Q140: 0 | R140: 5 | S140: 4 | T140: 3 | U140: 0 | V140: 0 | W140: 0 | X140: 0 | Y140: 0 | Z140: Secondary | AA140: 0 | AB140: 5 | AC140: 4 | AD140: 3 | AE140: 516500 | AH140: 0 | AI140: None | AJ140: 0 | AK140: OOB.U | AL140: Non Barnet Band | AM140: 12 | AN140: 12 | AP140: othertopup | AT140: 0
A141: 3025406 | B141: Ashmole Academy | C141: 271210 | D141: 2024-04-01 | E141: 2024-08-31 | F141: NC Year 11 | G141: 0 | H141: Secondary | I141: Barnet | J141: D | K141: 1 | L141: 0 | M141: 11540 | N141: 11540 | O141: 11540 | P141: 11540 | Q141: 0 | R141: 5 | S141: 0 | T141: 0 | U141: 0 | V141: 4808.33 | W141: 0 | X141: 0 | Y141: 4808.33 | Z141: Secondary | AA141: 0 | AB141: 5 | AC141: 0 | AD141: 0 | AE141: 516500 | AH141: EHCP | AI141: EHCP topups: Barnet academies - secondary | AJ141: 11442 | AK141: EHCPsec.D | AL141: EHCP topup - Secondary Band D | AM141: 5 | AN141: 5 | AP141: stmttopupsec | AT141: 0 | AU141: EHCPS
A142: 3025406 | B142: Ashmole Academy | C142: 268172 | D142: 2024-04-01 | E142: 2024-06-30 | F142: NC Year 10 | G142: NC Year 11 | H142: Secondary | I142: Barnet | J142: E | K142: 1 | L142: 0 | M142: 14535 | N142: 14535 | O142: 14535 | P142: 14535 | Q142: 0 | R142: 3 | S142: 0 | T142: 0 | U142: 0 | V142: 3633.75 | W142: 0 | X142: 0 | Y142: 3633.75 | Z142: Secondary | AA142: 0 | AB142: 3 | AC142: 0 | AD142: 0 | AE142: 516500 | AH142: EHCP | AI142: EHCP topups: Barnet academies - secondary | AJ142: 11442 | AK142: EHCPsec.E | AL142: EHCP topup - Secondary Band E | AM142: 3 | AN142: 3 | AP142: stmttopupsec | AT142: 0 | AU142: EHCPS
A143: 3025406 | B143: Ashmole Academy | C143: 268172 | D143: 2024-07-01 | E143: 2025-03-31 | F143: NC Year 10 | G143: NC Year 11 | H143: Secondary | I143: Barnet | J143: C | K143: 1 | L143: 0 | M143: 8544 | N143: 8544 | O143: 8544 | P143: 8544 | Q143: 0 | R143: 2 | S143: 4 | T143: 3 | U143: 0 | V143: 1424 | W143: 2848 | X143: 2136 | Y143: 6408 | Z143: Secondary | AA143: 0 | AB143: 2 | AC143: 4 | AD143: 3 | AE143: 516500 | AH143: EHCP | AI143: EHCP topups: Barnet academies - secondary | AJ143: 11442 | AK143: EHCPsec.C | AL143: EHCP topup - Secondary Band C | AM143: 9 | AN143: 9 | AP143: stmttopupsec | AT143: 0 | AU143: EHCPS
A144: 3025406 | B144: Ashmole Academy | C144: 162834 | D144: 2024-04-01 | E144: 2024-08-31 | F144: NC Year 13 | G144: 0 | H144: Post16 | I144: Barnet | J144: A | K144: 1 | L144: 0 | M144: 2554 | N144: 2554 | O144: 2554 | P144: 2554 | Q144: 0 | R144: 5 | S144: 0 | T144: 0 | U144: 0 | V144: 1064.17 | W144: 0 | X144: 0 | Y144: 1064.17 | Z144: Secondary | AA144: 0 | AB144: 5 | AC144: 0 | AD144: 0 | AE144: 516500 | AH144: EHCP | AI144: EHCP topups: Barnet academies - secondary | AJ144: 11442 | AK144: EHCPpost.A | AL144: EHCP topup - Post 16 Band A | AM144: 5 | AN144: 5 | AP144: post16topup | AT144: 0 | AU144: EHCPS
A145: 3025406 | B145: Ashmole Academy | C145: 30829091106 | D145: 2024-04-01 | E145: 2025-03-31 | F145: NC Year 7 | G145: NC Year 8 | H145: Secondary | I145: OOB | J145: U | K145: 1 | L145: 0 | M145: 0 | N145: 0 | O145: 0 | P145: 0 | Q145: 0 | R145: 5 | S145: 4 | T145: 3 | U145: 0 | V145: 0 | W145: 0 | X145: 0 | Y145: 0 | Z145: Secondary | AA145: 0 | AB145: 5 | AC145: 4 | AD145: 3 | AE145: 516500 | AH145: 0 | AI145: None | AJ145: 0 | AK145: OOB.U | AL145: Non Barnet Band | AM145: 12 | AN145: 12 | AP145: othertopup | AT145: 0
A146: 3025406 | B146: Ashmole Academy | C146: 308010906 | D146: 2024-04-01 | E146: 2025-03-31 | F146: NC Year 10 | G146: NC Year 11 | H146: Secondary | I146: OOB | J146: U | K146: 1 | L146: 0 | M146: 0 | N146: 0 | O146: 0 | P146: 0 | Q146: 0 | R146: 5 | S146: 4 | T146: 3 | U146: 0 | V146: 0 | W146: 0 | X146: 0 | Y146: 0 | Z146: Secondary | AA146: 0 | AB146: 5 | AC146: 4 | AD146: 3 | AE146: 516500 | AH146: 0 | AI146: None | AJ146: 0 | AK146: OOB.U | AL146: Non Barnet Band | AM146: 12 | AN146: 12 | AP146: othertopup | AT146: 0
A147: 3025406 | B147: Ashmole Academy | C147: 30825031206 | D147: 2024-04-01 | E147: 2025-03-31 | F147: NC Year 7 | G147: NC Year 8 | H147: Secondary | I147: OOB | J147: U | K147: 1 | L147: 0 | M147: 0 | N147: 0 | O147: 0 | P147: 0 | Q147: 0 | R147: 5 | S147: 4 | T147: 3 | U147: 0 | V147: 0 | W147: 0 | X147: 0 | Y147: 0 | Z147: Secondary | AA147: 0 | AB147: 5 | AC147: 4 | AD147: 3 | AE147: 516500 | AH147: 0 | AI147: None | AJ147: 0 | AK147: OOB.U | AL147: Non Barnet Band | AM147: 12 | AN147: 12 | AP147: othertopup | AT147: 0
A148: 3025406 | B148: Ashmole Academy | C148: 278516 | D148: 2024-04-01 | E148: 2025-03-31 | F148: NC Year 10 | G148: NC Year 11 | H148: Secondary | I148: Barnet | J148: E | K148: 1 | L148: 0 | M148: 14535 | N148: 14535 | O148: 14535 | P148: 14535 | Q148: 0 | R148: 5 | S148: 4 | T148: 3 | U148: 0 | V148: 6056.25 | W148: 4845 | X148: 3633.75 | Y148: 14535 | Z148: Secondary | AA148: 0 | AB148: 5 | AC148: 4 | AD148: 3 | AE148: 516500 | AH148: EHCP | AI148: EHCP topups: Barnet academies - secondary | AJ148: 11442 | AK148: EHCPsec.E | AL148: EHCP topup - Secondary Band E | AM148: 12 | AN148: 12 | AP148: stmttopupsec | AT148: 0 | AU148: EHCPS
A149: 3025406 | B149: Ashmole Academy | C149: 278516 | D149: 2024-04-01 | E149: 2025-03-31 | F149: NC Year 10 | G149: NC Year 11 | H149: Secondary | I149: Barnet | J149: EHCPAD | K149: 1 | L149: 14388.63 | M149: 1 | N149: 1 | O149: 1 | P149: 1 | Q149: 0 | R149: 5 | S149: 4 | T149: 3 | U149: 0 | V149: 0 | W149: 0 | X149: 0 | Y149: 14388.63 | Z149: Secondary | AA149: 0 | AB149: 5 | AC149: 4 | AD149: 3 | AE149: 516500 | AH149: EHCP | AI149: EHCP topups: Barnet academies - secondary | AJ149: 11442 | AK149: EHCP.EHCPAD | AL149: EHCP - Additional | AM149: 12 | AN149: 12 | AP149: stmttopuppri | AT149: 0 | AU149: EHCPS
A150: 3025406 | B150: Ashmole Academy | C150: 1185244 | D150: 2024-04-01 | E150: 2025-03-31 | F150: NC Year 9 | G150: NC Year 10 | H150: Secondary | I150: Barnet | J150: C | K150: 1 | L150: 0 | M150: 8544 | N150: 8544 | O150: 8544 | P150: 8544 | Q150: 0 | R150: 5 | S150: 4 | T150: 3 | U150: 0 | V150: 3560 | W150: 2848 | X150: 2136 | Y150: 8544 | Z150: Secondary | AA150: 0 | AB150: 5 | AC150: 4 | AD150: 3 | AE150: 516500 | AH150: EHCP | AI150: EHCP topups: Barnet academies - secondary | AJ150: 11442 | AK150: EHCPsec.C | AL150: EHCP topup - Secondary Band C | AM150: 12 | AN150: 12 | AP150: stmttopupsec | AT150: 0 | AU150: EHCPS
A151: 3025406 | B151: Ashmole Academy | C151: 1185276 | D151: 2024-04-01 | E151: 2025-03-31 | F151: NC Year 9 | G151: NC Year 10 | H151: Secondary | I151: Barnet | J151: C | K151: 1 | L151: 0 | M151: 8544 | N151: 8544 | O151: 8544 | P151: 8544 | Q151: 0 | R151: 5 | S151: 4 | T151: 3 | U151: 0 | V151: 3560 | W151: 2848 | X151: 2136 | Y151: 8544 | Z151: Secondary | AA151: 0 | AB151: 5 | AC151: 4 | AD151: 3 | AE151: 516500 | AH151: EHCP | AI151: EHCP topups: Barnet academies - secondary | AJ151: 11442 | AK151: EHCPsec.C | AL151: EHCP topup - Secondary Band C | AM151: 12 | AN151: 12 | AP151: stmttopupsec | AT151: 0 | AU151: EHCPS
A152: 3025406 | B152: Ashmole Academy | C152: 308010106-3 | D152: 2024-04-01 | E152: 2025-03-31 | F152: NC Year 9 | G152: NC Year 10 | H152: Secondary | I152: OOB | J152: U | K152: 1 | L152: 0 | M152: 0 | N152: 0 | O152: 0 | P152: 0 | Q152: 0 | R152: 5 | S152: 4 | T152: 3 | U152: 0 | V152: 0 | W152: 0 | X152: 0 | Y152: 0 | Z152: Secondary | AA152: 0 | AB152: 5 | AC152: 4 | AD152: 3 | AE152: 516500 | AH152: 0 | AI152: None | AJ152: 0 | AK152: OOB.U | AL152: Non Barnet Band | AM152: 12 | AN152: 12 | AP152: othertopup | AT152: 0
A153: 3025406 | B153: Ashmole Academy | C153: 280992 | D153: 2024-04-01 | E153: 2025-03-31 | F153: NC Year 10 | G153: NC Year 11 | H153: Secondary | I153: OOB | J153: U | K153: 1 | L153: 0 | M153: 0 | N153: 0 | O153: 0 | P153: 0 | Q153: 0 | R153: 5 | S153: 4 | T153: 3 | U153: 0 | V153: 0 | W153: 0 | X153: 0 | Y153: 0 | Z153: Secondary | AA153: 0 | AB153: 5 | AC153: 4 | AD153: 3 | AE153: 516500 | AH153: 0 | AI153: None | AJ153: 0 | AK153: OOB.U | AL153: Non Barnet Band | AM153: 12 | AN153: 12 | AP153: othertopup | AT153: 0
A154: 3025406 | B154: Ashmole Academy | C154: 30808121106 | D154: 2024-04-01 | E154: 2025-03-31 | F154: NC Year 7 | G154: NC Year 8 | H154: Secondary | I154: OOB | J154: U | K154: 1 | L154: 0 | M154: 0 | N154: 0 | O154: 0 | P154: 0 | Q154: 0 | R154: 5 | S154: 4 | T154: 3 | U154: 0 | V154: 0 | W154: 0 | X154: 0 | Y154: 0 | Z154: Secondary | AA154: 0 | AB154: 5 | AC154: 4 | AD154: 3 | AE154: 516500 | AH154: 0 | AI154: None | AJ154: 0 | AK154: OOB.U | AL154: Non Barnet Band | AM154: 12 | AN154: 12 | AP154: othertopup | AT154: 0
A155: 3025406 | B155: Ashmole Academy | C155: 313664 | D155: 2024-04-01 | E155: 2025-03-31 | F155: NC Year 9 | G155: NC Year 10 | H155: Secondary | I155: Barnet | J155: C | K155: 1 | L155: 0 | M155: 8544 | N155: 8544 | O155: 8544 | P155: 8544 | Q155: 0 | R155: 5 | S155: 4 | T155: 3 | U155: 0 | V155: 3560 | W155: 2848 | X155: 2136 | Y155: 8544 | Z155: Secondary | AA155: 0 | AB155: 5 | AC155: 4 | AD155: 3 | AE155: 516500 | AH155: EHCP | AI155: EHCP topups: Barnet academies - secondary | AJ155: 11442 | AK155: EHCPsec.C | AL155: EHCP topup - Secondary Band C | AM155: 12 | AN155: 12 | AP155: stmttopupsec | AT155: 0 | AU155: EHCPS
A156: 3025406 | B156: Ashmole Academy | C156: 1042934 | D156: 2024-04-01 | E156: 2025-03-31 | F156: NC Year 7 | G156: NC Year 8 | H156: Secondary | I156: OOB | J156: U | K156: 1 | L156: 0 | M156: 0 | N156: 0 | O156: 0 | P156: 0 | Q156: 0 | R156: 5 | S156: 4 | T156: 3 | U156: 0 | V156: 0 | W156: 0 | X156: 0 | Y156: 0 | Z156: Secondary | AA156: 0 | AB156: 5 | AC156: 4 | AD156: 3 | AE156: 516500 | AH156: 0 | AI156: None | AJ156: 0 | AK156: OOB.U | AL156: Non Barnet Band | AM156: 12 | AN156: 12 | AP156: othertopup | AT156: 0
A157: 3025406 | B157: Ashmole Academy | C157: 311773 | D157: 2024-04-01 | E157: 2025-03-31 | F157: NC Year 9 | G157: NC Year 10 | H157: Secondary | I157: Barnet | J157: B | K157: 1 | L157: 0 | M157: 5549 | N157: 5549 | O157: 5549 | P157: 5549 | Q157: 0 | R157: 5 | S157: 4 | T157: 3 | U157: 0 | V157: 2312.08 | W157: 1849.67 | X157: 1387.25 | Y157: 5549 | Z157: Secondary | AA157: 0 | AB157: 5 | AC157: 4 | AD157: 3 | AE157: 516500 | AH157: EHCP | AI157: EHCP topups: Barnet academies - secondary | AJ157: 11442 | AK157: EHCPsec.B | AL157: EHCP topup - Secondary Band B | AM157: 12 | AN157: 12 | AP157: stmttopupsec | AT157: 0 | AU157: EHCPS
A158: 3025406 | B158: Ashmole Academy | C158: 30822061206 | D158: 2024-04-01 | E158: 2025-03-31 | F158: NC Year 7 | G158: NC Year 8 | H158: Secondary | I158: OOB | J158: U | K158: 1 | L158: 0 | M158: 0 | N158: 0 | O158: 0 | P158: 0 | Q158: 0 | R158: 5 | S158: 4 | T158: 3 | U158: 0 | V158: 0 | W158: 0 | X158: 0 | Y158: 0 | Z158: Secondary | AA158: 0 | AB158: 5 | AC158: 4 | AD158: 3 | AE158: 516500 | AH158: 0 | AI158: None | AJ158: 0 | AK158: OOB.U | AL158: Non Barnet Band | AM158: 12 | AN158: 12 | AP158: othertopup | AT158: 0
A159: 3025406 | B159: Ashmole Academy | C159: 308160806 | D159: 2024-04-01 | E159: 2025-03-31 | F159: NC Year 8 | G159: NC Year 9 | H159: Secondary | I159: OOB | J159: U | K159: 1 | L159: 0 | M159: 0 | N159: 0 | O159: 0 | P159: 0 | Q159: 0 | R159: 5 | S159: 4 | T159: 3 | U159: 0 | V159: 0 | W159: 0 | X159: 0 | Y159: 0 | Z159: Secondary | AA159: 0 | AB159: 5 | AC159: 4 | AD159: 3 | AE159: 516500 | AH159: 0 | AI159: None | AJ159: 0 | AK159: OOB.U | AL159: Non Barnet Band | AM159: 12 | AN159: 12 | AP159: othertopup | AT159: 0
A160: 3025406 | B160: Ashmole Academy | C160: 308280406 | D160: 2024-04-01 | E160: 2025-03-31 | F160: NC Year 8 | G160: NC Year 9 | H160: Secondary | I160: OOB | J160: U | K160: 1 | L160: 0 | M160: 0 | N160: 0 | O160: 0 | P160: 0 | Q160: 0 | R160: 5 | S160: 4 | T160: 3 | U160: 0 | V160: 0 | W160: 0 | X160: 0 | Y160: 0 | Z160: Secondary | AA160: 0 | AB160: 5 | AC160: 4 | AD160: 3 | AE160: 516500 | AH160: 0 | AI160: None | AJ160: 0 | AK160: OOB.U | AL160: Non Barnet Band | AM160: 12 | AN160: 12 | AP160: othertopup | AT160: 0
A161: 3025406 | B161: Ashmole Academy | C161: 308290806 | D161: 2024-04-01 | E161: 2025-03-31 | F161: NC Year 8 | G161: NC Year 9 | H161: Secondary | I161: OOB | J161: U | K161: 1 | L161: 0 | M161: 0 | N161: 0 | O161: 0 | P161: 0 | Q161: 0 | R161: 5 | S161: 4 | T161: 3 | U161: 0 | V161: 0 | W161: 0 | X161: 0 | Y161: 0 | Z161: Secondary | AA161: 0 | AB161: 5 | AC161: 4 | AD161: 3 | AE161: 516500 | AH161: 0 | AI161: None | AJ161: 0 | AK161: OOB.U | AL161: Non Barnet Band | AM161: 12 | AN161: 12 | AP161: othertopup | AT161: 0
A162: 3022050 | B162: Ashmole Primary School | C162: 1166907 | D162: 2024-04-01 | E162: 2025-03-31 | F162: NC Year 1 | G162: NC Year 2 | H162: Primary | I162: Barnet | J162: D | K162: 1 | L162: 0 | M162: 11540 | N162: 11540 | O162: 11540 | P162: 11540 | Q162: 0 | R162: 5 | S162: 4 | T162: 3 | U162: 0 | V162: 4808.33 | W162: 3846.67 | X162: 2885 | Y162: 11540 | Z162: Primary | AA162: 0 | AB162: 5 | AC162: 4 | AD162: 3 | AE162: 516500 | AH162: EHCP | AI162: EHCP topups: Barnet academies - primary | AJ162: 11443 | AK162: EHCPpri.D | AL162: EHCP topup - Primary Band D | AM162: 12 | AN162: 12 | AP162: stmttopuppri | AT162: 0 | AU162: EHCP
A163: 3022050 | B163: Ashmole Primary School | C163: 1078741 | D163: 2024-04-01 | E163: 2024-08-31 | F163: NC Year 6 | G163: 0 | H163: Primary | I163: Barnet | J163: D | K163: 1 | L163: 0 | M163: 11540 | N163: 11540 | O163: 11540 | P163: 11540 | Q163: 0 | R163: 5 | S163: 0 | T163: 0 | U163: 0 | V163: 4808.33 | W163: 0 | X163: 0 | Y163: 4808.33 | Z163: Primary | AA163: 0 | AB163: 5 | AC163: 0 | AD163: 0 | AE163: 516500 | AH163: EHCP | AI163: EHCP topups: Barnet academies - primary | AJ163: 11443 | AK163: EHCPpri.D | AL163: EHCP topup - Primary Band D | AM163: 5 | AN163: 5 | AP163: stmttopuppri | AT163: 0 | AU163: EHCP
A164: 3022050 | B164: Ashmole Primary School | C164: 308230650 | D164: 2024-04-01 | E164: 2025-03-31 | F164: NC Year 2 | G164: NC Year 3 | H164: Primary | I164: OOB | J164: U | K164: 1 | L164: 0 | M164: 0 | N164: 0 | O164: 0 | P164: 0 | Q164: 0 | R164: 5 | S164: 4 | T164: 3 | U164: 0 | V164: 0 | W164: 0 | X164: 0 | Y164: 0 | Z164: Primary | AA164: 0 | AB164: 5 | AC164: 4 | AD164: 3 | AE164: 516500 | AH164: 0 | AI164: None | AJ164: 0 | AK164: OOB.U | AL164: Non Barnet Band | AM164: 12 | AN164: 12 | AP164: othertopup | AT164: 0
A165: 3022050 | B165: Ashmole Primary School | C165: 308220950-2 | D165: 2024-04-01 | E165: 2025-03-31 | F165: NC Year 2 | G165: NC Year 3 | H165: Primary | I165: OOB | J165: U | K165: 1 | L165: 0 | M165: 0 | N165: 0 | O165: 0 | P165: 0 | Q165: 0 | R165: 5 | S165: 4 | T165: 3 | U165: 0 | V165: 0 | W165: 0 | X165: 0 | Y165: 0 | Z165: Primary | AA165: 0 | AB165: 5 | AC165: 4 | AD165: 3 | AE165: 516500 | AH165: 0 | AI165: None | AJ165: 0 | AK165: OOB.U | AL165: Non Barnet Band | AM165: 12 | AN165: 12 | AP165: othertopup | AT165: 0
A166: 3022050 | B166: Ashmole Primary School | C166: 308220950-1 | D166: 2024-04-01 | E166: 2025-03-31 | F166: NC Year 2 | G166: NC Year 3 | H166: Primary | I166: OOB | J166: U | K166: 1 | L166: 0 | M166: 0 | N166: 0 | O166: 0 | P166: 0 | Q166: 0 | R166: 5 | S166: 4 | T166: 3 | U166: 0 | V166: 0 | W166: 0 | X166: 0 | Y166: 0 | Z166: Primary | AA166: 0 | AB166: 5 | AC166: 4 | AD166: 3 | AE166: 516500 | AH166: 0 | AI166: None | AJ166: 0 | AK166: OOB.U | AL166: Non Barnet Band | AM166: 12 | AN166: 12 | AP166: othertopup | AT166: 0
A167: 3022050 | B167: Ashmole Primary School | C167: 1156542 | D167: 2024-04-01 | E167: 2025-03-31 | F167: Reception | G167: NC Year 1 | H167: Primary | I167: Barnet | J167: E | K167: 1 | L167: 0 | M167: 14535 | N167: 14535 | O167: 14535 | P167: 14535 | Q167: 0 | R167: 5 | S167: 4 | T167: 3 | U167: 0 | V167: 6056.25 | W167: 4845 | X167: 3633.75 | Y167: 14535 | Z167: Primary | AA167: 0 | AB167: 5 | AC167: 4 | AD167: 3 | AE167: 516500 | AH167: EHCP | AI167: EHCP topups: Barnet academies - primary | AJ167: 11443 | AK167: EHCPpri.E | AL167: EHCP topup - Primary Band E | AM167: 12 | AN167: 12 | AP167: stmttopuppri | AT167: 0 | AU167: EHCP
A168: 3022050 | B168: Ashmole Primary School | C168: 1150564 | D168: 2024-04-01 | E168: 2025-03-31 | F168: NC Year 2 | G168: NC Year 3 | H168: Primary | I168: Barnet | J168: C | K168: 1 | L168: 0 | M168: 8544 | N168: 8544 | O168: 8544 | P168: 8544 | Q168: 0 | R168: 5 | S168: 4 | T168: 3 | U168: 0 | V168: 3560 | W168: 2848 | X168: 2136 | Y168: 8544 | Z168: Primary | AA168: 0 | AB168: 5 | AC168: 4 | AD168: 3 | AE168: 516500 | AH168: EHCP | AI168: EHCP topups: Barnet academies - primary | AJ168: 11443 | AK168: EHCPpri.C | AL168: EHCP topup - Primary Band C | AM168: 12 | AN168: 12 | AP168: stmttopuppri | AT168: 0 | AU168: EHCP
A169: 3022050 | B169: Ashmole Primary School | C169: 1113343 | D169: 2024-04-01 | E169: 2025-03-31 | F169: NC Year 4 | G169: NC Year 5 | H169: Primary | I169: Barnet | J169: D | K169: 1 | L169: 0 | M169: 11540 | N169: 11540 | O169: 11540 | P169: 11540 | Q169: 0 | R169: 5 | S169: 4 | T169: 3 | U169: 0 | V169: 4808.33 | W169: 3846.67 | X169: 2885 | Y169: 11540 | Z169: Primary | AA169: 0 | AB169: 5 | AC169: 4 | AD169: 3 | AE169: 516500 | AH169: EHCP | AI169: EHCP topups: Barnet academies - primary | AJ169: 11443 | AK169: EHCPpri.D | AL169: EHCP topup - Primary Band D | AM169: 12 | AN169: 12 | AP169: stmttopuppri | AT169: 0 | AU169: EHCP
A170: 3022050 | B170: Ashmole Primary School | C170: 1078904 | D170: 2024-04-01 | E170: 2024-08-31 | F170: NC Year 6 | G170: 0 | H170: Primary | I170: OOB | J170: U | K170: 1 | L170: 0 | M170: 0 | N170: 0 | O170: 0 | P170: 0 | Q170: 0 | R170: 5 | S170: 0 | T170: 0 | U170: 0 | V170: 0 | W170: 0 | X170: 0 | Y170: 0 | Z170: Primary | AA170: 0 | AB170: 5 | AC170: 0 | AD170: 0 | AE170: 516500 | AH170: 0 | AI170: None | AJ170: 0 | AK170: OOB.U | AL170: Non Barnet Band | AM170: 5 | AN170: 5 | AP170: othertopup | AT170: 0
A171: 3022050 | B171: Ashmole Primary School | C171: 308181250 | D171: 2024-04-01 | E171: 2025-03-31 | F171: NC Year 1 | G171: NC Year 2 | H171: Primary | I171: OOB | J171: U | K171: 1 | L171: 0 | M171: 0 | N171: 0 | O171: 0 | P171: 0 | Q171: 0 | R171: 5 | S171: 4 | T171: 3 | U171: 0 | V171: 0 | W171: 0 | X171: 0 | Y171: 0 | Z171: Primary | AA171: 0 | AB171: 5 | AC171: 4 | AD171: 3 | AE171: 516500 | AH171: 0 | AI171: None | AJ171: 0 | AK171: OOB.U | AL171: Non Barnet Band | AM171: 12 | AN171: 12 | AP171: othertopup | AT171: 0
A172: 3022050 | B172: Ashmole Primary School | C172: 1170918 | D172: 2024-04-01 | E172: 2025-03-31 | F172: Reception | G172: NC Year 1 | H172: Primary | I172: Barnet | J172: D | K172: 1 | L172: 0 | M172: 11540 | N172: 11540 | O172: 11540 | P172: 11540 | Q172: 0 | R172: 5 | S172: 4 | T172: 3 | U172: 0 | V172: 4808.33 | W172: 3846.67 | X172: 2885 | Y172: 11540 | Z172: Primary | AA172: 0 | AB172: 5 | AC172: 4 | AD172: 3 | AE172: 516500 | AH172: EHCP | AI172: EHCP topups: Barnet academies - primary | AJ172: 11443 | AK172: EHCPpri.D | AL172: EHCP topup - Primary Band D | AM172: 12 | AN172: 12 | AP172: stmttopuppri | AT172: 0 | AU172: EHCP
A173: 3022050 | B173: Ashmole Primary School | C173: 1092463 | D173: 2024-04-01 | E173: 2025-03-31 | F173: NC Year 4 | G173: NC Year 5 | H173: Primary | I173: OOB | J173: U | K173: 1 | L173: 0 | M173: 0 | N173: 0 | O173: 0 | P173: 0 | Q173: 0 | R173: 5 | S173: 4 | T173: 3 | U173: 0 | V173: 0 | W173: 0 | X173: 0 | Y173: 0 | Z173: Primary | AA173: 0 | AB173: 5 | AC173: 4 | AD173: 3 | AE173: 516500 | AH173: 0 | AI173: None | AJ173: 0 | AK173: OOB.U | AL173: Non Barnet Band | AM173: 12 | AN173: 12 | AP173: othertopup | AT173: 0
A174: 3022050 | B174: Ashmole Primary School | C174: 1122356 | D174: 2024-04-01 | E174: 2025-03-31 | F174: NC Year 3 | G174: NC Year 4 | H174: Primary | I174: OOB | J174: U | K174: 1 | L174: 0 | M174: 0 | N174: 0 | O174: 0 | P174: 0 | Q174: 0 | R174: 5 | S174: 4 | T174: 3 | U174: 0 | V174: 0 | W174: 0 | X174: 0 | Y174: 0 | Z174: Primary | AA174: 0 | AB174: 5 | AC174: 4 | AD174: 3 | AE174: 516500 | AH174: 0 | AI174: None | AJ174: 0 | AK174: OOB.U | AL174: Non Barnet Band | AM174: 12 | AN174: 12 | AP174: othertopup | AT174: 0
A175: 3022050 | B175: Ashmole Primary School | C175: 1165933 | D175: 2024-04-01 | E175: 2025-03-31 | F175: NC Year 1 | G175: NC Year 2 | H175: Primary | I175: Barnet | J175: C | K175: 1 | L175: 0 | M175: 8544 | N175: 8544 | O175: 8544 | P175: 8544 | Q175: 0 | R175: 5 | S175: 4 | T175: 3 | U175: 0 | V175: 3560 | W175: 2848 | X175: 2136 | Y175: 8544 | Z175: Primary | AA175: 0 | AB175: 5 | AC175: 4 | AD175: 3 | AE175: 516500 | AH175: EHCP | AI175: EHCP topups: Barnet academies - primary | AJ175: 11443 | AK175: EHCPpri.C | AL175: EHCP topup - Primary Band C | AM175: 12 | AN175: 12 | AP175: stmttopuppri | AT175: 0 | AU175: EHCP
A176: 3022050 | B176: Ashmole Primary School | C176: 1154628 | D176: 2024-04-01 | E176: 2025-03-31 | F176: Reception | G176: NC Year 1 | H176: Primary | I176: Barnet | J176: D | K176: 1 | L176: 0 | M176: 11540 | N176: 11540 | O176: 11540 | P176: 11540 | Q176: 0 | R176: 5 | S176: 4 | T176: 3 | U176: 0 | V176: 4808.33 | W176: 3846.67 | X176: 2885 | Y176: 11540 | Z176: Primary | AA176: 0 | AB176: 5 | AC176: 4 | AD176: 3 | AE176: 516500 | AH176: EHCP | AI176: EHCP topups: Barnet academies - primary | AJ176: 11443 | AK176: EHCPpri.D | AL176: EHCP topup - Primary Band D | AM176: 12 | AN176: 12 | AP176: stmttopuppri | AT176: 0 | AU176: EHCP
A177: 3022050 | B177: Ashmole Primary School | C177: 1093297 | D177: 2024-04-01 | E177: 2025-03-31 | F177: NC Year 3 | G177: NC Year 4 | H177: Primary | I177: Barnet | J177: C | K177: 1 | L177: 0 | M177: 8544 | N177: 8544 | O177: 8544 | P177: 8544 | Q177: 0 | R177: 5 | S177: 4 | T177: 3 | U177: 0 | V177: 3560 | W177: 2848 | X177: 2136 | Y177: 8544 | Z177: Primary | AA177: 0 | AB177: 5 | AC177: 4 | AD177: 3 | AE177: 516500 | AH177: EHCP | AI177: EHCP topups: Barnet academies - primary | AJ177: 11443 | AK177: EHCPpri.C | AL177: EHCP topup - Primary Band C | AM177: 12 | AN177: 12 | AP177: stmttopuppri | AT177: 0 | AU177: EHCP
A178: 3022050 | B178: Ashmole Primary School | C178: 1171740 | D178: 2024-04-01 | E178: 2025-03-31 | F178: Reception | G178: NC Year 1 | H178: Primary | I178: Barnet | J178: D | K178: 1 | L178: 0 | M178: 11540 | N178: 11540 | O178: 11540 | P178: 11540 | Q178: 0 | R178: 5 | S178: 4 | T178: 3 | U178: 0 | V178: 4808.33 | W178: 3846.67 | X178: 2885 | Y178: 11540 | Z178: Primary | AA178: 0 | AB178: 5 | AC178: 4 | AD178: 3 | AE178: 516500 | AH178: EHCP | AI178: EHCP topups: Barnet academies - primary | AJ178: 11443 | AK178: EHCPpri.D | AL178: EHCP topup - Primary Band D | AM178: 12 | AN178: 12 | AP178: stmttopuppri | AT178: 0 | AU178: EHCP
A179: 3022050 | B179: Ashmole Primary School | C179: 1135741 | D179: 2024-04-01 | E179: 2025-03-31 | F179: NC Year 3 | G179: NC Year 4 | H179: Primary | I179: Barnet | J179: D | K179: 1 | L179: 0 | M179: 11540 | N179: 11540 | O179: 11540 | P179: 11540 | Q179: 0 | R179: 5 | S179: 4 | T179: 3 | U179: 0 | V179: 4808.33 | W179: 3846.67 | X179: 2885 | Y179: 11540 | Z179: Primary | AA179: 0 | AB179: 5 | AC179: 4 | AD179: 3 | AE179: 516500 | AH179: EHCP | AI179: EHCP topups: Barnet academies - primary | AJ179: 11443 | AK179: EHCPpri.D | AL179: EHCP topup - Primary Band D | AM179: 12 | AN179: 12 | AP179: stmttopuppri | AT179: 0 | AU179: EHCP
A180: 3022050 | B180: Ashmole Primary School | C180: 308040450 | D180: 2024-04-01 | E180: 2025-03-31 | F180: NC Year 5 | G180: NC Year 6 | H180: Primary | I180: OOB | J180: U | K180: 1 | L180: 0 | M180: 0 | N180: 0 | O180: 0 | P180: 0 | Q180: 0 | R180: 5 | S180: 4 | T180: 3 | U180: 0 | V180: 0 | W180: 0 | X180: 0 | Y180: 0 | Z180: Primary | AA180: 0 | AB180: 5 | AC180: 4 | AD180: 3 | AE180: 516500 | AH180: 0 | AI180: None | AJ180: 0 | AK180: OOB.U | AL180: Non Barnet Band | AM180: 12 | AN180: 12 | AP180: othertopup | AT180: 0
A181: 3022050 | B181: Ashmole Primary School | C181: 1103527 | D181: 2024-04-01 | E181: 2025-03-31 | F181: NC Year 5 | G181: NC Year 6 | H181: Primary | I181: Barnet | J181: B | K181: 1 | L181: 0 | M181: 5549 | N181: 5549 | O181: 5549 | P181: 5549 | Q181: 0 | R181: 5 | S181: 4 | T181: 3 | U181: 0 | V181: 2312.08 | W181: 1849.67 | X181: 1387.25 | Y181: 5549 | Z181: Primary | AA181: 0 | AB181: 5 | AC181: 4 | AD181: 3 | AE181: 516500 | AH181: EHCP | AI181: EHCP topups: Barnet academies - primary | AJ181: 11443 | AK181: EHCPpri.B | AL181: EHCP topup - Primary Band B | AM181: 12 | AN181: 12 | AP181: stmttopuppri | AT181: 0 | AU181: EHCP
A182: 3022050 | B182: Ashmole Primary School | C182: 308230550 | D182: 2024-04-01 | E182: 2025-03-31 | F182: NC Year 4 | G182: NC Year 5 | H182: Primary | I182: OOB | J182: U | K182: 1 | L182: 0 | M182: 0 | N182: 0 | O182: 0 | P182: 0 | Q182: 0 | R182: 5 | S182: 4 | T182: 3 | U182: 0 | V182: 0 | W182: 0 | X182: 0 | Y182: 0 | Z182: Primary | AA182: 0 | AB182: 5 | AC182: 4 | AD182: 3 | AE182: 516500 | AH182: 0 | AI182: None | AJ182: 0 | AK182: OOB.U | AL182: Non Barnet Band | AM182: 12 | AN182: 12 | AP182: othertopup | AT182: 0
A183: 3022050 | B183: Ashmole Primary School | C183: 1122191 | D183: 2024-04-01 | E183: 2025-03-31 | F183: NC Year 4 | G183: NC Year 5 | H183: Primary | I183: Barnet | J183: A | K183: 1 | L183: 0 | M183: 2554 | N183: 2554 | O183: 2554 | P183: 2554 | Q183: 0 | R183: 5 | S183: 4 | T183: 3 | U183: 0 | V183: 1064.17 | W183: 851.33 | X183: 638.5 | Y183: 2554 | Z183: Primary | AA183: 0 | AB183: 5 | AC183: 4 | AD183: 3 | AE183: 516500 | AH183: EHCP | AI183: EHCP topups: Barnet academies - primary | AJ183: 11443 | AK183: EHCPpri.A | AL183: EHCP topup - Primary Band A | AM183: 12 | AN183: 12 | AP183: stmttopuppri | AT183: 0 | AU183: EHCP
A184: 3022050 | B184: Ashmole Primary School | C184: 1169307 | D184: 2024-09-01 | E184: 2025-03-31 | F184: 0 | G184: Reception | H184: Primary | I184: Barnet | J184: E | K184: 1 | L184: 0 | M184: 14535 | N184: 14535 | O184: 14535 | P184: 14535 | Q184: 0 | R184: 0 | S184: 4 | T184: 3 | U184: 0 | V184: 0 | W184: 4845 | X184: 3633.75 | Y184: 8478.75 | Z184: Primary | AA184: 0 | AB184: 0 | AC184: 4 | AD184: 3 | AE184: 516500 | AH184: EHCP | AI184: EHCP topups: Barnet academies - primary | AJ184: 11443 | AK184: EHCPpri.E | AL184: EHCP topup - Primary Band E | AM184: 7 | AN184: 7 | AP184: stmttopuppri | AT184: 0 | AU184: EHCP
A185: 3022050 | B185: Ashmole Primary School | C185: 1169307 | D185: 2024-04-01 | E185: 2025-03-31 | F185: 0 | G185: Reception | H185: Primary | I185: Barnet | J185: EHCPAD | K185: 1 | L185: 3000 | M185: 1 | N185: 1 | O185: 1 | P185: 1 | Q185: 0 | R185: 5 | S185: 4 | T185: 3 | U185: 0 | V185: 0 | W185: 0 | X185: 0 | Y185: 3000 | Z185: Primary | AA185: 0 | AB185: 5 | AC185: 4 | AD185: 3 | AE185: 516500 | AH185: EHCP | AI185: EHCP topups: Barnet academies - primary | AJ185: 11443 | AK185: EHCP.EHCPAD | AL185: EHCP - Additional | AM185: 12 | AN185: 12 | AP185: stmttopuppri | AT185: 0 | AU185: EHCP
A186: 3022050 | B186: Ashmole Primary School | C186: 1151840 | D186: 2024-04-01 | E186: 2025-03-31 | F186: NC Year 2 | G186: NC Year 3 | H186: Primary | I186: Barnet | J186: C | K186: 1 | L186: 0 | M186: 8544 | N186: 8544 | O186: 8544 | P186: 8544 | Q186: 0 | R186: 5 | S186: 4 | T186: 3 | U186: 0 | V186: 3560 | W186: 2848 | X186: 2136 | Y186: 8544 | Z186: Primary | AA186: 0 | AB186: 5 | AC186: 4 | AD186: 3 | AE186: 516500 | AH186: EHCP | AI186: EHCP topups: Barnet academies - primary | AJ186: 11443 | AK186: EHCPpri.C | AL186: EHCP topup - Primary Band C | AM186: 12 | AN186: 12 | AP186: stmttopuppri | AT186: 0 | AU186: EHCP
A187: 3022050 | B187: Ashmole Primary School | C187: 308261150 | D187: 2024-04-01 | E187: 2025-03-31 | F187: NC Year 2 | G187: NC Year 3 | H187: Primary | I187: OOB | J187: U | K187: 1 | L187: 0 | M187: 0 | N187: 0 | O187: 0 | P187: 0 | Q187: 0 | R187: 5 | S187: 4 | T187: 3 | U187: 0 | V187: 0 | W187: 0 | X187: 0 | Y187: 0 | Z187: Primary | AA187: 0 | AB187: 5 | AC187: 4 | AD187: 3 | AE187: 516500 | AH187: 0 | AI187: None | AJ187: 0 | AK187: OOB.U | AL187: Non Barnet Band | AM187: 12 | AN187: 12 | AP187: othertopup | AT187: 0
A188: 3022050 | B188: Ashmole Primary School | C188: 1106789 | D188: 2024-04-01 | E188: 2025-03-31 | F188: NC Year 5 | G188: NC Year 6 | H188: Primary | I188: OOB | J188: U | K188: 1 | L188: 0 | M188: 0 | N188: 0 | O188: 0 | P188: 0 | Q188: 0 | R188: 5 | S188: 4 | T188: 3 | U188: 0 | V188: 0 | W188: 0 | X188: 0 | Y188: 0 | Z188: Primary | AA188: 0 | AB188: 5 | AC188: 4 | AD188: 3 | AE188: 516500 | AH188: 0 | AI188: None | AJ188: 0 | AK188: OOB.U | AL188: Non Barnet Band | AM188: 12 | AN188: 12 | AP188: othertopup | AT188: 0
A189: 3022002 | B189: Barnfield School | C189: 1067795 | D189: 2024-04-01 | E189: 2025-03-31 | F189: NC Year 5 | G189: NC Year 6 | H189: Primary | I189: OOB | J189: U | K189: 1 | L189: 0 | M189: 0 | N189: 0 | O189: 0 | P189: 0 | Q189: 0 | R189: 5 | S189: 4 | T189: 3 | U189: 0 | V189: 0 | W189: 0 | X189: 0 | Y189: 0 | Z189: Primary | AA189: 0 | AB189: 5 | AC189: 4 | AD189: 3 | AE189: 543965 | AH189: 0 | AI189: None | AJ189: 0 | AK189: OOB.U | AL189: Non Barnet Band | AM189: 12 | AN189: 12 | AP189: othertopup | AT189: 0
A190: 3022002 | B190: Barnfield School | C190: 1181858 | D190: 2024-04-01 | E190: 2024-07-31 | F190: Nursery 2 | G190: 0 | H190: Nursery | I190: Barnet | J190: EXY | K190: 1 | L190: 1673 | M190: 1 | N190: 1 | O190: 1 | P190: 1 | Q190: 0 | R190: 4 | S190: 0 | T190: 0 | U190: 0 | V190: 0 | W190: 0 | X190: 0 | Y190: 1673 | Z190: Primary | AA190: 0 | AB190: 4 | AC190: 0 | AD190: 0 | AE190: 543965 | AH190: SEN Inclusion | AI190: SEN Inclusion - Under 5s | AJ190: 10265 | AK190: EHCP.EXY | AL190: EHCP topup - Band EXY | AM190: 4 | AN190: 4 | AP190: nurseryex | AQ190: =U190+V190 -> 0 | AR190: =W190 -> 0 | AS190: =X190 -> 0 | AT190: 0 | AU190: SEN
A191: 3022002 | B191: Barnfield School | C191: 1144929 | D191: 2024-04-01 | E191: 2025-03-31 | F191: NC Year 2 | G191: NC Year 3 | H191: Primary | I191: Barnet | J191: C | K191: 1 | L191: 0 | M191: 8544 | N191: 8544 | O191: 8544 | P191: 8544 | Q191: 0 | R191: 5 | S191: 4 | T191: 3 | U191: 0 | V191: 3560 | W191: 2848 | X191: 2136 | Y191: 8544 | Z191: Primary | AA191: 0 | AB191: 5 | AC191: 4 | AD191: 3 | AE191: 543965 | AH191: EHCP | AI191: EHCP topups: Barnet maintained primary | AJ191: 11431 | AK191: EHCPpri.C | AL191: EHCP topup - Primary Band C | AM191: 12 | AN191: 12 | AP191: stmttopuppri | AT191: 0 | AU191: EHCP
A192: 3022002 | B192: Barnfield School | C192: 1122105 | D192: 2024-04-01 | E192: 2025-03-31 | F192: NC Year 2 | G192: NC Year 3 | H192: Primary | I192: Barnet | J192: B | K192: 1 | L192: 0 | M192: 5549 | N192: 5549 | O192: 5549 | P192: 5549 | Q192: 0 | R192: 5 | S192: 4 | T192: 3 | U192: 0 | V192: 2312.08 | W192: 1849.67 | X192: 1387.25 | Y192: 5549 | Z192: Primary | AA192: 0 | AB192: 5 | AC192: 4 | AD192: 3 | AE192: 543965 | AH192: EHCP | AI192: EHCP topups: Barnet maintained primary | AJ192: 11431 | AK192: EHCPpri.B | AL192: EHCP topup - Primary Band B | AM192: 12 | AN192: 12 | AP192: stmttopuppri | AT192: 0 | AU192: EHCP
A193: 3022002 | B193: Barnfield School | C193: 1141903 | D193: 2024-04-01 | E193: 2025-03-31 | F193: NC Year 1 | G193: NC Year 2 | H193: Primary | I193: Barnet | J193: D | K193: 1 | L193: 0 | M193: 11540 | N193: 11540 | O193: 11540 | P193: 11540 | Q193: 0 | R193: 5 | S193: 4 | T193: 3 | U193: 0 | V193: 4808.33 | W193: 3846.67 | X193: 2885 | Y193: 11540 | Z193: Primary | AA193: 0 | AB193: 5 | AC193: 4 | AD193: 3 | AE193: 543965 | AH193: EHCP | AI193: EHCP topups: Barnet maintained primary | AJ193: 11431 | AK193: EHCPpri.D | AL193: EHCP topup - Primary Band D | AM193: 12 | AN193: 12 | AP193: stmttopuppri | AT193: 0 | AU193: EHCP
A194: 3022002 | B194: Barnfield School | C194: 1180995 | D194: 2024-04-01 | E194: 2025-03-31 | F194: Reception | G194: NC Year 1 | H194: Primary | I194: Barnet | J194: C | K194: 1 | L194: 0 | M194: 8544 | N194: 8544 | O194: 8544 | P194: 8544 | Q194: 0 | R194: 5 | S194: 4 | T194: 3 | U194: 0 | V194: 3560 | W194: 2848 | X194: 2136 | Y194: 8544 | Z194: Primary | AA194: 0 | AB194: 5 | AC194: 4 | AD194: 3 | AE194: 543965 | AH194: EHCP | AI194: EHCP topups: Barnet maintained primary | AJ194: 11431 | AK194: EHCPpri.C | AL194: EHCP topup - Primary Band C | AM194: 12 | AN194: 12 | AP194: stmttopuppri | AT194: 0 | AU194: EHCP
A195: 3022002 | B195: Barnfield School | C195: 1186325 | D195: 2024-04-01 | E195: 2025-03-31 | F195: NC Year 2 | G195: NC Year 3 | H195: Primary | I195: Barnet | J195: B | K195: 1 | L195: 0 | M195: 5549 | N195: 5549 | O195: 5549 | P195: 5549 | Q195: 0 | R195: 5 | S195: 4 | T195: 3 | U195: 0 | V195: 2312.08 | W195: 1849.67 | X195: 1387.25 | Y195: 5549 | Z195: Primary | AA195: 0 | AB195: 5 | AC195: 4 | AD195: 3 | AE195: 543965 | AH195: EHCP | AI195: EHCP topups: Barnet maintained primary | AJ195: 11431 | AK195: EHCPpri.B | AL195: EHCP topup - Primary Band B | AM195: 12 | AN195: 12 | AP195: stmttopuppri | AT195: =SUM(AQ195:AS195) -> 0 | AU195: EHCP
A196: 3022002 | B196: Barnfield School | C196: 1157299 | D196: 2024-04-01 | E196: 2024-08-31 | F196: NC Year 6 | G196: 0 | H196: Primary | I196: Barnet | J196: B | K196: 1 | L196: 0 | M196: 5549 | N196: 5549 | O196: 5549 | P196: 5549 | Q196: 0 | R196: 5 | S196: 0 | T196: 0 | U196: 0 | V196: 2312.08 | W196: 0 | X196: 0 | Y196: 2312.08 | Z196: Primary | AA196: 0 | AB196: 5 | AC196: 0 | AD196: 0 | AE196: 543965 | AH196: EHCP | AI196: EHCP topups: Barnet maintained primary | AJ196: 11431 | AK196: EHCPpri.B | AL196: EHCP topup - Primary Band B | AM196: 5 | AN196: 5 | AP196: stmttopuppri | AT196: 0 | AU196: EHCP
A197: 3022002 | B197: Barnfield School | C197: 1126988 | D197: 2024-06-01 | E197: 2025-03-31 | F197: NC Year 3 | G197: NC Year 4 | H197: Primary | I197: Barnet | J197: C | K197: 1 | L197: 0 | M197: 8544 | N197: 8544 | O197: 8544 | P197: 8544 | Q197: 0 | R197: 3 | S197: 4 | T197: 3 | U197: 0 | V197: 2136 | W197: 2848 | X197: 2136 | Y197: 7120 | Z197: Primary | AA197: 0 | AB197: 3 | AC197: 4 | AD197: 3 | AE197: 543965 | AH197: EHCP | AI197: EHCP topups: Barnet maintained primary | AJ197: 11431 | AK197: EHCPpri.C | AL197: EHCP topup - Primary Band C | AM197: 10 | AN197: 10 | AP197: stmttopuppri | AT197: 0 | AU197: EHCP
A198: 3022002 | B198: Barnfield School | C198: 1142738 | D198: 2024-04-01 | E198: 2025-03-31 | F198: NC Year 3 | G198: NC Year 4 | H198: Primary | I198: Barnet | J198: C | K198: 1 | L198: 0 | M198: 8544 | N198: 8544 | O198: 8544 | P198: 8544 | Q198: 0 | R198: 5 | S198: 4 | T198: 3 | U198: 0 | V198: 3560 | W198: 2848 | X198: 2136 | Y198: 8544 | Z198: Primary | AA198: 0 | AB198: 5 | AC198: 4 | AD198: 3 | AE198: 543965 | AH198: EHCP | AI198: EHCP topups: Barnet maintained primary | AJ198: 11431 | AK198: EHCPpri.C | AL198: EHCP topup - Primary Band C | AM198: 12 | AN198: 12 | AP198: stmttopuppri | AT198: 0 | AU198: EHCP
A199: 3022002 | B199: Barnfield School | C199: 1164424 | D199: 2024-04-01 | E199: 2024-05-31 | F199: Reception | G199: NC Year 1 | H199: Primary | I199: Barnet | J199: E | K199: 1 | L199: 0 | M199: 14535 | N199: 14535 | O199: 14535 | P199: 14535 | Q199: 0 | R199: 2 | S199: 0 | T199: 0 | U199: 0 | V199: 2422.5 | W199: 0 | X199: 0 | Y199: 2422.5 | Z199: Primary | AA199: 0 | AB199: 2 | AC199: 0 | AD199: 0 | AE199: 543965 | AH199: EHCP | AI199: EHCP topups: Barnet maintained primary | AJ199: 11431 | AK199: EHCPpri.E | AL199: EHCP topup - Primary Band E | AM199: 2 | AN199: 2 | AP199: stmttopuppri | AT199: 0 | AU199: EHCP
A200: 3022002 | B200: Barnfield School | C200: 1164424 | D200: 2024-04-01 | E200: 2024-05-31 | F200: Reception | G200: NC Year 1 | H200: Primary | I200: Barnet | J200: EHCPAD | K200: 1 | L200: 500 | M200: 1 | N200: 1 | O200: 1 | P200: 1 | Q200: 0 | R200: 2 | S200: 0 | T200: 0 | U200: 0 | V200: 0 | W200: 0 | X200: 0 | Y200: 500 | Z200: Primary | AA200: 0 | AB200: 2 | AC200: 0 | AD200: 0 | AE200: 543965 | AH200: EHCP | AI200: EHCP topups: Barnet maintained primary | AJ200: 11431 | AK200: EHCP.EHCPAD | AL200: EHCP - Additional | AM200: 2 | AN200: 2 | AP200: stmttopuppri | AT200: 0 | AU200: EHCP
... 925 more rows

Sheet Schools (hidden)
A1: Information required for schools | C1: Please do not add or delete columns except at the end.
A3: 1 | B3: 2 | C3: 3 | D3: 4 | E3: 5 | F3: 6 | G3: 7 | H3: 8 | I3: 9 | J3: 10 | K3: 11 | L3: 12 | M3: 13 | N3: 14 | O3: 15 | P3: 16 | Q3: 17 | R3: 18 | S3: 19 | T3: 20
Z4: SORT(UNIQUE(FILTER(INDEX(Funding!A:AP,SEQUENCE(ROWS(Funding!A:AP)),XMATCH(A19:B19,Funding!A1:AP1,0,1)),Funding!A:A=M3,"No Records")))
A5: DfENo | B5: Name | C5: Academy /Maintained | D5: Sector | E5: Governance | F5: Federation | G5: URN | H5: Spare | I5: Supplier / Vendor | J5: Costcentre | K5: Nursery | L5: Infants | M5: Juniors | N5: Secondary | O5: Post16 | P5: ARP | Q5: 20/21 PayOption | R5: GL to charge | S5: % Payroll | T5: DfENo again | Z5: Validation List Prep
A6: 0 | B6: Please choose a school | C6: None | D6: 0 | G6: 0 | I6: 0 | J6: 0 | K6: 0 | L6: 0 | M6: 0 | N6: 0 | O6: 0 | P6: 0 | Q6: 0 | R6: 0 | S6: 0 | T6: =A6 -> 0 | Y6: Akiva School | Z6: Akiva School | AB6: =OFFSET(Schools!$Z$6,0,0,COUNTA(Schools!$Z$6:$Z$199),1) -> Akiva School
C7: None | D7: 0 | G7: 0 | I7: 0 | J7: 0 | K7: 0 | L7: 0 | M7: 0 | N7: 0 | O7: 0 | P7: 0 | Q7: 0 | R7: 0 | S7: 0 | T7: =A7 -> 0 | Y7: All Saints' CE Primary School NW2 | Z7: All Saints' CE Primary School NW2 | AB7: All Saints' CE Primary School NW2
A8: 3020135 | B8: BEYA | C8: M | D8: Nursery | E8: Community | F8: 3020135 | G8: 101251 | I8: 400102 | J8: 10135 | K8: Yes | L8: No | M8: No | N8: No | O8: No | P8: No | Q8: A | R8: 543965 | S8: 0.85 | T8: 3020135 | Y8: All Saints' CE Primary School, N20 | Z8: All Saints' CE Primary School, N20 | AB8: All Saints' CE Primary School, N20
A9: 3021000 | B9: Brookhill Nursery | C9: M | D9: Nursery | E9: Community | F9: 3020135 | G9: 101251 | I9: 400102 | J9: 10130 | K9: Yes | L9: No | M9: No | N9: No | O9: No | P9: No | Q9: A | R9: 543965 | S9: 0.85 | T9: 3021000 | Y9: Alma Primary | Z9: Alma Primary | AB9: Alma Primary
A10: 3021001 | B10: Hampden Way Nursery | C10: M | D10: Nursery | E10: Community | F10: 3020135 | G10: 101252 | I10: 400102 | J10: 10131 | K10: Yes | L10: No | M10: No | N10: No | O10: No | P10: No | Q10: A | R10: 543965 | S10: 0.85 | T10: 3021001 | Y10: Annunciation Catholic Infant School | Z10: Annunciation Catholic Infant School | AB10: Annunciation Catholic Infant School
A11: 3021003 | B11: St Margaret's Nursery | C11: M | D11: Nursery | E11: Community | F11: 3020135 | G11: 101254 | I11: 400102 | J11: 10133 | K11: Yes | L11: No | M11: No | N11: No | O11: No | P11: No | Q11: A | R11: 543965 | S11: 0.85 | T11: 3021003 | Y11: Annunciation Catholic Junior School | Z11: Annunciation Catholic Junior School | AB11: Annunciation Catholic Junior School
A12: 3021002 | B12: Moss Hall Nursery | C12: M | D12: Nursery | E12: Community | F12: 3021002 | G12: 101253 | I12: 400072 | J12: 10132 | K12: Yes | L12: No | M12: No | N12: No | O12: No | P12: No | Q12: A | R12: 543965 | S12: 0.85 | T12: 3021002 | Y12: Archer Academy | Z12: Archer Academy | AB12: Archer Academy
C13: None | D13: 0 | F13: 0 | G13: 0 | I13: 0 | J13: 0 | K13: 0 | M13: 0 | N13: No | O13: 0 | P13: 0 | Q13: 0 | R13: 0 | S13: 0 | T13: 0 | Y13: ARK Pioneer Academy | Z13: ARK Pioneer Academy | AB13: ARK Pioneer Academy
A14: 3023520 | B14: Akiva School | C14: M | D14: Primary | E14: Voluntary Aided | F14: 3023520 | G14: 135086 | I14: 400125 | J14: 11094 | K14: No | L14: Yes | M14: Yes | N14: No | O14: No | P14: No | Q14: C | R14: 543965 | S14: 0.95 | T14: 3023520 | Y14: Ashmole Academy | Z14: Ashmole Academy | AB14: Ashmole Academy
A15: 3023300 | B15: All Saints' CE Primary School NW2 | C15: M | D15: Primary | E15: Voluntary Aided | F15: 3023300 | G15: 101315 | I15: 400069 | J15: 10040 | K15: No | L15: Yes | M15: Yes | N15: No | O15: No | P15: No | Q15: A | R15: 543965 | S15: 0.85 | T15: 3023300 | Y15: Ashmole Primary School | Z15: Ashmole Primary School | AB15: Ashmole Primary School
A16: 3023317 | B16: All Saints' CE Primary School, N20 | C16: M | D16: Primary | E16: Voluntary Aided | F16: 3023317 | G16: 101329 | I16: 400015 | J16: 10042 | K16: Yes | L16: Yes | M16: Yes | N16: No | O16: No | P16: No | Q16: A | R16: 543965 | S16: 0.85 | T16: 3023317 | Y16: Barnfield School | Z16: Barnfield School | AB16: Barnfield School
A17: 3022020 | B17: Alma Primary | C17: A | D17: Primary | E17: Free School | F17: 3022020 | G17: 139562 | I17: 156270 | J17: Academy | K17: No | L17: Yes | M17: Yes | N17: No | O17: No | P17: No | Q17: Academy | R17: 516500 | S17: 0 | T17: 3022020 | Y17: Beis Yaakov | Z17: Beis Yaakov | AB17: Beis Yaakov
A18: 3023500 | B18: Annunciation Catholic Infant School | C18: M | D18: Primary | E18: Voluntary Aided | F18: 3023500 | G18: 101330 | I18: 400023 | J18: 10043 | K18: Yes | L18: Yes | M18: No | N18: No | O18: No | P18: No | Q18: A | R18: 543965 | S18: 0.85 | T18: 3023500 | Y18: Beit Shvidler Primary School | Z18: Beit Shvidler Primary School | AB18: Beit Shvidler Primary School
A19: 3023514 | B19: Annunciation Catholic Junior School | C19: M | D19: Primary | E19: Voluntary Aided | F19: 3023514 | G19: 101342 | I19: 400107 | J19: 10117 | K19: No | L19: No | M19: Yes | N19: No | O19: No | P19: No | Q19: A | R19: 543965 | S19: 0.85 | T19: 3023514 | Y19: Bell Lane Primary School | Z19: Bell Lane Primary School | AB19: Bell Lane Primary School
A20: 3022050 | B20: Ashmole Primary School | C20: A | D20: Primary | E20: Free School | F20: 3022050 | G20: 142772 | I20: 157839 | J20: Academy | K20: No | L20: Yes | M20: Yes | N20: No | O20: No | P20: No | Q20: Academy | R20: 516500 | S20: 0 | T20: 3022050 | Y20: BEYA | Z20: BEYA | AB20: BEYA
A21: 3022002 | B21: Barnfield School | C21: M | D21: Primary | E21: Community | F21: 3022002 | G21: 101258 | I21: 400005 | J21: 10044 | K21: Yes | L21: Yes | M21: Yes | N21: No | O21: No | P21: No | Q21: D | R21: 543965 | S21: 0 | T21: 3022002 | Y21: Bishop Douglass Academy | Z21: Bishop Douglass Academy | AB21: Bishop Douglass Academy
A22: 3022079 | B22: Beis Yaakov | C22: M | D22: Primary | E22: Voluntary Aided | F22: 3022079 | G22: 133365 | I22: 400070 | J22: 10128 | K22: Yes | L22: Yes | M22: Yes | N22: No | O22: No | P22: No | Q22: A | R22: 543965 | S22: 0.804 | T22: 3022079 | Y22: Blessed Dominic School | Z22: Blessed Dominic School | AB22: Blessed Dominic School
A23: 3023524 | B23: Beit Shvidler Primary School | C23: M | D23: Primary | E23: Voluntary Aided | F23: 3023524 | G23: 136402 | I23: 400150 | J23: 11278 | K23: Yes | L23: Yes | M23: Yes | N23: No | O23: No | P23: No | Q23: C | R23: 543965 | S23: 0.85 | T23: 3023524 | Y23: Broadfields Primary School | Z23: Broadfields Primary School | AB23: Broadfields Primary School
A24: 3022003 | B24: Bell Lane Primary School | C24: M | D24: Primary | E24: Community | F24: 3022003 | G24: 101259 | I24: 400051 | J24: 10045 | K24: Yes | L24: Yes | M24: Yes | N24: No | O24: No | P24: No | Q24: A | R24: 543965 | S24: 0.85 | T24: 3022003 | Y24: Brookhill Nursery | Z24: Brookhill Nursery | AB24: Brookhill Nursery
A25: 3023511 | B25: Blessed Dominic School | C25: M | D25: Primary | E25: Voluntary Aided | F25: 3023511 | G25: 101339 | I25: 400024 | J25: 10115 | K25: Yes | L25: Yes | M25: Yes | N25: No | O25: No | P25: No | Q25: A | R25: 543965 | S25: 0.85 | T25: 3023511 | Y25: Brookland Infant & Nursery School | Z25: Brookland Infant & Nursery School | AB25: Brookland Infant & Nursery School
A26: 3023519 | B26: Broadfields Primary School | C26: A | D26: Primary | E26: Academy | F26: 3023519 | G26: 140236 | I26: 152128 | J26: Academy | K26: Yes | L26: Yes | M26: Yes | N26: No | O26: No | P26: Yes | Q26: Academy | R26: 516500 | S26: 0 | T26: 3023519 | Y26: Brookland Junior School | Z26: Brookland Junior School | AB26: Brookland Junior School
A27: 3022008 | B27: Brookland Infant & Nursery School | C27: M | D27: Primary | E27: Community | F27: 3022008 | G27: 101263 | I27: 400057 | J27: 10047 | K27: Yes | L27: Yes | M27: No | N27: No | O27: No | P27: No | Q27: D | R27: 543965 | S27: 0 | T27: 3022008 | Y27: Brunswick Park Primary & Nursery School | Z27: Brunswick Park Primary & Nursery School | AB27: Brunswick Park Primary & Nursery School
A28: 3022007 | B28: Brookland Junior School | C28: M | D28: Primary | E28: Community | F28: 3022007 | G28: 101262 | I28: 400040 | J28: 10046 | K28: No | L28: No | M28: Yes | N28: No | O28: No | P28: No | Q28: D | R28: 543965 | S28: 0 | T28: 3022007 | Y28: Chalgrove Primary School | Z28: Chalgrove Primary School | AB28: Chalgrove Primary School
A29: 3022009 | B29: Brunswick Park Primary & Nursery School | C29: M | D29: Primary | E29: Community | F29: 3022009 | G29: 101264 | I29: 400061 | J29: 10048 | K29: Yes | L29: Yes | M29: Yes | N29: No | O29: No | P29: No | Q29: A | R29: 543965 | S29: 0.85 | T29: 3022009 | Y29: Child's Hill Academy | Z29: Child's Hill Academy | AB29: Child's Hill Academy
A30: 3022067 | B30: Chalgrove Primary School | C30: M | D30: Primary | E30: Community | F30: 3022067 | G30: 101309 | I30: 400065 | J30: 10118 | K30: No | L30: Yes | M30: Yes | N30: No | O30: No | P30: Yes | Q30: A | R30: 543965 | S30: 0.85 | T30: 3022067 | Y30: Christ Church CE Primary School | Z30: Christ Church CE Primary School | AB30: Christ Church CE Primary School
A31: 3022010 | B31: Child's Hill Academy | C31: A | D31: Primary | E31: Academy | F31: 3022010 | G31: 101265 | I31: 160141 | J31: Academy | K31: Yes | L31: Yes | M31: Yes | N31: No | O31: No | P31: Yes | Q31: Academy | R31: 516500 | S31: 0 | T31: 3022010 | Y31: Christ's College Finchley | Z31: Christ's College Finchley | AB31: Christ's College Finchley
A32: 3023302 | B32: Christ Church CE Primary School | C32: M | D32: Primary | E32: Voluntary Aided | F32: 3023302 | G32: 101316 | I32: 400039 | J32: 10050 | K32: Yes | L32: Yes | M32: Yes | N32: No | O32: No | P32: No | Q32: D | R32: 543965 | S32: 0 | T32: 3023302 | Y32: Church Hill Primary School | Z32: Church Hill Primary School | AB32: Church Hill Primary School
A33: 3022011 | B33: Church Hill Primary School | C33: M | D33: Primary | E33: Community | F33: 3022011 | G33: 101266 | I33: 400020 | J33: 10051 | K33: No | L33: Yes | M33: Yes | N33: No | O33: No | P33: No | Q33: A | R33: 543965 | S33: 0.85 | T33: 3022011 | Y33: Claremont Academy | Z33: Claremont Academy | AB33: Claremont Academy
A34: 3023522 | B34: Claremont Academy | C34: A | D34: Primary | E34: Academy | F34: 3023522 | G34: 142636 | I34: 156151 | J34: Academy | K34: Yes | L34: Yes | M34: Yes | N34: No | O34: No | P34: No | Q34: Academy | R34: 516500 | S34: 0 | T34: 3023522 | Y34: Colindale School | Z34: Colindale School | AB34: Colindale School
A35: 3022014 | B35: Colindale School | C35: M | D35: Primary | E35: Community | F35: 3022014 | G35: 101269 | I35: 400050 | J35: 10054 | K35: Yes | L35: Yes | M35: Yes | N35: No | O35: No | P35: Yes | Q35: B | R35: 543965 | S35: 0 | T35: 3022014 | Y35: Compton School | Z35: Compton School | AB35: Compton School
A36: 3022015 | B36: Coppetts Wood | C36: M | D36: Primary | E36: Community | F36: 3022015 | G36: 101270 | I36: 400059 | J36: 10055 | K36: Yes | L36: Yes | M36: Yes | N36: No | O36: No | P36: yes | Q36: A | R36: 543965 | S36: 0.85 | T36: 3022015 | Y36: Coppetts Wood | Z36: Coppetts Wood | AB36: Coppetts Wood
A37: 3022016 | B37: Courtland School | C37: M | D37: Primary | E37: Community | F37: 3022016 | G37: 101271 | I37: 400049 | J37: 10056 | K37: No | L37: Yes | M37: Yes | N37: No | O37: No | P37: No | Q37: A | R37: 543965 | S37: 0.85 | T37: 3022016 | Y37: Copthall School | Z37: Copthall School | AB37: Copthall School
A38: 3022017 | B38: Cromer Road Primary School | C38: M | D38: Primary | E38: Community | F38: 3022017 | G38: 101272 | I38: 400080 | J38: 10057 | K38: No | L38: Yes | M38: Yes | N38: No | O38: No | P38: No | Q38: A | R38: 543965 | S38: 0.85 | T38: 3022017 | Y38: Courtland School | Z38: Courtland School | AB38: Courtland School
A39: 3022073 | B39: Danegrove JMI School | C39: M | D39: Primary | E39: Community | F39: 3022073 | G39: 101314 | I39: 400105 | J39: 10083 | K39: No | L39: Yes | M39: Yes | N39: No | O39: No | P39: No | Q39: B | R39: 543965 | S39: 0 | T39: 3022073 | Y39: Cromer Road Primary School | Z39: Cromer Road Primary School | AB39: Cromer Road Primary School
A40: 3022019 | B40: Deansbrook Infant School | C40: M | D40: Primary | E40: Community | F40: 3022019 | G40: 101274 | I40: 400036 | J40: 10059 | K40: Yes | L40: Yes | M40: No | N40: No | O40: No | P40: No | Q40: A | R40: 543965 | S40: 0.85 | T40: 3022019 | Y40: Danegrove JMI School | Z40: Danegrove JMI School | AB40: Danegrove JMI School
A41: 3022018 | B41: Deansbrook Junior School | C41: A | D41: Primary | E41: Academy | F41: 3022018 | G41: 139489 | I41: 151094 | J41: Academy | K41: No | L41: No | M41: Yes | N41: No | O41: No | P41: No | Q41: Academy | R41: 516500 | S41: 0 | T41: 3022018 | Y41: Deansbrook Infant School | Z41: Deansbrook Infant School | AB41: Deansbrook Infant School
A42: 3022021 | B42: Dollis Primary School | C42: M | D42: Primary | E42: Community | F42: 3022021 | G42: 101275 | I42: 400042 | J42: 10061 | K42: Yes | L42: Yes | M42: Yes | N42: No | O42: No | P42: No | Q42: D | R42: 543965 | S42: 0 | T42: 3022021 | Y42: Deansbrook Junior School | Z42: Deansbrook Junior School | AB42: Deansbrook Junior School
A43: 3022023 | B43: Edgware Primary School | C43: M | D43: Primary | E43: Community | F43: 3022023 | G43: 101277 | I43: 400159 | J43: 10063 | K43: Yes | L43: Yes | M43: Yes | N43: No | O43: No | P43: No | Q43: B | R43: 543965 | S43: 0 | T43: 3022023 | Y43: Dollis Primary School | Z43: Dollis Primary School | AB43: Dollis Primary School
A44: 3022001 | B44: Etz Chaim Jewish Primary School | C44: A | D44: Primary | E44: Free School | F44: 3022001 | G44: 136938 | I44: 143691 | J44: Academy | K44: Yes | L44: Yes | M44: Yes | N44: No | O44: No | P44: No | Q44: Academy | R44: 516500 | S44: 0 | T44: 3022001 | Y44: East Barnet School | Z44: East Barnet School | AB44: East Barnet School
A45: 3022024 | B45: Fairway Primary School | C45: M | D45: Primary | E45: Community | F45: 3022024 | G45: 101278 | I45: 400047 | J45: 10064 | K45: Yes | L45: Yes | M45: Yes | N45: No | O45: No | P45: No | Q45: A | R45: 543965 | S45: 0.85 | T45: 3022024 | Y45: Edgware Primary School | Z45: Edgware Primary School | AB45: Edgware Primary School
A46: 3022025 | B46: Foulds | C46: M | D46: Primary | E46: Community | F46: 3022025 | G46: 101279 | I46: 400001 | J46: 10065 | K46: No | L46: Yes | M46: Yes | N46: No | O46: No | P46: No | Q46: C | R46: 543965 | S46: 0.85 | T46: 3022025 | Y46: Etz Chaim Jewish Primary School | Z46: Etz Chaim Jewish Primary School | AB46: Etz Chaim Jewish Primary School
A47: 3022026 | B47: Frith Manor School | C47: M | D47: Primary | E47: Community | F47: 3022026 | G47: 101280 | I47: 400082 | J47: 10066 | K47: Yes | L47: Yes | M47: Yes | N47: No | O47: No | P47: No | Q47: A | R47: 543965 | S47: 0.85 | T47: 3022026 | Y47: Fairway Primary School | Z47: Fairway Primary School | AB47: Fairway Primary School
A48: 3022028 | B48: Garden Suburb Infant School | C48: M | D48: Primary | E48: Community | F48: 3022028 | G48: 101282 | I48: 400067 | J48: 10068 | K48: No | L48: Yes | M48: No | N48: No | O48: No | P48: No | Q48: A | R48: 543965 | S48: 0.85 | T48: 3022028 | Y48: Finchley Catholic High School | Z48: Finchley Catholic High School | AB48: Finchley Catholic High School
A49: 3022027 | B49: Garden Suburb Junior | C49: M | D49: Primary | E49: Community | F49: 3022027 | G49: 101281 | I49: 400002 | J49: 10067 | K49: No | L49: No | M49: Yes | N49: No | O49: No | P49: No | Q49: A | R49: 543965 | S49: 0.85 | T49: 3022027 | Y49: Foulds | Z49: Foulds | AB49: Foulds
A50: 3022029 | B50: Goldbeaters Primary School | C50: M | D50: Primary | E50: Community | F50: 3022029 | G50: 101283 | I50: 400035 | J50: 10069 | K50: Yes | L50: Yes | M50: Yes | N50: No | O50: No | P50: No | Q50: A | R50: 543965 | S50: 0.85 | T50: 3022029 | Y50: Friern Barnet School | Z50: Friern Barnet School | AB50: Friern Barnet School
A51: 3022030 | B51: Grasvenor Avenue Infants | C51: A | D51: Primary | E51: Academy | F51: 3022030 | G51: 138649 | I51: 148347 | J51: Academy | K51: No | L51: Yes | M51: Yes | N51: No | O51: No | P51: No | Q51: Academy | R51: 516500 | S51: 0 | T51: 3022030 | Y51: Frith Manor School | Z51: Frith Manor School | AB51: Frith Manor School
A52: 3023516 | B52: Hasmonean Primary School | C52: M | D52: Primary | E52: Voluntary Aided | F52: 3023516 | G52: 130998 | I52: 400108 | J52: 10121 | K52: Yes | L52: Yes | M52: Yes | N52: No | O52: No | P52: No | Q52: A | R52: 543965 | S52: 0.95 | T52: 3023516 | Y52: Garden Suburb Infant School | Z52: Garden Suburb Infant School | AB52: Garden Suburb Infant School
A53: 3022031 | B53: Hollickwood JMI School | C53: M | D53: Primary | E53: Foundation | F53: 3022031 | G53: 101285 | I53: 400026 | J53: 10071 | K53: Yes | L53: Yes | M53: Yes | N53: No | O53: No | P53: No | Q53: A | R53: 543965 | S53: 0.85 | T53: 3022031 | Y53: Garden Suburb Junior | Z53: Garden Suburb Junior | AB53: Garden Suburb Junior
A54: 3022032 | B54: Holly Park School | C54: M | D54: Primary | E54: Community | F54: 3022032 | G54: 101286 | I54: 400084 | J54: 10072 | K54: Yes | L54: Yes | M54: Yes | N54: No | O54: No | P54: No | Q54: A | R54: 543965 | S54: 0.85 | T54: 3022032 | Y54: Goldbeaters Primary School | Z54: Goldbeaters Primary School | AB54: Goldbeaters Primary School
A55: 3023304 | B55: Holy Trinity School | C55: M | D55: Primary | E55: Voluntary Aided | F55: 3023304 | G55: 101317 | I55: 400008 | J55: 10073 | K55: Yes | L55: Yes | M55: Yes | N55: No | O55: No | P55: No | Q55: A | R55: 543965 | S55: 0.85 | T55: 3023304 | Y55: Grasvenor Avenue Infants | Z55: Grasvenor Avenue Infants | AB55: Grasvenor Avenue Infants
A56: 3022047 | B56: Hyde School | C56: A | D56: Primary | E56: Academy | F56: 3022047 | G56: 139817 | I56: 151702 | J56: Academy | K56: Yes | L56: Yes | M56: Yes | N56: No | O56: No | P56: No | Q56: Academy | R56: 516500 | S56: 0 | T56: 3022047 | Y56: Hampden Way Nursery | Z56: Hampden Way Nursery | AB56: Hampden Way Nursery
A57: 3023515 | B57: Independent Jewish Day School | C57: A | D57: Primary | E57: Academy | F57: 3023515 | G57: 137303 | I57: 143982 | J57: Academy | K57: Yes | L57: Yes | M57: Yes | N57: No | O57: No | P57: No | Q57: Academy | R57: 516500 | S57: 0 | T57: 3023515 | Y57: Hasmonean High School | Z57: Hasmonean High School | AB57: Hasmonean High School
A58: 3022036 | B58: Livingstone School | C58: M | D58: Primary | E58: Community | F58: 3022036 | G58: 101289 | I58: 400046 | J58: 10074 | K58: Yes | L58: Yes | M58: Yes | N58: No | O58: No | P58: Yes | Q58: A | R58: 543965 | S58: 0.85 | T58: 3022036 | Y58: Hasmonean High School for Girls | Z58: Hasmonean High School for Girls | AB58: Hasmonean High School for Girls
A59: 3022037 | B59: Manorside Primary School | C59: M | D59: Primary | E59: Community | F59: 3022037 | G59: 101290 | I59: 400030 | J59: 10075 | K59: Yes | L59: Yes | M59: Yes | N59: No | O59: No | P59: No | Q59: A | R59: 543965 | S59: 0.85 | T59: 3022037 | Y59: Hasmonean Primary School | Z59: Hasmonean Primary School | AB59: Hasmonean Primary School
A60: 3023523 | B60: Martin Primary School | C60: M | D60: Primary | E60: Community | F60: 3023523 | G60: 135226 | I60: 400130 | J60: 11093 | K60: Yes | L60: Yes | M60: Yes | N60: No | O60: No | P60: No | Q60: B | R60: 543965 | S60: 0 | T60: 3023523 | Y60: Hendon School | Z60: Hendon School | AB60: Hendon School
A61: 3025948 | B61: Mathilda Marks-Kennedy School | C61: M | D61: Primary | E61: Voluntary Aided | F61: 3025948 | G61: 101376 | I61: 400112 | J61: 10125 | K61: Yes | L61: Yes | M61: Yes | N61: No | O61: No | P61: No | Q61: B | R61: 543965 | S61: 0 | T61: 3025948 | Y61: Henrietta Barnett School | Z61: Henrietta Barnett School | AB61: Henrietta Barnett School
A62: 3025949 | B62: Menorah Foundation School | C62: M | D62: Primary | E62: Voluntary Aided | F62: 3025949 | G62: 131359 | I62: 400110 | J62: 10126 | K62: Yes | L62: Yes | M62: Yes | N62: No | O62: No | P62: No | Q62: B | R62: 543965 | S62: 0 | T62: 3025949 | Y62: Hollickwood JMI School | Z62: Hollickwood JMI School | AB62: Hollickwood JMI School
A63: 3023513 | B63: Menorah Primary Schools Federation | C63: M | D63: Primary | E63: Voluntary Aided | F63: 3023513 | G63: 101341 | I63: 400007 | J63: 10114 | K63: Yes | L63: Yes | M63: Yes | N63: No | O63: No | P63: No | Q63: A | R63: 543965 | S63: 0.9096 | T63: 3023513 | Y63: Holly Park School | Z63: Holly Park School | AB63: Holly Park School
A64: 3022048 | B64: Millbrook Park CE Primary School | C64: A | D64: Primary | E64: Academy | F64: 3022048 | G64: 140601 | I64: 155126 | J64: Academy | K64: Yes | L64: Yes | M64: Yes | N64: No | O64: No | P64: No | Q64: Academy | R64: 516500 | S64: 0 | T64: 3022048 | Y64: Holy Trinity School | Z64: Holy Trinity School | AB64: Holy Trinity School
A65: 3023305 | B65: Monken Hadley C E Primary School | C65: M | D65: Primary | E65: Voluntary Aided | F65: 3023305 | G65: 101318 | I65: 400086 | J65: 10078 | K65: No | L65: Yes | M65: Yes | N65: No | O65: No | P65: No | Q65: A | R65: 543965 | S65: 0.85 | T65: 3023305 | Y65: Hyde School | Z65: Hyde School | AB65: Hyde School
A66: 3022042 | B66: Monkfrith School | C66: M | D66: Primary | E66: Community | F66: 3022042 | G66: 101293 | I66: 400048 | J66: 10079 | K66: No | L66: Yes | M66: Yes | N66: No | O66: No | P66: No | Q66: D | R66: 543965 | S66: 0 | T66: 3022042 | Y66: Independent Jewish Day School | Z66: Independent Jewish Day School | AB66: Independent Jewish Day School
A67: 3022044 | B67: Moss Hall Infant School | C67: M | D67: Primary | E67: Community | F67: 3022044 | G67: 101295 | I67: 400087 | J67: 10081 | K67: No | L67: Yes | M67: No | N67: No | O67: No | P67: No | Q67: A | R67: 543965 | S67: 0.85 | T67: 3022044 | Y67: JCoSS | Z67: JCoSS | AB67: JCoSS
A68: 3022043 | B68: Moss Hall Junior School | C68: M | D68: Primary | E68: Community | F68: 3022043 | G68: 101294 | I68: 400088 | J68: 10080 | K68: No | L68: No | M68: Yes | N68: No | O68: No | P68: No | Q68: A | R68: 543965 | S68: 0.85 | T68: 3022043 | Y68: Kisharon Inclusive Special Free School | Z68: Kisharon Inclusive Special Free School | AB68: Kisharon Inclusive Special Free School
A69: 3022053 | B69: Noam Primary School | C69: M | D69: Primary | E69: Voluntary Aided | F69: 3022053 | G69: 146803 | H69: HA9 8JW | I69: 158733 | J69: 10113 | K69: Yes | L69: Yes | M69: Yes | N69: No | O69: No | P69: No | Q69: B | R69: 543965 | S69: 0 | T69: 3022053 | Y69: Livingstone School | Z69: Livingstone School | AB69: Livingstone School
A70: 3022045 | B70: Northside School | C70: M | D70: Primary | E70: Community | F70: 3022045 | G70: 101296 | I70: 400089 | J70: 10082 | K70: Yes | L70: Yes | M70: Yes | N70: No | O70: No | P70: No | Q70: A | R70: 543965 | S70: 0.85 | T70: 3022045 | Y70: London Academy | Z70: London Academy | AB70: London Academy
A71: 3022077 | B71: Orion Primary School | C71: M | D71: Primary | E71: Community | F71: 3022077 | G71: 131970 | I71: 400113 | J71: 10127 | K71: Yes | L71: Yes | M71: Yes | N71: No | O71: No | P71: Yes | Q71: A | R71: 543965 | S71: 0.85 | T71: =A71 -> 3022077 | Y71: Manorside Primary School | Z71: Manorside Primary School | AB71: Manorside Primary School
A72: 3025201 | B72: Osidge Primary School | C72: M | D72: Primary | E72: Foundation | F72: 3025201 | G72: 101356 | I72: 400021 | J72: 10084 | K72: No | L72: Yes | M72: Yes | N72: No | O72: No | P72: No | Q72: B | R72: 543965 | S72: 0 | T72: 3025201 | Y72: Mapledown | Z72: Mapledown | AB72: Mapledown
A73: 3023501 | B73: Our Lady of Lourdes School | C73: M | D73: Primary | E73: Voluntary Aided | F73: 3023501 | G73: 101331 | I73: 400003 | J73: 10085 | K73: Yes | L73: Yes | M73: Yes | N73: No | O73: No | P73: No | Q73: A | R73: 543965 | S73: 0.85 | T73: 3023501 | Y73: Martin Primary School | Z73: Martin Primary School | AB73: Martin Primary School
A74: 3022078 | B74: Pardes House School | C74: M | D74: Primary | E74: Voluntary Aided | F74: 3022078 | G74: 133364 | I74: 400014 | J74: 10129 | K74: No | L74: Yes | M74: Yes | N74: No | O74: No | P74: No | Q74: A | R74: 543965 | S74: 0.8574 | T74: 3022078 | Y74: Mathilda Marks-Kennedy School | Z74: Mathilda Marks-Kennedy School | AB74: Mathilda Marks-Kennedy School
A75: 3022038 | B75: Parkfield Primary School | C75: A | D75: Primary | E75: Academy | F75: 3022038 | G75: 139633 | I75: 152217 | J75: Academy | K75: Yes | L75: Yes | M75: Yes | N75: No | O75: No | P75: No | Q75: Academy | R75: 516500 | S75: 0 | T75: 3022038 | Y75: Menorah Foundation School | Z75: Menorah Foundation School | AB75: Menorah Foundation School
A76: 3022071 | C76: M | D76: Primary | E76: Community | F76: 3022071 | G76: 101312 | I76: 400010 | J76: 10119 | K76: Yes | L76: Yes | M76: No | N76: No | O76: No | P76: No | Q76: C | R76: 543965 | S76: 0.85 | T76: 3022071 | Y76: Menorah High School (Girls) | Z76: Menorah High School (Girls) | AB76: Menorah High School (Girls)
A77: 3022072 | B77: Queenswell Federation | C77: M | D77: Primary | E77: Community | F77: 3022072 | G77: 101313 | I77: 400012 | J77: 10086 | K77: No | L77: No | M77: Yes | N77: No | O77: No | P77: No | Q77: B | R77: 543965 | S77: 0 | T77: 3022072 | Y77: Menorah Primary Schools Federation | Z77: Menorah Primary Schools Federation | AB77: Menorah Primary Schools Federation
A78: 3022004 | B78: Rimon Jewish Primary School | C78: A | D78: Primary | E78: Free School | F78: 3022004 | G78: 138272 | I78: 155029 | J78: Academy | K78: No | L78: Yes | M78: Yes | N78: No | O78: No | P78: No | Q78: Academy | R78: 516500 | S78: 0 | T78: 3022004 | Y78: Mill Hill County High School | Z78: Mill Hill County High School | AB78: Mill Hill County High School
A79: 3023512 | B79: Rosh Pinah | C79: M | D79: Primary | E79: Voluntary Aided | F79: 3023512 | G79: 101340 | I79: 400093 | J79: 10112 | K79: Yes | L79: Yes | M79: Yes | N79: No | O79: No | P79: No | Q79: D | R79: 543965 | S79: 0 | T79: 3023512 | Y79: Millbrook Park CE Primary School | Z79: Millbrook Park CE Primary School | AB79: Millbrook Park CE Primary School
A80: 3022041 | B80: Sacks Morasha Academy | C80: A | D80: Primary | E80: Academy | F80: 3022041 | G80: 139727 | I80: 160025 | J80: 11381 | K80: No | L80: Yes | M80: Yes | N80: No | O80: No | P80: No | Q80: Academy | R80: 516500 | S80: 0 | T80: 3022041 | Y80: Monken Hadley C E Primary School | Z80: Monken Hadley C E Primary School | AB80: Monken Hadley C E Primary School
A81: 3023510 | B81: Sacred Heart School | C81: M | D81: Primary | E81: Voluntary Aided | F81: 3023510 | G81: 101338 | I81: 400071 | J81: 10110 | K81: No | L81: Yes | M81: Yes | N81: No | O81: No | P81: No | Q81: A | R81: 543965 | S81: 0.85 | T81: 3023510 | Y81: Monkfrith School | Z81: Monkfrith School | AB81: Monkfrith School
A82: 3023502 | B82: St Agnes RC Primary School | C82: M | D82: Primary | E82: Voluntary Aided | F82: 3023502 | G82: 101332 | I82: 400096 | J82: 10087 | K82: Yes | L82: Yes | M82: Yes | N82: No | O82: No | P82: No | Q82: A | R82: 543965 | S82: 0.85 | T82: 3023502 | Y82: Moss Hall Infant School | Z82: Moss Hall Infant School | AB82: Moss Hall Infant School
A83: 3023315 | B83: St Andrew's C E | C83: M | D83: Primary | E83: Voluntary Aided | F83: 3023315 | G83: 101327 | I83: 400062 | J83: 10099 | K83: No | L83: Yes | M83: Yes | N83: No | O83: No | P83: No | Q83: D | R83: 543965 | S83: 0 | T83: 3023315 | Y83: Moss Hall Junior School | Z83: Moss Hall Junior School | AB83: Moss Hall Junior School
A84: 3023504 | B84: St Catherines R C Primary | C84: M | D84: Primary | E84: Voluntary Aided | F84: 3023504 | G84: 101333 | I84: 400064 | J84: 10088 | K84: Yes | L84: Yes | M84: Yes | N84: No | O84: No | P84: No | Q84: A | R84: 543965 | S84: 0.85 | T84: 3023504 | Y84: Moss Hall Nursery | Z84: Moss Hall Nursery | AB84: Moss Hall Nursery
A85: 3023309 | B85: St Johns CE N20 | C85: M | D85: Primary | E85: Voluntary Aided | F85: 3023309 | G85: 101321 | I85: 400098 | J85: 10116 | K85: Yes | L85: Yes | M85: Yes | N85: No | O85: No | P85: No | Q85: C | R85: 543965 | S85: 0.85 | T85: 3023309 | Y85: Noam Primary School | Z85: Noam Primary School | AB85: Noam Primary School
A86: 3023307 | B86: St John's CE School N11 | C86: M | D86: Primary | E86: Voluntary Aided | F86: 3023307 | G86: 101319 | I86: 400114 | J86: 10089 | K86: Yes | L86: Yes | M86: Yes | N86: No | O86: No | P86: No | Q86: A | R86: 543965 | S86: 0.85 | T86: 3023307 | Y86: Northgate | Z86: Northgate | AB86: Northgate
A87: 3023509 | B87: St Joseph's Primary School | C87: M | D87: Primary | E87: Voluntary Aided | F87: 3023509 | G87: 101337 | I87: 400066 | J87: 10107 | K87: Yes | L87: Yes | M87: Yes | N87: No | O87: No | P87: No | Q87: A | R87: 543965 | S87: 0.85 | T87: 3023509 | Y87: Northside School | Z87: Northside School | AB87: Northside School
A88: 3023311 | B88: St Mary's C E Primary School N3 | C88: M | D88: Primary | E88: Voluntary Aided | F88: 3023311 | G88: 101323 | I88: 400058 | J88: 10092 | K88: Yes | L88: Yes | M88: Yes | N88: No | O88: No | P88: No | Q88: A | R88: 543965 | S88: 0.85 | T88: 3023311 | Y88: Northway | Z88: Northway | AB88: Northway
A89: 3023312 | B89: St Mary's School EN4 | C89: M | D89: Primary | E89: Voluntary Aided | F89: 3023312 | G89: 101324 | I89: 400017 | J89: 10093 | K89: No | L89: Yes | M89: Yes | N89: No | O89: No | P89: No | Q89: A | R89: 543965 | S89: 0.85 | T89: 3023312 | Y89: Oak Hill School | Z89: Oak Hill School | AB89: Oak Hill School
A90: 3023314 | B90: St Pauls CE Primary, NW7 | C90: M | D90: Primary | E90: Voluntary Aided | F90: 3023314 | G90: 101326 | I90: 400094 | J90: 10095 | K90: No | L90: Yes | M90: Yes | N90: No | O90: No | P90: No | Q90: C | R90: 543965 | S90: 0.85 | T90: 3023314 | Y90: Oak Lodge Academy | Z90: Oak Lodge Academy | AB90: Oak Lodge Academy
A91: 3023313 | B91: St Paul's School, N11 | C91: M | D91: Primary | E91: Voluntary Aided | F91: 3023313 | G91: 101325 | I91: 400006 | J91: 10094 | K91: Yes | L91: Yes | M91: Yes | N91: No | O91: No | P91: No | Q91: A | R91: 543965 | S91: 0.85 | T91: 3023313 | Y91: Oakleigh | Z91: Oakleigh | AB91: Oakleigh
A92: 3023507 | B92: St Theresa's R.C. Primary School | C92: M | D92: Primary | E92: Voluntary Aided | F92: 3023507 | G92: 101335 | I92: 400037 | J92: 10108 | K92: No | L92: Yes | M92: Yes | N92: No | O92: No | P92: No | Q92: A | R92: 543965 | S92: 0.85 | T92: 3023507 | Y92: Orion Primary School | Z92: Orion Primary School | AB92: Orion Primary School
A93: 3023506 | B93: St Vincent's Catholic Primary School | C93: M | D93: Primary | E93: Voluntary Aided | F93: 3023506 | G93: 101334 | I93: 400009 | J93: 10096 | K93: No | L93: Yes | M93: Yes | N93: No | O93: No | P93: No | Q93: A | R93: 543965 | S93: 0.85 | T93: 3023506 | Y93: Osidge Primary School | Z93: Osidge Primary School | AB93: Osidge Primary School
A94: 3022051 | B94: Summerside Primary Academy | C94: A | D94: Primary | E94: Academy | F94: 3022051 | G94: 144653 | I94: 157542 | J94: Academy | K94: Yes | L94: Yes | M94: Yes | N94: No | O94: No | P94: Yes | Q94: Academy | R94: 516500 | S94: 0 | T94: 3022051 | Y94: Our Lady of Lourdes School | Z94: Our Lady of Lourdes School | AB94: Our Lady of Lourdes School
A95: 3022070 | B95: Sunnyfields Primary School | C95: M | D95: Primary | E95: Community | F95: 3022070 | G95: 101311 | I95: 400038 | J95: 10097 | K95: Yes | L95: Yes | M95: Yes | N95: No | O95: No | P95: No | Q95: D | R95: 543965 | S95: 0 | T95: 3022070 | Y95: Pardes House School | Z95: Pardes House School | AB95: Pardes House School
A96: 3023316 | B96: Trent C of E Primary School | C96: M | D96: Primary | E96: Voluntary Aided | F96: 3023316 | G96: 101328 | I96: 400100 | J96: 10100 | K96: No | L96: Yes | M96: Yes | N96: No | O96: No | P96: No | Q96: A | R96: 543965 | S96: 0.85 | T96: 3023316 | Y96: Parkfield Primary School | Z96: Parkfield Primary School | AB96: Parkfield Primary School
A97: 3022055 | B97: Tudor School | C97: M | D97: Primary | E97: Community | F97: 3022055 | G97: 101299 | I97: 400101 | J97: 10101 | K97: Yes | L97: Yes | M97: Yes | N97: No | O97: No | P97: No | Q97: A | R97: 543965 | S97: 0.85 | T97: 3022055 | Y97: Pavilion | Z97: Pavilion | AB97: Pavilion
A98: 3022057 | B98: Underhill School | C98: M | D98: Primary | E98: Community | F98: 3022057 | G98: 101301 | I98: 400053 | J98: 10103 | K98: Yes | L98: Yes | M98: Yes | N98: No | O98: No | P98: No | Q98: B | R98: 543965 | S98: 0 | T98: 3022057 | Y98: Queen Elizabeth's Girls' School | Z98: Queen Elizabeth's Girls' School | AB98: Queen Elizabeth's Girls' School
A99: 3022049 | B99: Watling Park Free School | C99: A | D99: Primary | E99: Academy | F99: 3022049 | G99: 142114 | I99: 157055 | J99: Academy | K99: NO | L99: Yes | M99: Yes | N99: No | O99: NO | P99: No | Q99: Academy | R99: 516500 | S99: 0 | T99: 3022049 | Y99: Queen Elizabeth's School (Boys) | Z99: Queen Elizabeth's School (Boys) | AB99: Queen Elizabeth's School (Boys)
A100: 3022076 | B100: Wessex Gardens Primary School | C100: M | D100: Primary | E100: Community | F100: 3022076 | G100: 131617 | I100: 400111 | J100: 10124 | K100: Yes | L100: Yes | M100: Yes | N100: No | O100: No | P100: No | Q100: D | R100: 543965 | S100: 0 | T100: 3022076 | Y100: Queenswell Federation | Z100: Queenswell Federation | AB100: Queenswell Federation
A101: 3022060 | B101: Whitings Hill Primary School | C101: M | D101: Primary | E101: Community | F101: 3022060 | G101: 101304 | I101: 400011 | J101: 10105 | K101: Yes | L101: Yes | M101: Yes | N101: No | O101: No | P101: No | Q101: A | R101: 543965 | S101: 0.85 | T101: 3022060 | Y101: Rimon Jewish Primary School | Z101: Queenswell Infant and Nursery School | AB101: Queenswell Infant and Nursery School
A102: 3023518 | B102: Woodcroft Primary School | C102: M | D102: Primary | E102: Community | F102: 3023518 | G102: 134677 | I102: 400117 | J102: 10123 | K102: Yes | L102: Yes | M102: Yes | N102: No | O102: No | P102: No | Q102: A | R102: 543965 | S102: 0.85 | T102: 3023518 | Y102: Rosh Pinah | Z102: Rimon Jewish Primary School | AB102: Rimon Jewish Primary School
A103: 3022054 | B103: Woodridge Primary School | C103: M | D103: Primary | E103: Community | F103: 3022054 | G103: 101298 | I103: 400004 | J103: 10109 | K103: No | L103: Yes | M103: Yes | N103: No | O103: No | P103: No | Q103: A | R103: 543965 | S103: 0.85 | T103: 3022054 | Y103: Sacks Morasha Academy | Z103: Rosh Pinah | AB103: Rosh Pinah
A104: 0 | C104: None | D104: 0 | F104: 0 | G104: 0 | I104: 0 | J104: 0 | K104: 0 | L104: Yes | M104: Yes | N104: No | O104: 0 | P104: 0 | Q104: 0 | R104: 0 | S104: 0 | T104: 0 | Y104: Sacred Heart School | Z104: Sacks Morasha Academy | AB104: Sacks Morasha Academy
A105: 3021102 | B105: Northgate | C105: M | D105: PRU | E105: Community | F105: 3021102 | G105: 133749 | I105: 400157 | J105: 10185 | K105: No | L105: Yes | M105: Yes | N105: Yes | O105: Yes | P105: No | Q105: A | R105: 543965 | S105: 0.85 | T105: 3021102 | Y105: Saracens High School | Z105: Sacred Heart School | AB105: Sacred Heart School
A106: 3021100 | B106: Pavilion | C106: M | D106: PRU | E106: Community | F106: 3021100 | G106: 101255 | I106: 400156 | J106: 10188 | K106: No | L106: No | M106: No | N106: Yes | O106: No | P106: No | Q106: D | R106: 543965 | S106: 0 | T106: 3021100 | Y106: St Agnes RC Primary School | Z106: Saracens High School | AB106: Saracens High School
A107: 0 | C107: None | D107: 0 | F107: 0 | G107: 0 | I107: 0 | J107: 0 | K107: 0 | N107: 0 | O107: 0 | P107: 0 | Q107: 0 | R107: 0 | S107: 0 | T107: 0 | Y107: St Andrew the Apostle Greek Orthodox School | Z107: St Agnes RC Primary School | AB107: St Agnes RC Primary School
A108: 3024001 | B108: Archer Academy | C108: A | D108: Secondary | E108: Free School | F108: 3024001 | G108: 139594 | I108: 153627 | J108: Academy | K108: No | L108: No | M108: No | N108: Yes | O108: No | P108: No | Q108: Academy | R108: 516500 | S108: 0 | T108: 3024001 | Y108: St Andrew's C E | Z108: St Andrew the Apostle Greek Orthodox School | AB108: St Andrew the Apostle Greek Orthodox School
A109: 3024013 | B109: ARK Pioneer Academy | C109: A | D109: Secondary | E109: Free School | F109: 3024013 | G109: 149999 | I109: 159947 | J109: Academy | K109: No | L109: No | M109: No | N109: Yes | O109: No | P109: No | Q109: Academy | R109: 516500 | S109: 0 | T109: 3024013 | Y109: St Catherines R C Primary | Z109: St Andrew's C E | AB109: St Andrew's C E
A110: 3025406 | B110: Ashmole Academy | C110: A | D110: Secondary | E110: Academy | F110: 3025406 | G110: 136308 | I110: 140909 | J110: Academy | K110: No | L110: No | M110: No | N110: Yes | O110: Yes | P110: No | Q110: Academy | R110: 516500 | S110: 0 | T110: 3025406 | Y110: St Johns CE N20 | Z110: St Catherines R C Primary | AB110: St Catherines R C Primary
A111: 3025408 | B111: Bishop Douglass Academy | C111: A | D111: Secondary | E111: Academy | F111: 3025408 | G111: 143082 | I111: 156628 | J111: Academy | K111: No | L111: No | M111: No | N111: Yes | O111: Yes | P111: No | Q111: Academy | R111: 516500 | S111: 0 | T111: 3025408 | Y111: St John's CE School N11 | Z111: St Johns CE N20 | AB111: St Johns CE N20
A112: 3024211 | B112: Christ's College Finchley | C112: A | D112: Secondary | E112: Academy | F112: 3024211 | G112: 137388 | I112: 144389 | J112: Academy | K112: No | L112: No | M112: No | N112: Yes | O112: Yes | P112: No | Q112: Academy | R112: 516500 | S112: 0 | T112: 3024211 | Y112: St Joseph's Primary School | Z112: St John's CE School N11 | AB112: St John's CE School N11
A113: 3024215 | B113: Compton School | C113: A | D113: Secondary | E113: Academy | F113: 3024215 | G113: 136418 | I113: 140894 | J113: Academy | K113: No | L113: No | M113: No | N113: Yes | O113: No | P113: No | Q113: Academy | R113: 516500 | S113: 0 | T113: 3024215 | Y113: St Margaret's Nursery | Z113: St Joseph's Primary School | AB113: St Joseph's Primary School
A114: 3024210 | B114: Copthall School | C114: A | D114: Secondary | E114: Academy | F114: 3024210 | G114: 138685 | I114: 148020 | J114: Academy | K114: No | L114: No | M114: No | N114: Yes | O114: Yes | P114: No | Q114: Academy | R114: 516500 | S114: 0 | T114: 3024210 | Y114: St Mary's & St John's CE School | Z114: St Margaret's Nursery | AB114: St Margaret's Nursery
A115: 3024212 | B115: East Barnet School | C115: A | D115: Secondary | E115: Academy | F115: 3024212 | G115: 136658 | I115: 143727 | J115: Academy | K115: No | L115: No | M115: No | N115: Yes | O115: Yes | P115: No | Q115: Academy | R115: 516500 | S115: 0 | T115: 3024212 | Y115: St Mary's C E Primary School N3 | Z115: St Mary's & St John's CE School | AB115: St Mary's & St John's CE School
A116: 3025405 | B116: Finchley Catholic High School | C116: M | D116: Secondary | E116: Voluntary Aided | F116: 3025405 | G116: 101362 | I116: 400041 | J116: 10145 | K116: No | L116: No | M116: No | N116: Yes | O116: Yes | P116: No | Q116: B | R116: 543965 | S116: 0 | T116: 3025405 | Y116: St Mary's School EN4 | Z116: St Mary's C E Primary School N3 | AB116: St Mary's C E Primary School N3
A117: 3024003 | B117: Friern Barnet School | C117: M | D117: Secondary | E117: Community | F117: 3024003 | G117: 101345 | I117: 400033 | J117: 10139 | K117: No | L117: No | M117: No | N117: Yes | O117: No | P117: No | Q117: D | R117: 543965 | S117: 0 | T117: 3024003 | Y117: St Michaels Catholic Grammar School | Z117: St Mary's School EN4 | AB117: St Mary's School EN4
A118: 3025409 | B118: Hasmonean High School | C118: A | D118: Secondary | E118: Academy | F118: 3025409 | G118: 137539 | I118: 145386 | J118: Academy | K118: No | L118: No | M118: No | N118: Yes | O118: Yes | P118: No | Q118: Academy | R118: 516500 | S118: 0 | T118: 3025409 | Y118: St Pauls CE Primary, NW7 | Z118: St Michaels Catholic Grammar School | AB118: St Michaels Catholic Grammar School
A119: 3024014 | B119: Hasmonean High School for Girls | C119: A | D119: Secondary | E119: Academy | F119: 3024014 | I119: 145386 | J119: Academy | K119: No | L119: No | M119: No | N119: Yes | O119: Yes | P119: Yes | Q119: Academy | R119: 516500 | S119: 0 | T119: 3024014 | Y119: St Paul's School, N11 | Z119: St Pauls CE Primary, NW7 | AB119: St Pauls CE Primary, NW7
A120: 3025400 | B120: Hendon School | C120: A | D120: Secondary | E120: Academy | F120: 3025400 | G120: 137645 | I120: 145169 | J120: Academy | K120: No | L120: No | M120: No | N120: Yes | O120: Yes | P120: Yes | Q120: Academy | R120: 516500 | S120: 0 | T120: 3025400 | Y120: St Theresa's R.C. Primary School | Z120: St Paul's School, N11 | AB120: St Paul's School, N11
A121: 3024752 | B121: Henrietta Barnett School | C121: A | D121: Secondary | E121: Academy | F121: 3024752 | G121: 138051 | I121: 147243 | J121: Academy | K121: No | L121: No | M121: No | N121: Yes | O121: Yes | P121: No | Q121: Academy | R121: 516500 | S121: 0 | T121: 3024752 | Y121: St Vincent's Catholic Primary School | Z121: St Theresa's R.C. Primary School | AB121: St Theresa's R.C. Primary School
A122: 3025427 | B122: JCoSS | C122: M | D122: Secondary | E122: Voluntary Aided | F122: 3025427 | G122: 135747 | I122: 400140 | J122: 11174 | K122: No | L122: No | M122: No | N122: Yes | O122: Yes | P122: Yes | Q122: D | R122: 543965 | S122: 0 | T122: 3025427 | Y122: St. James' Catholic High School | Z122: St Vincent's Catholic Primary School | AB122: St Vincent's Catholic Primary School
A123: 3024004 | B123: Menorah High School (Girls) | C123: M | D123: Secondary | E123: Voluntary Aided | F123: 3024004 | G123: 142627 | I123: 107953 | J123: 11513 | K123: No | L123: No | M123: No | N123: Yes | O123: Yes | P123: No | Q123: D | R123: 543965 | S123: 0 | T123: 3024004 | Y123: Summerside Primary Academy | Z123: St. James' Catholic High School | AB123: St. James' Catholic High School
A124: 3025402 | B124: Mill Hill County High School | C124: A | D124: Secondary | E124: Academy | F124: 3025402 | G124: 137386 | I124: 144069 | J124: Academy | K124: No | L124: No | M124: No | N124: Yes | O124: Yes | P124: No | Q124: Academy | R124: 516500 | S124: 0 | T124: 3025402 | Y124: Sunnyfields Primary School | Z124: Summerside Primary Academy | AB124: Summerside Primary Academy
A125: 3024208 | B125: Queen Elizabeth's Girls' School | C125: A | D125: Secondary | E125: Academy | F125: 3024208 | G125: 137131 | I125: 144387 | J125: Academy | K125: No | L125: No | M125: No | N125: Yes | O125: Yes | P125: No | Q125: Academy | R125: 516500 | S125: 0 | T125: 3024208 | Y125: Totteridge Academy | Z125: Sunnyfields Primary School | AB125: Sunnyfields Primary School
A126: 3025401 | B126: Queen Elizabeth's School (Boys) | C126: A | D126: Secondary | E126: Academy | F126: 3025401 | G126: 136290 | I126: 139142 | J126: Academy | K126: No | L126: No | M126: No | N126: Yes | O126: Yes | P126: No | Q126: Academy | R126: 516500 | S126: 0 | T126: 3025401 | Y126: Trent C of E Primary School | Z126: Totteridge Academy | AB126: Totteridge Academy
A127: 3024011 | B127: Saracens High School | C127: A | D127: Secondary | E127: Free School | F127: 3024011 | G127: 145921 | I127: 158756 | J127: Academy | K127: No | L127: No | M127: No | N127: Yes | O127: No | P127: No | Q127: Academy | R127: 516500 | S127: 0 | T127: 3024011 | Y127: Tudor School | Z127: Trent C of E Primary School | AB127: Trent C of E Primary School
A128: 3024000 | B128: St Andrew the Apostle Greek Orthodox School | C128: A | D128: Secondary | E128: Free School | F128: 3024000 | G128: 139410 | I128: 156093 | J128: Academy | K128: No | L128: No | M128: No | N128: Yes | O128: No | P128: No | Q128: Academy | R128: 516500 | S128: 0 | T128: 3024000 | Y128: Underhill School | Z128: Tudor School | AB128: Tudor School
A129: 3025404 | B129: St Michaels Catholic Grammar School | C129: M | D129: Secondary | E129: Voluntary Aided | F129: 3025404 | G129: 101361 | I129: 400029 | J129: 10148 | K129: No | L129: No | M129: No | N129: Yes | O129: Yes | P129: No | Q129: B | R129: 543965 | S129: 0 | T129: 3025404 | Y129: Watling Park Free School | Z129: Underhill School | AB129: Underhill School
A130: 3025407 | B130: St. James' Catholic High School | C130: M | D130: Secondary | E130: Voluntary Aided | F130: 3025407 | G130: 101364 | I130: 400013 | J130: 10142 | K130: No | L130: No | M130: No | N130: Yes | O130: Yes | P130: No | Q130: B | R130: 543965 | S130: 0 | T130: 3025407 | Y130: Wessex Gardens Primary School | Z130: Watling Park Free School | AB130: Watling Park Free School
A131: 3024010 | B131: Totteridge Academy | C131: A | D131: Secondary | E131: Academy | F131: 3024010 | G131: 144502 | I131: 144388 | J131: Academy | K131: No | L131: No | M131: No | N131: Yes | O131: Yes | P131: No | Q131: Academy | R131: 516500 | S131: 0 | T131: 3024010 | Y131: Whitefield School | Z131: Wessex Gardens Primary School | AB131: Wessex Gardens Primary School
A132: 3024012 | B132: Whitefield School | C132: A | D132: Secondary | E132: Academy | F132: 3024012 | G132: 137361 | I132: 144062 | J132: Academy | K132: No | L132: No | M132: No | N132: Yes | O132: Yes | P132: Yes | Q132: Academy | R132: 516500 | S132: 0 | T132: 3024012 | Y132: Whitings Hill Primary School | Z132: Whitefield School | AB132: Whitefield School
A133: 0 | C133: None | D133: 0 | F133: 0 | G133: 0 | I133: 0 | J133: 0 | K133: 0 | L133: 0 | M133: 0 | N133: 0 | O133: 0 | P133: 0 | Q133: 0 | R133: 0 | S133: 0 | T133: 0 | Y133: Woodcroft Primary School | Z133: Whitings Hill Primary School | AB133: Whitings Hill Primary School
A134: 3026085 | B134: Kisharon Inclusive Special Free School | C134: A | D134: Special | E134: Free School | F134: 3026085 | G134: 101386 | I134: 105221 | J134: Academy | K134: No | L134: Yes | M134: Yes | N134: Yes | O134: Yes | P134: No | Q134: Academy | R134: 516500 | S134: 0 | T134: 3026085 | Y134: Woodridge Primary School | Z134: Woodcroft Primary School | AB134: Woodcroft Primary School
A135: 3027010 | B135: Mapledown | C135: M | D135: Special | E135: Community | F135: 3027010 | G135: 101397 | I135: 400063 | J135: 10159 | K135: No | L135: No | M135: No | N135: Yes | O135: Yes | P135: No | Q135: D | R135: 543965 | S135: 0 | T135: =A135 -> 3027010 | Y135: Wren Academy | Z135: Woodridge Primary School | AB135: Woodridge Primary School
A136: 3027005 | B136: Northway | C136: M | D136: Special | E136: Community | F136: 3027005 | G136: 101395 | I136: 400034 | J136: 10157 | K136: No | L136: Yes | M136: Yes | N136: No | O136: No | P136: No | Q136: A | R136: 543965 | S136: 0.85 | T136: 3027005 | Z136: Wren Academy | AB136: Wren Academy
A137: 3025950 | B137: Oak Hill School | C137: A | D137: Special | E137: Academy | F137: 3025950 | G137: 0 | I137: 157308 | J137: Academy | K137: No | L137: No | M137: No | N137: Yes | O137: No | P137: No | Q137: Academy | R137: 516500 | S137: 0 | T137: 3025950
A138: 3027000 | B138: Oak Lodge Academy | C138: A | D138: Special | E138: Academy | F138: 3027000 | G138: 0 | I138: 156901 | J138: Academy | K138: No | L138: No | M138: No | N138: Yes | O138: Yes | P138: No | Q138: Academy | R138: 516500 | S138: 0 | T138: 3027000
A139: 3027009 | B139: Oakleigh | C139: M | D139: Special | E139: Community | F139: 3027009 | G139: 101396 | I139: 400091 | J139: 10158 | K139: Yes | L139: Yes | M139: Yes | N139: No | O139: No | P139: No | Q139: D | R139: 543965 | S139: 0 | T139: 3027009
A140: 3027002 | B140: The Windmill School | C140: A | D140: Special | E140: Academy | F140: =A140 -> 3027002 | S140: 0 | T140: 3027002
A141: 3026905 | B141: London Academy | C141: A | D141: All through | E141: Academy | F141: 3026905 | G141: 134798 | I141: 400116 | J141: Academy | K141: No | L141: Yes | M141: Yes | N141: Yes | O141: Yes | P141: Yes | Q141: Academy | R141: 516500 | S141: 0 | T141: 3026905
A142: 3023521 | B142: St Mary's & St John's CE School | C142: M | D142: All through | E142: Voluntary Aided | F142: 3023521 | G142: 103119 | I142: 400135 | J142: 10698 | K142: Yes | L142: Yes | M142: Yes | N142: Yes | O142: No | P142: No | Q142: B | R142: 543965 | S142: 0 | T142: 3023521
A143: 3026906 | B143: Wren Academy | C143: A | D143: All through | E143: Academy | F143: 3026906 | G143: 135507 | I143: 128957 | J143: Academy | K143: No | L143: Yes | M143: Yes | N143: Yes | O143: Yes | P143: No | Q143: Academy | R143: 516500 | S143: 0 | T143: 3026906
A187: 3020136 | B187: BEYA
A188: 3021000 | B188: Brookhill | F188: 3021000
A189: 3021001 | B189: Hampden Way | F189: 3021001
A190: 3021003 | B190: St Margarets | F190: 3021003

Sheet Variable (hidden)
C4: Financial year Start Date | D4: 2024-04-01
C5: Summer End Date | D5: 2024-08-31
C6: Autumn End Date | D6: 2024-12-31

Sheet HNTopUp (hidden)
A3: DFENo LookUp Adjustment | B3: DFENo | C3: Schoolname | D3: Federation | E3: Maint/ Academy | F3: Sector | G3: CC | H3: CC Name | I3: Group | J3: GL | K3: CFR code | L3: Line Number | M3: Reference | N3: Supplier No | O3: School Name for Description | P3: **Supplier[..] | Q3: **Supplier Number | R3: *Supplier Site[..] | S3: Distribution Combination[..] | T3: Amount from Summer Rec in October | U3: Ap241 | V3: Ap24 | W3: Apr | X3: Ma241 | Y3: Ma24 | Z3: May | AA3: Ju241 | AB3: Ju24 | AC3: Jun | AD3: Jul241 | AE3: Jul24 | AF3: Jul | AG3: Aug241 | AH3: Aug24 | AI3: Aug | AJ3: Sep241 | AK3: Sep24 | AL3: Sep | AM3: Oct241 | AN3: Oct24 | AO3: Oct | AP3: Nov241 | AQ3: Nov24 | AR3: Nov | AS3: Dec241 | AT3: Dec24 | AU3: Dec | AV3: Jan241 | AW3: Jan24 | AX3: Jan | AY3: Feb241 | AZ3: Feb24 | BA3: Feb | BB3: Mar251 | BC3: Mar25 | BD3: Mar | BE3: Forecast Payment | BF3: Check
W4: Actual | Z4: Actual | AC4: Actual | AF4: Actual | AG4: Actual | AH4: Actual | AI4: Actual | AJ4: Actual | AK4: Actual | AL4: Actual | AO4: Actual | AP4: Actual | AQ4: Actual | AR4: Actual | AS4: Actual | AT4: Actual | AU4: Actual | AX4: Estimate | BA4: Estimate | BD4: Estimate
T5: =SUM(T$7:T$245) -> 36529676.78 | W5: =SUM(W$7:W$245) -> 2845474.763 | X5: 0 | Y5: 0 | Z5: 2845474.766 | AA5: 0 | AB5: 0 | AC5: 2944174.306 | AD5: 0 | AE5: 0 | AF5: 2960553.93 | AG5: 0 | AH5: 0 | AI5: 2965038.744 | AJ5: 0 | AK5: 0 | AL5: 2967665.004 | AM5: 0 | AN5: 0 | AO5: 2967665.004 | AP5: 0 | AQ5: 0 | AR5: 2967665.004 | AS5: 0 | AT5: 0 | AU5: 5215328.12 | AV5: 0 | AW5: 0 | AX5: 2616879.046 | AY5: 0 | AZ5: 0 | BA5: 2616879.046 | BB5: 0 | BC5: 0 | BD5: 2616879.046 | BE5: =SUM(BE7:BE245) -> 36529676.78 | BF5: =SUM(BF7:BF245) -> 0
A7: 3021000 | B7: 3021000 | C7: Brookhill Nursery | D7: 0 | E7: M | F7: Nursery | G7: D10265 | H7: SEN Inclusion | I7: SEN | J7: 661225 | K7: I03 | L7: 1 | M7: =I7&"."&K7 -> SEN .I03 | N7: 400102 | O7: Brookhill Nursery School | P7: Brookhill Nursery School | Q7: S900008346 | R7: EN4 8SD | S7: A1.D10265.661225.99999.9999999.999999 | T7: 12549 | U7: =RIGHT($B7,4)&"."&$M7&"."&U$3 -> 1000.SEN .I03.Ap241 | V7: =$O7&"."&RIGHT($B7,4)&"."&$M7&"."&V$3 -> Brookhill Nursery School.1000.SEN .I03.Ap24 | W7: 104.5833333 | X7: =RIGHT($B7,4)&"."&$M7&"."&X$3 -> 1000.SEN .I03.Ma241 | Y7: =$O7&"."&RIGHT($B7,4)&"."&$M7&"."&Y$3 -> Brookhill Nursery School.1000.SEN .I03.Ma24 | Z7: 104.5833333 | AA7: =RIGHT($B7,4)&"."&$M7&"."&AA$3 -> 1000.SEN .I03.Ju241 | AB7: =$O7&"."&RIGHT($B7,4)&"."&$M7&"."&AB$3 -> Brookhill Nursery School.1000.SEN .I03.Ju24 | AC7: 1045.75 | AD7: =RIGHT($B7,4)&"."&$M7&"."&AD$3 -> 1000.SEN .I03.Jul241 | AE7: =$O7&"."&RIGHT($B7,4)&"."&$M7&"."&AE$3 -> Brookhill Nursery School.1000.SEN .I03.Jul24 | AF7: 1254.898148 | AG7: =RIGHT($B7,4)&"."&$M7&"."&AG$3 -> 1000.SEN .I03.Aug241 | AH7: =$O7&"."&RIGHT($B7,4)&"."&$M7&"."&AH$3 -> Brookhill Nursery School.1000.SEN .I03.Aug24 | AI7: =AF7 -> 1254.898148 | AJ7: =RIGHT($B7,4)&"."&$M7&"."&AJ$3 -> 1000.SEN .I03.Sep241 | AK7: =$O7&"."&RIGHT($B7,4)&"."&$M7&"."&AK$3 -> Brookhill Nursery School.1000.SEN .I03.Sep24 | AL7: =AI7 -> 1254.898148 | AM7: =RIGHT($B7,4)&"."&$M7&"."&AM$3 -> 1000.SEN .I03.Oct241 | AN7: =$O7&"."&RIGHT($B7,4)&"."&$M7&"."&AN$3 -> Brookhill Nursery School.1000.SEN .I03.Oct24 | AO7: =AL7 -> 1254.898148 | AP7: =RIGHT($B7,4)&"."&$M7&"."&AP$3 -> 1000.SEN .I03.Nov241 | AQ7: =$O7&"."&RIGHT($B7,4)&"."&$M7&"."&AQ$3 -> Brookhill Nursery School.1000.SEN .I03.Nov24 | AR7: =AO7 -> 1254.898148 | AS7: =RIGHT($B7,4)&"."&$M7&"."&AS$3 -> 1000.SEN .I03.Dec241 | AT7: =$O7&"."&RIGHT($B7,4)&"."&$M7&"."&AT$3 -> Brookhill Nursery School.1000.SEN .I03.Dec24 | AU7: 2007.837037 | AV7: =RIGHT($B7,4)&"."&$M7&"."&AV$3 -> 1000.SEN .I03.Jan241 | AW7: =$O7&"."&RIGHT($B7,4)&"."&$M7&"."&AW$3 -> Brookhill Nursery School.1000.SEN .I03.Jan24 | AX7: 1003.918519 | AY7: =RIGHT($B7,4)&"."&$M7&"."&AY$3 -> 1000.SEN .I03.Feb241 | AZ7: =$O7&"."&RIGHT($B7,4)&"."&$M7&"."&AZ$3 -> Brookhill Nursery School.1000.SEN .I03.Feb24 | BA7: 1003.918519 | BB7: =AY7 -> 1000.SEN .I03.Feb241 | BC7: Brookhill Nursery School.1000.SEN .I03.Feb24 | BD7: 1003.918519 | BE7: =W7+Z7+AC7+AF7+AI7+AL7+AO7+AR7+AU7+AX7+BA7+BD7 -> 12549 | BF7: =BE7-T7 -> 0
A8: 3021000 | B8: 3021000 | C8: Brookhill Nursery | D8: 0 | E8: M | F8: Nursery | G8: D11439 | H8: Nursery Schools | I8: EHCPN | J8: 661225 | K8: I03 | L8: =IF(C7=C8,L7+1,1) -> 2 | M8: =I8&"."&K8 -> EHCPN.I03 | N8: 400102 | O8: Brookhill Nursery School | P8: Brookhill Nursery School | Q8: S900008346 | R8: EN4 8SD | S8: A1.D11439.661225.99999.9999999.999999 | T8: 28996.63148 | U8: =RIGHT($B8,4)&"."&$M8&"."&U$3 -> 1000.EHCPN.I03.Ap241 | V8: =$O8&"."&RIGHT($B8,4)&"."&$M8&"."&V$3 -> Brookhill Nursery School.1000.EHCPN.I03.Ap24 | W8: 2885.43 | X8: =RIGHT($B8,4)&"."&$M8&"."&X$3 -> 1000.EHCPN.I03.Ma241 | Y8: =$O8&"."&RIGHT($B8,4)&"."&$M8&"."&Y$3 -> Brookhill Nursery School.1000.EHCPN.I03.Ma24 | Z8: 2885.43 | AA8: =RIGHT($B8,4)&"."&$M8&"."&AA$3 -> 1000.EHCPN.I03.Ju241 | AB8: =$O8&"."&RIGHT($B8,4)&"."&$M8&"."&AB$3 -> Brookhill Nursery School.1000.EHCPN.I03.Ju24 | AC8: 4588.303333 | AD8: =RIGHT($B8,4)&"."&$M8&"."&AD$3 -> 1000.EHCPN.I03.Jul241 | AE8: =$O8&"."&RIGHT($B8,4)&"."&$M8&"."&AE$3 -> Brookhill Nursery School.1000.EHCPN.I03.Jul24 | AF8: 4966.71963 | AG8: =RIGHT($B8,4)&"."&$M8&"."&AG$3 -> 1000.EHCPN.I03.Aug241 | AH8: =$O8&"."&RIGHT($B8,4)&"."&$M8&"."&AH$3 -> Brookhill Nursery School.1000.EHCPN.I03.Aug24 | AI8: =AF8 -> 4966.71963 | AJ8: =RIGHT($B8,4)&"."&$M8&"."&AJ$3 -> 1000.EHCPN.I03.Sep241 | AK8: =$O8&"."&RIGHT($B8,4)&"."&$M8&"."&AK$3 -> Brookhill Nursery School.1000.EHCPN.I03.Sep24 | AL8: =AI8 -> 4966.71963 | AM8: =RIGHT($B8,4)&"."&$M8&"."&AM$3 -> 1000.EHCPN.I03.Oct241 | AN8: =$O8&"."&RIGHT($B8,4)&"."&$M8&"."&AN$3 -> Brookhill Nursery School.1000.EHCPN.I03.Oct24 | AO8: =AL8 -> 4966.71963 | AP8: 1000.EHCPN.I03.Nov241 | AQ8: Brookhill Nursery School.1000.EHCPN.I03.Nov24 | AR8: =AO8 -> 4966.71963 | AS8: =RIGHT($B8,4)&"."&$M8&"."&AS$3 -> 1000.EHCPN.I03.Dec241 | AT8: =$O8&"."&RIGHT($B8,4)&"."&$M8&"."&AT$3 -> Brookhill Nursery School.1000.EHCPN.I03.Dec24 | AU8: -6196.13 | AV8: =RIGHT($B8,4)&"."&$M8&"."&AV$3 -> 1000.EHCPN.I03.Jan241 | AW8: =$O8&"."&RIGHT($B8,4)&"."&$M8&"."&AW$3 -> Brookhill Nursery School.1000.EHCPN.I03.Jan24 | AY8: =RIGHT($B8,4)&"."&$M8&"."&AY$3 -> 1000.EHCPN.I03.Feb241 | AZ8: =$O8&"."&RIGHT($B8,4)&"."&$M8&"."&AZ$3 -> Brookhill Nursery School.1000.EHCPN.I03.Feb24 | BB8: =RIGHT($B8,4)&"."&$M8&"."&BB$3 -> 1000.EHCPN.I03.Mar251 | BC8: =$O8&"."&RIGHT($B8,4)&"."&$M8&"."&BC$3 -> Brookhill Nursery School.1000.EHCPN.I03.Mar25 | BE8: =W8+Z8+AC8+AF8+AI8+AL8+AO8+AR8+AU8+AX8+BA8+BD8 -> 28996.63148 | BF8: =BE8-T8 -> 0
A9: 3021001 | B9: 3021001 | C9: Hampden Way Nursery | D9: 0 | E9: M | F9: Nursery | G9: D11439 | H9: Nursery Schools | I9: EHCPN | J9: 661225 | K9: I03 | L9: =IF(C8=C9,L8+1,1) -> 1 | M9: EHCPN.I03 | N9: 400102 | O9: Hampden Way Nursery School | P9: Hampden Way Nursery School | Q9: S900008347 | R9: N14 5DJ | S9: A1.D11439.661225.99999.9999999.999999 | T9: 16688.1937 | U9: 1001.EHCPN.I03.Ap241 | V9: Hampden Way Nursery School.1001.EHCPN.I03.Ap24 | W9: 1182.554167 | X9: 1001.EHCPN.I03.Ma241 | Y9: Hampden Way Nursery School.1001.EHCPN.I03.Ma24 | Z9: 1182.554167 | AA9: 1001.EHCPN.I03.Ju241 | AB9: Hampden Way Nursery School.1001.EHCPN.I03.Ju24 | AC9: 2384.0275 | AD9: 1001.EHCPN.I03.Jul241 | AE9: Hampden Way Nursery School.1001.EHCPN.I03.Jul24 | AF9: 2651.021574 | AG9: 1001.EHCPN.I03.Aug241 | AH9: Hampden Way Nursery School.1001.EHCPN.I03.Aug24 | AI9: 2651.021574 | AJ9: 1001.EHCPN.I03.Sep241 | AK9: Hampden Way Nursery School.1001.EHCPN.I03.Sep24 | AL9: 2651.021574 | AM9: 1001.EHCPN.I03.Oct241 | AN9: Hampden Way Nursery School.1001.EHCPN.I03.Oct24 | AO9: 2651.021574 | AP9: 1001.EHCPN.I03.Nov241 | AQ9: Hampden Way Nursery School.1001.EHCPN.I03.Nov24 | AR9: 2651.021574 | AS9: 1001.EHCPN.I03.Dec241 | AT9: Hampden Way Nursery School.1001.EHCPN.I03.Dec24 | AU9: -1316.05 | AV9: 1001.EHCPN.I03.Jan241 | AW9: Hampden Way Nursery School.1001.EHCPN.I03.Jan24 | AY9: 1001.EHCPN.I03.Feb241 | AZ9: Hampden Way Nursery School.1001.EHCPN.I03.Feb24 | BB9: 1001.EHCPN.I03.Mar251 | BC9: Hampden Way Nursery School.1001.EHCPN.I03.Mar25 | BE9: 16688.1937 | BF9: 0
A10: 3021001 | B10: 3021001 | C10: Hampden Way Nursery | D10: 0 | E10: M | F10: Nursery | G10: D10265 | H10: SEN Inclusion | I10: SEN | J10: 661225 | K10: I03 | L10: 2 | M10: SEN .I03 | N10: 400102 | O10: Hampden Way Nursery School | P10: Hampden Way Nursery School | Q10: S900008347 | R10: N14 5DJ | S10: A1.D10265.661225.99999.9999999.999999 | T10: 11055 | U10: 1001.SEN .I03.Ap241 | V10: Hampden Way Nursery School.1001.SEN .I03.Ap24 | W10: 263.9166667 | X10: 1001.SEN .I03.Ma241 | Y10: Hampden Way Nursery School.1001.SEN .I03.Ma24 | Z10: 263.9166667 | AA10: 1001.SEN .I03.Ju241 | AB10: Hampden Way Nursery School.1001.SEN .I03.Ju24 | AC10: 652.3333333 | AD10: 1001.SEN .I03.Jul241 | AE10: Hampden Way Nursery School.1001.SEN .I03.Jul24 | AF10: 738.6481481 | AG10: 1001.SEN .I03.Aug241 | AH10: Hampden Way Nursery School.1001.SEN .I03.Aug24 | AI10: 738.6481481 | AJ10: 1001.SEN .I03.Sep241 | AK10: Hampden Way Nursery School.1001.SEN .I03.Sep24 | AL10: 738.6481481 | AM10: 1001.SEN .I03.Oct241 | AN10: Hampden Way Nursery School.1001.SEN .I03.Oct24 | AO10: 738.6481481 | AP10: 1001.SEN .I03.Nov241 | AQ10: Hampden Way Nursery School.1001.SEN .I03.Nov24 | AR10: 738.6481481 | AS10: 1001.SEN .I03.Dec241 | AT10: Hampden Way Nursery School.1001.SEN .I03.Dec24 | AU10: 2472.637037 | AV10: 1001.SEN .I03.Jan241 | AW10: Hampden Way Nursery School.1001.SEN .I03.Jan24 | AX10: 1236.318519 | AY10: 1001.SEN .I03.Feb241 | AZ10: Hampden Way Nursery School.1001.SEN .I03.Feb24 | BA10: 1236.318519 | BB10: 1001.SEN .I03.Mar251 | BC10: Hampden Way Nursery School.1001.SEN .I03.Mar25 | BD10: 1236.318519 | BE10: 11055 | BF10: 0
A11: 3021002 | B11: 3021002 | C11: Moss Hall Nursery | D11: 0 | E11: M | F11: Nursery | G11: D10265 | H11: SEN Inclusion | I11: SEN | J11: 661225 | K11: I03 | L11: 1 | M11: SEN .I03 | N11: 400072 | O11: Moss Hall Nursery School | P11: Moss Hall Nursery School | Q11: S900008330 | R11: N3 1NR | S11: A1.D10265.661225.99999.9999999.999999 | T11: 0 | U11: 1002.SEN .I03.Ap241 | V11: Moss Hall Nursery School.1002.SEN .I03.Ap24 | W11: 209.1666667 | X11: 1002.SEN .I03.Ma241 | Y11: Moss Hall Nursery School.1002.SEN .I03.Ma24 | Z11: 209.1666667 | AA11: 1002.SEN .I03.Ju241 | AB11: Moss Hall Nursery School.1002.SEN .I03.Ju24 | AD11: 1002.SEN .I03.Jul241 | AE11: Moss Hall Nursery School.1002.SEN .I03.Jul24 | AF11: -418.3333333 | AG11: 1002.SEN .I03.Aug241 | AH11: Moss Hall Nursery School.1002.SEN .I03.Aug24 | AJ11: 1002.SEN .I03.Sep241 | AK11: Moss Hall Nursery School.1002.SEN .I03.Sep24 | AM11: 1002.SEN .I03.Oct241 | AN11: Moss Hall Nursery School.1002.SEN .I03.Oct24 | AP11: 1002.SEN .I03.Nov241 | AQ11: Moss Hall Nursery School.1002.SEN .I03.Nov24 | AS11: 1002.SEN .I03.Dec241 | AT11: Moss Hall Nursery School.1002.SEN .I03.Dec24 | AU11: 0 | AV11: 1002.SEN .I03.Jan241 | AW11: Moss Hall Nursery School.1002.SEN .I03.Jan24 | AX11: 0 | AY11: 1002.SEN .I03.Feb241 | AZ11: Moss Hall Nursery School.1002.SEN .I03.Feb24 | BA11: 0 | BB11: 1002.SEN .I03.Mar251 | BC11: Moss Hall Nursery School.1002.SEN .I03.Mar25 | BD11: 0 | BE11: 0 | BF11: 0
A12: 3021002 | B12: 3021002 | C12: Moss Hall Nursery | D12: 0 | E12: M | F12: Nursery | G12: D11439 | H12: Nursery Schools | I12: EHCPN | J12: 661225 | K12: I03 | L12: 2 | M12: EHCPN.I03 | N12: 400072 | O12: Moss Hall Nursery School | P12: Moss Hall Nursery School | Q12: S900008330 | R12: N3 1NR | S12: A1.D11439.661225.99999.9999999.999999 | T12: 8514.379259 | U12: 1002.EHCPN.I03.Ap241 | V12: Moss Hall Nursery School.1002.EHCPN.I03.Ap24 | X12: 1002.EHCPN.I03.Ma241 | Y12: Moss Hall Nursery School.1002.EHCPN.I03.Ma24 | AA12: 1002.EHCPN.I03.Ju241 | AB12: Moss Hall Nursery School.1002.EHCPN.I03.Ju24 | AC12: 1702.875833 | AD12: 1002.EHCPN.I03.Jul241 | AE12: Moss Hall Nursery School.1002.EHCPN.I03.Jul24 | AF12: 2081.292685 | AG12: 1002.EHCPN.I03.Aug241 | AH12: Moss Hall Nursery School.1002.EHCPN.I03.Aug24 | AI12: 2081.292685 | AJ12: 1002.EHCPN.I03.Sep241 | AK12: Moss Hall Nursery School.1002.EHCPN.I03.Sep24 | AL12: 2081.292685 | AM12: 1002.EHCPN.I03.Oct241 | AN12: Moss Hall Nursery School.1002.EHCPN.I03.Oct24 | AO12: 2081.292685 | AP12: 1002.EHCPN.I03.Nov241 | AQ12: Moss Hall Nursery School.1002.EHCPN.I03.Nov24 | AR12: 2081.292685 | AS12: 1002.EHCPN.I03.Dec241 | AT12: Moss Hall Nursery School.1002.EHCPN.I03.Dec24 | AU12: -3594.96 | AV12: 1002.EHCPN.I03.Jan241 | AW12: Moss Hall Nursery School.1002.EHCPN.I03.Jan24 | AY12: 1002.EHCPN.I03.Feb241 | AZ12: Moss Hall Nursery School.1002.EHCPN.I03.Feb24 | BB12: 1002.EHCPN.I03.Mar251 | BC12: Moss Hall Nursery School.1002.EHCPN.I03.Mar25 | BE12: 8514.379259 | BF12: 0
A13: 3021003 | B13: 3021003 | C13: St Margaret's Nursery | D13: 0 | E13: M | F13: Nursery | G13: D10265 | H13: SEN Inclusion | I13: SEN | J13: 661225 | K13: I03 | L13: 1 | M13: SEN .I03 | N13: 400102 | O13: St Margaret's Nursery School | P13: St Margaret's Nursery School | Q13: S900008348 | R13: EN4 9NT | S13: A1.D10265.661225.99999.9999999.999999 | T13: 21332 | U13: 1003.SEN .I03.Ap241 | V13: St Margaret's Nursery School.1003.SEN .I03.Ap24 | W13: 340.5833333 | X13: 1003.SEN .I03.Ma241 | Y13: St Margaret's Nursery School.1003.SEN .I03.Ma24 | Z13: 340.5833333 | AA13: 1003.SEN .I03.Ju241 | AB13: St Margaret's Nursery School.1003.SEN .I03.Ju24 | AC13: 1777.666667 | AD13: 1003.SEN .I03.Jul241 | AE13: St Margaret's Nursery School.1003.SEN .I03.Jul24 | AF13: 2097.018519 | AG13: 1003.SEN .I03.Aug241 | AH13: St Margaret's Nursery School.1003.SEN .I03.Aug24 | AI13: 2097.018519 | AJ13: 1003.SEN .I03.Sep241 | AK13: St Margaret's Nursery School.1003.SEN .I03.Sep24 | AL13: 2097.018519 | AM13: 1003.SEN .I03.Oct241 | AN13: St Margaret's Nursery School.1003.SEN .I03.Oct24 | AO13: 2097.018519 | AP13: 1003.SEN .I03.Nov241 | AQ13: St Margaret's Nursery School.1003.SEN .I03.Nov24 | AR13: 2097.018519 | AS13: 1003.SEN .I03.Dec241 | AT13: St Margaret's Nursery School.1003.SEN .I03.Dec24 | AU13: 3355.22963 | AV13: 1003.SEN .I03.Jan241 | AW13: St Margaret's Nursery School.1003.SEN .I03.Jan24 | AX13: 1677.614815 | AY13: 1003.SEN .I03.Feb241 | AZ13: St Margaret's Nursery School.1003.SEN .I03.Feb24 | BA13: 1677.614815 | BB13: 1003.SEN .I03.Mar251 | BC13: St Margaret's Nursery School.1003.SEN .I03.Mar25 | BD13: 1677.614815 | BE13: 21332 | BF13: 0
A14: 3021003 | B14: 3021003 | C14: St Margaret's Nursery | D14: 0 | E14: M | F14: Nursery | G14: D11439 | H14: Nursery Schools | I14: EHCPN | J14: 661225 | K14: I03 | L14: 2 | M14: EHCPN.I03 | N14: 400102 | O14: St Margaret's Nursery School | P14: St Margaret's Nursery School | Q14: S900008348 | R14: EN4 9NT | S14: A1.D11439.661225.99999.9999999.999999 | T14: 9848.296574 | U14: 1003.EHCPN.I03.Ap241 | V14: St Margaret's Nursery School.1003.EHCPN.I03.Ap24 | W14: 394.9723958 | X14: 1003.EHCPN.I03.Ma241 | Y14: St Margaret's Nursery School.1003.EHCPN.I03.Ma24 | Z14: 394.9723958 | AA14: 1003.EHCPN.I03.Ju241 | AB14: St Margaret's Nursery School.1003.EHCPN.I03.Ju24 | AC14: 1482.921562 | AD14: 1003.EHCPN.I03.Jul241 | AE14: St Margaret's Nursery School.1003.EHCPN.I03.Jul24 | AF14: 1724.688044 | AG14: 1003.EHCPN.I03.Aug241 | AH14: St Margaret's Nursery School.1003.EHCPN.I03.Aug24 | AI14: 1724.688044 | AJ14: 1003.EHCPN.I03.Sep241 | AK14: St Margaret's Nursery School.1003.EHCPN.I03.Sep24 | AL14: 1724.688044 | AM14: 1003.EHCPN.I03.Oct241 | AN14: St Margaret's Nursery School.1003.EHCPN.I03.Oct24 | AO14: 1724.688044 | AP14: 1003.EHCPN.I03.Nov241 | AQ14: St Margaret's Nursery School.1003.EHCPN.I03.Nov24 | AR14: 1724.688044 | AS14: 1003.EHCPN.I03.Dec241 | AT14: St Margaret's Nursery School.1003.EHCPN.I03.Dec24 | AU14: -1048.01 | AV14: 1003.EHCPN.I03.Jan241 | AW14: St Margaret's Nursery School.1003.EHCPN.I03.Jan24 | AY14: 1003.EHCPN.I03.Feb241 | AZ14: St Margaret's Nursery School.1003.EHCPN.I03.Feb24 | BB14: 1003.EHCPN.I03.Mar251 | BC14: St Margaret's Nursery School.1003.EHCPN.I03.Mar25 | BE14: 9848.296574 | BF14: 0
A15: 3021100 | B15: 3021100 | C15: Pavilion | D15: 0 | E15: M | F15: PRU | G15: D11425 | H15: PRUs | I15: PRUs | J15: 661225 | K15: I03 | L15: 1 | M15: PRUs.I03 | N15: 400156 | O15: Pavilion Study Centre | P15: Pavilion Study Centre | Q15: S900008365 | R15: N20 9DX | S15: A1.D11425.661225.99999.9999999.999999 | T15: 1092440.913 | U15: 1100.PRUs.I03.Ap241 | V15: Pavilion Study Centre.1100.PRUs.I03.Ap24 | W15: 79963.59028 | X15: 1100.PRUs.I03.Ma241 | Y15: Pavilion Study Centre.1100.PRUs.I03.Ma24 | Z15: 79824.17 | AA15: 1100.PRUs.I03.Ju241 | AB15: Pavilion Study Centre.1100.PRUs.I03.Ju24 | AC15: 92289.38944 | AD15: 1100.PRUs.I03.Jul241 | AE15: Pavilion Study Centre.1100.PRUs.I03.Jul24 | AF15: 95043.94707 | AG15: 1100.PRUs.I03.Aug241 | AH15: Pavilion Study Centre.1100.PRUs.I03.Aug24 | AI15: 95043.94707 | AJ15: 1100.PRUs.I03.Sep241 | AK15: Pavilion Study Centre.1100.PRUs.I03.Sep24 | AL15: 95043.94707 | AM15: 1100.PRUs.I03.Oct241 | AN15: Pavilion Study Centre.1100.PRUs.I03.Oct24 | AO15: 95043.94707 | AP15: 1100.PRUs.I03.Nov241 | AQ15: Pavilion Study Centre.1100.PRUs.I03.Nov24 | AR15: 95043.94707 | AS15: 1100.PRUs.I03.Dec241 | AT15: Pavilion Study Centre.1100.PRUs.I03.Dec24 | AU15: 146057.6113 | AV15: 1100.PRUs.I03.Jan241 | AW15: Pavilion Study Centre.1100.PRUs.I03.Jan24 | AX15: 73028.80565 | AY15: 1100.PRUs.I03.Feb241 | AZ15: Pavilion Study Centre.1100.PRUs.I03.Feb24 | BA15: 73028.80565 | BB15: 1100.PRUs.I03.Mar251 | BC15: Pavilion Study Centre.1100.PRUs.I03.Mar25 | BD15: 73028.80565 | BE15: 1092440.913 | BF15: 0
A16: 3021102 | B16: 3021102 | C16: Northgate | D16: 0 | E16: M | F16: PRU | G16: D11425 | H16: PRUs | I16: PRUs | J16: 661225 | K16: I03 | L16: 1 | M16: PRUs.I03 | N16: 400157 | O16: Northgate | P16: Northgate | Q16: S900008366 | R16: HA8 0AD | S16: A1.D11425.661225.99999.9999999.999999 | T16: 24867.66667 | U16: 1102.PRUs.I03.Ap241 | V16: Northgate.1102.PRUs.I03.Ap24 | W16: =2378.91666666667+2378.91666666667 -> 4757.833333 | X16: 1102.PRUs.I03.Ma241 | Y16: Northgate.1102.PRUs.I03.Ma24 | Z16: =2378.91666666667+2378.91666666667 -> 4757.833333 | AA16: 1102.PRUs.I03.Ju241 | AB16: Northgate.1102.PRUs.I03.Ju24 | AC16: 2343.902778 | AD16: 1102.PRUs.I03.Jul241 | AE16: Northgate.1102.PRUs.I03.Jul24 | AF16: 2336.121914 | AG16: 1102.PRUs.I03.Aug241 | AH16: Northgate.1102.PRUs.I03.Aug24 | AI16: 2336.121914 | AJ16: 1102.PRUs.I03.Sep241 | AK16: Northgate.1102.PRUs.I03.Sep24 | AL16: 2336.121914 | AM16: 1102.PRUs.I03.Oct241 | AN16: Northgate.1102.PRUs.I03.Oct24 | AO16: 2336.121914 | AP16: 1102.PRUs.I03.Nov241 | AQ16: Northgate.1102.PRUs.I03.Nov24 | AR16: 2336.121914 | AS16: 1102.PRUs.I03.Dec241 | AT16: Northgate.1102.PRUs.I03.Dec24 | AU16: 530.9950617 | AV16: 1102.PRUs.I03.Jan241 | AW16: Northgate.1102.PRUs.I03.Jan24 | AX16: 265.4975309 | AY16: 1102.PRUs.I03.Feb241 | AZ16: Northgate.1102.PRUs.I03.Feb24 | BA16: 265.4975309 | BB16: 1102.PRUs.I03.Mar251 | BC16: Northgate.1102.PRUs.I03.Mar25 | BD16: 265.4975309 | BE16: 24867.66667 | BF16: 0
A17: 3022001 | B17: 3022001 | C17: Etz Chaim Jewish School | D17: 0 | E17: A | F17: Primary | G17: D11443 | H17: Academy Primary | I17: EHCP | J17: 657120 | K17: I03 | L17: 1 | M17: EHCP.I03 | N17: 143691 | O17: ETZ Chaim Jewish Primary School | P17: ETZ Chaim Jewish Primary School | Q17: S900001309 | R17: NW7 4SL | S17: A1.D11443.657120.99999.9999999.999999 | T17: 22072 | U17: 2001.EHCP.I03.Ap241 | V17: ETZ Chaim Jewish Primary School.2001.EHCP.I03.Ap24 | W17: 1424 | X17: 2001.EHCP.I03.Ma241 | Y17: ETZ Chaim Jewish Primary School.2001.EHCP.I03.Ma24 | Z17: 1424 | AA17: 2001.EHCP.I03.Ju241 | AB17: ETZ Chaim Jewish Primary School.2001.EHCP.I03.Ju24 | AC17: 1424 | AD17: 2001.EHCP.I03.Jul241 | AE17: ETZ Chaim Jewish Primary School.2001.EHCP.I03.Jul24 | AF17: 1424 | AG17: 2001.EHCP.I03.Aug241 | AH17: ETZ Chaim Jewish Primary School.2001.EHCP.I03.Aug24 | AI17: 1424 | AJ17: 2001.EHCP.I03.Sep241 | AK17: ETZ Chaim Jewish Primary School.2001.EHCP.I03.Sep24 | AL17: 1424 | AM17: 2001.EHCP.I03.Oct241 | AN17: ETZ Chaim Jewish Primary School.2001.EHCP.I03.Oct24 | AO17: 1424 | AP17: 2001.EHCP.I03.Nov241 | AQ17: ETZ Chaim Jewish Primary School.2001.EHCP.I03.Nov24 | AR17: 1424 | AS17: 2001.EHCP.I03.Dec241 | AT17: ETZ Chaim Jewish Primary School.2001.EHCP.I03.Dec24 | AU17: 4272 | AV17: 2001.EHCP.I03.Jan241 | AW17: ETZ Chaim Jewish Primary School.2001.EHCP.I03.Jan24 | AX17: 2136 | AY17: 2001.EHCP.I03.Feb241 | AZ17: ETZ Chaim Jewish Primary School.2001.EHCP.I03.Feb24 | BA17: 2136 | BB17: 2001.EHCP.I03.Mar251 | BC17: ETZ Chaim Jewish Primary School.2001.EHCP.I03.Mar25 | BD17: 2136 | BE17: 22072 | BF17: 0
A18: 3022002 | B18: 3022002 | C18: Barnfield | D18: 0 | E18: M | F18: Primary | G18: D11431 | H18: Maintained Primary | I18: EHCP | J18: 661225 | K18: I03 | L18: 1 | M18: EHCP.I03 | N18: 400005 | O18: Barnfield School | P18: Barnfield School | Q18: S900008281 | R18: HA8 0DA | S18: A1.D11431.661225.99999.9999999.999999 | T18: 195920.33 | U18: 2002.EHCP.I03.Ap241 | V18: Barnfield School.2002.EHCP.I03.Ap24 | W18: 16797.75 | X18: 2002.EHCP.I03.Ma241 | Y18: Barnfield School.2002.EHCP.I03.Ma24 | Z18: 16797.75 | AA18: 2002.EHCP.I03.Ju241 | AB18: Barnfield School.2002.EHCP.I03.Ju24 | AC18: 18053.44444 | AD18: 2002.EHCP.I03.Jul241 | AE18: Barnfield School.2002.EHCP.I03.Jul24 | AF18: 18332.48765 | AG18: 2002.EHCP.I03.Aug241 | AH18: Barnfield School.2002.EHCP.I03.Aug24 | AI18: 18332.48765 | AJ18: 2002.EHCP.I03.Sep241 | AK18: Barnfield School.2002.EHCP.I03.Sep24 | AL18: 18332.48765 | AM18: 2002.EHCP.I03.Oct241 | AN18: Barnfield School.2002.EHCP.I03.Oct24 | AO18: 18332.48765 | AP18: 2002.EHCP.I03.Nov241 | AQ18: Barnfield School.2002.EHCP.I03.Nov24 | AR18: 18332.48765 | AS18: 2002.EHCP.I03.Dec241 | AT18: Barnfield School.2002.EHCP.I03.Dec24 | AU18: 21043.57891 | AV18: 2002.EHCP.I03.Jan241 | AW18: Barnfield School.2002.EHCP.I03.Jan24 | AX18: 10521.78946 | AY18: 2002.EHCP.I03.Feb241 | AZ18: Barnfield School.2002.EHCP.I03.Feb24 | BA18: 10521.78946 | BB18: 2002.EHCP.I03.Mar251 | BC18: Barnfield School.2002.EHCP.I03.Mar25 | BD18: 10521.78946 | BE18: 195920.33 | BF18: 0
A19: 3022002 | B19: 3022002 | C19: Barnfield | D19: 0 | E19: M | F19: Primary | G19: D11436 | H19: Maintained Nursery Clases | I19: EHCPN | J19: 661225 | K19: I03 | L19: 2 | M19: EHCPN.I03 | N19: 400005 | O19: Barnfield School | P19: Barnfield School | Q19: S900008281 | R19: HA8 0DA | S19: A1.D11436.661225.99999.9999999.999999 | T19: 0 | U19: 2002.EHCPN.I03.Ap241 | V19: Barnfield School.2002.EHCPN.I03.Ap24 | X19: 2002.EHCPN.I03.Ma241 | Y19: Barnfield School.2002.EHCPN.I03.Ma24 | AA19: 2002.EHCPN.I03.Ju241 | AB19: Barnfield School.2002.EHCPN.I03.Ju24 | AD19: 2002.EHCPN.I03.Jul241 | AE19: Barnfield School.2002.EHCPN.I03.Jul24 | AF19: 0 | AG19: 2002.EHCPN.I03.Aug241 | AH19: Barnfield School.2002.EHCPN.I03.Aug24 | AI19: 0 | AJ19: 2002.EHCPN.I03.Sep241 | AK19: Barnfield School.2002.EHCPN.I03.Sep24 | AL19: 0 | AM19: 2002.EHCPN.I03.Oct241 | AN19: Barnfield School.2002.EHCPN.I03.Oct24 | AO19: 0 | AP19: 2002.EHCPN.I03.Nov241 | AQ19: Barnfield School.2002.EHCPN.I03.Nov24 | AR19: 0 | AS19: 2002.EHCPN.I03.Dec241 | AT19: Barnfield School.2002.EHCPN.I03.Dec24 | AU19: 0 | AV19: 2002.EHCPN.I03.Jan241 | AW19: Barnfield School.2002.EHCPN.I03.Jan24 | AX19: 0 | AY19: 2002.EHCPN.I03.Feb241 | AZ19: Barnfield School.2002.EHCPN.I03.Feb24 | BA19: 0 | BB19: 2002.EHCPN.I03.Mar251 | BC19: Barnfield School.2002.EHCPN.I03.Mar25 | BD19: 0 | BE19: 0 | BF19: 0
A20: 3022002 | B20: 3022002 | C20: Barnfield | D20: 0 | E20: M | F20: Primary | G20: D10265 | H20: SEN Inclusion | I20: SEN | J20: 661225 | K20: I03 | L20: 3 | M20: SEN .I03 | N20: 400005 | O20: Barnfield School | P20: Barnfield School | Q20: S900008281 | R20: HA8 0DA | S20: A1.D10265.661225.99999.9999999.999999 | T20: 1673 | U20: 2002.SEN .I03.Ap241 | V20: Barnfield School.2002.SEN .I03.Ap24 | W20: 139.4166667 | X20: 2002.SEN .I03.Ma241 | Y20: Barnfield School.2002.SEN .I03.Ma24 | Z20: 278.84 | AA20: 2002.SEN .I03.Ju241 | AB20: Barnfield School.2002.SEN .I03.Ju24 | AC20: 139.4166667 | AD20: 2002.SEN .I03.Jul241 | AE20: Barnfield School.2002.SEN .I03.Jul24 | AF20: 123.9251852 | AG20: 2002.SEN .I03.Aug241 | AH20: Barnfield School.2002.SEN .I03.Aug24 | AI20: 123.9251852 | AJ20: 2002.SEN .I03.Sep241 | AK20: Barnfield School.2002.SEN .I03.Sep24 | AL20: 123.9251852 | AM20: 2002.SEN .I03.Oct241 | AN20: Barnfield School.2002.SEN .I03.Oct24 | AO20: 123.9251852 | AP20: 2002.SEN .I03.Nov241 | AQ20: Barnfield School.2002.SEN .I03.Nov24 | AR20: 123.9251852 | AS20: 2002.SEN .I03.Dec241 | AT20: Barnfield School.2002.SEN .I03.Dec24 | AU20: 198.2802963 | AV20: 2002.SEN .I03.Jan241 | AW20: Barnfield School.2002.SEN .I03.Jan24 | AX20: 99.14014815 | AY20: 2002.SEN .I03.Feb241 | AZ20: Barnfield School.2002.SEN .I03.Feb24 | BA20: 99.14014815 | BB20: 2002.SEN .I03.Mar251 | BC20: Barnfield School.2002.SEN .I03.Mar25 | BD20: 99.14014815 | BE20: 1673 | BF20: 0
A21: 3022003 | B21: 3022003 | C21: Bell Lane | D21: 0 | E21: A | F21: Primary | G21: D11431 | H21: Academy Primary | I21: EHCP | J21: 657120 | K21: I03 | L21: 1 | M21: EHCP.I03 | N21: 400051 | O21: Bell Lane School | P21: Saracens High School | Q21: S900003072 | R21: NW9 4AS | S21: A1.D11431.661225.99999.9999999.999999 | T21: 129954.0888 | U21: 2003.EHCP.I03.Ap241 | V21: Bell Lane School.2003.EHCP.I03.Ap24 | AJ21: 2003.EHCP.I03.Sep241 | AK21: Bell Lane School.2003.EHCP.I03.Sep24 | AL21: =AI23 -> 18937.01269 | AM21: 2003.EHCP.I03.Oct241 | AN21: Bell Lane School.2003.EHCP.I03.Oct24 | AO21: 18937.01269 | AP21: 2003.EHCP.I03.Nov241 | AQ21: Bell Lane School.2003.EHCP.I03.Nov24 | AR21: 18937.01269 | AS21: 2003.EHCP.I03.Dec241 | AT21: Bell Lane School.2003.EHCP.I03.Dec24 | AU21: 29257.2203 | AV21: 2003.EHCP.I03.Jan241 | AW21: Bell Lane School.2003.EHCP.I03.Jan24 | AX21: 14628.61015 | AY21: 2003.EHCP.I03.Feb241 | AZ21: Bell Lane School.2003.EHCP.I03.Feb24 | BA21: 14628.61015 | BB21: 2003.EHCP.I03.Mar251 | BC21: Bell Lane School.2003.EHCP.I03.Mar25 | BD21: 14628.61015 | BE21: 129954.0888 | BF21: 0
A22: 3022003 | B22: 3022003 | C22: Bell Lane | D22: 0 | E22: A | F22: Primary | G22: D10265 | H22: SEN Inclusion | I22: SEN | J22: 657120 | K22: I03 | L22: 2 | M22: SEN .I03 | N22: 400051 | O22: Bell Lane School | P22: Saracens High School | Q22: S900003072 | R22: NW9 4AS | S22: A1.D10265.661225.99999.9999999.999999 | T22: 1324.75 | U22: 2003.SEN .I03.Ap241 | V22: Bell Lane School.2003.SEN .I03.Ap24 | AJ22: 2003.SEN .I03.Sep241 | AK22: Bell Lane School.2003.SEN .I03.Sep24 | AL22: =AI24 -> 189.25 | AM22: 2003.SEN .I03.Oct241 | AN22: Bell Lane School.2003.SEN .I03.Oct24 | AO22: 189.25 | AP22: 2003.SEN .I03.Nov241 | AQ22: Bell Lane School.2003.SEN .I03.Nov24 | AR22: 189.25 | AS22: 2003.SEN .I03.Dec241 | AT22: Bell Lane School.2003.SEN .I03.Dec24 | AU22: 302.8 | AV22: 2003.SEN .I03.Jan241 | AW22: Bell Lane School.2003.SEN .I03.Jan24 | AX22: 151.4 | AY22: 2003.SEN .I03.Feb241 | AZ22: Bell Lane School.2003.SEN .I03.Feb24 | BA22: 151.4 | BB22: 2003.SEN .I03.Mar251 | BC22: Bell Lane School.2003.SEN .I03.Mar25 | BD22: 151.4 | BE22: 1324.75 | BF22: 0
A23: 3022003 | B23: 3022003 | C23: Bell Lane | D23: 0 | E23: M | F23: Primary | G23: D11431 | H23: Maintained Primary | I23: EHCP | J23: 661225 | K23: I03 | L23: 1 | M23: EHCP.I03 | N23: 400051 | O23: Bell Lane School | P23: Bell Lane School | Q23: S900008315 | R23: NW4 2AS | S23: A1.D11431.661225.99999.9999999.999999 | T23: 90807.5812 | U23: 2003.EHCP.I03.Ap241 | V23: Bell Lane School.2003.EHCP.I03.Ap24 | W23: 17159.83333 | X23: =RIGHT($B21,4)&"."&$M21&"."&X$3 -> 2003.EHCP.I03.Ma241 | Y23: =$O21&"."&RIGHT($B21,4)&"."&$M21&"."&Y$3 -> Bell Lane School.2003.EHCP.I03.Ma24 | Z23: 17159.83333 | AA23: =RIGHT($B21,4)&"."&$M21&"."&AA$3 -> 2003.EHCP.I03.Ju241 | AB23: =$O21&"."&RIGHT($B21,4)&"."&$M21&"."&AB$3 -> Bell Lane School.2003.EHCP.I03.Ju24 | AC23: 18613.88917 | AD23: =RIGHT($B21,4)&"."&$M21&"."&AD$3 -> 2003.EHCP.I03.Jul241 | AE23: =$O21&"."&RIGHT($B21,4)&"."&$M21&"."&AE$3 -> Bell Lane School.2003.EHCP.I03.Jul24 | AF23: 18937.01269 | AG23: =RIGHT($B21,4)&"."&$M21&"."&AG$3 -> 2003.EHCP.I03.Aug241 | AH23: =$O21&"."&RIGHT($B21,4)&"."&$M21&"."&AH$3 -> Bell Lane School.2003.EHCP.I03.Aug24 | AI23: =AF23 -> 18937.01269 | AJ23: 2003.EHCP.I03.Sep241 | AK23: Bell Lane School.2003.EHCP.I03.Sep24 | BE23: 90807.5812 | BF23: 0
A24: 3022003 | B24: 3022003 | C24: Bell Lane | D24: 0 | E24: M | F24: Primary | G24: D10265 | H24: SEN Inclusion | I24: SEN | J24: 661225 | K24: I03 | L24: 2 | M24: SEN .I03 | N24: 400051 | O24: Bell Lane School | P24: Bell Lane School | Q24: S900008315 | R24: NW4 2AS | S24: A1.D10265.661225.99999.9999999.999999 | T24: 946.25 | U24: 2003.SEN .I03.Ap241 | V24: Bell Lane School.2003.SEN .I03.Ap24 | W24: 189.25 | X24: =RIGHT($B22,4)&"."&$M22&"."&X$3 -> 2003.SEN .I03.Ma241 | Y24: =$O22&"."&RIGHT($B22,4)&"."&$M22&"."&Y$3 -> Bell Lane School.2003.SEN .I03.Ma24 | Z24: 189.25 | AA24: =RIGHT($B22,4)&"."&$M22&"."&AA$3 -> 2003.SEN .I03.Ju241 | AB24: =$O22&"."&RIGHT($B22,4)&"."&$M22&"."&AB$3 -> Bell Lane School.2003.SEN .I03.Ju24 | AC24: 189.25 | AD24: =RIGHT($B22,4)&"."&$M22&"."&AD$3 -> 2003.SEN .I03.Jul241 | AE24: =$O22&"."&RIGHT($B22,4)&"."&$M22&"."&AE$3 -> Bell Lane School.2003.SEN .I03.Jul24 | AF24: 189.25 | AG24: =RIGHT($B22,4)&"."&$M22&"."&AG$3 -> 2003.SEN .I03.Aug241 | AH24: =$O22&"."&RIGHT($B22,4)&"."&$M22&"."&AH$3 -> Bell Lane School.2003.SEN .I03.Aug24 | AI24: =AF24 -> 189.25 | AJ24: 2003.SEN .I03.Sep241 | AK24: Bell Lane School.2003.SEN .I03.Sep24 | BE24: 946.25 | BF24: 0
A25: 3022004 | B25: 3022004 | C25: Rimon Jewish | D25: 0 | E25: A | F25: Primary | G25: D11443 | H25: Academy Primary | I25: EHCP | J25: 657120 | K25: I03 | L25: 1 | M25: EHCP.I03 | N25: 155029 | O25: Rimon Jewish Primary School | P25: Rimon Jewish Primary School | Q25: S900001967 | R25: NW11 8AE | S25: A1.D11443.657120.99999.9999999.999999 | T25: 58525.33 | U25: 2004.EHCP.I03.Ap241 | V25: Rimon Jewish Primary School.2004.EHCP.I03.Ap24 | W25: 5446.583333 | X25: 2004.EHCP.I03.Ma241 | Y25: Rimon Jewish Primary School.2004.EHCP.I03.Ma24 | Z25: 5446.583333 | AA25: 2004.EHCP.I03.Ju241 | AB25: Rimon Jewish Primary School.2004.EHCP.I03.Ju24 | AC25: 5831.930833 | AD25: 2004.EHCP.I03.Jul241 | AE25: Rimon Jewish Primary School.2004.EHCP.I03.Jul24 | AF25: 5917.563611 | AG25: 2004.EHCP.I03.Aug241 | AH25: Rimon Jewish Primary School.2004.EHCP.I03.Aug24 | AI25: 5917.563611 | AJ25: 2004.EHCP.I03.Sep241 | AK25: Rimon Jewish Primary School.2004.EHCP.I03.Sep24 | AL25: 5917.563611 | AM25: 2004.EHCP.I03.Oct241 | AN25: Rimon Jewish Primary School.2004.EHCP.I03.Oct24 | AO25: 5917.563611 | AP25: 2004.EHCP.I03.Nov241 | AQ25: Rimon Jewish Primary School.2004.EHCP.I03.Nov24 | AR25: 5917.563611 | AS25: 2004.EHCP.I03.Dec241 | AT25: Rimon Jewish Primary School.2004.EHCP.I03.Dec24 | AU25: 4884.965778 | AV25: 2004.EHCP.I03.Jan241 | AW25: Rimon Jewish Primary School.2004.EHCP.I03.Jan24 | AX25: 2442.482889 | AY25: 2004.EHCP.I03.Feb241 | AZ25: Rimon Jewish Primary School.2004.EHCP.I03.Feb24 | BA25: 2442.482889 | BB25: 2004.EHCP.I03.Mar251 | BC25: Rimon Jewish Primary School.2004.EHCP.I03.Mar25 | BD25: 2442.482889 | BE25: 58525.33 | BF25: 0
A26: 3022007 | B26: 3022007 | C26: Brookland Junior | D26: 0 | E26: M | F26: Primary | G26: D11431 | H26: Maintained Primary | I26: EHCP | J26: 661225 | K26: I03 | L26: 1 | M26: EHCP.I03 | N26: 400040 | O26: Brookland Junior School | P26: Brookland Junior School | Q26: S900008306 | R26: NW11 6EJ | S26: A1.D11431.661225.99999.9999999.999999 | T26: 155789.08 | U26: 2007.EHCP.I03.Ap241 | V26: Brookland Junior School.2007.EHCP.I03.Ap24 | W26: 14685.41 | X26: 2007.EHCP.I03.Ma241 | Y26: Brookland Junior School.2007.EHCP.I03.Ma24 | Z26: 14685.41 | AA26: 2007.EHCP.I03.Ju241 | AB26: Brookland Junior School.2007.EHCP.I03.Ju24 | AC26: 14643.80583 | AD26: 2007.EHCP.I03.Jul241 | AE26: Brookland Junior School.2007.EHCP.I03.Jul24 | AF26: 14634.56046 | AG26: 2007.EHCP.I03.Aug241 | AH26: Brookland Junior School.2007.EHCP.I03.Aug24 | AI26: 14634.56046 | AJ26: 2007.EHCP.I03.Sep241 | AK26: Brookland Junior School.2007.EHCP.I03.Sep24 | AL26: 14634.56046 | AM26: 2007.EHCP.I03.Oct241 | AN26: Brookland Junior School.2007.EHCP.I03.Oct24 | AO26: 14634.56046 | AP26: 2007.EHCP.I03.Nov241 | AQ26: Brookland Junior School.2007.EHCP.I03.Nov24 | AR26: 14634.56046 | AS26: 2007.EHCP.I03.Dec241 | AT26: Brookland Junior School.2007.EHCP.I03.Dec24 | AU26: 15440.66074 | AV26: 2007.EHCP.I03.Jan241 | AW26: Brookland Junior School.2007.EHCP.I03.Jan24 | AX26: 7720.33037 | AY26: 2007.EHCP.I03.Feb241 | AZ26: Brookland Junior School.2007.EHCP.I03.Feb24 | BA26: 7720.33037 | BB26: 2007.EHCP.I03.Mar251 | BC26: Brookland Junior School.2007.EHCP.I03.Mar25 | BD26: 7720.33037 | BE26: 155789.08 | BF26: 0
A27: 3022008 | B27: 3022008 | C27: Brookland Infant | D27: 0 | E27: M | F27: Primary | G27: D11431 | H27: Maintained Primary | I27: EHCP | J27: 661225 | K27: I03 | L27: 1 | M27: EHCP.I03 | N27: 400057 | O27: Brookland Infant School | P27: Brookland Infant School | Q27: S900008317 | R27: NW11 6EJ | S27: A1.D11431.661225.99999.9999999.999999 | T27: 114245.83 | U27: 2008.EHCP.I03.Ap241 | V27: Brookland Infant School.2008.EHCP.I03.Ap24 | W27: 9221.416667 | X27: 2008.EHCP.I03.Ma241 | Y27: Brookland Infant School.2008.EHCP.I03.Ma24 | Z27: 9221.416667 | AA27: 2008.EHCP.I03.Ju241 | AB27: Brookland Infant School.2008.EHCP.I03.Ju24 | AC27: 9221.416667 | AD27: 2008.EHCP.I03.Jul241 | AE27: Brookland Infant School.2008.EHCP.I03.Jul24 | AF27: 9221.416667 | AG27: 2008.EHCP.I03.Aug241 | AH27: Brookland Infant School.2008.EHCP.I03.Aug24 | AI27: 9221.416667 | AJ27: 2008.EHCP.I03.Sep241 | AK27: Brookland Infant School.2008.EHCP.I03.Sep24 | AL27: 9221.416667 | AM27: 2008.EHCP.I03.Oct241 | AN27: Brookland Infant School.2008.EHCP.I03.Oct24 | AO27: 9221.416667 | AP27: 2008.EHCP.I03.Nov241 | AQ27: Brookland Infant School.2008.EHCP.I03.Nov24 | AR27: 9221.416667 | AS27: 2008.EHCP.I03.Dec241 | AT27: Brookland Infant School.2008.EHCP.I03.Dec24 | AU27: 16189.79867 | AV27: 2008.EHCP.I03.Jan241 | AW27: Brookland Infant School.2008.EHCP.I03.Jan24 | AX27: 8094.899333 | AY27: 2008.EHCP.I03.Feb241 | AZ27: Brookland Infant School.2008.EHCP.I03.Feb24 | BA27: 8094.899333 | BB27: 2008.EHCP.I03.Mar251 | BC27: Brookland Infant School.2008.EHCP.I03.Mar25 | BD27: 8094.899333 | BE27: 114245.83 | BF27: 0
A28: 3022008 | B28: 3022008 | C28: Brookland Infant | D28: 0 | E28: M | F28: Primary | G28: D10265 | H28: SEN Inclusion | I28: SEN | J28: 661225 | K28: I03 | L28: 2 | M28: SEN .I03 | N28: 400057 | O28: Brookland Infant School | P28: Brookland Infant School | Q28: S900008317 | R28: NW11 6EJ | S28: A1.D10265.661225.99999.9999999.999999 | T28: -478 | U28: 2008.SEN .I03.Ap241 | V28: Brookland Infant School.2008.SEN .I03.Ap24 | W28: 111.5 | X28: 2008.SEN .I03.Ma241 | Y28: Brookland Infant School.2008.SEN .I03.Ma24 | Z28: 111.5 | AA28: 2008.SEN .I03.Ju241 | AB28: Brookland Infant School.2008.SEN .I03.Ju24 | AD28: 2008.SEN .I03.Jul241 | AE28: Brookland Infant School.2008.SEN .I03.Jul24 | AF28: -701 | AG28: 2008.SEN .I03.Aug241 | AH28: Brookland Infant School.2008.SEN .I03.Aug24 | AJ28: 2008.SEN .I03.Sep241 | AK28: Brookland Infant School.2008.SEN .I03.Sep24 | AM28: 2008.SEN .I03.Oct241 | AN28: Brookland Infant School.2008.SEN .I03.Oct24 | AP28: 2008.SEN .I03.Nov241 | AQ28: Brookland Infant School.2008.SEN .I03.Nov24 | AS28: 2008.SEN .I03.Dec241 | AT28: Brookland Infant School.2008.SEN .I03.Dec24 | AU28: 0 | AV28: 2008.SEN .I03.Jan241 | AW28: Brookland Infant School.2008.SEN .I03.Jan24 | AX28: 0 | AY28: 2008.SEN .I03.Feb241 | AZ28: Brookland Infant School.2008.SEN .I03.Feb24 | BA28: 0 | BB28: 2008.SEN .I03.Mar251 | BC28: Brookland Infant School.2008.SEN .I03.Mar25 | BD28: 0 | BE28: -478 | BF28: 0
A29: 3022009 | B29: 3022009 | C29: Brunswick Park | D29: 0 | E29: M | F29: Primary | G29: D10265 | H29: SEN Inclusion | I29: SEN | J29: 661225 | K29: I03 | L29: =IF(C27=C29,L27+1,1) -> 1 | M29: SEN .I03 | N29: 400061 | O29: Brunswick Park Primary and Nursery Sc | P29: Brunswick Park Primary and Nursery Sc | Q29: S900008320 | R29: N14 5DU | S29: A1.D11431.661225.99999.9999999.999999 | T29: 3227 | U29: 2009.SEN .I03.Ap241 | V29: Brunswick Park Primary and Nursery Sc.2009.SEN .I03.Ap24 | X29: 2009.SEN .I03.Ma241 | Y29: Brunswick Park Primary and Nursery Sc.2009.SEN .I03.Ma24 | AA29: 2009.SEN .I03.Ju241 | AB29: Brunswick Park Primary and Nursery Sc.2009.SEN .I03.Ju24 | AD29: 2009.SEN .I03.Jul241 | AE29: Brunswick Park Primary and Nursery Sc.2009.SEN .I03.Jul24 | AG29: 2009.SEN .I03.Aug241 | AH29: Brunswick Park Primary and Nursery Sc.2009.SEN .I03.Aug24 | AJ29: 2009.SEN .I03.Sep241 | AK29: Brunswick Park Primary and Nursery Sc.2009.SEN .I03.Sep24 | AM29: 2009.SEN .I03.Oct241 | AN29: Brunswick Park Primary and Nursery Sc.2009.SEN .I03.Oct24 | AP29: 2009.SEN .I03.Nov241 | AQ29: Brunswick Park Primary and Nursery Sc.2009.SEN .I03.Nov24 | AS29: 2009.SEN .I03.Dec241 | AT29: Brunswick Park Primary and Nursery Sc.2009.SEN .I03.Dec24 | AU29: 1290.8 | AV29: 2009.SEN .I03.Jan241 | AW29: Brunswick Park Primary and Nursery Sc.2009.SEN .I03.Jan24 | AX29: 645.4 | AY29: 2009.SEN .I03.Feb241 | AZ29: Brunswick Park Primary and Nursery Sc.2009.SEN .I03.Feb24 | BA29: 645.4 | BB29: 2009.SEN .I03.Mar251 | BC29: Brunswick Park Primary and Nursery Sc.2009.SEN .I03.Mar25 | BD29: 645.4 | BE29: 3227 | BF29: 0
A30: 3022009 | B30: 3022009 | C30: Brunswick Park | D30: 0 | E30: M | F30: Primary | G30: D11431 | H30: Maintained Primary | I30: EHCP | J30: 661225 | K30: I03 | L30: =IF(C28=C30,L28+1,1) -> 1 | M30: EHCP.I03 | N30: 400061 | O30: Brunswick Park Primary and Nursery Sc | P30: Brunswick Park Primary and Nursery Sc | Q30: S900008320 | R30: N14 5DU | S30: A1.D11431.661225.99999.9999999.999999 | T30: 243653.08 | U30: 2009.EHCP.I03.Ap241 | V30: Brunswick Park Primary and Nursery Sc.2009.EHCP.I03.Ap24 | W30: 17780 | X30: 2009.EHCP.I03.Ma241 | Y30: Brunswick Park Primary and Nursery Sc.2009.EHCP.I03.Ma24 | Z30: 17780 | AA30: 2009.EHCP.I03.Ju241 | AB30: Brunswick Park Primary and Nursery Sc.2009.EHCP.I03.Ju24 | AC30: 21162 | AD30: 2009.EHCP.I03.Jul241 | AE30: Brunswick Park Primary and Nursery Sc.2009.EHCP.I03.Jul24 | AF30: 21913.55556 | AG30: 2009.EHCP.I03.Aug241 | AH30: Brunswick Park Primary and Nursery Sc.2009.EHCP.I03.Aug24 | AI30: 21913.55556 | AJ30: 2009.EHCP.I03.Sep241 | AK30: Brunswick Park Primary and Nursery Sc.2009.EHCP.I03.Sep24 | AL30: 21913.55556 | AM30: 2009.EHCP.I03.Oct241 | AN30: Brunswick Park Primary and Nursery Sc.2009.EHCP.I03.Oct24 | AO30: 21913.55556 | AP30: 2009.EHCP.I03.Nov241 | AQ30: Brunswick Park Primary and Nursery Sc.2009.EHCP.I03.Nov24 | AR30: 21913.55556 | AS30: 2009.EHCP.I03.Dec241 | AT30: Brunswick Park Primary and Nursery Sc.2009.EHCP.I03.Dec24 | AU30: 30945.32089 | AV30: 2009.EHCP.I03.Jan241 | AW30: Brunswick Park Primary and Nursery Sc.2009.EHCP.I03.Jan24 | AX30: 15472.66044 | AY30: 2009.EHCP.I03.Feb241 | AZ30: Brunswick Park Primary and Nursery Sc.2009.EHCP.I03.Feb24 | BA30: 15472.66044 | BB30: 2009.EHCP.I03.Mar251 | BC30: Brunswick Park Primary and Nursery Sc.2009.EHCP.I03.Mar25 | BD30: 15472.66044 | BE30: 243653.08 | BF30: 0
A31: 3022010 | B31: 3022010 | C31: Child's Hill Academy | D31: 0 | E31: A | F31: Primary | G31: D10265 | H31: SEN Inclusion | I31: SEN | J31: 657120 | K31: I03 | L31: =IF(C29=C31,L29+1,1) -> 1 | M31: SEN .I03 | N31: 160141 | O31: Childs Hill School | P31: Childs Hill School | Q31: S900008309 | R31: NW2 1SL | S31: A1.D11422.657120.99999.9999999.999999 | T31: 3227 | U31: 2010.SEN .I03.Ap241 | V31: Childs Hill School.2010.SEN .I03.Ap24 | X31: 2010.SEN .I03.Ma241 | Y31: Childs Hill School.2010.SEN .I03.Ma24 | AA31: 2010.SEN .I03.Ju241 | AB31: Childs Hill School.2010.SEN .I03.Ju24 | AD31: 2010.SEN .I03.Jul241 | AE31: Childs Hill School.2010.SEN .I03.Jul24 | AG31: 2010.SEN .I03.Aug241 | AH31: Childs Hill School.2010.SEN .I03.Aug24 | AJ31: 2010.SEN .I03.Sep241 | AK31: Childs Hill School.2010.SEN .I03.Sep24 | AM31: 2010.SEN .I03.Oct241 | AN31: Childs Hill School.2010.SEN .I03.Oct24 | AP31: 2010.SEN .I03.Nov241 | AQ31: Childs Hill School.2010.SEN .I03.Nov24 | AR31: 0 | AS31: 2010.SEN .I03.Dec241 | AT31: Childs Hill School.2010.SEN .I03.Dec24 | AU31: 1290.8 | AV31: 2010.SEN .I03.Jan241 | AW31: Childs Hill School.2010.SEN .I03.Jan24 | AX31: 645.4 | AY31: 2010.SEN .I03.Feb241 | AZ31: Childs Hill School.2010.SEN .I03.Feb24 | BA31: 645.4 | BB31: 2010.SEN .I03.Mar251 | BC31: Childs Hill School.2010.SEN .I03.Mar25 | BD31: 645.4 | BE31: 3227 | BF31: 0
A32: 3022010 | B32: 3022010 | C32: Child's Hill Academy | D32: 0 | E32: A | F32: Primary | G32: D11422 | H32: Academy Primary | I32: ARPs | J32: 657120 | K32: I03 | L32: =IF(C30=C32,L30+1,1) -> 1 | M32: ARPs.I03 | N32: 160141 | O32: Childs Hill School | P32: Childs Hill School | Q32: S900008309 | R32: NW2 1SL | S32: A1.D11422.657120.99999.9999999.999999 | T32: 241969.5 | U32: 2010.ARPs.I03.Ap241 | V32: Childs Hill School.2010.ARPs.I03.Ap24 | W32: 20559.5 | X32: 2010.ARPs.I03.Ma241 | Y32: Childs Hill School.2010.ARPs.I03.Ma24 | Z32: 20559.5 | AA32: 2010.ARPs.I03.Ju241 | AB32: Childs Hill School.2010.ARPs.I03.Ju24 | AC32: 19241.58333 | AD32: 2010.ARPs.I03.Jul241 | AE32: Childs Hill School.2010.ARPs.I03.Jul24 | AF32: 18948.71296 | AG32: 2010.ARPs.I03.Aug241 | AH32: Childs Hill School.2010.ARPs.I03.Aug24 | AI32: 18948.71296 | AJ32: 2010.ARPs.I03.Sep241 | AK32: Childs Hill School.2010.ARPs.I03.Sep24 | AL32: 18948.71296 | AM32: 2010.ARPs.I03.Oct241 | AN32: Childs Hill School.2010.ARPs.I03.Oct24 | AO32: 18948.71296 | AP32: 2010.ARPs.I03.Nov241 | AQ32: Childs Hill School.2010.ARPs.I03.Nov24 | AR32: 18948.71296 | AS32: 2010.ARPs.I03.Dec241 | AT32: Childs Hill School.2010.ARPs.I03.Dec24 | AU32: 34746.14074 | AV32: 2010.ARPs.I03.Jan241 | AW32: Childs Hill School.2010.ARPs.I03.Jan24 | AX32: 17373.07037 | AY32: 2010.ARPs.I03.Feb241 | AZ32: Childs Hill School.2010.ARPs.I03.Feb24 | BA32: 17373.07037 | BB32: 2010.ARPs.I03.Mar251 | BC32: Childs Hill School.2010.ARPs.I03.Mar25 | BD32: 17373.07037 | BE32: 241969.5 | BF32: 0
A33: 3022010 | B33: 3022010 | C33: Child's Hill Academy | D33: 0 | E33: A | F33: Primary | G33: D11443 | H33: Academy Primary | I33: EHCP | J33: 657120 | K33: I03 | L33: 2 | M33: EHCP.I03 | N33: 160141 | O33: Childs Hill School | P33: Childs Hill School | Q33: S900008309 | R33: NW2 1SL | S33: A1.D11443.657120.99999.9999999.999999 | T33: 227307.76 | U33: 2010.EHCP.I03.Ap241 | V33: Childs Hill School.2010.EHCP.I03.Ap24 | W33: 16082.91667 | X33: 2010.EHCP.I03.Ma241 | Y33: Childs Hill School.2010.EHCP.I03.Ma24 | Z33: 16082.91667 | AA33: 2010.EHCP.I03.Ju241 | AB33: Childs Hill School.2010.EHCP.I03.Ju24 | AC33: 16023.58333 | AD33: 2010.EHCP.I03.Jul241 | AE33: Childs Hill School.2010.EHCP.I03.Jul24 | AF33: 16010.39815 | AG33: 2010.EHCP.I03.Aug241 | AH33: Childs Hill School.2010.EHCP.I03.Aug24 | AI33: 16010.39815 | AJ33: 2010.EHCP.I03.Sep241 | AK33: Childs Hill School.2010.EHCP.I03.Sep24 | AL33: 16010.39815 | AM33: 2010.EHCP.I03.Oct241 | AN33: Childs Hill School.2010.EHCP.I03.Oct24 | AO33: 16010.39815 | AP33: 2010.EHCP.I03.Nov241 | AQ33: Childs Hill School.2010.EHCP.I03.Nov24 | AR33: 16010.39815 | AS33: 2010.EHCP.I03.Dec241 | AT33: Childs Hill School.2010.EHCP.I03.Dec24 | AU33: 39626.54104 | AV33: 2010.EHCP.I03.Jan241 | AW33: Childs Hill School.2010.EHCP.I03.Jan24 | AX33: 19813.27052 | AY33: 2010.EHCP.I03.Feb241 | AZ33: Childs Hill School.2010.EHCP.I03.Feb24 | BA33: 19813.27052 | BB33: 2010.EHCP.I03.Mar251 | BC33: Childs Hill School.2010.EHCP.I03.Mar25 | BD33: 19813.27052 | BE33: 227307.76 | BF33: 0
A34: 3022010 | B34: 3022010 | C34: Child's Hill Academy | D34: 0 | E34: A | F34: Primary | G34: D11451 | H34: Academy Nursery Clases | I34: EHCPN | J34: 657120 | K34: I03 | L34: 3 | M34: EHCPN.I03 | N34: 160141 | O34: Childs Hill School | P34: Childs Hill School | Q34: S900008309 | R34: NW2 1SL | S34: A1.D11451.657120.99999.9999999.999999 | T34: 0 | U34: 2010.EHCPN.I03.Ap241 | V34: Childs Hill School.2010.EHCPN.I03.Ap24 | W34: 0 | X34: 2010.EHCPN.I03.Ma241 | Y34: Childs Hill School.2010.EHCPN.I03.Ma24 | AA34: 2010.EHCPN.I03.Ju241 | AB34: Childs Hill School.2010.EHCPN.I03.Ju24 | AD34: 2010.EHCPN.I03.Jul241 | AE34: Childs Hill School.2010.EHCPN.I03.Jul24 | AF34: 0 | AG34: 2010.EHCPN.I03.Aug241 | AH34: Childs Hill School.2010.EHCPN.I03.Aug24 | AI34: 0 | AJ34: 2010.EHCPN.I03.Sep241 | AK34: Childs Hill School.2010.EHCPN.I03.Sep24 | AL34: 0 | AM34: 2010.EHCPN.I03.Oct241 | AN34: Childs Hill School.2010.EHCPN.I03.Oct24 | AO34: 0 | AP34: 2010.EHCPN.I03.Nov241 | AQ34: Childs Hill School.2010.EHCPN.I03.Nov24 | AR34: 0 | AS34: 2010.EHCPN.I03.Dec241 | AT34: Childs Hill School.2010.EHCPN.I03.Dec24 | AU34: 0 | AV34: 2010.EHCPN.I03.Jan241 | AW34: Childs Hill School.2010.EHCPN.I03.Jan24 | AX34: 0 | AY34: 2010.EHCPN.I03.Feb241 | AZ34: Childs Hill School.2010.EHCPN.I03.Feb24 | BA34: 0 | BB34: 2010.EHCPN.I03.Mar251 | BC34: Childs Hill School.2010.EHCPN.I03.Mar25 | BD34: 0 | BE34: 0 | BF34: 0
A35: 3022011 | B35: 3022011 | C35: Church Hill | D35: 0 | E35: M | F35: Primary | G35: D11431 | H35: Maintained Primary | I35: EHCP | J35: 661225 | K35: I03 | L35: 1 | M35: EHCP.I03 | N35: 400020 | O35: Church Hill School | P35: Church Hill School | Q35: S900008292 | R35: EN4 8NN | S35: A1.D11431.661225.99999.9999999.999999 | T35: 98053.76 | U35: 2011.EHCP.I03.Ap241 | V35: Church Hill School.2011.EHCP.I03.Ap24 | W35: 6717.083333 | X35: 2011.EHCP.I03.Ma241 | Y35: Church Hill School.2011.EHCP.I03.Ma24 | Z35: 6717.083333 | AA35: 2011.EHCP.I03.Ju241 | AB35: Church Hill School.2011.EHCP.I03.Ju24 | AC35: 8191.945 | AD35: 2011.EHCP.I03.Jul241 | AE35: Church Hill School.2011.EHCP.I03.Jul24 | AF35: 8519.692037 | AG35: 2011.EHCP.I03.Aug241 | AH35: Church Hill School.2011.EHCP.I03.Aug24 | AI35: 8519.692037 | AJ35: 2011.EHCP.I03.Sep241 | AK35: Church Hill School.2011.EHCP.I03.Sep24 | AL35: 8519.692037 | AM35: 2011.EHCP.I03.Oct241 | AN35: Church Hill School.2011.EHCP.I03.Oct24 | AO35: 8519.692037 | AP35: 2011.EHCP.I03.Nov241 | AQ35: Church Hill School.2011.EHCP.I03.Nov24 | AR35: 8519.692037 | AS35: 2011.EHCP.I03.Dec241 | AT35: Church Hill School.2011.EHCP.I03.Dec24 | AU35: 13531.67526 | AV35: 2011.EHCP.I03.Jan241 | AW35: Church Hill School.2011.EHCP.I03.Jan24 | AX35: 6765.83763 | AY35: 2011.EHCP.I03.Feb241 | AZ35: Church Hill School.2011.EHCP.I03.Feb24 | BA35: 6765.83763 | BB35: 2011.EHCP.I03.Mar251 | BC35: Church Hill School.2011.EHCP.I03.Mar25 | BD35: 6765.83763 | BE35: 98053.76 | BF35: 0
A36: 3022014 | B36: 3022014 | C36: Colindale | D36: 0 | E36: M | F36: Primary | G36: D11432 | H36: Maintained Primary | I36: ARPs | J36: 661225 | K36: I03 | L36: 1 | M36: ARPs.I03 | N36: 400050 | O36: Colindale School | P36: Colindale School | Q36: S900008314 | R36: NW9 6DT | S36: A1.D11432.661225.99999.9999999.999999 | T36: 100555.67 | U36: 2014.ARPs.I03.Ap241 | V36: Colindale School.2014.ARPs.I03.Ap24 | W36: 8521.666667 | X36: 2014.ARPs.I03.Ma241 | Y36: Colindale School.2014.ARPs.I03.Ma24 | Z36: 8521.666667 | AA36: 2014.ARPs.I03.Ju241 | AB36: Colindale School.2014.ARPs.I03.Ju24 | AC36: 8521.666667 | AD36: 2014.ARPs.I03.Jul241 | AE36: Colindale School.2014.ARPs.I03.Jul24 | AF36: 8521.666667 | AG36: 2014.ARPs.I03.Aug241 | AH36: Colindale School.2014.ARPs.I03.Aug24 | AI36: 8521.666667 | AJ36: 2014.ARPs.I03.Sep241 | AK36: Colindale School.2014.ARPs.I03.Sep24 | AL36: 8521.666667 | AM36: 2014.ARPs.I03.Oct241 | AN36: Colindale School.2014.ARPs.I03.Oct24 | AO36: 8521.666667 | AP36: 2014.ARPs.I03.Nov241 | AQ36: Colindale School.2014.ARPs.I03.Nov24 | AR36: 8521.666667 | AS36: 2014.ARPs.I03.Dec241 | AT36: Colindale School.2014.ARPs.I03.Dec24 | AU36: 12952.93467 | AV36: 2014.ARPs.I03.Jan241 | AW36: Colindale School.2014.ARPs.I03.Jan24 | AX36: 6476.467333 | AY36: 2014.ARPs.I03.Feb241 | AZ36: Colindale School.2014.ARPs.I03.Feb24 | BA36: 6476.467333 | BB36: 2014.ARPs.I03.Mar251 | BC36: Colindale School.2014.ARPs.I03.Mar25 | BD36: 6476.467333 | BE36: 100555.67 | BF36: 0
A37: 3022014 | B37: 3022014 | C37: Colindale | D37: 0 | E37: M | F37: Primary | G37: D11431 | H37: Maintained Primary | I37: EHCP | J37: 661225 | K37: I03 | L37: 2 | M37: EHCP.I03 | N37: 400050 | O37: Colindale School | P37: Colindale School | Q37: S900008314 | R37: NW9 6DT | S37: A1.D11431.661225.99999.9999999.999999 | T37: 206220.08 | U37: 2014.EHCP.I03.Ap241 | V37: Colindale School.2014.EHCP.I03.Ap24 | W37: 17778.38917 | X37: 2014.EHCP.I03.Ma241 | Y37: Colindale School.2014.EHCP.I03.Ma24 | Z37: 17778.38917 | AA37: 2014.EHCP.I03.Ju241 | AB37: Colindale School.2014.EHCP.I03.Ju24 | AC37: 18431.05583 | AD37: 2014.EHCP.I03.Jul241 | AE37: Colindale School.2014.EHCP.I03.Jul24 | AF37: 18576.09287 | AG37: 2014.EHCP.I03.Aug241 | AH37: Colindale School.2014.EHCP.I03.Aug24 | AI37: 18576.09287 | AJ37: 2014.EHCP.I03.Sep241 | AK37: Colindale School.2014.EHCP.I03.Sep24 | AL37: 18576.09287 | AM37: 2014.EHCP.I03.Oct241 | AN37: Colindale School.2014.EHCP.I03.Oct24 | AO37: 18576.09287 | AP37: 2014.EHCP.I03.Nov241 | AQ37: Colindale School.2014.EHCP.I03.Nov24 | AR37: 18576.09287 | AS37: 2014.EHCP.I03.Dec241 | AT37: Colindale School.2014.EHCP.I03.Dec24 | AU37: 23740.71259 | AV37: 2014.EHCP.I03.Jan241 | AW37: Colindale School.2014.EHCP.I03.Jan24 | AX37: 11870.3563 | AY37: 2014.EHCP.I03.Feb241 | AZ37: Colindale School.2014.EHCP.I03.Feb24 | BA37: 11870.3563 | BB37: 2014.EHCP.I03.Mar251 | BC37: Colindale School.2014.EHCP.I03.Mar25 | BD37: 11870.3563 | BE37: 206220.08 | BF37: 0
A38: 3022014 | B38: 3022014 | C38: Colindale | D38: 0 | E38: M | F38: Primary | G38: D10265 | H38: SEN Inclusion | I38: SEN | J38: 661225 | K38: I03 | L38: 3 | M38: SEN .I03 | N38: 400050 | O38: Colindale School | P38: Colindale School | Q38: S900008314 | R38: NW9 6DT | S38: A1.D10265.661225.99999.9999999.999999 | T38: 3406 | U38: 2014.SEN .I03.Ap241 | V38: Colindale School.2014.SEN .I03.Ap24 | W38: 244 | X38: 2014.SEN .I03.Ma241 | Y38: Colindale School.2014.SEN .I03.Ma24 | Z38: 244 | AA38: 2014.SEN .I03.Ju241 | AB38: Colindale School.2014.SEN .I03.Ju24 | AC38: 244 | AD38: 2014.SEN .I03.Jul241 | AE38: Colindale School.2014.SEN .I03.Jul24 | AF38: 244 | AG38: 2014.SEN .I03.Aug241 | AH38: Colindale School.2014.SEN .I03.Aug24 | AI38: 244 | AJ38: 2014.SEN .I03.Sep241 | AK38: Colindale School.2014.SEN .I03.Sep24 | AL38: 244 | AM38: 2014.SEN .I03.Oct241 | AN38: Colindale School.2014.SEN .I03.Oct24 | AO38: 244 | AP38: 2014.SEN .I03.Nov241 | AQ38: Colindale School.2014.SEN .I03.Nov24 | AR38: 244 | AS38: 2014.SEN .I03.Dec241 | AT38: Colindale School.2014.SEN .I03.Dec24 | AU38: 581.6 | AV38: 2014.SEN .I03.Jan241 | AW38: Colindale School.2014.SEN .I03.Jan24 | AX38: 290.8 | AY38: 2014.SEN .I03.Feb241 | AZ38: Colindale School.2014.SEN .I03.Feb24 | BA38: 290.8 | BB38: 2014.SEN .I03.Mar251 | BC38: Colindale School.2014.SEN .I03.Mar25 | BD38: 290.8 | BE38: 3406 | BF38: 0
A39: 3022015 | B39: 3022015 | C39: Coppetts Wood | D39: 0 | E39: M | F39: Primary | G39: D11432 | H39: Maintained Primary | I39: ARPs | J39: 661225 | K39: I03 | L39: 1 | M39: ARPs.I03 | N39: 400059 | O39: Coppetts Wood School | P39: Coppetts Wood School | Q39: S900008319 | R39: N10 1JS | S39: A1.D11432.661225.99999.9999999.999999 | T39: 246579.16 | U39: 2015.ARPs.I03.Ap241 | V39: Coppetts Wood School.2015.ARPs.I03.Ap24 | W39: 22281.25 | X39: 2015.ARPs.I03.Ma241 | Y39: Coppetts Wood School.2015.ARPs.I03.Ma24 | Z39: 22281.25 | AA39: 2015.ARPs.I03.Ju241 | AB39: Coppetts Wood School.2015.ARPs.I03.Ju24 | AC39: 22281.25 | AD39: 2015.ARPs.I03.Jul241 | AE39: Coppetts Wood School.2015.ARPs.I03.Jul24 | AF39: 22281.25 | AG39: 2015.ARPs.I03.Aug241 | AH39: Coppetts Wood School.2015.ARPs.I03.Aug24 | AI39: 22281.25 | AJ39: 2015.ARPs.I03.Sep241 | AK39: Coppetts Wood School.2015.ARPs.I03.Sep24 | AL39: 22281.25 | AM39: 2015.ARPs.I03.Oct241 | AN39: Coppetts Wood School.2015.ARPs.I03.Oct24 | AO39: 22281.25 | AP39: 2015.ARPs.I03.Nov241 | AQ39: Coppetts Wood School.2015.ARPs.I03.Nov24 | AR39: 22281.25 | AS39: 2015.ARPs.I03.Dec241 | AT39: Coppetts Wood School.2015.ARPs.I03.Dec24 | AU39: 27331.664 | AV39: 2015.ARPs.I03.Jan241 | AW39: Coppetts Wood School.2015.ARPs.I03.Jan24 | AX39: 13665.832 | AY39: 2015.ARPs.I03.Feb241 | AZ39: Coppetts Wood School.2015.ARPs.I03.Feb24 | BA39: 13665.832 | BB39: 2015.ARPs.I03.Mar251 | BC39: Coppetts Wood School.2015.ARPs.I03.Mar25 | BD39: 13665.832 | BE39: 246579.16 | BF39: 0
